Workbook

Sheet soluzioni formule
A1: =SUMPRODUCT(--(RIGHT(A$4:A$3000,1)=LEFT(A$4:A$3000,1))) -> 0 | B1: 0 | C1: 0 | D1: 0 | E1: 0 | F1: 0 | G1: lettere doppie | ZZ1: =COLUMN() -> 702
A2: ninai | B2: scossa | C2: scossa2 | D2: cromagno | E2: luca73 | F2: isy
A3: =SUBSTITUTE(ADDRESS(1,SMALL(IF(MOD(COLUMN($AA:$ZZ),27)>0,COLUMN($AA:$ZZ)),RANDBETWEEN(1,650)),4),1,"") -> DT | B3: =INDEX( {"AB","AC","AD","AE","AF","AG","AH","AI","AJ","AK","AL","AM","AN","AO","AP","AQ","AR","AS","AT","AU","AV","AW","AX","AY","AZ";"BA","BC","BD","BE","BF","BG","BH","BI","BJ","BK","BL","BM","BN","BO","BP","BQ","BR","BS","BT","BU","BV","BW","BX","BY","BZ";"CA","CB","CD","CE","CF","CG","CH","CI","CJ","CK","CL","CM","CN","CO","CP","CQ","CR","CS","CT","CU","CV","CW","CX","CY","CZ";"DA","DB","DC","DE","DF","DG","DH","DI","DJ","DK","DL","DM","DN","DO","DP","DQ","DR","DS","DT","DU","DV","DW","DX","DY","DZ";"EA","EB","EC","ED","EF","EG","EH","EI","EJ","EK","EL","EM","EN","EO","EP","EQ","ER","ES","ET","EU","EV","EW","EX","EY","EZ";"FA","FB","FC","FD","FE","FG","FH","FI","FJ","FK","FL","FM","FN","FO","FP","FQ","FR","FS","FT","FU","FV","FW","FX","FY","FZ";"GA","GB","GC","GD","GE","GF","GH","GI","GJ","GK","GL","GM","GN","GO","GP","GQ","GR","GS","GT","GU","GV","GW","GX","GY","GZ";"HA","HB","HC","HD","HE","HF","HG","HI","HJ","HK","HL","HM","HN","HO","HP","HQ","HR","HS","HT","HU","HV","HW","HX","HY","HZ";"IA","IB","IC","ID","IE","IF","IG","IH","IJ","IK","IL","IM","IN","IO","IP","IQ","IR","IS","IT","IU","IV","IW","IX","IY","IZ";"JA","JB","JC","JD","JE","JF","JG","JH","JI","JK","JL","JM","JN","JO","JP","JQ","JR","JS","JT","JU","JV","JW","JX","JY","JZ";"KA","KB","KC","KD","KE","KF","KG","KH","KI","KJ","KL","KM","KN","KO","KP","KQ","KR","KS","KT","KU","KV","KW","KX","KY","KZ";"LA","LB","LC","LD","LE","LF","LG","LH","LI","LJ","LK","LM","LN","LO","LP","LQ","LR","LS","LT","LU","LV","LW","LX","LY","LZ";"MA","MB","MC","MD","ME","MF","MG","MH","MI","MJ","MK","ML","MN","MO","MP","MQ","MR","MS","MT","MU","MV","MW","MX","MY","MZ";"NA","NB","NC","ND","NE","NF","NG","NH","NI","NJ","NK","NL","NM","NO","NP","NQ","NR","NS","NT","NU","NV","NW","NX","NY","NZ";"OA","OB","OC","OD","OE","OF","OG","OH","OI","OJ","OK","OL","OM","ON","OP","OQ","OR","OS","OT","OU","OV","OW","OX","OY","OZ";"PA","PB","PC","PD","PE","PF","PG","PH","PI","PJ","PK","PL","PM","PN","PO","PQ","PR","PS","PT","PU","PV","PW","PX","PY","PZ";"QA","QB","QC","QD","QE","QF","QG","QH","QI","QJ","QK","QL","QM","QN","QO","QP","QR","QS","QT","QU","QV","QW","QX","QY","QZ";"RA","RB","RC","RD","RE","RF","RG","RH","RI","RJ","RK","RL","RM","RN","RO","RP","RQ","RS","RT","RU","RV","RW","RX","RY","RZ";"SA","SB","SC","SD","SE","SF","SG","SH","SI","SJ","SK","SL","SM","SN","SO","SP","SQ","SR","ST","SU","SV","SW","SX","SY","SZ";"TA","TB","TC","TD","TE","TF","TG","TH","TI","TJ","TK","TL","TM","TN","TO","TP","TQ","TR","TS","TU","TV","TW","TX","TY","TZ";"UA","UB","UC","UD","UE","UF","UG","UH","UI","UJ","UK","UL","UM","UN","UO","UP","UQ","UR","US","UT","UV","UW","UX","UY","UZ";"VA","VB","VC","VD","VE","VF","VG","VH","VI","VJ","VK","VL","VM","VN","VO","VP","VQ","VR","VS","VT","VU","VW","VX","VY","VZ";"WA","WB","WC","WD","WE","WF","WG","WH","WI","WJ","WK","WL","WM","WN","WO","WP","WQ","WR","WS","WT","WU","WV","WX","WY","WZ";"XA","XB","XC","XD","XE","XF","XG","XH","XI","XJ","XK","XL","XM","XN","XO","XP","XQ","XR","XS","XT","XU","XV","XW","XY","XZ";"YA","YB","YC","YD","YE","YF","YG","YH","YI","YJ","YK","YL","YM","YN","YO","YP","YQ","YR","YS","YT","YU","YV","YW","YX","YZ";"ZA","ZB","ZC","ZD","ZE","ZF","ZG","ZH","ZI","ZJ","ZK","ZL","ZM","ZN","ZO","ZP","ZQ","ZR","ZS","ZT","ZU","ZV","ZW","ZX","ZY"}, RANDBETWEEN(1,26),RANDBETWEEN(1,25)) -> DK | C3: =MID("ABACADAEAFAGAHAIAJAKALAMANAOAPAQARASATAUAVAWAXAYAZBABCBDBEBFBGBHBIBJBKBLBMBNBOBPBQBRBSBTBUBVBWBXBYBZCACBCDCECFCGCHCICJCKCLCMCNCOCPCQCRCSCTCUCVCWCXCYCZDADBDCDEDFDGDHDIDJDKDLDMDNDODPDQDRDSDTDUDVDWDXDYDZEAEBECEDEFEGEHEIEJEKELEMENEOEPEQERESETEUEVEWEXEYEZFAFB"& "FCFDFEFGFHFIFJFKFLFMFNFOFPFQFRFSFTFUFVFWFXFYFZGAGBGCGDGEGFGHGIGJGKGLGMGNGOGPGQGRGSGTGUGVGWGXGYGZHAHBHCHDHEHFHGHIHJHKHLHMHNHOHPHQHRHSHTHUHVHWHXHYHZIAIBICIDIEIFIGIHIJIKILIMINIOIPIQIRISITIUIVIWIXIYIZJAJBJCJDJEJFJGJHJIJKJLJMJNJOJPJQJRJSJTJUJVJWJXJYJZKAKBK"& "CKDKEKFKGKHKIKJKLKMKNKOKPKQKRKSKTKUKVKWKXKYKZLALBLCLDLELFLGLHLILJLKLMLNLOLPLQLRLSLTLULVLWLXLYLZMAMBMCMDMEMFMGMHMIMJMKMLMNMOMPMQMRMSMTMUMVMWMXMYMZNANBNCNDNENFNGNHNINJNKNLNMNONPNQNRNSNTNUNVNWNXNYNZOAOBOCODOEOFOGOHOIOJOKOLOMONOPOQOROSOTOUOVOWOXOYOZPAPBPC"& "PDPEPFPGPHPIPJPKPLPMPNPOPQPRPSPTPUPVPWPXPYPZQAQBQCQDQEQFQGQHQIQJQKQLQMQNQOQPQRQSQTQUQVQWQXQYQZRARBRCRDRERFRGRHRIRJRKRLRMRNRORPRQRSRTRURVRWRXRYRZSASBSCSDSESFSGSHSISJSKSLSMSNSOSPSQSRSTSUSVSWSXSYSZTATBTCTDTETFTGTHTITJTKTLTMTNTOTPTQTRTSTUTVTWTXTYTZUAUBUCU"& "DUEUFUGUHUIUJUKULUMUNUOUPUQURUSUTUVUWUXUYUZVAVBVCVDVEVFVGVHVIVJVKVLVMVNVOVPVQVRVSVTVUVWVXVYVZWAWBWCWD"&"WEWFWGWHWIWJWKWLWMWNWOWPWQWRWSWTWUWVWXWYWZXAXBXCXDXEXFXGXHXIXJXKXLXMXNXOXPXQXRXSXTXUXVXWXYXZYAYBYCYDYEYFYGYHYIYJYKYLYMYNYOYPYQYRYSYTYUYVYWYXYZZAZBZCZDZEZFZGZHZIZJZKZLZMZNZOZPZQZRZSZTZUZVZWZXZY",ODD(RANDBETWEEN(1,1299)),2) -> TY | D3: =CHAR(INT((NOW()*10^8-INT(NOW()*10^8))*26+65))&CHAR(LARGE(IF(ROW($A$65:$A$90)<>INT((NOW()*10^8-INT(NOW()*10^8))*26+65),ROW($A$65:$A$90),""),RANDBETWEEN(1,25))) -> LY | E3: =MID(ADDRESS(1,RANDBETWEEN(1,25)*27+(RANDBETWEEN(0,25)+1)),2,2) -> CU | F3: =LEFT(ADDRESS(1,RANDBETWEEN(1,25)*27+(RANDBETWEEN(0,25)+1),4),2) -> GE
A4: =SUBSTITUTE(ADDRESS(1,SMALL(IF(MOD(COLUMN($AA:$ZZ),27)>0,COLUMN($AA:$ZZ)),RANDBETWEEN(1,650)),4),1,"") -> HE | B4: =INDEX( {"AB","AC","AD","AE","AF","AG","AH","AI","AJ","AK","AL","AM","AN","AO","AP","AQ","AR","AS","AT","AU","AV","AW","AX","AY","AZ";"BA","BC","BD","BE","BF","BG","BH","BI","BJ","BK","BL","BM","BN","BO","BP","BQ","BR","BS","BT","BU","BV","BW","BX","BY","BZ";"CA","CB","CD","CE","CF","CG","CH","CI","CJ","CK","CL","CM","CN","CO","CP","CQ","CR","CS","CT","CU","CV","CW","CX","CY","CZ";"DA","DB","DC","DE","DF","DG","DH","DI","DJ","DK","DL","DM","DN","DO","DP","DQ","DR","DS","DT","DU","DV","DW","DX","DY","DZ";"EA","EB","EC","ED","EF","EG","EH","EI","EJ","EK","EL","EM","EN","EO","EP","EQ","ER","ES","ET","EU","EV","EW","EX","EY","EZ";"FA","FB","FC","FD","FE","FG","FH","FI","FJ","FK","FL","FM","FN","FO","FP","FQ","FR","FS","FT","FU","FV","FW","FX","FY","FZ";"GA","GB","GC","GD","GE","GF","GH","GI","GJ","GK","GL","GM","GN","GO","GP","GQ","GR","GS","GT","GU","GV","GW","GX","GY","GZ";"HA","HB","HC","HD","HE","HF","HG","HI","HJ","HK","HL","HM","HN","HO","HP","HQ","HR","HS","HT","HU","HV","HW","HX","HY","HZ";"IA","IB","IC","ID","IE","IF","IG","IH","IJ","IK","IL","IM","IN","IO","IP","IQ","IR","IS","IT","IU","IV","IW","IX","IY","IZ";"JA","JB","JC","JD","JE","JF","JG","JH","JI","JK","JL","JM","JN","JO","JP","JQ","JR","JS","JT","JU","JV","JW","JX","JY","JZ";"KA","KB","KC","KD","KE","KF","KG","KH","KI","KJ","KL","KM","KN","KO","KP","KQ","KR","KS","KT","KU","KV","KW","KX","KY","KZ";"LA","LB","LC","LD","LE","LF","LG","LH","LI","LJ","LK","LM","LN","LO","LP","LQ","LR","LS","LT","LU","LV","LW","LX","LY","LZ";"MA","MB","MC","MD","ME","MF","MG","MH","MI","MJ","MK","ML","MN","MO","MP","MQ","MR","MS","MT","MU","MV","MW","MX","MY","MZ";"NA","NB","NC","ND","NE","NF","NG","NH","NI","NJ","NK","NL","NM","NO","NP","NQ","NR","NS","NT","NU","NV","NW","NX","NY","NZ";"OA","OB","OC","OD","OE","OF","OG","OH","OI","OJ","OK","OL","OM","ON","OP","OQ","OR","OS","OT","OU","OV","OW","OX","OY","OZ";"PA","PB","PC","PD","PE","PF","PG","PH","PI","PJ","PK","PL","PM","PN","PO","PQ","PR","PS","PT","PU","PV","PW","PX","PY","PZ";"QA","QB","QC","QD","QE","QF","QG","QH","QI","QJ","QK","QL","QM","QN","QO","QP","QR","QS","QT","QU","QV","QW","QX","QY","QZ";"RA","RB","RC","RD","RE","RF","RG","RH","RI","RJ","RK","RL","RM","RN","RO","RP","RQ","RS","RT","RU","RV","RW","RX","RY","RZ";"SA","SB","SC","SD","SE","SF","SG","SH","SI","SJ","SK","SL","SM","SN","SO","SP","SQ","SR","ST","SU","SV","SW","SX","SY","SZ";"TA","TB","TC","TD","TE","TF","TG","TH","TI","TJ","TK","TL","TM","TN","TO","TP","TQ","TR","TS","TU","TV","TW","TX","TY","TZ";"UA","UB","UC","UD","UE","UF","UG","UH","UI","UJ","UK","UL","UM","UN","UO","UP","UQ","UR","US","UT","UV","UW","UX","UY","UZ";"VA","VB","VC","VD","VE","VF","VG","VH","VI","VJ","VK","VL","VM","VN","VO","VP","VQ","VR","VS","VT","VU","VW","VX","VY","VZ";"WA","WB","WC","WD","WE","WF","WG","WH","WI","WJ","WK","WL","WM","WN","WO","WP","WQ","WR","WS","WT","WU","WV","WX","WY","WZ";"XA","XB","XC","XD","XE","XF","XG","XH","XI","XJ","XK","XL","XM","XN","XO","XP","XQ","XR","XS","XT","XU","XV","XW","XY","XZ";"YA","YB","YC","YD","YE","YF","YG","YH","YI","YJ","YK","YL","YM","YN","YO","YP","YQ","YR","YS","YT","YU","YV","YW","YX","YZ";"ZA","ZB","ZC","ZD","ZE","ZF","ZG","ZH","ZI","ZJ","ZK","ZL","ZM","ZN","ZO","ZP","ZQ","ZR","ZS","ZT","ZU","ZV","ZW","ZX","ZY"}, RANDBETWEEN(1,26),RANDBETWEEN(1,25)) -> NL | C4: =MID("ABACADAEAFAGAHAIAJAKALAMANAOAPAQARASATAUAVAWAXAYAZBABCBDBEBFBGBHBIBJBKBLBMBNBOBPBQBRBSBTBUBVBWBXBYBZCACBCDCECFCGCHCICJCKCLCMCNCOCPCQCRCSCTCUCVCWCXCYCZDADBDCDEDFDGDHDIDJDKDLDMDNDODPDQDRDSDTDUDVDWDXDYDZEAEBECEDEFEGEHEIEJEKELEMENEOEPEQERESETEUEVEWEXEYEZFAFB"& "FCFDFEFGFHFIFJFKFLFMFNFOFPFQFRFSFTFUFVFWFXFYFZGAGBGCGDGEGFGHGIGJGKGLGMGNGOGPGQGRGSGTGUGVGWGXGYGZHAHBHCHDHEHFHGHIHJHKHLHMHNHOHPHQHRHSHTHUHVHWHXHYHZIAIBICIDIEIFIGIHIJIKILIMINIOIPIQIRISITIUIVIWIXIYIZJAJBJCJDJEJFJGJHJIJKJLJMJNJOJPJQJRJSJTJUJVJWJXJYJZKAKBK"& "CKDKEKFKGKHKIKJKLKMKNKOKPKQKRKSKTKUKVKWKXKYKZLALBLCLDLELFLGLHLILJLKLMLNLOLPLQLRLSLTLULVLWLXLYLZMAMBMCMDMEMFMGMHMIMJMKMLMNMOMPMQMRMSMTMUMVMWMXMYMZNANBNCNDNENFNGNHNINJNKNLNMNONPNQNRNSNTNUNVNWNXNYNZOAOBOCODOEOFOGOHOIOJOKOLOMONOPOQOROSOTOUOVOWOXOYOZPAPBPC"& "PDPEPFPGPHPIPJPKPLPMPNPOPQPRPSPTPUPVPWPXPYPZQAQBQCQDQEQFQGQHQIQJQKQLQMQNQOQPQRQSQTQUQVQWQXQYQZRARBRCRDRERFRGRHRIRJRKRLRMRNRORPRQRSRTRURVRWRXRYRZSASBSCSDSESFSGSHSISJSKSLSMSNSOSPSQSRSTSUSVSWSXSYSZTATBTCTDTETFTGTHTITJTKTLTMTNTOTPTQTRTSTUTVTWTXTYTZUAUBUCU"& "DUEUFUGUHUIUJUKULUMUNUOUPUQURUSUTUVUWUXUYUZVAVBVCVDVEVFVGVHVIVJVKVLVMVNVOVPVQVRVSVTVUVWVXVYVZWAWBWCWD"&"WEWFWGWHWIWJWKWLWMWNWOWPWQWRWSWTWUWVWXWYWZXAXBXCXDXEXFXGXHXIXJXKXLXMXNXOXPXQXRXSXTXUXVXWXYXZYAYBYCYDYEYFYGYHYIYJYKYLYMYNYOYPYQYRYSYTYUYVYWYXYZZAZBZCZDZEZFZGZHZIZJZKZLZMZNZOZPZQZRZSZTZUZVZWZXZY",ODD(RANDBETWEEN(1,1299)),2) -> GN | D4: =CHAR(INT((NOW()*10^8-INT(NOW()*10^8))*26+65))&CHAR(LARGE(IF(ROW($A$65:$A$90)<>INT((NOW()*10^8-INT(NOW()*10^8))*26+65),ROW($A$65:$A$90),""),RANDBETWEEN(1,25))) -> SP | E4: =MID(ADDRESS(1,RANDBETWEEN(1,25)*27+(RANDBETWEEN(0,25)+1)),2,2) -> OR | F4: =LEFT(ADDRESS(1,RANDBETWEEN(1,25)*27+(RANDBETWEEN(0,25)+1),4),2) -> LU
A5: =SUBSTITUTE(ADDRESS(1,SMALL(IF(MOD(COLUMN($AA:$ZZ),27)>0,COLUMN($AA:$ZZ)),RANDBETWEEN(1,650)),4),1,"") -> TN | B5: =INDEX( {"AB","AC","AD","AE","AF","AG","AH","AI","AJ","AK","AL","AM","AN","AO","AP","AQ","AR","AS","AT","AU","AV","AW","AX","AY","AZ";"BA","BC","BD","BE","BF","BG","BH","BI","BJ","BK","BL","BM","BN","BO","BP","BQ","BR","BS","BT","BU","BV","BW","BX","BY","BZ";"CA","CB","CD","CE","CF","CG","CH","CI","CJ","CK","CL","CM","CN","CO","CP","CQ","CR","CS","CT","CU","CV","CW","CX","CY","CZ";"DA","DB","DC","DE","DF","DG","DH","DI","DJ","DK","DL","DM","DN","DO","DP","DQ","DR","DS","DT","DU","DV","DW","DX","DY","DZ";"EA","EB","EC","ED","EF","EG","EH","EI","EJ","EK","EL","EM","EN","EO","EP","EQ","ER","ES","ET","EU","EV","EW","EX","EY","EZ";"FA","FB","FC","FD","FE","FG","FH","FI","FJ","FK","FL","FM","FN","FO","FP","FQ","FR","FS","FT","FU","FV","FW","FX","FY","FZ";"GA","GB","GC","GD","GE","GF","GH","GI","GJ","GK","GL","GM","GN","GO","GP","GQ","GR","GS","GT","GU","GV","GW","GX","GY","GZ";"HA","HB","HC","HD","HE","HF","HG","HI","HJ","HK","HL","HM","HN","HO","HP","HQ","HR","HS","HT","HU","HV","HW","HX","HY","HZ";"IA","IB","IC","ID","IE","IF","IG","IH","IJ","IK","IL","IM","IN","IO","IP","IQ","IR","IS","IT","IU","IV","IW","IX","IY","IZ";"JA","JB","JC","JD","JE","JF","JG","JH","JI","JK","JL","JM","JN","JO","JP","JQ","JR","JS","JT","JU","JV","JW","JX","JY","JZ";"KA","KB","KC","KD","KE","KF","KG","KH","KI","KJ","KL","KM","KN","KO","KP","KQ","KR","KS","KT","KU","KV","KW","KX","KY","KZ";"LA","LB","LC","LD","LE","LF","LG","LH","LI","LJ","LK","LM","LN","LO","LP","LQ","LR","LS","LT","LU","LV","LW","LX","LY","LZ";"MA","MB","MC","MD","ME","MF","MG","MH","MI","MJ","MK","ML","MN","MO","MP","MQ","MR","MS","MT","MU","MV","MW","MX","MY","MZ";"NA","NB","NC","ND","NE","NF","NG","NH","NI","NJ","NK","NL","NM","NO","NP","NQ","NR","NS","NT","NU","NV","NW","NX","NY","NZ";"OA","OB","OC","OD","OE","OF","OG","OH","OI","OJ","OK","OL","OM","ON","OP","OQ","OR","OS","OT","OU","OV","OW","OX","OY","OZ";"PA","PB","PC","PD","PE","PF","PG","PH","PI","PJ","PK","PL","PM","PN","PO","PQ","PR","PS","PT","PU","PV","PW","PX","PY","PZ";"QA","QB","QC","QD","QE","QF","QG","QH","QI","QJ","QK","QL","QM","QN","QO","QP","QR","QS","QT","QU","QV","QW","QX","QY","QZ";"RA","RB","RC","RD","RE","RF","RG","RH","RI","RJ","RK","RL","RM","RN","RO","RP","RQ","RS","RT","RU","RV","RW","RX","RY","RZ";"SA","SB","SC","SD","SE","SF","SG","SH","SI","SJ","SK","SL","SM","SN","SO","SP","SQ","SR","ST","SU","SV","SW","SX","SY","SZ";"TA","TB","TC","TD","TE","TF","TG","TH","TI","TJ","TK","TL","TM","TN","TO","TP","TQ","TR","TS","TU","TV","TW","TX","TY","TZ";"UA","UB","UC","UD","UE","UF","UG","UH","UI","UJ","UK","UL","UM","UN","UO","UP","UQ","UR","US","UT","UV","UW","UX","UY","UZ";"VA","VB","VC","VD","VE","VF","VG","VH","VI","VJ","VK","VL","VM","VN","VO","VP","VQ","VR","VS","VT","VU","VW","VX","VY","VZ";"WA","WB","WC","WD","WE","WF","WG","WH","WI","WJ","WK","WL","WM","WN","WO","WP","WQ","WR","WS","WT","WU","WV","WX","WY","WZ";"XA","XB","XC","XD","XE","XF","XG","XH","XI","XJ","XK","XL","XM","XN","XO","XP","XQ","XR","XS","XT","XU","XV","XW","XY","XZ";"YA","YB","YC","YD","YE","YF","YG","YH","YI","YJ","YK","YL","YM","YN","YO","YP","YQ","YR","YS","YT","YU","YV","YW","YX","YZ";"ZA","ZB","ZC","ZD","ZE","ZF","ZG","ZH","ZI","ZJ","ZK","ZL","ZM","ZN","ZO","ZP","ZQ","ZR","ZS","ZT","ZU","ZV","ZW","ZX","ZY"}, RANDBETWEEN(1,26),RANDBETWEEN(1,25)) -> YP | C5: RM | D5: =CHAR(INT((NOW()*10^8-INT(NOW()*10^8))*26+65))&CHAR(LARGE(IF(ROW($A$65:$A$90)<>INT((NOW()*10^8-INT(NOW()*10^8))*26+65),ROW($A$65:$A$90),""),RANDBETWEEN(1,25))) -> SI | E5: XU | F5: SZ
A6: =SUBSTITUTE(ADDRESS(1,SMALL(IF(MOD(COLUMN($AA:$ZZ),27)>0,COLUMN($AA:$ZZ)),RANDBETWEEN(1,650)),4),1,"") -> UZ | B6: =INDEX( {"AB","AC","AD","AE","AF","AG","AH","AI","AJ","AK","AL","AM","AN","AO","AP","AQ","AR","AS","AT","AU","AV","AW","AX","AY","AZ";"BA","BC","BD","BE","BF","BG","BH","BI","BJ","BK","BL","BM","BN","BO","BP","BQ","BR","BS","BT","BU","BV","BW","BX","BY","BZ";"CA","CB","CD","CE","CF","CG","CH","CI","CJ","CK","CL","CM","CN","CO","CP","CQ","CR","CS","CT","CU","CV","CW","CX","CY","CZ";"DA","DB","DC","DE","DF","DG","DH","DI","DJ","DK","DL","DM","DN","DO","DP","DQ","DR","DS","DT","DU","DV","DW","DX","DY","DZ";"EA","EB","EC","ED","EF","EG","EH","EI","EJ","EK","EL","EM","EN","EO","EP","EQ","ER","ES","ET","EU","EV","EW","EX","EY","EZ";"FA","FB","FC","FD","FE","FG","FH","FI","FJ","FK","FL","FM","FN","FO","FP","FQ","FR","FS","FT","FU","FV","FW","FX","FY","FZ";"GA","GB","GC","GD","GE","GF","GH","GI","GJ","GK","GL","GM","GN","GO","GP","GQ","GR","GS","GT","GU","GV","GW","GX","GY","GZ";"HA","HB","HC","HD","HE","HF","HG","HI","HJ","HK","HL","HM","HN","HO","HP","HQ","HR","HS","HT","HU","HV","HW","HX","HY","HZ";"IA","IB","IC","ID","IE","IF","IG","IH","IJ","IK","IL","IM","IN","IO","IP","IQ","IR","IS","IT","IU","IV","IW","IX","IY","IZ";"JA","JB","JC","JD","JE","JF","JG","JH","JI","JK","JL","JM","JN","JO","JP","JQ","JR","JS","JT","JU","JV","JW","JX","JY","JZ";"KA","KB","KC","KD","KE","KF","KG","KH","KI","KJ","KL","KM","KN","KO","KP","KQ","KR","KS","KT","KU","KV","KW","KX","KY","KZ";"LA","LB","LC","LD","LE","LF","LG","LH","LI","LJ","LK","LM","LN","LO","LP","LQ","LR","LS","LT","LU","LV","LW","LX","LY","LZ";"MA","MB","MC","MD","ME","MF","MG","MH","MI","MJ","MK","ML","MN","MO","MP","MQ","MR","MS","MT","MU","MV","MW","MX","MY","MZ";"NA","NB","NC","ND","NE","NF","NG","NH","NI","NJ","NK","NL","NM","NO","NP","NQ","NR","NS","NT","NU","NV","NW","NX","NY","NZ";"OA","OB","OC","OD","OE","OF","OG","OH","OI","OJ","OK","OL","OM","ON","OP","OQ","OR","OS","OT","OU","OV","OW","OX","OY","OZ";"PA","PB","PC","PD","PE","PF","PG","PH","PI","PJ","PK","PL","PM","PN","PO","PQ","PR","PS","PT","PU","PV","PW","PX","PY","PZ";"QA","QB","QC","QD","QE","QF","QG","QH","QI","QJ","QK","QL","QM","QN","QO","QP","QR","QS","QT","QU","QV","QW","QX","QY","QZ";"RA","RB","RC","RD","RE","RF","RG","RH","RI","RJ","RK","RL","RM","RN","RO","RP","RQ","RS","RT","RU","RV","RW","RX","RY","RZ";"SA","SB","SC","SD","SE","SF","SG","SH","SI","SJ","SK","SL","SM","SN","SO","SP","SQ","SR","ST","SU","SV","SW","SX","SY","SZ";"TA","TB","TC","TD","TE","TF","TG","TH","TI","TJ","TK","TL","TM","TN","TO","TP","TQ","TR","TS","TU","TV","TW","TX","TY","TZ";"UA","UB","UC","UD","UE","UF","UG","UH","UI","UJ","UK","UL","UM","UN","UO","UP","UQ","UR","US","UT","UV","UW","UX","UY","UZ";"VA","VB","VC","VD","VE","VF","VG","VH","VI","VJ","VK","VL","VM","VN","VO","VP","VQ","VR","VS","VT","VU","VW","VX","VY","VZ";"WA","WB","WC","WD","WE","WF","WG","WH","WI","WJ","WK","WL","WM","WN","WO","WP","WQ","WR","WS","WT","WU","WV","WX","WY","WZ";"XA","XB","XC","XD","XE","XF","XG","XH","XI","XJ","XK","XL","XM","XN","XO","XP","XQ","XR","XS","XT","XU","XV","XW","XY","XZ";"YA","YB","YC","YD","YE","YF","YG","YH","YI","YJ","YK","YL","YM","YN","YO","YP","YQ","YR","YS","YT","YU","YV","YW","YX","YZ";"ZA","ZB","ZC","ZD","ZE","ZF","ZG","ZH","ZI","ZJ","ZK","ZL","ZM","ZN","ZO","ZP","ZQ","ZR","ZS","ZT","ZU","ZV","ZW","ZX","ZY"}, RANDBETWEEN(1,26),RANDBETWEEN(1,25)) -> RX | C6: UO | D6: =CHAR(INT((NOW()*10^8-INT(NOW()*10^8))*26+65))&CHAR(LARGE(IF(ROW($A$65:$A$90)<>INT((NOW()*10^8-INT(NOW()*10^8))*26+65),ROW($A$65:$A$90),""),RANDBETWEEN(1,25))) -> SK | E6: YI | F6: VU
A7: =SUBSTITUTE(ADDRESS(1,SMALL(IF(MOD(COLUMN($AA:$ZZ),27)>0,COLUMN($AA:$ZZ)),RANDBETWEEN(1,650)),4),1,"") -> PI | B7: =INDEX( {"AB","AC","AD","AE","AF","AG","AH","AI","AJ","AK","AL","AM","AN","AO","AP","AQ","AR","AS","AT","AU","AV","AW","AX","AY","AZ";"BA","BC","BD","BE","BF","BG","BH","BI","BJ","BK","BL","BM","BN","BO","BP","BQ","BR","BS","BT","BU","BV","BW","BX","BY","BZ";"CA","CB","CD","CE","CF","CG","CH","CI","CJ","CK","CL","CM","CN","CO","CP","CQ","CR","CS","CT","CU","CV","CW","CX","CY","CZ";"DA","DB","DC","DE","DF","DG","DH","DI","DJ","DK","DL","DM","DN","DO","DP","DQ","DR","DS","DT","DU","DV","DW","DX","DY","DZ";"EA","EB","EC","ED","EF","EG","EH","EI","EJ","EK","EL","EM","EN","EO","EP","EQ","ER","ES","ET","EU","EV","EW","EX","EY","EZ";"FA","FB","FC","FD","FE","FG","FH","FI","FJ","FK","FL","FM","FN","FO","FP","FQ","FR","FS","FT","FU","FV","FW","FX","FY","FZ";"GA","GB","GC","GD","GE","GF","GH","GI","GJ","GK","GL","GM","GN","GO","GP","GQ","GR","GS","GT","GU","GV","GW","GX","GY","GZ";"HA","HB","HC","HD","HE","HF","HG","HI","HJ","HK","HL","HM","HN","HO","HP","HQ","HR","HS","HT","HU","HV","HW","HX","HY","HZ";"IA","IB","IC","ID","IE","IF","IG","IH","IJ","IK","IL","IM","IN","IO","IP","IQ","IR","IS","IT","IU","IV","IW","IX","IY","IZ";"JA","JB","JC","JD","JE","JF","JG","JH","JI","JK","JL","JM","JN","JO","JP","JQ","JR","JS","JT","JU","JV","JW","JX","JY","JZ";"KA","KB","KC","KD","KE","KF","KG","KH","KI","KJ","KL","KM","KN","KO","KP","KQ","KR","KS","KT","KU","KV","KW","KX","KY","KZ";"LA","LB","LC","LD","LE","LF","LG","LH","LI","LJ","LK","LM","LN","LO","LP","LQ","LR","LS","LT","LU","LV","LW","LX","LY","LZ";"MA","MB","MC","MD","ME","MF","MG","MH","MI","MJ","MK","ML","MN","MO","MP","MQ","MR","MS","MT","MU","MV","MW","MX","MY","MZ";"NA","NB","NC","ND","NE","NF","NG","NH","NI","NJ","NK","NL","NM","NO","NP","NQ","NR","NS","NT","NU","NV","NW","NX","NY","NZ";"OA","OB","OC","OD","OE","OF","OG","OH","OI","OJ","OK","OL","OM","ON","OP","OQ","OR","OS","OT","OU","OV","OW","OX","OY","OZ";"PA","PB","PC","PD","PE","PF","PG","PH","PI","PJ","PK","PL","PM","PN","PO","PQ","PR","PS","PT","PU","PV","PW","PX","PY","PZ";"QA","QB","QC","QD","QE","QF","QG","QH","QI","QJ","QK","QL","QM","QN","QO","QP","QR","QS","QT","QU","QV","QW","QX","QY","QZ";"RA","RB","RC","RD","RE","RF","RG","RH","RI","RJ","RK","RL","RM","RN","RO","RP","RQ","RS","RT","RU","RV","RW","RX","RY","RZ";"SA","SB","SC","SD","SE","SF","SG","SH","SI","SJ","SK","SL","SM","SN","SO","SP","SQ","SR","ST","SU","SV","SW","SX","SY","SZ";"TA","TB","TC","TD","TE","TF","TG","TH","TI","TJ","TK","TL","TM","TN","TO","TP","TQ","TR","TS","TU","TV","TW","TX","TY","TZ";"UA","UB","UC","UD","UE","UF","UG","UH","UI","UJ","UK","UL","UM","UN","UO","UP","UQ","UR","US","UT","UV","UW","UX","UY","UZ";"VA","VB","VC","VD","VE","VF","VG","VH","VI","VJ","VK","VL","VM","VN","VO","VP","VQ","VR","VS","VT","VU","VW","VX","VY","VZ";"WA","WB","WC","WD","WE","WF","WG","WH","WI","WJ","WK","WL","WM","WN","WO","WP","WQ","WR","WS","WT","WU","WV","WX","WY","WZ";"XA","XB","XC","XD","XE","XF","XG","XH","XI","XJ","XK","XL","XM","XN","XO","XP","XQ","XR","XS","XT","XU","XV","XW","XY","XZ";"YA","YB","YC","YD","YE","YF","YG","YH","YI","YJ","YK","YL","YM","YN","YO","YP","YQ","YR","YS","YT","YU","YV","YW","YX","YZ";"ZA","ZB","ZC","ZD","ZE","ZF","ZG","ZH","ZI","ZJ","ZK","ZL","ZM","ZN","ZO","ZP","ZQ","ZR","ZS","ZT","ZU","ZV","ZW","ZX","ZY"}, RANDBETWEEN(1,26),RANDBETWEEN(1,25)) -> HT | C7: JB | D7: =CHAR(INT((NOW()*10^8-INT(NOW()*10^8))*26+65))&CHAR(LARGE(IF(ROW($A$65:$A$90)<>INT((NOW()*10^8-INT(NOW()*10^8))*26+65),ROW($A$65:$A$90),""),RANDBETWEEN(1,25))) -> SP | E7: RC | F7: HF
A8: =SUBSTITUTE(ADDRESS(1,SMALL(IF(MOD(COLUMN($AA:$ZZ),27)>0,COLUMN($AA:$ZZ)),RANDBETWEEN(1,650)),4),1,"") -> ZV | B8: =INDEX( {"AB","AC","AD","AE","AF","AG","AH","AI","AJ","AK","AL","AM","AN","AO","AP","AQ","AR","AS","AT","AU","AV","AW","AX","AY","AZ";"BA","BC","BD","BE","BF","BG","BH","BI","BJ","BK","BL","BM","BN","BO","BP","BQ","BR","BS","BT","BU","BV","BW","BX","BY","BZ";"CA","CB","CD","CE","CF","CG","CH","CI","CJ","CK","CL","CM","CN","CO","CP","CQ","CR","CS","CT","CU","CV","CW","CX","CY","CZ";"DA","DB","DC","DE","DF","DG","DH","DI","DJ","DK","DL","DM","DN","DO","DP","DQ","DR","DS","DT","DU","DV","DW","DX","DY","DZ";"EA","EB","EC","ED","EF","EG","EH","EI","EJ","EK","EL","EM","EN","EO","EP","EQ","ER","ES","ET","EU","EV","EW","EX","EY","EZ";"FA","FB","FC","FD","FE","FG","FH","FI","FJ","FK","FL","FM","FN","FO","FP","FQ","FR","FS","FT","FU","FV","FW","FX","FY","FZ";"GA","GB","GC","GD","GE","GF","GH","GI","GJ","GK","GL","GM","GN","GO","GP","GQ","GR","GS","GT","GU","GV","GW","GX","GY","GZ";"HA","HB","HC","HD","HE","HF","HG","HI","HJ","HK","HL","HM","HN","HO","HP","HQ","HR","HS","HT","HU","HV","HW","HX","HY","HZ";"IA","IB","IC","ID","IE","IF","IG","IH","IJ","IK","IL","IM","IN","IO","IP","IQ","IR","IS","IT","IU","IV","IW","IX","IY","IZ";"JA","JB","JC","JD","JE","JF","JG","JH","JI","JK","JL","JM","JN","JO","JP","JQ","JR","JS","JT","JU","JV","JW","JX","JY","JZ";"KA","KB","KC","KD","KE","KF","KG","KH","KI","KJ","KL","KM","KN","KO","KP","KQ","KR","KS","KT","KU","KV","KW","KX","KY","KZ";"LA","LB","LC","LD","LE","LF","LG","LH","LI","LJ","LK","LM","LN","LO","LP","LQ","LR","LS","LT","LU","LV","LW","LX","LY","LZ";"MA","MB","MC","MD","ME","MF","MG","MH","MI","MJ","MK","ML","MN","MO","MP","MQ","MR","MS","MT","MU","MV","MW","MX","MY","MZ";"NA","NB","NC","ND","NE","NF","NG","NH","NI","NJ","NK","NL","NM","NO","NP","NQ","NR","NS","NT","NU","NV","NW","NX","NY","NZ";"OA","OB","OC","OD","OE","OF","OG","OH","OI","OJ","OK","OL","OM","ON","OP","OQ","OR","OS","OT","OU","OV","OW","OX","OY","OZ";"PA","PB","PC","PD","PE","PF","PG","PH","PI","PJ","PK","PL","PM","PN","PO","PQ","PR","PS","PT","PU","PV","PW","PX","PY","PZ";"QA","QB","QC","QD","QE","QF","QG","QH","QI","QJ","QK","QL","QM","QN","QO","QP","QR","QS","QT","QU","QV","QW","QX","QY","QZ";"RA","RB","RC","RD","RE","RF","RG","RH","RI","RJ","RK","RL","RM","RN","RO","RP","RQ","RS","RT","RU","RV","RW","RX","RY","RZ";"SA","SB","SC","SD","SE","SF","SG","SH","SI","SJ","SK","SL","SM","SN","SO","SP","SQ","SR","ST","SU","SV","SW","SX","SY","SZ";"TA","TB","TC","TD","TE","TF","TG","TH","TI","TJ","TK","TL","TM","TN","TO","TP","TQ","TR","TS","TU","TV","TW","TX","TY","TZ";"UA","UB","UC","UD","UE","UF","UG","UH","UI","UJ","UK","UL","UM","UN","UO","UP","UQ","UR","US","UT","UV","UW","UX","UY","UZ";"VA","VB","VC","VD","VE","VF","VG","VH","VI","VJ","VK","VL","VM","VN","VO","VP","VQ","VR","VS","VT","VU","VW","VX","VY","VZ";"WA","WB","WC","WD","WE","WF","WG","WH","WI","WJ","WK","WL","WM","WN","WO","WP","WQ","WR","WS","WT","WU","WV","WX","WY","WZ";"XA","XB","XC","XD","XE","XF","XG","XH","XI","XJ","XK","XL","XM","XN","XO","XP","XQ","XR","XS","XT","XU","XV","XW","XY","XZ";"YA","YB","YC","YD","YE","YF","YG","YH","YI","YJ","YK","YL","YM","YN","YO","YP","YQ","YR","YS","YT","YU","YV","YW","YX","YZ";"ZA","ZB","ZC","ZD","ZE","ZF","ZG","ZH","ZI","ZJ","ZK","ZL","ZM","ZN","ZO","ZP","ZQ","ZR","ZS","ZT","ZU","ZV","ZW","ZX","ZY"}, RANDBETWEEN(1,26),RANDBETWEEN(1,25)) -> IB | C8: AT | D8: =CHAR(INT((NOW()*10^8-INT(NOW()*10^8))*26+65))&CHAR(LARGE(IF(ROW($A$65:$A$90)<>INT((NOW()*10^8-INT(NOW()*10^8))*26+65),ROW($A$65:$A$90),""),RANDBETWEEN(1,25))) -> SY | E8: KS | F8: BZ
A9: =SUBSTITUTE(ADDRESS(1,SMALL(IF(MOD(COLUMN($AA:$ZZ),27)>0,COLUMN($AA:$ZZ)),RANDBETWEEN(1,650)),4),1,"") -> LC | B9: =INDEX( {"AB","AC","AD","AE","AF","AG","AH","AI","AJ","AK","AL","AM","AN","AO","AP","AQ","AR","AS","AT","AU","AV","AW","AX","AY","AZ";"BA","BC","BD","BE","BF","BG","BH","BI","BJ","BK","BL","BM","BN","BO","BP","BQ","BR","BS","BT","BU","BV","BW","BX","BY","BZ";"CA","CB","CD","CE","CF","CG","CH","CI","CJ","CK","CL","CM","CN","CO","CP","CQ","CR","CS","CT","CU","CV","CW","CX","CY","CZ";"DA","DB","DC","DE","DF","DG","DH","DI","DJ","DK","DL","DM","DN","DO","DP","DQ","DR","DS","DT","DU","DV","DW","DX","DY","DZ";"EA","EB","EC","ED","EF","EG","EH","EI","EJ","EK","EL","EM","EN","EO","EP","EQ","ER","ES","ET","EU","EV","EW","EX","EY","EZ";"FA","FB","FC","FD","FE","FG","FH","FI","FJ","FK","FL","FM","FN","FO","FP","FQ","FR","FS","FT","FU","FV","FW","FX","FY","FZ";"GA","GB","GC","GD","GE","GF","GH","GI","GJ","GK","GL","GM","GN","GO","GP","GQ","GR","GS","GT","GU","GV","GW","GX","GY","GZ";"HA","HB","HC","HD","HE","HF","HG","HI","HJ","HK","HL","HM","HN","HO","HP","HQ","HR","HS","HT","HU","HV","HW","HX","HY","HZ";"IA","IB","IC","ID","IE","IF","IG","IH","IJ","IK","IL","IM","IN","IO","IP","IQ","IR","IS","IT","IU","IV","IW","IX","IY","IZ";"JA","JB","JC","JD","JE","JF","JG","JH","JI","JK","JL","JM","JN","JO","JP","JQ","JR","JS","JT","JU","JV","JW","JX","JY","JZ";"KA","KB","KC","KD","KE","KF","KG","KH","KI","KJ","KL","KM","KN","KO","KP","KQ","KR","KS","KT","KU","KV","KW","KX","KY","KZ";"LA","LB","LC","LD","LE","LF","LG","LH","LI","LJ","LK","LM","LN","LO","LP","LQ","LR","LS","LT","LU","LV","LW","LX","LY","LZ";"MA","MB","MC","MD","ME","MF","MG","MH","MI","MJ","MK","ML","MN","MO","MP","MQ","MR","MS","MT","MU","MV","MW","MX","MY","MZ";"NA","NB","NC","ND","NE","NF","NG","NH","NI","NJ","NK","NL","NM","NO","NP","NQ","NR","NS","NT","NU","NV","NW","NX","NY","NZ";"OA","OB","OC","OD","OE","OF","OG","OH","OI","OJ","OK","OL","OM","ON","OP","OQ","OR","OS","OT","OU","OV","OW","OX","OY","OZ";"PA","PB","PC","PD","PE","PF","PG","PH","PI","PJ","PK","PL","PM","PN","PO","PQ","PR","PS","PT","PU","PV","PW","PX","PY","PZ";"QA","QB","QC","QD","QE","QF","QG","QH","QI","QJ","QK","QL","QM","QN","QO","QP","QR","QS","QT","QU","QV","QW","QX","QY","QZ";"RA","RB","RC","RD","RE","RF","RG","RH","RI","RJ","RK","RL","RM","RN","RO","RP","RQ","RS","RT","RU","RV","RW","RX","RY","RZ";"SA","SB","SC","SD","SE","SF","SG","SH","SI","SJ","SK","SL","SM","SN","SO","SP","SQ","SR","ST","SU","SV","SW","SX","SY","SZ";"TA","TB","TC","TD","TE","TF","TG","TH","TI","TJ","TK","TL","TM","TN","TO","TP","TQ","TR","TS","TU","TV","TW","TX","TY","TZ";"UA","UB","UC","UD","UE","UF","UG","UH","UI","UJ","UK","UL","UM","UN","UO","UP","UQ","UR","US","UT","UV","UW","UX","UY","UZ";"VA","VB","VC","VD","VE","VF","VG","VH","VI","VJ","VK","VL","VM","VN","VO","VP","VQ","VR","VS","VT","VU","VW","VX","VY","VZ";"WA","WB","WC","WD","WE","WF","WG","WH","WI","WJ","WK","WL","WM","WN","WO","WP","WQ","WR","WS","WT","WU","WV","WX","WY","WZ";"XA","XB","XC","XD","XE","XF","XG","XH","XI","XJ","XK","XL","XM","XN","XO","XP","XQ","XR","XS","XT","XU","XV","XW","XY","XZ";"YA","YB","YC","YD","YE","YF","YG","YH","YI","YJ","YK","YL","YM","YN","YO","YP","YQ","YR","YS","YT","YU","YV","YW","YX","YZ";"ZA","ZB","ZC","ZD","ZE","ZF","ZG","ZH","ZI","ZJ","ZK","ZL","ZM","ZN","ZO","ZP","ZQ","ZR","ZS","ZT","ZU","ZV","ZW","ZX","ZY"}, RANDBETWEEN(1,26),RANDBETWEEN(1,25)) -> HK | C9: LD | D9: =CHAR(INT((NOW()*10^8-INT(NOW()*10^8))*26+65))&CHAR(LARGE(IF(ROW($A$65:$A$90)<>INT((NOW()*10^8-INT(NOW()*10^8))*26+65),ROW($A$65:$A$90),""),RANDBETWEEN(1,25))) -> SC | E9: ET | F9: VG
A10: =SUBSTITUTE(ADDRESS(1,SMALL(IF(MOD(COLUMN($AA:$ZZ),27)>0,COLUMN($AA:$ZZ)),RANDBETWEEN(1,650)),4),1,"") -> AL | B10: =INDEX( {"AB","AC","AD","AE","AF","AG","AH","AI","AJ","AK","AL","AM","AN","AO","AP","AQ","AR","AS","AT","AU","AV","AW","AX","AY","AZ";"BA","BC","BD","BE","BF","BG","BH","BI","BJ","BK","BL","BM","BN","BO","BP","BQ","BR","BS","BT","BU","BV","BW","BX","BY","BZ";"CA","CB","CD","CE","CF","CG","CH","CI","CJ","CK","CL","CM","CN","CO","CP","CQ","CR","CS","CT","CU","CV","CW","CX","CY","CZ";"DA","DB","DC","DE","DF","DG","DH","DI","DJ","DK","DL","DM","DN","DO","DP","DQ","DR","DS","DT","DU","DV","DW","DX","DY","DZ";"EA","EB","EC","ED","EF","EG","EH","EI","EJ","EK","EL","EM","EN","EO","EP","EQ","ER","ES","ET","EU","EV","EW","EX","EY","EZ";"FA","FB","FC","FD","FE","FG","FH","FI","FJ","FK","FL","FM","FN","FO","FP","FQ","FR","FS","FT","FU","FV","FW","FX","FY","FZ";"GA","GB","GC","GD","GE","GF","GH","GI","GJ","GK","GL","GM","GN","GO","GP","GQ","GR","GS","GT","GU","GV","GW","GX","GY","GZ";"HA","HB","HC","HD","HE","HF","HG","HI","HJ","HK","HL","HM","HN","HO","HP","HQ","HR","HS","HT","HU","HV","HW","HX","HY","HZ";"IA","IB","IC","ID","IE","IF","IG","IH","IJ","IK","IL","IM","IN","IO","IP","IQ","IR","IS","IT","IU","IV","IW","IX","IY","IZ";"JA","JB","JC","JD","JE","JF","JG","JH","JI","JK","JL","JM","JN","JO","JP","JQ","JR","JS","JT","JU","JV","JW","JX","JY","JZ";"KA","KB","KC","KD","KE","KF","KG","KH","KI","KJ","KL","KM","KN","KO","KP","KQ","KR","KS","KT","KU","KV","KW","KX","KY","KZ";"LA","LB","LC","LD","LE","LF","LG","LH","LI","LJ","LK","LM","LN","LO","LP","LQ","LR","LS","LT","LU","LV","LW","LX","LY","LZ";"MA","MB","MC","MD","ME","MF","MG","MH","MI","MJ","MK","ML","MN","MO","MP","MQ","MR","MS","MT","MU","MV","MW","MX","MY","MZ";"NA","NB","NC","ND","NE","NF","NG","NH","NI","NJ","NK","NL","NM","NO","NP","NQ","NR","NS","NT","NU","NV","NW","NX","NY","NZ";"OA","OB","OC","OD","OE","OF","OG","OH","OI","OJ","OK","OL","OM","ON","OP","OQ","OR","OS","OT","OU","OV","OW","OX","OY","OZ";"PA","PB","PC","PD","PE","PF","PG","PH","PI","PJ","PK","PL","PM","PN","PO","PQ","PR","PS","PT","PU","PV","PW","PX","PY","PZ";"QA","QB","QC","QD","QE","QF","QG","QH","QI","QJ","QK","QL","QM","QN","QO","QP","QR","QS","QT","QU","QV","QW","QX","QY","QZ";"RA","RB","RC","RD","RE","RF","RG","RH","RI","RJ","RK","RL","RM","RN","RO","RP","RQ","RS","RT","RU","RV","RW","RX","RY","RZ";"SA","SB","SC","SD","SE","SF","SG","SH","SI","SJ","SK","SL","SM","SN","SO","SP","SQ","SR","ST","SU","SV","SW","SX","SY","SZ";"TA","TB","TC","TD","TE","TF","TG","TH","TI","TJ","TK","TL","TM","TN","TO","TP","TQ","TR","TS","TU","TV","TW","TX","TY","TZ";"UA","UB","UC","UD","UE","UF","UG","UH","UI","UJ","UK","UL","UM","UN","UO","UP","UQ","UR","US","UT","UV","UW","UX","UY","UZ";"VA","VB","VC","VD","VE","VF","VG","VH","VI","VJ","VK","VL","VM","VN","VO","VP","VQ","VR","VS","VT","VU","VW","VX","VY","VZ";"WA","WB","WC","WD","WE","WF","WG","WH","WI","WJ","WK","WL","WM","WN","WO","WP","WQ","WR","WS","WT","WU","WV","WX","WY","WZ";"XA","XB","XC","XD","XE","XF","XG","XH","XI","XJ","XK","XL","XM","XN","XO","XP","XQ","XR","XS","XT","XU","XV","XW","XY","XZ";"YA","YB","YC","YD","YE","YF","YG","YH","YI","YJ","YK","YL","YM","YN","YO","YP","YQ","YR","YS","YT","YU","YV","YW","YX","YZ";"ZA","ZB","ZC","ZD","ZE","ZF","ZG","ZH","ZI","ZJ","ZK","ZL","ZM","ZN","ZO","ZP","ZQ","ZR","ZS","ZT","ZU","ZV","ZW","ZX","ZY"}, RANDBETWEEN(1,26),RANDBETWEEN(1,25)) -> ZE | C10: TS | D10: =CHAR(INT((NOW()*10^8-INT(NOW()*10^8))*26+65))&CHAR(LARGE(IF(ROW($A$65:$A$90)<>INT((NOW()*10^8-INT(NOW()*10^8))*26+65),ROW($A$65:$A$90),""),RANDBETWEEN(1,25))) -> SU | E10: TO | F10: OK
A11: =SUBSTITUTE(ADDRESS(1,SMALL(IF(MOD(COLUMN($AA:$ZZ),27)>0,COLUMN($AA:$ZZ)),RANDBETWEEN(1,650)),4),1,"") -> AG | B11: =INDEX( {"AB","AC","AD","AE","AF","AG","AH","AI","AJ","AK","AL","AM","AN","AO","AP","AQ","AR","AS","AT","AU","AV","AW","AX","AY","AZ";"BA","BC","BD","BE","BF","BG","BH","BI","BJ","BK","BL","BM","BN","BO","BP","BQ","BR","BS","BT","BU","BV","BW","BX","BY","BZ";"CA","CB","CD","CE","CF","CG","CH","CI","CJ","CK","CL","CM","CN","CO","CP","CQ","CR","CS","CT","CU","CV","CW","CX","CY","CZ";"DA","DB","DC","DE","DF","DG","DH","DI","DJ","DK","DL","DM","DN","DO","DP","DQ","DR","DS","DT","DU","DV","DW","DX","DY","DZ";"EA","EB","EC","ED","EF","EG","EH","EI","EJ","EK","EL","EM","EN","EO","EP","EQ","ER","ES","ET","EU","EV","EW","EX","EY","EZ";"FA","FB","FC","FD","FE","FG","FH","FI","FJ","FK","FL","FM","FN","FO","FP","FQ","FR","FS","FT","FU","FV","FW","FX","FY","FZ";"GA","GB","GC","GD","GE","GF","GH","GI","GJ","GK","GL","GM","GN","GO","GP","GQ","GR","GS","GT","GU","GV","GW","GX","GY","GZ";"HA","HB","HC","HD","HE","HF","HG","HI","HJ","HK","HL","HM","HN","HO","HP","HQ","HR","HS","HT","HU","HV","HW","HX","HY","HZ";"IA","IB","IC","ID","IE","IF","IG","IH","IJ","IK","IL","IM","IN","IO","IP","IQ","IR","IS","IT","IU","IV","IW","IX","IY","IZ";"JA","JB","JC","JD","JE","JF","JG","JH","JI","JK","JL","JM","JN","JO","JP","JQ","JR","JS","JT","JU","JV","JW","JX","JY","JZ";"KA","KB","KC","KD","KE","KF","KG","KH","KI","KJ","KL","KM","KN","KO","KP","KQ","KR","KS","KT","KU","KV","KW","KX","KY","KZ";"LA","LB","LC","LD","LE","LF","LG","LH","LI","LJ","LK","LM","LN","LO","LP","LQ","LR","LS","LT","LU","LV","LW","LX","LY","LZ";"MA","MB","MC","MD","ME","MF","MG","MH","MI","MJ","MK","ML","MN","MO","MP","MQ","MR","MS","MT","MU","MV","MW","MX","MY","MZ";"NA","NB","NC","ND","NE","NF","NG","NH","NI","NJ","NK","NL","NM","NO","NP","NQ","NR","NS","NT","NU","NV","NW","NX","NY","NZ";"OA","OB","OC","OD","OE","OF","OG","OH","OI","OJ","OK","OL","OM","ON","OP","OQ","OR","OS","OT","OU","OV","OW","OX","OY","OZ";"PA","PB","PC","PD","PE","PF","PG","PH","PI","PJ","PK","PL","PM","PN","PO","PQ","PR","PS","PT","PU","PV","PW","PX","PY","PZ";"QA","QB","QC","QD","QE","QF","QG","QH","QI","QJ","QK","QL","QM","QN","QO","QP","QR","QS","QT","QU","QV","QW","QX","QY","QZ";"RA","RB","RC","RD","RE","RF","RG","RH","RI","RJ","RK","RL","RM","RN","RO","RP","RQ","RS","RT","RU","RV","RW","RX","RY","RZ";"SA","SB","SC","SD","SE","SF","SG","SH","SI","SJ","SK","SL","SM","SN","SO","SP","SQ","SR","ST","SU","SV","SW","SX","SY","SZ";"TA","TB","TC","TD","TE","TF","TG","TH","TI","TJ","TK","TL","TM","TN","TO","TP","TQ","TR","TS","TU","TV","TW","TX","TY","TZ";"UA","UB","UC","UD","UE","UF","UG","UH","UI","UJ","UK","UL","UM","UN","UO","UP","UQ","UR","US","UT","UV","UW","UX","UY","UZ";"VA","VB","VC","VD","VE","VF","VG","VH","VI","VJ","VK","VL","VM","VN","VO","VP","VQ","VR","VS","VT","VU","VW","VX","VY","VZ";"WA","WB","WC","WD","WE","WF","WG","WH","WI","WJ","WK","WL","WM","WN","WO","WP","WQ","WR","WS","WT","WU","WV","WX","WY","WZ";"XA","XB","XC","XD","XE","XF","XG","XH","XI","XJ","XK","XL","XM","XN","XO","XP","XQ","XR","XS","XT","XU","XV","XW","XY","XZ";"YA","YB","YC","YD","YE","YF","YG","YH","YI","YJ","YK","YL","YM","YN","YO","YP","YQ","YR","YS","YT","YU","YV","YW","YX","YZ";"ZA","ZB","ZC","ZD","ZE","ZF","ZG","ZH","ZI","ZJ","ZK","ZL","ZM","ZN","ZO","ZP","ZQ","ZR","ZS","ZT","ZU","ZV","ZW","ZX","ZY"}, RANDBETWEEN(1,26),RANDBETWEEN(1,25)) -> DP | C11: LB | D11: =CHAR(INT((NOW()*10^8-INT(NOW()*10^8))*26+65))&CHAR(LARGE(IF(ROW($A$65:$A$90)<>INT((NOW()*10^8-INT(NOW()*10^8))*26+65),ROW($A$65:$A$90),""),RANDBETWEEN(1,25))) -> SR | E11: YO | F11: NZ | K11: analisi statistica della presenza delle singole lettere
A12: =SUBSTITUTE(ADDRESS(1,SMALL(IF(MOD(COLUMN($AA:$ZZ),27)>0,COLUMN($AA:$ZZ)),RANDBETWEEN(1,650)),4),1,"") -> IA | B12: =INDEX( {"AB","AC","AD","AE","AF","AG","AH","AI","AJ","AK","AL","AM","AN","AO","AP","AQ","AR","AS","AT","AU","AV","AW","AX","AY","AZ";"BA","BC","BD","BE","BF","BG","BH","BI","BJ","BK","BL","BM","BN","BO","BP","BQ","BR","BS","BT","BU","BV","BW","BX","BY","BZ";"CA","CB","CD","CE","CF","CG","CH","CI","CJ","CK","CL","CM","CN","CO","CP","CQ","CR","CS","CT","CU","CV","CW","CX","CY","CZ";"DA","DB","DC","DE","DF","DG","DH","DI","DJ","DK","DL","DM","DN","DO","DP","DQ","DR","DS","DT","DU","DV","DW","DX","DY","DZ";"EA","EB","EC","ED","EF","EG","EH","EI","EJ","EK","EL","EM","EN","EO","EP","EQ","ER","ES","ET","EU","EV","EW","EX","EY","EZ";"FA","FB","FC","FD","FE","FG","FH","FI","FJ","FK","FL","FM","FN","FO","FP","FQ","FR","FS","FT","FU","FV","FW","FX","FY","FZ";"GA","GB","GC","GD","GE","GF","GH","GI","GJ","GK","GL","GM","GN","GO","GP","GQ","GR","GS","GT","GU","GV","GW","GX","GY","GZ";"HA","HB","HC","HD","HE","HF","HG","HI","HJ","HK","HL","HM","HN","HO","HP","HQ","HR","HS","HT","HU","HV","HW","HX","HY","HZ";"IA","IB","IC","ID","IE","IF","IG","IH","IJ","IK","IL","IM","IN","IO","IP","IQ","IR","IS","IT","IU","IV","IW","IX","IY","IZ";"JA","JB","JC","JD","JE","JF","JG","JH","JI","JK","JL","JM","JN","JO","JP","JQ","JR","JS","JT","JU","JV","JW","JX","JY","JZ";"KA","KB","KC","KD","KE","KF","KG","KH","KI","KJ","KL","KM","KN","KO","KP","KQ","KR","KS","KT","KU","KV","KW","KX","KY","KZ";"LA","LB","LC","LD","LE","LF","LG","LH","LI","LJ","LK","LM","LN","LO","LP","LQ","LR","LS","LT","LU","LV","LW","LX","LY","LZ";"MA","MB","MC","MD","ME","MF","MG","MH","MI","MJ","MK","ML","MN","MO","MP","MQ","MR","MS","MT","MU","MV","MW","MX","MY","MZ";"NA","NB","NC","ND","NE","NF","NG","NH","NI","NJ","NK","NL","NM","NO","NP","NQ","NR","NS","NT","NU","NV","NW","NX","NY","NZ";"OA","OB","OC","OD","OE","OF","OG","OH","OI","OJ","OK","OL","OM","ON","OP","OQ","OR","OS","OT","OU","OV","OW","OX","OY","OZ";"PA","PB","PC","PD","PE","PF","PG","PH","PI","PJ","PK","PL","PM","PN","PO","PQ","PR","PS","PT","PU","PV","PW","PX","PY","PZ";"QA","QB","QC","QD","QE","QF","QG","QH","QI","QJ","QK","QL","QM","QN","QO","QP","QR","QS","QT","QU","QV","QW","QX","QY","QZ";"RA","RB","RC","RD","RE","RF","RG","RH","RI","RJ","RK","RL","RM","RN","RO","RP","RQ","RS","RT","RU","RV","RW","RX","RY","RZ";"SA","SB","SC","SD","SE","SF","SG","SH","SI","SJ","SK","SL","SM","SN","SO","SP","SQ","SR","ST","SU","SV","SW","SX","SY","SZ";"TA","TB","TC","TD","TE","TF","TG","TH","TI","TJ","TK","TL","TM","TN","TO","TP","TQ","TR","TS","TU","TV","TW","TX","TY","TZ";"UA","UB","UC","UD","UE","UF","UG","UH","UI","UJ","UK","UL","UM","UN","UO","UP","UQ","UR","US","UT","UV","UW","UX","UY","UZ";"VA","VB","VC","VD","VE","VF","VG","VH","VI","VJ","VK","VL","VM","VN","VO","VP","VQ","VR","VS","VT","VU","VW","VX","VY","VZ";"WA","WB","WC","WD","WE","WF","WG","WH","WI","WJ","WK","WL","WM","WN","WO","WP","WQ","WR","WS","WT","WU","WV","WX","WY","WZ";"XA","XB","XC","XD","XE","XF","XG","XH","XI","XJ","XK","XL","XM","XN","XO","XP","XQ","XR","XS","XT","XU","XV","XW","XY","XZ";"YA","YB","YC","YD","YE","YF","YG","YH","YI","YJ","YK","YL","YM","YN","YO","YP","YQ","YR","YS","YT","YU","YV","YW","YX","YZ";"ZA","ZB","ZC","ZD","ZE","ZF","ZG","ZH","ZI","ZJ","ZK","ZL","ZM","ZN","ZO","ZP","ZQ","ZR","ZS","ZT","ZU","ZV","ZW","ZX","ZY"}, RANDBETWEEN(1,26),RANDBETWEEN(1,25)) -> UN | C12: JS | D12: =CHAR(INT((NOW()*10^8-INT(NOW()*10^8))*26+65))&CHAR(LARGE(IF(ROW($A$65:$A$90)<>INT((NOW()*10^8-INT(NOW()*10^8))*26+65),ROW($A$65:$A$90),""),RANDBETWEEN(1,25))) -> SZ | E12: IB | F12: KP | L12: mia | N12: scossa | P12: scossa2 | R12: cromagno | T12: luca73 | V12: isy
A13: =SUBSTITUTE(ADDRESS(1,SMALL(IF(MOD(COLUMN($AA:$ZZ),27)>0,COLUMN($AA:$ZZ)),RANDBETWEEN(1,650)),4),1,"") -> KS | B13: =INDEX( {"AB","AC","AD","AE","AF","AG","AH","AI","AJ","AK","AL","AM","AN","AO","AP","AQ","AR","AS","AT","AU","AV","AW","AX","AY","AZ";"BA","BC","BD","BE","BF","BG","BH","BI","BJ","BK","BL","BM","BN","BO","BP","BQ","BR","BS","BT","BU","BV","BW","BX","BY","BZ";"CA","CB","CD","CE","CF","CG","CH","CI","CJ","CK","CL","CM","CN","CO","CP","CQ","CR","CS","CT","CU","CV","CW","CX","CY","CZ";"DA","DB","DC","DE","DF","DG","DH","DI","DJ","DK","DL","DM","DN","DO","DP","DQ","DR","DS","DT","DU","DV","DW","DX","DY","DZ";"EA","EB","EC","ED","EF","EG","EH","EI","EJ","EK","EL","EM","EN","EO","EP","EQ","ER","ES","ET","EU","EV","EW","EX","EY","EZ";"FA","FB","FC","FD","FE","FG","FH","FI","FJ","FK","FL","FM","FN","FO","FP","FQ","FR","FS","FT","FU","FV","FW","FX","FY","FZ";"GA","GB","GC","GD","GE","GF","GH","GI","GJ","GK","GL","GM","GN","GO","GP","GQ","GR","GS","GT","GU","GV","GW","GX","GY","GZ";"HA","HB","HC","HD","HE","HF","HG","HI","HJ","HK","HL","HM","HN","HO","HP","HQ","HR","HS","HT","HU","HV","HW","HX","HY","HZ";"IA","IB","IC","ID","IE","IF","IG","IH","IJ","IK","IL","IM","IN","IO","IP","IQ","IR","IS","IT","IU","IV","IW","IX","IY","IZ";"JA","JB","JC","JD","JE","JF","JG","JH","JI","JK","JL","JM","JN","JO","JP","JQ","JR","JS","JT","JU","JV","JW","JX","JY","JZ";"KA","KB","KC","KD","KE","KF","KG","KH","KI","KJ","KL","KM","KN","KO","KP","KQ","KR","KS","KT","KU","KV","KW","KX","KY","KZ";"LA","LB","LC","LD","LE","LF","LG","LH","LI","LJ","LK","LM","LN","LO","LP","LQ","LR","LS","LT","LU","LV","LW","LX","LY","LZ";"MA","MB","MC","MD","ME","MF","MG","MH","MI","MJ","MK","ML","MN","MO","MP","MQ","MR","MS","MT","MU","MV","MW","MX","MY","MZ";"NA","NB","NC","ND","NE","NF","NG","NH","NI","NJ","NK","NL","NM","NO","NP","NQ","NR","NS","NT","NU","NV","NW","NX","NY","NZ";"OA","OB","OC","OD","OE","OF","OG","OH","OI","OJ","OK","OL","OM","ON","OP","OQ","OR","OS","OT","OU","OV","OW","OX","OY","OZ";"PA","PB","PC","PD","PE","PF","PG","PH","PI","PJ","PK","PL","PM","PN","PO","PQ","PR","PS","PT","PU","PV","PW","PX","PY","PZ";"QA","QB","QC","QD","QE","QF","QG","QH","QI","QJ","QK","QL","QM","QN","QO","QP","QR","QS","QT","QU","QV","QW","QX","QY","QZ";"RA","RB","RC","RD","RE","RF","RG","RH","RI","RJ","RK","RL","RM","RN","RO","RP","RQ","RS","RT","RU","RV","RW","RX","RY","RZ";"SA","SB","SC","SD","SE","SF","SG","SH","SI","SJ","SK","SL","SM","SN","SO","SP","SQ","SR","ST","SU","SV","SW","SX","SY","SZ";"TA","TB","TC","TD","TE","TF","TG","TH","TI","TJ","TK","TL","TM","TN","TO","TP","TQ","TR","TS","TU","TV","TW","TX","TY","TZ";"UA","UB","UC","UD","UE","UF","UG","UH","UI","UJ","UK","UL","UM","UN","UO","UP","UQ","UR","US","UT","UV","UW","UX","UY","UZ";"VA","VB","VC","VD","VE","VF","VG","VH","VI","VJ","VK","VL","VM","VN","VO","VP","VQ","VR","VS","VT","VU","VW","VX","VY","VZ";"WA","WB","WC","WD","WE","WF","WG","WH","WI","WJ","WK","WL","WM","WN","WO","WP","WQ","WR","WS","WT","WU","WV","WX","WY","WZ";"XA","XB","XC","XD","XE","XF","XG","XH","XI","XJ","XK","XL","XM","XN","XO","XP","XQ","XR","XS","XT","XU","XV","XW","XY","XZ";"YA","YB","YC","YD","YE","YF","YG","YH","YI","YJ","YK","YL","YM","YN","YO","YP","YQ","YR","YS","YT","YU","YV","YW","YX","YZ";"ZA","ZB","ZC","ZD","ZE","ZF","ZG","ZH","ZI","ZJ","ZK","ZL","ZM","ZN","ZO","ZP","ZQ","ZR","ZS","ZT","ZU","ZV","ZW","ZX","ZY"}, RANDBETWEEN(1,26),RANDBETWEEN(1,25)) -> EX | C13: CW | D13: =CHAR(INT((NOW()*10^8-INT(NOW()*10^8))*26+65))&CHAR(LARGE(IF(ROW($A$65:$A$90)<>INT((NOW()*10^8-INT(NOW()*10^8))*26+65),ROW($A$65:$A$90),""),RANDBETWEEN(1,25))) -> SH | E13: OF | F13: UY | L13: =SUM(L14:L39) -> 2997 | M13: 2997 | N13: 2997 | O13: 2997 | P13: 2997 | Q13: 2997 | R13: 2998 | S13: 2998 | T13: 2998 | U13: 2998 | V13: 2998 | W13: 2998 | AG13: elimina il numero di riga (1) e rimangono le lettere delle colonne
A14: =SUBSTITUTE(ADDRESS(1,SMALL(IF(MOD(COLUMN($AA:$ZZ),27)>0,COLUMN($AA:$ZZ)),RANDBETWEEN(1,650)),4),1,"") -> ZH | B14: =INDEX( {"AB","AC","AD","AE","AF","AG","AH","AI","AJ","AK","AL","AM","AN","AO","AP","AQ","AR","AS","AT","AU","AV","AW","AX","AY","AZ";"BA","BC","BD","BE","BF","BG","BH","BI","BJ","BK","BL","BM","BN","BO","BP","BQ","BR","BS","BT","BU","BV","BW","BX","BY","BZ";"CA","CB","CD","CE","CF","CG","CH","CI","CJ","CK","CL","CM","CN","CO","CP","CQ","CR","CS","CT","CU","CV","CW","CX","CY","CZ";"DA","DB","DC","DE","DF","DG","DH","DI","DJ","DK","DL","DM","DN","DO","DP","DQ","DR","DS","DT","DU","DV","DW","DX","DY","DZ";"EA","EB","EC","ED","EF","EG","EH","EI","EJ","EK","EL","EM","EN","EO","EP","EQ","ER","ES","ET","EU","EV","EW","EX","EY","EZ";"FA","FB","FC","FD","FE","FG","FH","FI","FJ","FK","FL","FM","FN","FO","FP","FQ","FR","FS","FT","FU","FV","FW","FX","FY","FZ";"GA","GB","GC","GD","GE","GF","GH","GI","GJ","GK","GL","GM","GN","GO","GP","GQ","GR","GS","GT","GU","GV","GW","GX","GY","GZ";"HA","HB","HC","HD","HE","HF","HG","HI","HJ","HK","HL","HM","HN","HO","HP","HQ","HR","HS","HT","HU","HV","HW","HX","HY","HZ";"IA","IB","IC","ID","IE","IF","IG","IH","IJ","IK","IL","IM","IN","IO","IP","IQ","IR","IS","IT","IU","IV","IW","IX","IY","IZ";"JA","JB","JC","JD","JE","JF","JG","JH","JI","JK","JL","JM","JN","JO","JP","JQ","JR","JS","JT","JU","JV","JW","JX","JY","JZ";"KA","KB","KC","KD","KE","KF","KG","KH","KI","KJ","KL","KM","KN","KO","KP","KQ","KR","KS","KT","KU","KV","KW","KX","KY","KZ";"LA","LB","LC","LD","LE","LF","LG","LH","LI","LJ","LK","LM","LN","LO","LP","LQ","LR","LS","LT","LU","LV","LW","LX","LY","LZ";"MA","MB","MC","MD","ME","MF","MG","MH","MI","MJ","MK","ML","MN","MO","MP","MQ","MR","MS","MT","MU","MV","MW","MX","MY","MZ";"NA","NB","NC","ND","NE","NF","NG","NH","NI","NJ","NK","NL","NM","NO","NP","NQ","NR","NS","NT","NU","NV","NW","NX","NY","NZ";"OA","OB","OC","OD","OE","OF","OG","OH","OI","OJ","OK","OL","OM","ON","OP","OQ","OR","OS","OT","OU","OV","OW","OX","OY","OZ";"PA","PB","PC","PD","PE","PF","PG","PH","PI","PJ","PK","PL","PM","PN","PO","PQ","PR","PS","PT","PU","PV","PW","PX","PY","PZ";"QA","QB","QC","QD","QE","QF","QG","QH","QI","QJ","QK","QL","QM","QN","QO","QP","QR","QS","QT","QU","QV","QW","QX","QY","QZ";"RA","RB","RC","RD","RE","RF","RG","RH","RI","RJ","RK","RL","RM","RN","RO","RP","RQ","RS","RT","RU","RV","RW","RX","RY","RZ";"SA","SB","SC","SD","SE","SF","SG","SH","SI","SJ","SK","SL","SM","SN","SO","SP","SQ","SR","ST","SU","SV","SW","SX","SY","SZ";"TA","TB","TC","TD","TE","TF","TG","TH","TI","TJ","TK","TL","TM","TN","TO","TP","TQ","TR","TS","TU","TV","TW","TX","TY","TZ";"UA","UB","UC","UD","UE","UF","UG","UH","UI","UJ","UK","UL","UM","UN","UO","UP","UQ","UR","US","UT","UV","UW","UX","UY","UZ";"VA","VB","VC","VD","VE","VF","VG","VH","VI","VJ","VK","VL","VM","VN","VO","VP","VQ","VR","VS","VT","VU","VW","VX","VY","VZ";"WA","WB","WC","WD","WE","WF","WG","WH","WI","WJ","WK","WL","WM","WN","WO","WP","WQ","WR","WS","WT","WU","WV","WX","WY","WZ";"XA","XB","XC","XD","XE","XF","XG","XH","XI","XJ","XK","XL","XM","XN","XO","XP","XQ","XR","XS","XT","XU","XV","XW","XY","XZ";"YA","YB","YC","YD","YE","YF","YG","YH","YI","YJ","YK","YL","YM","YN","YO","YP","YQ","YR","YS","YT","YU","YV","YW","YX","YZ";"ZA","ZB","ZC","ZD","ZE","ZF","ZG","ZH","ZI","ZJ","ZK","ZL","ZM","ZN","ZO","ZP","ZQ","ZR","ZS","ZT","ZU","ZV","ZW","ZX","ZY"}, RANDBETWEEN(1,26),RANDBETWEEN(1,25)) -> VR | C14: PD | D14: =CHAR(INT((NOW()*10^8-INT(NOW()*10^8))*26+65))&CHAR(LARGE(IF(ROW($A$65:$A$90)<>INT((NOW()*10^8-INT(NOW()*10^8))*26+65),ROW($A$65:$A$90),""),RANDBETWEEN(1,25))) -> SP | E14: YH | F14: RU | K14: =CHAR(ROW(A65)) -> A | L14: =SUMPRODUCT(--(RIGHT(A$3:A$3000,1)=$K14)) -> 133 | M14: =SUMPRODUCT(--(LEFT(A$3:A$3000,1)=$K14)) -> 129 | N14: =SUMPRODUCT(--(RIGHT(B$3:B$3000,1)=$K14)) -> 105 | O14: =SUMPRODUCT(--(LEFT(B$3:B$3000,1)=$K14)) -> 115 | P14: =SUMPRODUCT(--(RIGHT(C$3:C$3000,1)=$K14)) -> 125 | Q14: =SUMPRODUCT(--(LEFT(C$3:C$3000,1)=$K14)) -> 128 | R14: =SUMPRODUCT(--(RIGHT(D$3:D$3000,1)=$K14)) -> 123 | S14: =SUMPRODUCT(--(LEFT(D$3:D$3000,1)=$K14)) -> 0 | T14: =SUMPRODUCT(--(RIGHT(E$3:E$3000,1)=$K14)) -> 109 | U14: =SUMPRODUCT(--(LEFT(E$3:E$3000,1)=$K14)) -> 109 | V14: =SUMPRODUCT(--(RIGHT(E$3:E$3000,1)=$K14)) -> 109 | W14: =SUMPRODUCT(--(LEFT(E$3:E$3000,1)=$K14)) -> 109
A15: =SUBSTITUTE(ADDRESS(1,SMALL(IF(MOD(COLUMN($AA:$ZZ),27)>0,COLUMN($AA:$ZZ)),RANDBETWEEN(1,650)),4),1,"") -> WT | B15: =INDEX( {"AB","AC","AD","AE","AF","AG","AH","AI","AJ","AK","AL","AM","AN","AO","AP","AQ","AR","AS","AT","AU","AV","AW","AX","AY","AZ";"BA","BC","BD","BE","BF","BG","BH","BI","BJ","BK","BL","BM","BN","BO","BP","BQ","BR","BS","BT","BU","BV","BW","BX","BY","BZ";"CA","CB","CD","CE","CF","CG","CH","CI","CJ","CK","CL","CM","CN","CO","CP","CQ","CR","CS","CT","CU","CV","CW","CX","CY","CZ";"DA","DB","DC","DE","DF","DG","DH","DI","DJ","DK","DL","DM","DN","DO","DP","DQ","DR","DS","DT","DU","DV","DW","DX","DY","DZ";"EA","EB","EC","ED","EF","EG","EH","EI","EJ","EK","EL","EM","EN","EO","EP","EQ","ER","ES","ET","EU","EV","EW","EX","EY","EZ";"FA","FB","FC","FD","FE","FG","FH","FI","FJ","FK","FL","FM","FN","FO","FP","FQ","FR","FS","FT","FU","FV","FW","FX","FY","FZ";"GA","GB","GC","GD","GE","GF","GH","GI","GJ","GK","GL","GM","GN","GO","GP","GQ","GR","GS","GT","GU","GV","GW","GX","GY","GZ";"HA","HB","HC","HD","HE","HF","HG","HI","HJ","HK","HL","HM","HN","HO","HP","HQ","HR","HS","HT","HU","HV","HW","HX","HY","HZ";"IA","IB","IC","ID","IE","IF","IG","IH","IJ","IK","IL","IM","IN","IO","IP","IQ","IR","IS","IT","IU","IV","IW","IX","IY","IZ";"JA","JB","JC","JD","JE","JF","JG","JH","JI","JK","JL","JM","JN","JO","JP","JQ","JR","JS","JT","JU","JV","JW","JX","JY","JZ";"KA","KB","KC","KD","KE","KF","KG","KH","KI","KJ","KL","KM","KN","KO","KP","KQ","KR","KS","KT","KU","KV","KW","KX","KY","KZ";"LA","LB","LC","LD","LE","LF","LG","LH","LI","LJ","LK","LM","LN","LO","LP","LQ","LR","LS","LT","LU","LV","LW","LX","LY","LZ";"MA","MB","MC","MD","ME","MF","MG","MH","MI","MJ","MK","ML","MN","MO","MP","MQ","MR","MS","MT","MU","MV","MW","MX","MY","MZ";"NA","NB","NC","ND","NE","NF","NG","NH","NI","NJ","NK","NL","NM","NO","NP","NQ","NR","NS","NT","NU","NV","NW","NX","NY","NZ";"OA","OB","OC","OD","OE","OF","OG","OH","OI","OJ","OK","OL","OM","ON","OP","OQ","OR","OS","OT","OU","OV","OW","OX","OY","OZ";"PA","PB","PC","PD","PE","PF","PG","PH","PI","PJ","PK","PL","PM","PN","PO","PQ","PR","PS","PT","PU","PV","PW","PX","PY","PZ";"QA","QB","QC","QD","QE","QF","QG","QH","QI","QJ","QK","QL","QM","QN","QO","QP","QR","QS","QT","QU","QV","QW","QX","QY","QZ";"RA","RB","RC","RD","RE","RF","RG","RH","RI","RJ","RK","RL","RM","RN","RO","RP","RQ","RS","RT","RU","RV","RW","RX","RY","RZ";"SA","SB","SC","SD","SE","SF","SG","SH","SI","SJ","SK","SL","SM","SN","SO","SP","SQ","SR","ST","SU","SV","SW","SX","SY","SZ";"TA","TB","TC","TD","TE","TF","TG","TH","TI","TJ","TK","TL","TM","TN","TO","TP","TQ","TR","TS","TU","TV","TW","TX","TY","TZ";"UA","UB","UC","UD","UE","UF","UG","UH","UI","UJ","UK","UL","UM","UN","UO","UP","UQ","UR","US","UT","UV","UW","UX","UY","UZ";"VA","VB","VC","VD","VE","VF","VG","VH","VI","VJ","VK","VL","VM","VN","VO","VP","VQ","VR","VS","VT","VU","VW","VX","VY","VZ";"WA","WB","WC","WD","WE","WF","WG","WH","WI","WJ","WK","WL","WM","WN","WO","WP","WQ","WR","WS","WT","WU","WV","WX","WY","WZ";"XA","XB","XC","XD","XE","XF","XG","XH","XI","XJ","XK","XL","XM","XN","XO","XP","XQ","XR","XS","XT","XU","XV","XW","XY","XZ";"YA","YB","YC","YD","YE","YF","YG","YH","YI","YJ","YK","YL","YM","YN","YO","YP","YQ","YR","YS","YT","YU","YV","YW","YX","YZ";"ZA","ZB","ZC","ZD","ZE","ZF","ZG","ZH","ZI","ZJ","ZK","ZL","ZM","ZN","ZO","ZP","ZQ","ZR","ZS","ZT","ZU","ZV","ZW","ZX","ZY"}, RANDBETWEEN(1,26),RANDBETWEEN(1,25)) -> AM | C15: LH | D15: =CHAR(INT((NOW()*10^8-INT(NOW()*10^8))*26+65))&CHAR(LARGE(IF(ROW($A$65:$A$90)<>INT((NOW()*10^8-INT(NOW()*10^8))*26+65),ROW($A$65:$A$90),""),RANDBETWEEN(1,25))) -> SJ | E15: AZ | F15: LZ | K15: =CHAR(ROW(A66)) -> B | L15: =SUMPRODUCT(--(RIGHT(A$4:A$3000,1)=$K15)) -> 145 | M15: =SUMPRODUCT(--(LEFT(A$4:A$3000,1)=$K15)) -> 131 | N15: =SUMPRODUCT(--(RIGHT(B$4:B$3000,1)=$K15)) -> 126 | O15: =SUMPRODUCT(--(LEFT(B$4:B$3000,1)=$K15)) -> 101 | P15: =SUMPRODUCT(--(RIGHT(C$4:C$3000,1)=$K15)) -> 124 | Q15: =SUMPRODUCT(--(LEFT(C$4:C$3000,1)=$K15)) -> 106 | R15: 117 | S15: 0 | T15: 125 | U15: 125 | V15: 125 | W15: 125
A16: =SUBSTITUTE(ADDRESS(1,SMALL(IF(MOD(COLUMN($AA:$ZZ),27)>0,COLUMN($AA:$ZZ)),RANDBETWEEN(1,650)),4),1,"") -> YC | B16: =INDEX( {"AB","AC","AD","AE","AF","AG","AH","AI","AJ","AK","AL","AM","AN","AO","AP","AQ","AR","AS","AT","AU","AV","AW","AX","AY","AZ";"BA","BC","BD","BE","BF","BG","BH","BI","BJ","BK","BL","BM","BN","BO","BP","BQ","BR","BS","BT","BU","BV","BW","BX","BY","BZ";"CA","CB","CD","CE","CF","CG","CH","CI","CJ","CK","CL","CM","CN","CO","CP","CQ","CR","CS","CT","CU","CV","CW","CX","CY","CZ";"DA","DB","DC","DE","DF","DG","DH","DI","DJ","DK","DL","DM","DN","DO","DP","DQ","DR","DS","DT","DU","DV","DW","DX","DY","DZ";"EA","EB","EC","ED","EF","EG","EH","EI","EJ","EK","EL","EM","EN","EO","EP","EQ","ER","ES","ET","EU","EV","EW","EX","EY","EZ";"FA","FB","FC","FD","FE","FG","FH","FI","FJ","FK","FL","FM","FN","FO","FP","FQ","FR","FS","FT","FU","FV","FW","FX","FY","FZ";"GA","GB","GC","GD","GE","GF","GH","GI","GJ","GK","GL","GM","GN","GO","GP","GQ","GR","GS","GT","GU","GV","GW","GX","GY","GZ";"HA","HB","HC","HD","HE","HF","HG","HI","HJ","HK","HL","HM","HN","HO","HP","HQ","HR","HS","HT","HU","HV","HW","HX","HY","HZ";"IA","IB","IC","ID","IE","IF","IG","IH","IJ","IK","IL","IM","IN","IO","IP","IQ","IR","IS","IT","IU","IV","IW","IX","IY","IZ";"JA","JB","JC","JD","JE","JF","JG","JH","JI","JK","JL","JM","JN","JO","JP","JQ","JR","JS","JT","JU","JV","JW","JX","JY","JZ";"KA","KB","KC","KD","KE","KF","KG","KH","KI","KJ","KL","KM","KN","KO","KP","KQ","KR","KS","KT","KU","KV","KW","KX","KY","KZ";"LA","LB","LC","LD","LE","LF","LG","LH","LI","LJ","LK","LM","LN","LO","LP","LQ","LR","LS","LT","LU","LV","LW","LX","LY","LZ";"MA","MB","MC","MD","ME","MF","MG","MH","MI","MJ","MK","ML","MN","MO","MP","MQ","MR","MS","MT","MU","MV","MW","MX","MY","MZ";"NA","NB","NC","ND","NE","NF","NG","NH","NI","NJ","NK","NL","NM","NO","NP","NQ","NR","NS","NT","NU","NV","NW","NX","NY","NZ";"OA","OB","OC","OD","OE","OF","OG","OH","OI","OJ","OK","OL","OM","ON","OP","OQ","OR","OS","OT","OU","OV","OW","OX","OY","OZ";"PA","PB","PC","PD","PE","PF","PG","PH","PI","PJ","PK","PL","PM","PN","PO","PQ","PR","PS","PT","PU","PV","PW","PX","PY","PZ";"QA","QB","QC","QD","QE","QF","QG","QH","QI","QJ","QK","QL","QM","QN","QO","QP","QR","QS","QT","QU","QV","QW","QX","QY","QZ";"RA","RB","RC","RD","RE","RF","RG","RH","RI","RJ","RK","RL","RM","RN","RO","RP","RQ","RS","RT","RU","RV","RW","RX","RY","RZ";"SA","SB","SC","SD","SE","SF","SG","SH","SI","SJ","SK","SL","SM","SN","SO","SP","SQ","SR","ST","SU","SV","SW","SX","SY","SZ";"TA","TB","TC","TD","TE","TF","TG","TH","TI","TJ","TK","TL","TM","TN","TO","TP","TQ","TR","TS","TU","TV","TW","TX","TY","TZ";"UA","UB","UC","UD","UE","UF","UG","UH","UI","UJ","UK","UL","UM","UN","UO","UP","UQ","UR","US","UT","UV","UW","UX","UY","UZ";"VA","VB","VC","VD","VE","VF","VG","VH","VI","VJ","VK","VL","VM","VN","VO","VP","VQ","VR","VS","VT","VU","VW","VX","VY","VZ";"WA","WB","WC","WD","WE","WF","WG","WH","WI","WJ","WK","WL","WM","WN","WO","WP","WQ","WR","WS","WT","WU","WV","WX","WY","WZ";"XA","XB","XC","XD","XE","XF","XG","XH","XI","XJ","XK","XL","XM","XN","XO","XP","XQ","XR","XS","XT","XU","XV","XW","XY","XZ";"YA","YB","YC","YD","YE","YF","YG","YH","YI","YJ","YK","YL","YM","YN","YO","YP","YQ","YR","YS","YT","YU","YV","YW","YX","YZ";"ZA","ZB","ZC","ZD","ZE","ZF","ZG","ZH","ZI","ZJ","ZK","ZL","ZM","ZN","ZO","ZP","ZQ","ZR","ZS","ZT","ZU","ZV","ZW","ZX","ZY"}, RANDBETWEEN(1,26),RANDBETWEEN(1,25)) -> MK | C16: DJ | D16: =CHAR(INT((NOW()*10^8-INT(NOW()*10^8))*26+65))&CHAR(LARGE(IF(ROW($A$65:$A$90)<>INT((NOW()*10^8-INT(NOW()*10^8))*26+65),ROW($A$65:$A$90),""),RANDBETWEEN(1,25))) -> SO | E16: PG | F16: UC | K16: C | L16: 119 | M16: 139 | N16: 120 | O16: 108 | P16: 143 | Q16: 113 | R16: 128 | S16: 0 | T16: 130 | U16: 117 | V16: 130 | W16: 117
A17: =SUBSTITUTE(ADDRESS(1,SMALL(IF(MOD(COLUMN($AA:$ZZ),27)>0,COLUMN($AA:$ZZ)),RANDBETWEEN(1,650)),4),1,"") -> KF | B17: =INDEX( {"AB","AC","AD","AE","AF","AG","AH","AI","AJ","AK","AL","AM","AN","AO","AP","AQ","AR","AS","AT","AU","AV","AW","AX","AY","AZ";"BA","BC","BD","BE","BF","BG","BH","BI","BJ","BK","BL","BM","BN","BO","BP","BQ","BR","BS","BT","BU","BV","BW","BX","BY","BZ";"CA","CB","CD","CE","CF","CG","CH","CI","CJ","CK","CL","CM","CN","CO","CP","CQ","CR","CS","CT","CU","CV","CW","CX","CY","CZ";"DA","DB","DC","DE","DF","DG","DH","DI","DJ","DK","DL","DM","DN","DO","DP","DQ","DR","DS","DT","DU","DV","DW","DX","DY","DZ";"EA","EB","EC","ED","EF","EG","EH","EI","EJ","EK","EL","EM","EN","EO","EP","EQ","ER","ES","ET","EU","EV","EW","EX","EY","EZ";"FA","FB","FC","FD","FE","FG","FH","FI","FJ","FK","FL","FM","FN","FO","FP","FQ","FR","FS","FT","FU","FV","FW","FX","FY","FZ";"GA","GB","GC","GD","GE","GF","GH","GI","GJ","GK","GL","GM","GN","GO","GP","GQ","GR","GS","GT","GU","GV","GW","GX","GY","GZ";"HA","HB","HC","HD","HE","HF","HG","HI","HJ","HK","HL","HM","HN","HO","HP","HQ","HR","HS","HT","HU","HV","HW","HX","HY","HZ";"IA","IB","IC","ID","IE","IF","IG","IH","IJ","IK","IL","IM","IN","IO","IP","IQ","IR","IS","IT","IU","IV","IW","IX","IY","IZ";"JA","JB","JC","JD","JE","JF","JG","JH","JI","JK","JL","JM","JN","JO","JP","JQ","JR","JS","JT","JU","JV","JW","JX","JY","JZ";"KA","KB","KC","KD","KE","KF","KG","KH","KI","KJ","KL","KM","KN","KO","KP","KQ","KR","KS","KT","KU","KV","KW","KX","KY","KZ";"LA","LB","LC","LD","LE","LF","LG","LH","LI","LJ","LK","LM","LN","LO","LP","LQ","LR","LS","LT","LU","LV","LW","LX","LY","LZ";"MA","MB","MC","MD","ME","MF","MG","MH","MI","MJ","MK","ML","MN","MO","MP","MQ","MR","MS","MT","MU","MV","MW","MX","MY","MZ";"NA","NB","NC","ND","NE","NF","NG","NH","NI","NJ","NK","NL","NM","NO","NP","NQ","NR","NS","NT","NU","NV","NW","NX","NY","NZ";"OA","OB","OC","OD","OE","OF","OG","OH","OI","OJ","OK","OL","OM","ON","OP","OQ","OR","OS","OT","OU","OV","OW","OX","OY","OZ";"PA","PB","PC","PD","PE","PF","PG","PH","PI","PJ","PK","PL","PM","PN","PO","PQ","PR","PS","PT","PU","PV","PW","PX","PY","PZ";"QA","QB","QC","QD","QE","QF","QG","QH","QI","QJ","QK","QL","QM","QN","QO","QP","QR","QS","QT","QU","QV","QW","QX","QY","QZ";"RA","RB","RC","RD","RE","RF","RG","RH","RI","RJ","RK","RL","RM","RN","RO","RP","RQ","RS","RT","RU","RV","RW","RX","RY","RZ";"SA","SB","SC","SD","SE","SF","SG","SH","SI","SJ","SK","SL","SM","SN","SO","SP","SQ","SR","ST","SU","SV","SW","SX","SY","SZ";"TA","TB","TC","TD","TE","TF","TG","TH","TI","TJ","TK","TL","TM","TN","TO","TP","TQ","TR","TS","TU","TV","TW","TX","TY","TZ";"UA","UB","UC","UD","UE","UF","UG","UH","UI","UJ","UK","UL","UM","UN","UO","UP","UQ","UR","US","UT","UV","UW","UX","UY","UZ";"VA","VB","VC","VD","VE","VF","VG","VH","VI","VJ","VK","VL","VM","VN","VO","VP","VQ","VR","VS","VT","VU","VW","VX","VY","VZ";"WA","WB","WC","WD","WE","WF","WG","WH","WI","WJ","WK","WL","WM","WN","WO","WP","WQ","WR","WS","WT","WU","WV","WX","WY","WZ";"XA","XB","XC","XD","XE","XF","XG","XH","XI","XJ","XK","XL","XM","XN","XO","XP","XQ","XR","XS","XT","XU","XV","XW","XY","XZ";"YA","YB","YC","YD","YE","YF","YG","YH","YI","YJ","YK","YL","YM","YN","YO","YP","YQ","YR","YS","YT","YU","YV","YW","YX","YZ";"ZA","ZB","ZC","ZD","ZE","ZF","ZG","ZH","ZI","ZJ","ZK","ZL","ZM","ZN","ZO","ZP","ZQ","ZR","ZS","ZT","ZU","ZV","ZW","ZX","ZY"}, RANDBETWEEN(1,26),RANDBETWEEN(1,25)) -> YC | C17: KF | D17: =CHAR(INT((NOW()*10^8-INT(NOW()*10^8))*26+65))&CHAR(LARGE(IF(ROW($A$65:$A$90)<>INT((NOW()*10^8-INT(NOW()*10^8))*26+65),ROW($A$65:$A$90),""),RANDBETWEEN(1,25))) -> SM | E17: KO | F17: OX | K17: D | L17: 99 | M17: 117 | N17: 120 | O17: 150 | P17: 103 | Q17: 108 | R17: 116 | S17: 0 | T17: 108 | U17: 117 | V17: 108 | W17: 117
A18: =SUBSTITUTE(ADDRESS(1,SMALL(IF(MOD(COLUMN($AA:$ZZ),27)>0,COLUMN($AA:$ZZ)),RANDBETWEEN(1,650)),4),1,"") -> ZL | B18: =INDEX( {"AB","AC","AD","AE","AF","AG","AH","AI","AJ","AK","AL","AM","AN","AO","AP","AQ","AR","AS","AT","AU","AV","AW","AX","AY","AZ";"BA","BC","BD","BE","BF","BG","BH","BI","BJ","BK","BL","BM","BN","BO","BP","BQ","BR","BS","BT","BU","BV","BW","BX","BY","BZ";"CA","CB","CD","CE","CF","CG","CH","CI","CJ","CK","CL","CM","CN","CO","CP","CQ","CR","CS","CT","CU","CV","CW","CX","CY","CZ";"DA","DB","DC","DE","DF","DG","DH","DI","DJ","DK","DL","DM","DN","DO","DP","DQ","DR","DS","DT","DU","DV","DW","DX","DY","DZ";"EA","EB","EC","ED","EF","EG","EH","EI","EJ","EK","EL","EM","EN","EO","EP","EQ","ER","ES","ET","EU","EV","EW","EX","EY","EZ";"FA","FB","FC","FD","FE","FG","FH","FI","FJ","FK","FL","FM","FN","FO","FP","FQ","FR","FS","FT","FU","FV","FW","FX","FY","FZ";"GA","GB","GC","GD","GE","GF","GH","GI","GJ","GK","GL","GM","GN","GO","GP","GQ","GR","GS","GT","GU","GV","GW","GX","GY","GZ";"HA","HB","HC","HD","HE","HF","HG","HI","HJ","HK","HL","HM","HN","HO","HP","HQ","HR","HS","HT","HU","HV","HW","HX","HY","HZ";"IA","IB","IC","ID","IE","IF","IG","IH","IJ","IK","IL","IM","IN","IO","IP","IQ","IR","IS","IT","IU","IV","IW","IX","IY","IZ";"JA","JB","JC","JD","JE","JF","JG","JH","JI","JK","JL","JM","JN","JO","JP","JQ","JR","JS","JT","JU","JV","JW","JX","JY","JZ";"KA","KB","KC","KD","KE","KF","KG","KH","KI","KJ","KL","KM","KN","KO","KP","KQ","KR","KS","KT","KU","KV","KW","KX","KY","KZ";"LA","LB","LC","LD","LE","LF","LG","LH","LI","LJ","LK","LM","LN","LO","LP","LQ","LR","LS","LT","LU","LV","LW","LX","LY","LZ";"MA","MB","MC","MD","ME","MF","MG","MH","MI","MJ","MK","ML","MN","MO","MP","MQ","MR","MS","MT","MU","MV","MW","MX","MY","MZ";"NA","NB","NC","ND","NE","NF","NG","NH","NI","NJ","NK","NL","NM","NO","NP","NQ","NR","NS","NT","NU","NV","NW","NX","NY","NZ";"OA","OB","OC","OD","OE","OF","OG","OH","OI","OJ","OK","OL","OM","ON","OP","OQ","OR","OS","OT","OU","OV","OW","OX","OY","OZ";"PA","PB","PC","PD","PE","PF","PG","PH","PI","PJ","PK","PL","PM","PN","PO","PQ","PR","PS","PT","PU","PV","PW","PX","PY","PZ";"QA","QB","QC","QD","QE","QF","QG","QH","QI","QJ","QK","QL","QM","QN","QO","QP","QR","QS","QT","QU","QV","QW","QX","QY","QZ";"RA","RB","RC","RD","RE","RF","RG","RH","RI","RJ","RK","RL","RM","RN","RO","RP","RQ","RS","RT","RU","RV","RW","RX","RY","RZ";"SA","SB","SC","SD","SE","SF","SG","SH","SI","SJ","SK","SL","SM","SN","SO","SP","SQ","SR","ST","SU","SV","SW","SX","SY","SZ";"TA","TB","TC","TD","TE","TF","TG","TH","TI","TJ","TK","TL","TM","TN","TO","TP","TQ","TR","TS","TU","TV","TW","TX","TY","TZ";"UA","UB","UC","UD","UE","UF","UG","UH","UI","UJ","UK","UL","UM","UN","UO","UP","UQ","UR","US","UT","UV","UW","UX","UY","UZ";"VA","VB","VC","VD","VE","VF","VG","VH","VI","VJ","VK","VL","VM","VN","VO","VP","VQ","VR","VS","VT","VU","VW","VX","VY","VZ";"WA","WB","WC","WD","WE","WF","WG","WH","WI","WJ","WK","WL","WM","WN","WO","WP","WQ","WR","WS","WT","WU","WV","WX","WY","WZ";"XA","XB","XC","XD","XE","XF","XG","XH","XI","XJ","XK","XL","XM","XN","XO","XP","XQ","XR","XS","XT","XU","XV","XW","XY","XZ";"YA","YB","YC","YD","YE","YF","YG","YH","YI","YJ","YK","YL","YM","YN","YO","YP","YQ","YR","YS","YT","YU","YV","YW","YX","YZ";"ZA","ZB","ZC","ZD","ZE","ZF","ZG","ZH","ZI","ZJ","ZK","ZL","ZM","ZN","ZO","ZP","ZQ","ZR","ZS","ZT","ZU","ZV","ZW","ZX","ZY"}, RANDBETWEEN(1,26),RANDBETWEEN(1,25)) -> CE | C18: IQ | D18: =CHAR(INT((NOW()*10^8-INT(NOW()*10^8))*26+65))&CHAR(LARGE(IF(ROW($A$65:$A$90)<>INT((NOW()*10^8-INT(NOW()*10^8))*26+65),ROW($A$65:$A$90),""),RANDBETWEEN(1,25))) -> SJ | E18: JW | F18: MT | K18: E | L18: 112 | M18: 102 | N18: 110 | O18: 118 | P18: 127 | Q18: 117 | R18: 107 | S18: 0 | T18: 119 | U18: 103 | V18: 119 | W18: 103
A19: =SUBSTITUTE(ADDRESS(1,SMALL(IF(MOD(COLUMN($AA:$ZZ),27)>0,COLUMN($AA:$ZZ)),RANDBETWEEN(1,650)),4),1,"") -> HE | B19: =INDEX( {"AB","AC","AD","AE","AF","AG","AH","AI","AJ","AK","AL","AM","AN","AO","AP","AQ","AR","AS","AT","AU","AV","AW","AX","AY","AZ";"BA","BC","BD","BE","BF","BG","BH","BI","BJ","BK","BL","BM","BN","BO","BP","BQ","BR","BS","BT","BU","BV","BW","BX","BY","BZ";"CA","CB","CD","CE","CF","CG","CH","CI","CJ","CK","CL","CM","CN","CO","CP","CQ","CR","CS","CT","CU","CV","CW","CX","CY","CZ";"DA","DB","DC","DE","DF","DG","DH","DI","DJ","DK","DL","DM","DN","DO","DP","DQ","DR","DS","DT","DU","DV","DW","DX","DY","DZ";"EA","EB","EC","ED","EF","EG","EH","EI","EJ","EK","EL","EM","EN","EO","EP","EQ","ER","ES","ET","EU","EV","EW","EX","EY","EZ";"FA","FB","FC","FD","FE","FG","FH","FI","FJ","FK","FL","FM","FN","FO","FP","FQ","FR","FS","FT","FU","FV","FW","FX","FY","FZ";"GA","GB","GC","GD","GE","GF","GH","GI","GJ","GK","GL","GM","GN","GO","GP","GQ","GR","GS","GT","GU","GV","GW","GX","GY","GZ";"HA","HB","HC","HD","HE","HF","HG","HI","HJ","HK","HL","HM","HN","HO","HP","HQ","HR","HS","HT","HU","HV","HW","HX","HY","HZ";"IA","IB","IC","ID","IE","IF","IG","IH","IJ","IK","IL","IM","IN","IO","IP","IQ","IR","IS","IT","IU","IV","IW","IX","IY","IZ";"JA","JB","JC","JD","JE","JF","JG","JH","JI","JK","JL","JM","JN","JO","JP","JQ","JR","JS","JT","JU","JV","JW","JX","JY","JZ";"KA","KB","KC","KD","KE","KF","KG","KH","KI","KJ","KL","KM","KN","KO","KP","KQ","KR","KS","KT","KU","KV","KW","KX","KY","KZ";"LA","LB","LC","LD","LE","LF","LG","LH","LI","LJ","LK","LM","LN","LO","LP","LQ","LR","LS","LT","LU","LV","LW","LX","LY","LZ";"MA","MB","MC","MD","ME","MF","MG","MH","MI","MJ","MK","ML","MN","MO","MP","MQ","MR","MS","MT","MU","MV","MW","MX","MY","MZ";"NA","NB","NC","ND","NE","NF","NG","NH","NI","NJ","NK","NL","NM","NO","NP","NQ","NR","NS","NT","NU","NV","NW","NX","NY","NZ";"OA","OB","OC","OD","OE","OF","OG","OH","OI","OJ","OK","OL","OM","ON","OP","OQ","OR","OS","OT","OU","OV","OW","OX","OY","OZ";"PA","PB","PC","PD","PE","PF","PG","PH","PI","PJ","PK","PL","PM","PN","PO","PQ","PR","PS","PT","PU","PV","PW","PX","PY","PZ";"QA","QB","QC","QD","QE","QF","QG","QH","QI","QJ","QK","QL","QM","QN","QO","QP","QR","QS","QT","QU","QV","QW","QX","QY","QZ";"RA","RB","RC","RD","RE","RF","RG","RH","RI","RJ","RK","RL","RM","RN","RO","RP","RQ","RS","RT","RU","RV","RW","RX","RY","RZ";"SA","SB","SC","SD","SE","SF","SG","SH","SI","SJ","SK","SL","SM","SN","SO","SP","SQ","SR","ST","SU","SV","SW","SX","SY","SZ";"TA","TB","TC","TD","TE","TF","TG","TH","TI","TJ","TK","TL","TM","TN","TO","TP","TQ","TR","TS","TU","TV","TW","TX","TY","TZ";"UA","UB","UC","UD","UE","UF","UG","UH","UI","UJ","UK","UL","UM","UN","UO","UP","UQ","UR","US","UT","UV","UW","UX","UY","UZ";"VA","VB","VC","VD","VE","VF","VG","VH","VI","VJ","VK","VL","VM","VN","VO","VP","VQ","VR","VS","VT","VU","VW","VX","VY","VZ";"WA","WB","WC","WD","WE","WF","WG","WH","WI","WJ","WK","WL","WM","WN","WO","WP","WQ","WR","WS","WT","WU","WV","WX","WY","WZ";"XA","XB","XC","XD","XE","XF","XG","XH","XI","XJ","XK","XL","XM","XN","XO","XP","XQ","XR","XS","XT","XU","XV","XW","XY","XZ";"YA","YB","YC","YD","YE","YF","YG","YH","YI","YJ","YK","YL","YM","YN","YO","YP","YQ","YR","YS","YT","YU","YV","YW","YX","YZ";"ZA","ZB","ZC","ZD","ZE","ZF","ZG","ZH","ZI","ZJ","ZK","ZL","ZM","ZN","ZO","ZP","ZQ","ZR","ZS","ZT","ZU","ZV","ZW","ZX","ZY"}, RANDBETWEEN(1,26),RANDBETWEEN(1,25)) -> UE | C19: UV | D19: =CHAR(INT((NOW()*10^8-INT(NOW()*10^8))*26+65))&CHAR(LARGE(IF(ROW($A$65:$A$90)<>INT((NOW()*10^8-INT(NOW()*10^8))*26+65),ROW($A$65:$A$90),""),RANDBETWEEN(1,25))) -> ST | E19: RM | F19: RB | K19: F | L19: 101 | M19: 118 | N19: 127 | O19: 117 | P19: 96 | Q19: 102 | R19: 129 | S19: 0 | T19: 103 | U19: 111 | V19: 103 | W19: 111
A20: =SUBSTITUTE(ADDRESS(1,SMALL(IF(MOD(COLUMN($AA:$ZZ),27)>0,COLUMN($AA:$ZZ)),RANDBETWEEN(1,650)),4),1,"") -> US | B20: =INDEX( {"AB","AC","AD","AE","AF","AG","AH","AI","AJ","AK","AL","AM","AN","AO","AP","AQ","AR","AS","AT","AU","AV","AW","AX","AY","AZ";"BA","BC","BD","BE","BF","BG","BH","BI","BJ","BK","BL","BM","BN","BO","BP","BQ","BR","BS","BT","BU","BV","BW","BX","BY","BZ";"CA","CB","CD","CE","CF","CG","CH","CI","CJ","CK","CL","CM","CN","CO","CP","CQ","CR","CS","CT","CU","CV","CW","CX","CY","CZ";"DA","DB","DC","DE","DF","DG","DH","DI","DJ","DK","DL","DM","DN","DO","DP","DQ","DR","DS","DT","DU","DV","DW","DX","DY","DZ";"EA","EB","EC","ED","EF","EG","EH","EI","EJ","EK","EL","EM","EN","EO","EP","EQ","ER","ES","ET","EU","EV","EW","EX","EY","EZ";"FA","FB","FC","FD","FE","FG","FH","FI","FJ","FK","FL","FM","FN","FO","FP","FQ","FR","FS","FT","FU","FV","FW","FX","FY","FZ";"GA","GB","GC","GD","GE","GF","GH","GI","GJ","GK","GL","GM","GN","GO","GP","GQ","GR","GS","GT","GU","GV","GW","GX","GY","GZ";"HA","HB","HC","HD","HE","HF","HG","HI","HJ","HK","HL","HM","HN","HO","HP","HQ","HR","HS","HT","HU","HV","HW","HX","HY","HZ";"IA","IB","IC","ID","IE","IF","IG","IH","IJ","IK","IL","IM","IN","IO","IP","IQ","IR","IS","IT","IU","IV","IW","IX","IY","IZ";"JA","JB","JC","JD","JE","JF","JG","JH","JI","JK","JL","JM","JN","JO","JP","JQ","JR","JS","JT","JU","JV","JW","JX","JY","JZ";"KA","KB","KC","KD","KE","KF","KG","KH","KI","KJ","KL","KM","KN","KO","KP","KQ","KR","KS","KT","KU","KV","KW","KX","KY","KZ";"LA","LB","LC","LD","LE","LF","LG","LH","LI","LJ","LK","LM","LN","LO","LP","LQ","LR","LS","LT","LU","LV","LW","LX","LY","LZ";"MA","MB","MC","MD","ME","MF","MG","MH","MI","MJ","MK","ML","MN","MO","MP","MQ","MR","MS","MT","MU","MV","MW","MX","MY","MZ";"NA","NB","NC","ND","NE","NF","NG","NH","NI","NJ","NK","NL","NM","NO","NP","NQ","NR","NS","NT","NU","NV","NW","NX","NY","NZ";"OA","OB","OC","OD","OE","OF","OG","OH","OI","OJ","OK","OL","OM","ON","OP","OQ","OR","OS","OT","OU","OV","OW","OX","OY","OZ";"PA","PB","PC","PD","PE","PF","PG","PH","PI","PJ","PK","PL","PM","PN","PO","PQ","PR","PS","PT","PU","PV","PW","PX","PY","PZ";"QA","QB","QC","QD","QE","QF","QG","QH","QI","QJ","QK","QL","QM","QN","QO","QP","QR","QS","QT","QU","QV","QW","QX","QY","QZ";"RA","RB","RC","RD","RE","RF","RG","RH","RI","RJ","RK","RL","RM","RN","RO","RP","RQ","RS","RT","RU","RV","RW","RX","RY","RZ";"SA","SB","SC","SD","SE","SF","SG","SH","SI","SJ","SK","SL","SM","SN","SO","SP","SQ","SR","ST","SU","SV","SW","SX","SY","SZ";"TA","TB","TC","TD","TE","TF","TG","TH","TI","TJ","TK","TL","TM","TN","TO","TP","TQ","TR","TS","TU","TV","TW","TX","TY","TZ";"UA","UB","UC","UD","UE","UF","UG","UH","UI","UJ","UK","UL","UM","UN","UO","UP","UQ","UR","US","UT","UV","UW","UX","UY","UZ";"VA","VB","VC","VD","VE","VF","VG","VH","VI","VJ","VK","VL","VM","VN","VO","VP","VQ","VR","VS","VT","VU","VW","VX","VY","VZ";"WA","WB","WC","WD","WE","WF","WG","WH","WI","WJ","WK","WL","WM","WN","WO","WP","WQ","WR","WS","WT","WU","WV","WX","WY","WZ";"XA","XB","XC","XD","XE","XF","XG","XH","XI","XJ","XK","XL","XM","XN","XO","XP","XQ","XR","XS","XT","XU","XV","XW","XY","XZ";"YA","YB","YC","YD","YE","YF","YG","YH","YI","YJ","YK","YL","YM","YN","YO","YP","YQ","YR","YS","YT","YU","YV","YW","YX","YZ";"ZA","ZB","ZC","ZD","ZE","ZF","ZG","ZH","ZI","ZJ","ZK","ZL","ZM","ZN","ZO","ZP","ZQ","ZR","ZS","ZT","ZU","ZV","ZW","ZX","ZY"}, RANDBETWEEN(1,26),RANDBETWEEN(1,25)) -> NO | C20: RZ | D20: =CHAR(INT((NOW()*10^8-INT(NOW()*10^8))*26+65))&CHAR(LARGE(IF(ROW($A$65:$A$90)<>INT((NOW()*10^8-INT(NOW()*10^8))*26+65),ROW($A$65:$A$90),""),RANDBETWEEN(1,25))) -> SG | E20: LO | F20: JW | K20: G | L20: 105 | M20: 96 | N20: 116 | O20: 112 | P20: 120 | Q20: 115 | R20: 121 | S20: 0 | T20: 121 | U20: 114 | V20: 121 | W20: 114
A21: =SUBSTITUTE(ADDRESS(1,SMALL(IF(MOD(COLUMN($AA:$ZZ),27)>0,COLUMN($AA:$ZZ)),RANDBETWEEN(1,650)),4),1,"") -> KT | B21: =INDEX( {"AB","AC","AD","AE","AF","AG","AH","AI","AJ","AK","AL","AM","AN","AO","AP","AQ","AR","AS","AT","AU","AV","AW","AX","AY","AZ";"BA","BC","BD","BE","BF","BG","BH","BI","BJ","BK","BL","BM","BN","BO","BP","BQ","BR","BS","BT","BU","BV","BW","BX","BY","BZ";"CA","CB","CD","CE","CF","CG","CH","CI","CJ","CK","CL","CM","CN","CO","CP","CQ","CR","CS","CT","CU","CV","CW","CX","CY","CZ";"DA","DB","DC","DE","DF","DG","DH","DI","DJ","DK","DL","DM","DN","DO","DP","DQ","DR","DS","DT","DU","DV","DW","DX","DY","DZ";"EA","EB","EC","ED","EF","EG","EH","EI","EJ","EK","EL","EM","EN","EO","EP","EQ","ER","ES","ET","EU","EV","EW","EX","EY","EZ";"FA","FB","FC","FD","FE","FG","FH","FI","FJ","FK","FL","FM","FN","FO","FP","FQ","FR","FS","FT","FU","FV","FW","FX","FY","FZ";"GA","GB","GC","GD","GE","GF","GH","GI","GJ","GK","GL","GM","GN","GO","GP","GQ","GR","GS","GT","GU","GV","GW","GX","GY","GZ";"HA","HB","HC","HD","HE","HF","HG","HI","HJ","HK","HL","HM","HN","HO","HP","HQ","HR","HS","HT","HU","HV","HW","HX","HY","HZ";"IA","IB","IC","ID","IE","IF","IG","IH","IJ","IK","IL","IM","IN","IO","IP","IQ","IR","IS","IT","IU","IV","IW","IX","IY","IZ";"JA","JB","JC","JD","JE","JF","JG","JH","JI","JK","JL","JM","JN","JO","JP","JQ","JR","JS","JT","JU","JV","JW","JX","JY","JZ";"KA","KB","KC","KD","KE","KF","KG","KH","KI","KJ","KL","KM","KN","KO","KP","KQ","KR","KS","KT","KU","KV","KW","KX","KY","KZ";"LA","LB","LC","LD","LE","LF","LG","LH","LI","LJ","LK","LM","LN","LO","LP","LQ","LR","LS","LT","LU","LV","LW","LX","LY","LZ";"MA","MB","MC","MD","ME","MF","MG","MH","MI","MJ","MK","ML","MN","MO","MP","MQ","MR","MS","MT","MU","MV","MW","MX","MY","MZ";"NA","NB","NC","ND","NE","NF","NG","NH","NI","NJ","NK","NL","NM","NO","NP","NQ","NR","NS","NT","NU","NV","NW","NX","NY","NZ";"OA","OB","OC","OD","OE","OF","OG","OH","OI","OJ","OK","OL","OM","ON","OP","OQ","OR","OS","OT","OU","OV","OW","OX","OY","OZ";"PA","PB","PC","PD","PE","PF","PG","PH","PI","PJ","PK","PL","PM","PN","PO","PQ","PR","PS","PT","PU","PV","PW","PX","PY","PZ";"QA","QB","QC","QD","QE","QF","QG","QH","QI","QJ","QK","QL","QM","QN","QO","QP","QR","QS","QT","QU","QV","QW","QX","QY","QZ";"RA","RB","RC","RD","RE","RF","RG","RH","RI","RJ","RK","RL","RM","RN","RO","RP","RQ","RS","RT","RU","RV","RW","RX","RY","RZ";"SA","SB","SC","SD","SE","SF","SG","SH","SI","SJ","SK","SL","SM","SN","SO","SP","SQ","SR","ST","SU","SV","SW","SX","SY","SZ";"TA","TB","TC","TD","TE","TF","TG","TH","TI","TJ","TK","TL","TM","TN","TO","TP","TQ","TR","TS","TU","TV","TW","TX","TY","TZ";"UA","UB","UC","UD","UE","UF","UG","UH","UI","UJ","UK","UL","UM","UN","UO","UP","UQ","UR","US","UT","UV","UW","UX","UY","UZ";"VA","VB","VC","VD","VE","VF","VG","VH","VI","VJ","VK","VL","VM","VN","VO","VP","VQ","VR","VS","VT","VU","VW","VX","VY","VZ";"WA","WB","WC","WD","WE","WF","WG","WH","WI","WJ","WK","WL","WM","WN","WO","WP","WQ","WR","WS","WT","WU","WV","WX","WY","WZ";"XA","XB","XC","XD","XE","XF","XG","XH","XI","XJ","XK","XL","XM","XN","XO","XP","XQ","XR","XS","XT","XU","XV","XW","XY","XZ";"YA","YB","YC","YD","YE","YF","YG","YH","YI","YJ","YK","YL","YM","YN","YO","YP","YQ","YR","YS","YT","YU","YV","YW","YX","YZ";"ZA","ZB","ZC","ZD","ZE","ZF","ZG","ZH","ZI","ZJ","ZK","ZL","ZM","ZN","ZO","ZP","ZQ","ZR","ZS","ZT","ZU","ZV","ZW","ZX","ZY"}, RANDBETWEEN(1,26),RANDBETWEEN(1,25)) -> ED | C21: HY | D21: =CHAR(INT((NOW()*10^8-INT(NOW()*10^8))*26+65))&CHAR(LARGE(IF(ROW($A$65:$A$90)<>INT((NOW()*10^8-INT(NOW()*10^8))*26+65),ROW($A$65:$A$90),""),RANDBETWEEN(1,25))) -> SY | E21: JP | F21: LT | K21: H | L21: 112 | M21: 123 | N21: 117 | O21: 123 | P21: 111 | Q21: 124 | R21: 109 | S21: 0 | T21: 120 | U21: 110 | V21: 120 | W21: 110
A22: =SUBSTITUTE(ADDRESS(1,SMALL(IF(MOD(COLUMN($AA:$ZZ),27)>0,COLUMN($AA:$ZZ)),RANDBETWEEN(1,650)),4),1,"") -> DP | B22: =INDEX( {"AB","AC","AD","AE","AF","AG","AH","AI","AJ","AK","AL","AM","AN","AO","AP","AQ","AR","AS","AT","AU","AV","AW","AX","AY","AZ";"BA","BC","BD","BE","BF","BG","BH","BI","BJ","BK","BL","BM","BN","BO","BP","BQ","BR","BS","BT","BU","BV","BW","BX","BY","BZ";"CA","CB","CD","CE","CF","CG","CH","CI","CJ","CK","CL","CM","CN","CO","CP","CQ","CR","CS","CT","CU","CV","CW","CX","CY","CZ";"DA","DB","DC","DE","DF","DG","DH","DI","DJ","DK","DL","DM","DN","DO","DP","DQ","DR","DS","DT","DU","DV","DW","DX","DY","DZ";"EA","EB","EC","ED","EF","EG","EH","EI","EJ","EK","EL","EM","EN","EO","EP","EQ","ER","ES","ET","EU","EV","EW","EX","EY","EZ";"FA","FB","FC","FD","FE","FG","FH","FI","FJ","FK","FL","FM","FN","FO","FP","FQ","FR","FS","FT","FU","FV","FW","FX","FY","FZ";"GA","GB","GC","GD","GE","GF","GH","GI","GJ","GK","GL","GM","GN","GO","GP","GQ","GR","GS","GT","GU","GV","GW","GX","GY","GZ";"HA","HB","HC","HD","HE","HF","HG","HI","HJ","HK","HL","HM","HN","HO","HP","HQ","HR","HS","HT","HU","HV","HW","HX","HY","HZ";"IA","IB","IC","ID","IE","IF","IG","IH","IJ","IK","IL","IM","IN","IO","IP","IQ","IR","IS","IT","IU","IV","IW","IX","IY","IZ";"JA","JB","JC","JD","JE","JF","JG","JH","JI","JK","JL","JM","JN","JO","JP","JQ","JR","JS","JT","JU","JV","JW","JX","JY","JZ";"KA","KB","KC","KD","KE","KF","KG","KH","KI","KJ","KL","KM","KN","KO","KP","KQ","KR","KS","KT","KU","KV","KW","KX","KY","KZ";"LA","LB","LC","LD","LE","LF","LG","LH","LI","LJ","LK","LM","LN","LO","LP","LQ","LR","LS","LT","LU","LV","LW","LX","LY","LZ";"MA","MB","MC","MD","ME","MF","MG","MH","MI","MJ","MK","ML","MN","MO","MP","MQ","MR","MS","MT","MU","MV","MW","MX","MY","MZ";"NA","NB","NC","ND","NE","NF","NG","NH","NI","NJ","NK","NL","NM","NO","NP","NQ","NR","NS","NT","NU","NV","NW","NX","NY","NZ";"OA","OB","OC","OD","OE","OF","OG","OH","OI","OJ","OK","OL","OM","ON","OP","OQ","OR","OS","OT","OU","OV","OW","OX","OY","OZ";"PA","PB","PC","PD","PE","PF","PG","PH","PI","PJ","PK","PL","PM","PN","PO","PQ","PR","PS","PT","PU","PV","PW","PX","PY","PZ";"QA","QB","QC","QD","QE","QF","QG","QH","QI","QJ","QK","QL","QM","QN","QO","QP","QR","QS","QT","QU","QV","QW","QX","QY","QZ";"RA","RB","RC","RD","RE","RF","RG","RH","RI","RJ","RK","RL","RM","RN","RO","RP","RQ","RS","RT","RU","RV","RW","RX","RY","RZ";"SA","SB","SC","SD","SE","SF","SG","SH","SI","SJ","SK","SL","SM","SN","SO","SP","SQ","SR","ST","SU","SV","SW","SX","SY","SZ";"TA","TB","TC","TD","TE","TF","TG","TH","TI","TJ","TK","TL","TM","TN","TO","TP","TQ","TR","TS","TU","TV","TW","TX","TY","TZ";"UA","UB","UC","UD","UE","UF","UG","UH","UI","UJ","UK","UL","UM","UN","UO","UP","UQ","UR","US","UT","UV","UW","UX","UY","UZ";"VA","VB","VC","VD","VE","VF","VG","VH","VI","VJ","VK","VL","VM","VN","VO","VP","VQ","VR","VS","VT","VU","VW","VX","VY","VZ";"WA","WB","WC","WD","WE","WF","WG","WH","WI","WJ","WK","WL","WM","WN","WO","WP","WQ","WR","WS","WT","WU","WV","WX","WY","WZ";"XA","XB","XC","XD","XE","XF","XG","XH","XI","XJ","XK","XL","XM","XN","XO","XP","XQ","XR","XS","XT","XU","XV","XW","XY","XZ";"YA","YB","YC","YD","YE","YF","YG","YH","YI","YJ","YK","YL","YM","YN","YO","YP","YQ","YR","YS","YT","YU","YV","YW","YX","YZ";"ZA","ZB","ZC","ZD","ZE","ZF","ZG","ZH","ZI","ZJ","ZK","ZL","ZM","ZN","ZO","ZP","ZQ","ZR","ZS","ZT","ZU","ZV","ZW","ZX","ZY"}, RANDBETWEEN(1,26),RANDBETWEEN(1,25)) -> KD | C22: HB | D22: =CHAR(INT((NOW()*10^8-INT(NOW()*10^8))*26+65))&CHAR(LARGE(IF(ROW($A$65:$A$90)<>INT((NOW()*10^8-INT(NOW()*10^8))*26+65),ROW($A$65:$A$90),""),RANDBETWEEN(1,25))) -> SL | E22: EG | F22: EY | K22: I | L22: 122 | M22: 113 | N22: 106 | O22: 102 | P22: 111 | Q22: 134 | R22: 106 | S22: 0 | T22: 118 | U22: 127 | V22: 118 | W22: 127
A23: =SUBSTITUTE(ADDRESS(1,SMALL(IF(MOD(COLUMN($AA:$ZZ),27)>0,COLUMN($AA:$ZZ)),RANDBETWEEN(1,650)),4),1,"") -> ZG | B23: =INDEX( {"AB","AC","AD","AE","AF","AG","AH","AI","AJ","AK","AL","AM","AN","AO","AP","AQ","AR","AS","AT","AU","AV","AW","AX","AY","AZ";"BA","BC","BD","BE","BF","BG","BH","BI","BJ","BK","BL","BM","BN","BO","BP","BQ","BR","BS","BT","BU","BV","BW","BX","BY","BZ";"CA","CB","CD","CE","CF","CG","CH","CI","CJ","CK","CL","CM","CN","CO","CP","CQ","CR","CS","CT","CU","CV","CW","CX","CY","CZ";"DA","DB","DC","DE","DF","DG","DH","DI","DJ","DK","DL","DM","DN","DO","DP","DQ","DR","DS","DT","DU","DV","DW","DX","DY","DZ";"EA","EB","EC","ED","EF","EG","EH","EI","EJ","EK","EL","EM","EN","EO","EP","EQ","ER","ES","ET","EU","EV","EW","EX","EY","EZ";"FA","FB","FC","FD","FE","FG","FH","FI","FJ","FK","FL","FM","FN","FO","FP","FQ","FR","FS","FT","FU","FV","FW","FX","FY","FZ";"GA","GB","GC","GD","GE","GF","GH","GI","GJ","GK","GL","GM","GN","GO","GP","GQ","GR","GS","GT","GU","GV","GW","GX","GY","GZ";"HA","HB","HC","HD","HE","HF","HG","HI","HJ","HK","HL","HM","HN","HO","HP","HQ","HR","HS","HT","HU","HV","HW","HX","HY","HZ";"IA","IB","IC","ID","IE","IF","IG","IH","IJ","IK","IL","IM","IN","IO","IP","IQ","IR","IS","IT","IU","IV","IW","IX","IY","IZ";"JA","JB","JC","JD","JE","JF","JG","JH","JI","JK","JL","JM","JN","JO","JP","JQ","JR","JS","JT","JU","JV","JW","JX","JY","JZ";"KA","KB","KC","KD","KE","KF","KG","KH","KI","KJ","KL","KM","KN","KO","KP","KQ","KR","KS","KT","KU","KV","KW","KX","KY","KZ";"LA","LB","LC","LD","LE","LF","LG","LH","LI","LJ","LK","LM","LN","LO","LP","LQ","LR","LS","LT","LU","LV","LW","LX","LY","LZ";"MA","MB","MC","MD","ME","MF","MG","MH","MI","MJ","MK","ML","MN","MO","MP","MQ","MR","MS","MT","MU","MV","MW","MX","MY","MZ";"NA","NB","NC","ND","NE","NF","NG","NH","NI","NJ","NK","NL","NM","NO","NP","NQ","NR","NS","NT","NU","NV","NW","NX","NY","NZ";"OA","OB","OC","OD","OE","OF","OG","OH","OI","OJ","OK","OL","OM","ON","OP","OQ","OR","OS","OT","OU","OV","OW","OX","OY","OZ";"PA","PB","PC","PD","PE","PF","PG","PH","PI","PJ","PK","PL","PM","PN","PO","PQ","PR","PS","PT","PU","PV","PW","PX","PY","PZ";"QA","QB","QC","QD","QE","QF","QG","QH","QI","QJ","QK","QL","QM","QN","QO","QP","QR","QS","QT","QU","QV","QW","QX","QY","QZ";"RA","RB","RC","RD","RE","RF","RG","RH","RI","RJ","RK","RL","RM","RN","RO","RP","RQ","RS","RT","RU","RV","RW","RX","RY","RZ";"SA","SB","SC","SD","SE","SF","SG","SH","SI","SJ","SK","SL","SM","SN","SO","SP","SQ","SR","ST","SU","SV","SW","SX","SY","SZ";"TA","TB","TC","TD","TE","TF","TG","TH","TI","TJ","TK","TL","TM","TN","TO","TP","TQ","TR","TS","TU","TV","TW","TX","TY","TZ";"UA","UB","UC","UD","UE","UF","UG","UH","UI","UJ","UK","UL","UM","UN","UO","UP","UQ","UR","US","UT","UV","UW","UX","UY","UZ";"VA","VB","VC","VD","VE","VF","VG","VH","VI","VJ","VK","VL","VM","VN","VO","VP","VQ","VR","VS","VT","VU","VW","VX","VY","VZ";"WA","WB","WC","WD","WE","WF","WG","WH","WI","WJ","WK","WL","WM","WN","WO","WP","WQ","WR","WS","WT","WU","WV","WX","WY","WZ";"XA","XB","XC","XD","XE","XF","XG","XH","XI","XJ","XK","XL","XM","XN","XO","XP","XQ","XR","XS","XT","XU","XV","XW","XY","XZ";"YA","YB","YC","YD","YE","YF","YG","YH","YI","YJ","YK","YL","YM","YN","YO","YP","YQ","YR","YS","YT","YU","YV","YW","YX","YZ";"ZA","ZB","ZC","ZD","ZE","ZF","ZG","ZH","ZI","ZJ","ZK","ZL","ZM","ZN","ZO","ZP","ZQ","ZR","ZS","ZT","ZU","ZV","ZW","ZX","ZY"}, RANDBETWEEN(1,26),RANDBETWEEN(1,25)) -> NO | C23: RN | D23: =CHAR(INT((NOW()*10^8-INT(NOW()*10^8))*26+65))&CHAR(LARGE(IF(ROW($A$65:$A$90)<>INT((NOW()*10^8-INT(NOW()*10^8))*26+65),ROW($A$65:$A$90),""),RANDBETWEEN(1,25))) -> SU | E23: AK | F23: LJ | K23: J | L23: 112 | M23: 130 | N23: 109 | O23: 113 | P23: 107 | Q23: 128 | R23: 121 | S23: 0 | T23: 129 | U23: 109 | V23: 129 | W23: 109
A24: =SUBSTITUTE(ADDRESS(1,SMALL(IF(MOD(COLUMN($AA:$ZZ),27)>0,COLUMN($AA:$ZZ)),RANDBETWEEN(1,650)),4),1,"") -> ZU | B24: =INDEX( {"AB","AC","AD","AE","AF","AG","AH","AI","AJ","AK","AL","AM","AN","AO","AP","AQ","AR","AS","AT","AU","AV","AW","AX","AY","AZ";"BA","BC","BD","BE","BF","BG","BH","BI","BJ","BK","BL","BM","BN","BO","BP","BQ","BR","BS","BT","BU","BV","BW","BX","BY","BZ";"CA","CB","CD","CE","CF","CG","CH","CI","CJ","CK","CL","CM","CN","CO","CP","CQ","CR","CS","CT","CU","CV","CW","CX","CY","CZ";"DA","DB","DC","DE","DF","DG","DH","DI","DJ","DK","DL","DM","DN","DO","DP","DQ","DR","DS","DT","DU","DV","DW","DX","DY","DZ";"EA","EB","EC","ED","EF","EG","EH","EI","EJ","EK","EL","EM","EN","EO","EP","EQ","ER","ES","ET","EU","EV","EW","EX","EY","EZ";"FA","FB","FC","FD","FE","FG","FH","FI","FJ","FK","FL","FM","FN","FO","FP","FQ","FR","FS","FT","FU","FV","FW","FX","FY","FZ";"GA","GB","GC","GD","GE","GF","GH","GI","GJ","GK","GL","GM","GN","GO","GP","GQ","GR","GS","GT","GU","GV","GW","GX","GY","GZ";"HA","HB","HC","HD","HE","HF","HG","HI","HJ","HK","HL","HM","HN","HO","HP","HQ","HR","HS","HT","HU","HV","HW","HX","HY","HZ";"IA","IB","IC","ID","IE","IF","IG","IH","IJ","IK","IL","IM","IN","IO","IP","IQ","IR","IS","IT","IU","IV","IW","IX","IY","IZ";"JA","JB","JC","JD","JE","JF","JG","JH","JI","JK","JL","JM","JN","JO","JP","JQ","JR","JS","JT","JU","JV","JW","JX","JY","JZ";"KA","KB","KC","KD","KE","KF","KG","KH","KI","KJ","KL","KM","KN","KO","KP","KQ","KR","KS","KT","KU","KV","KW","KX","KY","KZ";"LA","LB","LC","LD","LE","LF","LG","LH","LI","LJ","LK","LM","LN","LO","LP","LQ","LR","LS","LT","LU","LV","LW","LX","LY","LZ";"MA","MB","MC","MD","ME","MF","MG","MH","MI","MJ","MK","ML","MN","MO","MP","MQ","MR","MS","MT","MU","MV","MW","MX","MY","MZ";"NA","NB","NC","ND","NE","NF","NG","NH","NI","NJ","NK","NL","NM","NO","NP","NQ","NR","NS","NT","NU","NV","NW","NX","NY","NZ";"OA","OB","OC","OD","OE","OF","OG","OH","OI","OJ","OK","OL","OM","ON","OP","OQ","OR","OS","OT","OU","OV","OW","OX","OY","OZ";"PA","PB","PC","PD","PE","PF","PG","PH","PI","PJ","PK","PL","PM","PN","PO","PQ","PR","PS","PT","PU","PV","PW","PX","PY","PZ";"QA","QB","QC","QD","QE","QF","QG","QH","QI","QJ","QK","QL","QM","QN","QO","QP","QR","QS","QT","QU","QV","QW","QX","QY","QZ";"RA","RB","RC","RD","RE","RF","RG","RH","RI","RJ","RK","RL","RM","RN","RO","RP","RQ","RS","RT","RU","RV","RW","RX","RY","RZ";"SA","SB","SC","SD","SE","SF","SG","SH","SI","SJ","SK","SL","SM","SN","SO","SP","SQ","SR","ST","SU","SV","SW","SX","SY","SZ";"TA","TB","TC","TD","TE","TF","TG","TH","TI","TJ","TK","TL","TM","TN","TO","TP","TQ","TR","TS","TU","TV","TW","TX","TY","TZ";"UA","UB","UC","UD","UE","UF","UG","UH","UI","UJ","UK","UL","UM","UN","UO","UP","UQ","UR","US","UT","UV","UW","UX","UY","UZ";"VA","VB","VC","VD","VE","VF","VG","VH","VI","VJ","VK","VL","VM","VN","VO","VP","VQ","VR","VS","VT","VU","VW","VX","VY","VZ";"WA","WB","WC","WD","WE","WF","WG","WH","WI","WJ","WK","WL","WM","WN","WO","WP","WQ","WR","WS","WT","WU","WV","WX","WY","WZ";"XA","XB","XC","XD","XE","XF","XG","XH","XI","XJ","XK","XL","XM","XN","XO","XP","XQ","XR","XS","XT","XU","XV","XW","XY","XZ";"YA","YB","YC","YD","YE","YF","YG","YH","YI","YJ","YK","YL","YM","YN","YO","YP","YQ","YR","YS","YT","YU","YV","YW","YX","YZ";"ZA","ZB","ZC","ZD","ZE","ZF","ZG","ZH","ZI","ZJ","ZK","ZL","ZM","ZN","ZO","ZP","ZQ","ZR","ZS","ZT","ZU","ZV","ZW","ZX","ZY"}, RANDBETWEEN(1,26),RANDBETWEEN(1,25)) -> JN | C24: CQ | D24: =CHAR(INT((NOW()*10^8-INT(NOW()*10^8))*26+65))&CHAR(LARGE(IF(ROW($A$65:$A$90)<>INT((NOW()*10^8-INT(NOW()*10^8))*26+65),ROW($A$65:$A$90),""),RANDBETWEEN(1,25))) -> SZ | E24: ZN | F24: VF | K24: K | L24: 116 | M24: 106 | N24: 110 | O24: 125 | P24: 122 | Q24: 115 | R24: 124 | S24: 0 | T24: 116 | U24: 124 | V24: 116 | W24: 124
A25: =SUBSTITUTE(ADDRESS(1,SMALL(IF(MOD(COLUMN($AA:$ZZ),27)>0,COLUMN($AA:$ZZ)),RANDBETWEEN(1,650)),4),1,"") -> AG | B25: =INDEX( {"AB","AC","AD","AE","AF","AG","AH","AI","AJ","AK","AL","AM","AN","AO","AP","AQ","AR","AS","AT","AU","AV","AW","AX","AY","AZ";"BA","BC","BD","BE","BF","BG","BH","BI","BJ","BK","BL","BM","BN","BO","BP","BQ","BR","BS","BT","BU","BV","BW","BX","BY","BZ";"CA","CB","CD","CE","CF","CG","CH","CI","CJ","CK","CL","CM","CN","CO","CP","CQ","CR","CS","CT","CU","CV","CW","CX","CY","CZ";"DA","DB","DC","DE","DF","DG","DH","DI","DJ","DK","DL","DM","DN","DO","DP","DQ","DR","DS","DT","DU","DV","DW","DX","DY","DZ";"EA","EB","EC","ED","EF","EG","EH","EI","EJ","EK","EL","EM","EN","EO","EP","EQ","ER","ES","ET","EU","EV","EW","EX","EY","EZ";"FA","FB","FC","FD","FE","FG","FH","FI","FJ","FK","FL","FM","FN","FO","FP","FQ","FR","FS","FT","FU","FV","FW","FX","FY","FZ";"GA","GB","GC","GD","GE","GF","GH","GI","GJ","GK","GL","GM","GN","GO","GP","GQ","GR","GS","GT","GU","GV","GW","GX","GY","GZ";"HA","HB","HC","HD","HE","HF","HG","HI","HJ","HK","HL","HM","HN","HO","HP","HQ","HR","HS","HT","HU","HV","HW","HX","HY","HZ";"IA","IB","IC","ID","IE","IF","IG","IH","IJ","IK","IL","IM","IN","IO","IP","IQ","IR","IS","IT","IU","IV","IW","IX","IY","IZ";"JA","JB","JC","JD","JE","JF","JG","JH","JI","JK","JL","JM","JN","JO","JP","JQ","JR","JS","JT","JU","JV","JW","JX","JY","JZ";"KA","KB","KC","KD","KE","KF","KG","KH","KI","KJ","KL","KM","KN","KO","KP","KQ","KR","KS","KT","KU","KV","KW","KX","KY","KZ";"LA","LB","LC","LD","LE","LF","LG","LH","LI","LJ","LK","LM","LN","LO","LP","LQ","LR","LS","LT","LU","LV","LW","LX","LY","LZ";"MA","MB","MC","MD","ME","MF","MG","MH","MI","MJ","MK","ML","MN","MO","MP","MQ","MR","MS","MT","MU","MV","MW","MX","MY","MZ";"NA","NB","NC","ND","NE","NF","NG","NH","NI","NJ","NK","NL","NM","NO","NP","NQ","NR","NS","NT","NU","NV","NW","NX","NY","NZ";"OA","OB","OC","OD","OE","OF","OG","OH","OI","OJ","OK","OL","OM","ON","OP","OQ","OR","OS","OT","OU","OV","OW","OX","OY","OZ";"PA","PB","PC","PD","PE","PF","PG","PH","PI","PJ","PK","PL","PM","PN","PO","PQ","PR","PS","PT","PU","PV","PW","PX","PY","PZ";"QA","QB","QC","QD","QE","QF","QG","QH","QI","QJ","QK","QL","QM","QN","QO","QP","QR","QS","QT","QU","QV","QW","QX","QY","QZ";"RA","RB","RC","RD","RE","RF","RG","RH","RI","RJ","RK","RL","RM","RN","RO","RP","RQ","RS","RT","RU","RV","RW","RX","RY","RZ";"SA","SB","SC","SD","SE","SF","SG","SH","SI","SJ","SK","SL","SM","SN","SO","SP","SQ","SR","ST","SU","SV","SW","SX","SY","SZ";"TA","TB","TC","TD","TE","TF","TG","TH","TI","TJ","TK","TL","TM","TN","TO","TP","TQ","TR","TS","TU","TV","TW","TX","TY","TZ";"UA","UB","UC","UD","UE","UF","UG","UH","UI","UJ","UK","UL","UM","UN","UO","UP","UQ","UR","US","UT","UV","UW","UX","UY","UZ";"VA","VB","VC","VD","VE","VF","VG","VH","VI","VJ","VK","VL","VM","VN","VO","VP","VQ","VR","VS","VT","VU","VW","VX","VY","VZ";"WA","WB","WC","WD","WE","WF","WG","WH","WI","WJ","WK","WL","WM","WN","WO","WP","WQ","WR","WS","WT","WU","WV","WX","WY","WZ";"XA","XB","XC","XD","XE","XF","XG","XH","XI","XJ","XK","XL","XM","XN","XO","XP","XQ","XR","XS","XT","XU","XV","XW","XY","XZ";"YA","YB","YC","YD","YE","YF","YG","YH","YI","YJ","YK","YL","YM","YN","YO","YP","YQ","YR","YS","YT","YU","YV","YW","YX","YZ";"ZA","ZB","ZC","ZD","ZE","ZF","ZG","ZH","ZI","ZJ","ZK","ZL","ZM","ZN","ZO","ZP","ZQ","ZR","ZS","ZT","ZU","ZV","ZW","ZX","ZY"}, RANDBETWEEN(1,26),RANDBETWEEN(1,25)) -> LF | C25: HJ | D25: =CHAR(INT((NOW()*10^8-INT(NOW()*10^8))*26+65))&CHAR(LARGE(IF(ROW($A$65:$A$90)<>INT((NOW()*10^8-INT(NOW()*10^8))*26+65),ROW($A$65:$A$90),""),RANDBETWEEN(1,25))) -> SI | E25: HW | F25: WG | K25: L | L25: 106 | M25: 127 | N25: 110 | O25: 103 | P25: 112 | Q25: 107 | R25: 83 | S25: 728 | T25: 115 | U25: 105 | V25: 115 | W25: 105
A26: =SUBSTITUTE(ADDRESS(1,SMALL(IF(MOD(COLUMN($AA:$ZZ),27)>0,COLUMN($AA:$ZZ)),RANDBETWEEN(1,650)),4),1,"") -> GC | B26: =INDEX( {"AB","AC","AD","AE","AF","AG","AH","AI","AJ","AK","AL","AM","AN","AO","AP","AQ","AR","AS","AT","AU","AV","AW","AX","AY","AZ";"BA","BC","BD","BE","BF","BG","BH","BI","BJ","BK","BL","BM","BN","BO","BP","BQ","BR","BS","BT","BU","BV","BW","BX","BY","BZ";"CA","CB","CD","CE","CF","CG","CH","CI","CJ","CK","CL","CM","CN","CO","CP","CQ","CR","CS","CT","CU","CV","CW","CX","CY","CZ";"DA","DB","DC","DE","DF","DG","DH","DI","DJ","DK","DL","DM","DN","DO","DP","DQ","DR","DS","DT","DU","DV","DW","DX","DY","DZ";"EA","EB","EC","ED","EF","EG","EH","EI","EJ","EK","EL","EM","EN","EO","EP","EQ","ER","ES","ET","EU","EV","EW","EX","EY","EZ";"FA","FB","FC","FD","FE","FG","FH","FI","FJ","FK","FL","FM","FN","FO","FP","FQ","FR","FS","FT","FU","FV","FW","FX","FY","FZ";"GA","GB","GC","GD","GE","GF","GH","GI","GJ","GK","GL","GM","GN","GO","GP","GQ","GR","GS","GT","GU","GV","GW","GX","GY","GZ";"HA","HB","HC","HD","HE","HF","HG","HI","HJ","HK","HL","HM","HN","HO","HP","HQ","HR","HS","HT","HU","HV","HW","HX","HY","HZ";"IA","IB","IC","ID","IE","IF","IG","IH","IJ","IK","IL","IM","IN","IO","IP","IQ","IR","IS","IT","IU","IV","IW","IX","IY","IZ";"JA","JB","JC","JD","JE","JF","JG","JH","JI","JK","JL","JM","JN","JO","JP","JQ","JR","JS","JT","JU","JV","JW","JX","JY","JZ";"KA","KB","KC","KD","KE","KF","KG","KH","KI","KJ","KL","KM","KN","KO","KP","KQ","KR","KS","KT","KU","KV","KW","KX","KY","KZ";"LA","LB","LC","LD","LE","LF","LG","LH","LI","LJ","LK","LM","LN","LO","LP","LQ","LR","LS","LT","LU","LV","LW","LX","LY","LZ";"MA","MB","MC","MD","ME","MF","MG","MH","MI","MJ","MK","ML","MN","MO","MP","MQ","MR","MS","MT","MU","MV","MW","MX","MY","MZ";"NA","NB","NC","ND","NE","NF","NG","NH","NI","NJ","NK","NL","NM","NO","NP","NQ","NR","NS","NT","NU","NV","NW","NX","NY","NZ";"OA","OB","OC","OD","OE","OF","OG","OH","OI","OJ","OK","OL","OM","ON","OP","OQ","OR","OS","OT","OU","OV","OW","OX","OY","OZ";"PA","PB","PC","PD","PE","PF","PG","PH","PI","PJ","PK","PL","PM","PN","PO","PQ","PR","PS","PT","PU","PV","PW","PX","PY","PZ";"QA","QB","QC","QD","QE","QF","QG","QH","QI","QJ","QK","QL","QM","QN","QO","QP","QR","QS","QT","QU","QV","QW","QX","QY","QZ";"RA","RB","RC","RD","RE","RF","RG","RH","RI","RJ","RK","RL","RM","RN","RO","RP","RQ","RS","RT","RU","RV","RW","RX","RY","RZ";"SA","SB","SC","SD","SE","SF","SG","SH","SI","SJ","SK","SL","SM","SN","SO","SP","SQ","SR","ST","SU","SV","SW","SX","SY","SZ";"TA","TB","TC","TD","TE","TF","TG","TH","TI","TJ","TK","TL","TM","TN","TO","TP","TQ","TR","TS","TU","TV","TW","TX","TY","TZ";"UA","UB","UC","UD","UE","UF","UG","UH","UI","UJ","UK","UL","UM","UN","UO","UP","UQ","UR","US","UT","UV","UW","UX","UY","UZ";"VA","VB","VC","VD","VE","VF","VG","VH","VI","VJ","VK","VL","VM","VN","VO","VP","VQ","VR","VS","VT","VU","VW","VX","VY","VZ";"WA","WB","WC","WD","WE","WF","WG","WH","WI","WJ","WK","WL","WM","WN","WO","WP","WQ","WR","WS","WT","WU","WV","WX","WY","WZ";"XA","XB","XC","XD","XE","XF","XG","XH","XI","XJ","XK","XL","XM","XN","XO","XP","XQ","XR","XS","XT","XU","XV","XW","XY","XZ";"YA","YB","YC","YD","YE","YF","YG","YH","YI","YJ","YK","YL","YM","YN","YO","YP","YQ","YR","YS","YT","YU","YV","YW","YX","YZ";"ZA","ZB","ZC","ZD","ZE","ZF","ZG","ZH","ZI","ZJ","ZK","ZL","ZM","ZN","ZO","ZP","ZQ","ZR","ZS","ZT","ZU","ZV","ZW","ZX","ZY"}, RANDBETWEEN(1,26),RANDBETWEEN(1,25)) -> ZP | C26: QE | D26: =CHAR(INT((NOW()*10^8-INT(NOW()*10^8))*26+65))&CHAR(LARGE(IF(ROW($A$65:$A$90)<>INT((NOW()*10^8-INT(NOW()*10^8))*26+65),ROW($A$65:$A$90),""),RANDBETWEEN(1,25))) -> SC | E26: FN | F26: NS | K26: M | L26: 133 | M26: 87 | N26: 118 | O26: 115 | P26: 104 | Q26: 119 | R26: 119 | S26: 0 | T26: 89 | U26: 112 | V26: 89 | W26: 112
A27: =SUBSTITUTE(ADDRESS(1,SMALL(IF(MOD(COLUMN($AA:$ZZ),27)>0,COLUMN($AA:$ZZ)),RANDBETWEEN(1,650)),4),1,"") -> HQ | B27: =INDEX( {"AB","AC","AD","AE","AF","AG","AH","AI","AJ","AK","AL","AM","AN","AO","AP","AQ","AR","AS","AT","AU","AV","AW","AX","AY","AZ";"BA","BC","BD","BE","BF","BG","BH","BI","BJ","BK","BL","BM","BN","BO","BP","BQ","BR","BS","BT","BU","BV","BW","BX","BY","BZ";"CA","CB","CD","CE","CF","CG","CH","CI","CJ","CK","CL","CM","CN","CO","CP","CQ","CR","CS","CT","CU","CV","CW","CX","CY","CZ";"DA","DB","DC","DE","DF","DG","DH","DI","DJ","DK","DL","DM","DN","DO","DP","DQ","DR","DS","DT","DU","DV","DW","DX","DY","DZ";"EA","EB","EC","ED","EF","EG","EH","EI","EJ","EK","EL","EM","EN","EO","EP","EQ","ER","ES","ET","EU","EV","EW","EX","EY","EZ";"FA","FB","FC","FD","FE","FG","FH","FI","FJ","FK","FL","FM","FN","FO","FP","FQ","FR","FS","FT","FU","FV","FW","FX","FY","FZ";"GA","GB","GC","GD","GE","GF","GH","GI","GJ","GK","GL","GM","GN","GO","GP","GQ","GR","GS","GT","GU","GV","GW","GX","GY","GZ";"HA","HB","HC","HD","HE","HF","HG","HI","HJ","HK","HL","HM","HN","HO","HP","HQ","HR","HS","HT","HU","HV","HW","HX","HY","HZ";"IA","IB","IC","ID","IE","IF","IG","IH","IJ","IK","IL","IM","IN","IO","IP","IQ","IR","IS","IT","IU","IV","IW","IX","IY","IZ";"JA","JB","JC","JD","JE","JF","JG","JH","JI","JK","JL","JM","JN","JO","JP","JQ","JR","JS","JT","JU","JV","JW","JX","JY","JZ";"KA","KB","KC","KD","KE","KF","KG","KH","KI","KJ","KL","KM","KN","KO","KP","KQ","KR","KS","KT","KU","KV","KW","KX","KY","KZ";"LA","LB","LC","LD","LE","LF","LG","LH","LI","LJ","LK","LM","LN","LO","LP","LQ","LR","LS","LT","LU","LV","LW","LX","LY","LZ";"MA","MB","MC","MD","ME","MF","MG","MH","MI","MJ","MK","ML","MN","MO","MP","MQ","MR","MS","MT","MU","MV","MW","MX","MY","MZ";"NA","NB","NC","ND","NE","NF","NG","NH","NI","NJ","NK","NL","NM","NO","NP","NQ","NR","NS","NT","NU","NV","NW","NX","NY","NZ";"OA","OB","OC","OD","OE","OF","OG","OH","OI","OJ","OK","OL","OM","ON","OP","OQ","OR","OS","OT","OU","OV","OW","OX","OY","OZ";"PA","PB","PC","PD","PE","PF","PG","PH","PI","PJ","PK","PL","PM","PN","PO","PQ","PR","PS","PT","PU","PV","PW","PX","PY","PZ";"QA","QB","QC","QD","QE","QF","QG","QH","QI","QJ","QK","QL","QM","QN","QO","QP","QR","QS","QT","QU","QV","QW","QX","QY","QZ";"RA","RB","RC","RD","RE","RF","RG","RH","RI","RJ","RK","RL","RM","RN","RO","RP","RQ","RS","RT","RU","RV","RW","RX","RY","RZ";"SA","SB","SC","SD","SE","SF","SG","SH","SI","SJ","SK","SL","SM","SN","SO","SP","SQ","SR","ST","SU","SV","SW","SX","SY","SZ";"TA","TB","TC","TD","TE","TF","TG","TH","TI","TJ","TK","TL","TM","TN","TO","TP","TQ","TR","TS","TU","TV","TW","TX","TY","TZ";"UA","UB","UC","UD","UE","UF","UG","UH","UI","UJ","UK","UL","UM","UN","UO","UP","UQ","UR","US","UT","UV","UW","UX","UY","UZ";"VA","VB","VC","VD","VE","VF","VG","VH","VI","VJ","VK","VL","VM","VN","VO","VP","VQ","VR","VS","VT","VU","VW","VX","VY","VZ";"WA","WB","WC","WD","WE","WF","WG","WH","WI","WJ","WK","WL","WM","WN","WO","WP","WQ","WR","WS","WT","WU","WV","WX","WY","WZ";"XA","XB","XC","XD","XE","XF","XG","XH","XI","XJ","XK","XL","XM","XN","XO","XP","XQ","XR","XS","XT","XU","XV","XW","XY","XZ";"YA","YB","YC","YD","YE","YF","YG","YH","YI","YJ","YK","YL","YM","YN","YO","YP","YQ","YR","YS","YT","YU","YV","YW","YX","YZ";"ZA","ZB","ZC","ZD","ZE","ZF","ZG","ZH","ZI","ZJ","ZK","ZL","ZM","ZN","ZO","ZP","ZQ","ZR","ZS","ZT","ZU","ZV","ZW","ZX","ZY"}, RANDBETWEEN(1,26),RANDBETWEEN(1,25)) -> SH | C27: ZN | D27: =CHAR(INT((NOW()*10^8-INT(NOW()*10^8))*26+65))&CHAR(LARGE(IF(ROW($A$65:$A$90)<>INT((NOW()*10^8-INT(NOW()*10^8))*26+65),ROW($A$65:$A$90),""),RANDBETWEEN(1,25))) -> SF | E27: UB | F27: UO | K27: N | L27: 118 | M27: 101 | N27: 124 | O27: 116 | P27: 113 | Q27: 111 | R27: 134 | S27: 0 | T27: 107 | U27: 123 | V27: 107 | W27: 123
A28: =SUBSTITUTE(ADDRESS(1,SMALL(IF(MOD(COLUMN($AA:$ZZ),27)>0,COLUMN($AA:$ZZ)),RANDBETWEEN(1,650)),4),1,"") -> KU | B28: =INDEX( {"AB","AC","AD","AE","AF","AG","AH","AI","AJ","AK","AL","AM","AN","AO","AP","AQ","AR","AS","AT","AU","AV","AW","AX","AY","AZ";"BA","BC","BD","BE","BF","BG","BH","BI","BJ","BK","BL","BM","BN","BO","BP","BQ","BR","BS","BT","BU","BV","BW","BX","BY","BZ";"CA","CB","CD","CE","CF","CG","CH","CI","CJ","CK","CL","CM","CN","CO","CP","CQ","CR","CS","CT","CU","CV","CW","CX","CY","CZ";"DA","DB","DC","DE","DF","DG","DH","DI","DJ","DK","DL","DM","DN","DO","DP","DQ","DR","DS","DT","DU","DV","DW","DX","DY","DZ";"EA","EB","EC","ED","EF","EG","EH","EI","EJ","EK","EL","EM","EN","EO","EP","EQ","ER","ES","ET","EU","EV","EW","EX","EY","EZ";"FA","FB","FC","FD","FE","FG","FH","FI","FJ","FK","FL","FM","FN","FO","FP","FQ","FR","FS","FT","FU","FV","FW","FX","FY","FZ";"GA","GB","GC","GD","GE","GF","GH","GI","GJ","GK","GL","GM","GN","GO","GP","GQ","GR","GS","GT","GU","GV","GW","GX","GY","GZ";"HA","HB","HC","HD","HE","HF","HG","HI","HJ","HK","HL","HM","HN","HO","HP","HQ","HR","HS","HT","HU","HV","HW","HX","HY","HZ";"IA","IB","IC","ID","IE","IF","IG","IH","IJ","IK","IL","IM","IN","IO","IP","IQ","IR","IS","IT","IU","IV","IW","IX","IY","IZ";"JA","JB","JC","JD","JE","JF","JG","JH","JI","JK","JL","JM","JN","JO","JP","JQ","JR","JS","JT","JU","JV","JW","JX","JY","JZ";"KA","KB","KC","KD","KE","KF","KG","KH","KI","KJ","KL","KM","KN","KO","KP","KQ","KR","KS","KT","KU","KV","KW","KX","KY","KZ";"LA","LB","LC","LD","LE","LF","LG","LH","LI","LJ","LK","LM","LN","LO","LP","LQ","LR","LS","LT","LU","LV","LW","LX","LY","LZ";"MA","MB","MC","MD","ME","MF","MG","MH","MI","MJ","MK","ML","MN","MO","MP","MQ","MR","MS","MT","MU","MV","MW","MX","MY","MZ";"NA","NB","NC","ND","NE","NF","NG","NH","NI","NJ","NK","NL","NM","NO","NP","NQ","NR","NS","NT","NU","NV","NW","NX","NY","NZ";"OA","OB","OC","OD","OE","OF","OG","OH","OI","OJ","OK","OL","OM","ON","OP","OQ","OR","OS","OT","OU","OV","OW","OX","OY","OZ";"PA","PB","PC","PD","PE","PF","PG","PH","PI","PJ","PK","PL","PM","PN","PO","PQ","PR","PS","PT","PU","PV","PW","PX","PY","PZ";"QA","QB","QC","QD","QE","QF","QG","QH","QI","QJ","QK","QL","QM","QN","QO","QP","QR","QS","QT","QU","QV","QW","QX","QY","QZ";"RA","RB","RC","RD","RE","RF","RG","RH","RI","RJ","RK","RL","RM","RN","RO","RP","RQ","RS","RT","RU","RV","RW","RX","RY","RZ";"SA","SB","SC","SD","SE","SF","SG","SH","SI","SJ","SK","SL","SM","SN","SO","SP","SQ","SR","ST","SU","SV","SW","SX","SY","SZ";"TA","TB","TC","TD","TE","TF","TG","TH","TI","TJ","TK","TL","TM","TN","TO","TP","TQ","TR","TS","TU","TV","TW","TX","TY","TZ";"UA","UB","UC","UD","UE","UF","UG","UH","UI","UJ","UK","UL","UM","UN","UO","UP","UQ","UR","US","UT","UV","UW","UX","UY","UZ";"VA","VB","VC","VD","VE","VF","VG","VH","VI","VJ","VK","VL","VM","VN","VO","VP","VQ","VR","VS","VT","VU","VW","VX","VY","VZ";"WA","WB","WC","WD","WE","WF","WG","WH","WI","WJ","WK","WL","WM","WN","WO","WP","WQ","WR","WS","WT","WU","WV","WX","WY","WZ";"XA","XB","XC","XD","XE","XF","XG","XH","XI","XJ","XK","XL","XM","XN","XO","XP","XQ","XR","XS","XT","XU","XV","XW","XY","XZ";"YA","YB","YC","YD","YE","YF","YG","YH","YI","YJ","YK","YL","YM","YN","YO","YP","YQ","YR","YS","YT","YU","YV","YW","YX","YZ";"ZA","ZB","ZC","ZD","ZE","ZF","ZG","ZH","ZI","ZJ","ZK","ZL","ZM","ZN","ZO","ZP","ZQ","ZR","ZS","ZT","ZU","ZV","ZW","ZX","ZY"}, RANDBETWEEN(1,26),RANDBETWEEN(1,25)) -> RU | C28: XO | D28: =CHAR(INT((NOW()*10^8-INT(NOW()*10^8))*26+65))&CHAR(LARGE(IF(ROW($A$65:$A$90)<>INT((NOW()*10^8-INT(NOW()*10^8))*26+65),ROW($A$65:$A$90),""),RANDBETWEEN(1,25))) -> SV | E28: UX | F28: IG | K28: O | L28: 107 | M28: 100 | N28: 106 | O28: 128 | P28: 100 | Q28: 111 | R28: 124 | S28: 0 | T28: 126 | U28: 115 | V28: 126 | W28: 115
A29: =SUBSTITUTE(ADDRESS(1,SMALL(IF(MOD(COLUMN($AA:$ZZ),27)>0,COLUMN($AA:$ZZ)),RANDBETWEEN(1,650)),4),1,"") -> CA | B29: =INDEX( {"AB","AC","AD","AE","AF","AG","AH","AI","AJ","AK","AL","AM","AN","AO","AP","AQ","AR","AS","AT","AU","AV","AW","AX","AY","AZ";"BA","BC","BD","BE","BF","BG","BH","BI","BJ","BK","BL","BM","BN","BO","BP","BQ","BR","BS","BT","BU","BV","BW","BX","BY","BZ";"CA","CB","CD","CE","CF","CG","CH","CI","CJ","CK","CL","CM","CN","CO","CP","CQ","CR","CS","CT","CU","CV","CW","CX","CY","CZ";"DA","DB","DC","DE","DF","DG","DH","DI","DJ","DK","DL","DM","DN","DO","DP","DQ","DR","DS","DT","DU","DV","DW","DX","DY","DZ";"EA","EB","EC","ED","EF","EG","EH","EI","EJ","EK","EL","EM","EN","EO","EP","EQ","ER","ES","ET","EU","EV","EW","EX","EY","EZ";"FA","FB","FC","FD","FE","FG","FH","FI","FJ","FK","FL","FM","FN","FO","FP","FQ","FR","FS","FT","FU","FV","FW","FX","FY","FZ";"GA","GB","GC","GD","GE","GF","GH","GI","GJ","GK","GL","GM","GN","GO","GP","GQ","GR","GS","GT","GU","GV","GW","GX","GY","GZ";"HA","HB","HC","HD","HE","HF","HG","HI","HJ","HK","HL","HM","HN","HO","HP","HQ","HR","HS","HT","HU","HV","HW","HX","HY","HZ";"IA","IB","IC","ID","IE","IF","IG","IH","IJ","IK","IL","IM","IN","IO","IP","IQ","IR","IS","IT","IU","IV","IW","IX","IY","IZ";"JA","JB","JC","JD","JE","JF","JG","JH","JI","JK","JL","JM","JN","JO","JP","JQ","JR","JS","JT","JU","JV","JW","JX","JY","JZ";"KA","KB","KC","KD","KE","KF","KG","KH","KI","KJ","KL","KM","KN","KO","KP","KQ","KR","KS","KT","KU","KV","KW","KX","KY","KZ";"LA","LB","LC","LD","LE","LF","LG","LH","LI","LJ","LK","LM","LN","LO","LP","LQ","LR","LS","LT","LU","LV","LW","LX","LY","LZ";"MA","MB","MC","MD","ME","MF","MG","MH","MI","MJ","MK","ML","MN","MO","MP","MQ","MR","MS","MT","MU","MV","MW","MX","MY","MZ";"NA","NB","NC","ND","NE","NF","NG","NH","NI","NJ","NK","NL","NM","NO","NP","NQ","NR","NS","NT","NU","NV","NW","NX","NY","NZ";"OA","OB","OC","OD","OE","OF","OG","OH","OI","OJ","OK","OL","OM","ON","OP","OQ","OR","OS","OT","OU","OV","OW","OX","OY","OZ";"PA","PB","PC","PD","PE","PF","PG","PH","PI","PJ","PK","PL","PM","PN","PO","PQ","PR","PS","PT","PU","PV","PW","PX","PY","PZ";"QA","QB","QC","QD","QE","QF","QG","QH","QI","QJ","QK","QL","QM","QN","QO","QP","QR","QS","QT","QU","QV","QW","QX","QY","QZ";"RA","RB","RC","RD","RE","RF","RG","RH","RI","RJ","RK","RL","RM","RN","RO","RP","RQ","RS","RT","RU","RV","RW","RX","RY","RZ";"SA","SB","SC","SD","SE","SF","SG","SH","SI","SJ","SK","SL","SM","SN","SO","SP","SQ","SR","ST","SU","SV","SW","SX","SY","SZ";"TA","TB","TC","TD","TE","TF","TG","TH","TI","TJ","TK","TL","TM","TN","TO","TP","TQ","TR","TS","TU","TV","TW","TX","TY","TZ";"UA","UB","UC","UD","UE","UF","UG","UH","UI","UJ","UK","UL","UM","UN","UO","UP","UQ","UR","US","UT","UV","UW","UX","UY","UZ";"VA","VB","VC","VD","VE","VF","VG","VH","VI","VJ","VK","VL","VM","VN","VO","VP","VQ","VR","VS","VT","VU","VW","VX","VY","VZ";"WA","WB","WC","WD","WE","WF","WG","WH","WI","WJ","WK","WL","WM","WN","WO","WP","WQ","WR","WS","WT","WU","WV","WX","WY","WZ";"XA","XB","XC","XD","XE","XF","XG","XH","XI","XJ","XK","XL","XM","XN","XO","XP","XQ","XR","XS","XT","XU","XV","XW","XY","XZ";"YA","YB","YC","YD","YE","YF","YG","YH","YI","YJ","YK","YL","YM","YN","YO","YP","YQ","YR","YS","YT","YU","YV","YW","YX","YZ";"ZA","ZB","ZC","ZD","ZE","ZF","ZG","ZH","ZI","ZJ","ZK","ZL","ZM","ZN","ZO","ZP","ZQ","ZR","ZS","ZT","ZU","ZV","ZW","ZX","ZY"}, RANDBETWEEN(1,26),RANDBETWEEN(1,25)) -> QL | C29: JS | D29: =CHAR(INT((NOW()*10^8-INT(NOW()*10^8))*26+65))&CHAR(LARGE(IF(ROW($A$65:$A$90)<>INT((NOW()*10^8-INT(NOW()*10^8))*26+65),ROW($A$65:$A$90),""),RANDBETWEEN(1,25))) -> SQ | E29: AT | F29: NA | K29: P | L29: 93 | M29: 130 | N29: 110 | O29: 115 | P29: 116 | Q29: 121 | R29: 128 | S29: 0 | T29: 122 | U29: 111 | V29: 122 | W29: 111
A30: =SUBSTITUTE(ADDRESS(1,SMALL(IF(MOD(COLUMN($AA:$ZZ),27)>0,COLUMN($AA:$ZZ)),RANDBETWEEN(1,650)),4),1,"") -> CU | B30: =INDEX( {"AB","AC","AD","AE","AF","AG","AH","AI","AJ","AK","AL","AM","AN","AO","AP","AQ","AR","AS","AT","AU","AV","AW","AX","AY","AZ";"BA","BC","BD","BE","BF","BG","BH","BI","BJ","BK","BL","BM","BN","BO","BP","BQ","BR","BS","BT","BU","BV","BW","BX","BY","BZ";"CA","CB","CD","CE","CF","CG","CH","CI","CJ","CK","CL","CM","CN","CO","CP","CQ","CR","CS","CT","CU","CV","CW","CX","CY","CZ";"DA","DB","DC","DE","DF","DG","DH","DI","DJ","DK","DL","DM","DN","DO","DP","DQ","DR","DS","DT","DU","DV","DW","DX","DY","DZ";"EA","EB","EC","ED","EF","EG","EH","EI","EJ","EK","EL","EM","EN","EO","EP","EQ","ER","ES","ET","EU","EV","EW","EX","EY","EZ";"FA","FB","FC","FD","FE","FG","FH","FI","FJ","FK","FL","FM","FN","FO","FP","FQ","FR","FS","FT","FU","FV","FW","FX","FY","FZ";"GA","GB","GC","GD","GE","GF","GH","GI","GJ","GK","GL","GM","GN","GO","GP","GQ","GR","GS","GT","GU","GV","GW","GX","GY","GZ";"HA","HB","HC","HD","HE","HF","HG","HI","HJ","HK","HL","HM","HN","HO","HP","HQ","HR","HS","HT","HU","HV","HW","HX","HY","HZ";"IA","IB","IC","ID","IE","IF","IG","IH","IJ","IK","IL","IM","IN","IO","IP","IQ","IR","IS","IT","IU","IV","IW","IX","IY","IZ";"JA","JB","JC","JD","JE","JF","JG","JH","JI","JK","JL","JM","JN","JO","JP","JQ","JR","JS","JT","JU","JV","JW","JX","JY","JZ";"KA","KB","KC","KD","KE","KF","KG","KH","KI","KJ","KL","KM","KN","KO","KP","KQ","KR","KS","KT","KU","KV","KW","KX","KY","KZ";"LA","LB","LC","LD","LE","LF","LG","LH","LI","LJ","LK","LM","LN","LO","LP","LQ","LR","LS","LT","LU","LV","LW","LX","LY","LZ";"MA","MB","MC","MD","ME","MF","MG","MH","MI","MJ","MK","ML","MN","MO","MP","MQ","MR","MS","MT","MU","MV","MW","MX","MY","MZ";"NA","NB","NC","ND","NE","NF","NG","NH","NI","NJ","NK","NL","NM","NO","NP","NQ","NR","NS","NT","NU","NV","NW","NX","NY","NZ";"OA","OB","OC","OD","OE","OF","OG","OH","OI","OJ","OK","OL","OM","ON","OP","OQ","OR","OS","OT","OU","OV","OW","OX","OY","OZ";"PA","PB","PC","PD","PE","PF","PG","PH","PI","PJ","PK","PL","PM","PN","PO","PQ","PR","PS","PT","PU","PV","PW","PX","PY","PZ";"QA","QB","QC","QD","QE","QF","QG","QH","QI","QJ","QK","QL","QM","QN","QO","QP","QR","QS","QT","QU","QV","QW","QX","QY","QZ";"RA","RB","RC","RD","RE","RF","RG","RH","RI","RJ","RK","RL","RM","RN","RO","RP","RQ","RS","RT","RU","RV","RW","RX","RY","RZ";"SA","SB","SC","SD","SE","SF","SG","SH","SI","SJ","SK","SL","SM","SN","SO","SP","SQ","SR","ST","SU","SV","SW","SX","SY","SZ";"TA","TB","TC","TD","TE","TF","TG","TH","TI","TJ","TK","TL","TM","TN","TO","TP","TQ","TR","TS","TU","TV","TW","TX","TY","TZ";"UA","UB","UC","UD","UE","UF","UG","UH","UI","UJ","UK","UL","UM","UN","UO","UP","UQ","UR","US","UT","UV","UW","UX","UY","UZ";"VA","VB","VC","VD","VE","VF","VG","VH","VI","VJ","VK","VL","VM","VN","VO","VP","VQ","VR","VS","VT","VU","VW","VX","VY","VZ";"WA","WB","WC","WD","WE","WF","WG","WH","WI","WJ","WK","WL","WM","WN","WO","WP","WQ","WR","WS","WT","WU","WV","WX","WY","WZ";"XA","XB","XC","XD","XE","XF","XG","XH","XI","XJ","XK","XL","XM","XN","XO","XP","XQ","XR","XS","XT","XU","XV","XW","XY","XZ";"YA","YB","YC","YD","YE","YF","YG","YH","YI","YJ","YK","YL","YM","YN","YO","YP","YQ","YR","YS","YT","YU","YV","YW","YX","YZ";"ZA","ZB","ZC","ZD","ZE","ZF","ZG","ZH","ZI","ZJ","ZK","ZL","ZM","ZN","ZO","ZP","ZQ","ZR","ZS","ZT","ZU","ZV","ZW","ZX","ZY"}, RANDBETWEEN(1,26),RANDBETWEEN(1,25)) -> TO | C30: GQ | D30: =CHAR(INT((NOW()*10^8-INT(NOW()*10^8))*26+65))&CHAR(LARGE(IF(ROW($A$65:$A$90)<>INT((NOW()*10^8-INT(NOW()*10^8))*26+65),ROW($A$65:$A$90),""),RANDBETWEEN(1,25))) -> SA | E30: GE | F30: KZ | K30: Q | L30: 123 | M30: 111 | N30: 127 | O30: 128 | P30: 109 | Q30: 127 | R30: 131 | S30: 0 | T30: 103 | U30: 128 | V30: 103 | W30: 128
A31: =SUBSTITUTE(ADDRESS(1,SMALL(IF(MOD(COLUMN($AA:$ZZ),27)>0,COLUMN($AA:$ZZ)),RANDBETWEEN(1,650)),4),1,"") -> TR | B31: =INDEX( {"AB","AC","AD","AE","AF","AG","AH","AI","AJ","AK","AL","AM","AN","AO","AP","AQ","AR","AS","AT","AU","AV","AW","AX","AY","AZ";"BA","BC","BD","BE","BF","BG","BH","BI","BJ","BK","BL","BM","BN","BO","BP","BQ","BR","BS","BT","BU","BV","BW","BX","BY","BZ";"CA","CB","CD","CE","CF","CG","CH","CI","CJ","CK","CL","CM","CN","CO","CP","CQ","CR","CS","CT","CU","CV","CW","CX","CY","CZ";"DA","DB","DC","DE","DF","DG","DH","DI","DJ","DK","DL","DM","DN","DO","DP","DQ","DR","DS","DT","DU","DV","DW","DX","DY","DZ";"EA","EB","EC","ED","EF","EG","EH","EI","EJ","EK","EL","EM","EN","EO","EP","EQ","ER","ES","ET","EU","EV","EW","EX","EY","EZ";"FA","FB","FC","FD","FE","FG","FH","FI","FJ","FK","FL","FM","FN","FO","FP","FQ","FR","FS","FT","FU","FV","FW","FX","FY","FZ";"GA","GB","GC","GD","GE","GF","GH","GI","GJ","GK","GL","GM","GN","GO","GP","GQ","GR","GS","GT","GU","GV","GW","GX","GY","GZ";"HA","HB","HC","HD","HE","HF","HG","HI","HJ","HK","HL","HM","HN","HO","HP","HQ","HR","HS","HT","HU","HV","HW","HX","HY","HZ";"IA","IB","IC","ID","IE","IF","IG","IH","IJ","IK","IL","IM","IN","IO","IP","IQ","IR","IS","IT","IU","IV","IW","IX","IY","IZ";"JA","JB","JC","JD","JE","JF","JG","JH","JI","JK","JL","JM","JN","JO","JP","JQ","JR","JS","JT","JU","JV","JW","JX","JY","JZ";"KA","KB","KC","KD","KE","KF","KG","KH","KI","KJ","KL","KM","KN","KO","KP","KQ","KR","KS","KT","KU","KV","KW","KX","KY","KZ";"LA","LB","LC","LD","LE","LF","LG","LH","LI","LJ","LK","LM","LN","LO","LP","LQ","LR","LS","LT","LU","LV","LW","LX","LY","LZ";"MA","MB","MC","MD","ME","MF","MG","MH","MI","MJ","MK","ML","MN","MO","MP","MQ","MR","MS","MT","MU","MV","MW","MX","MY","MZ";"NA","NB","NC","ND","NE","NF","NG","NH","NI","NJ","NK","NL","NM","NO","NP","NQ","NR","NS","NT","NU","NV","NW","NX","NY","NZ";"OA","OB","OC","OD","OE","OF","OG","OH","OI","OJ","OK","OL","OM","ON","OP","OQ","OR","OS","OT","OU","OV","OW","OX","OY","OZ";"PA","PB","PC","PD","PE","PF","PG","PH","PI","PJ","PK","PL","PM","PN","PO","PQ","PR","PS","PT","PU","PV","PW","PX","PY","PZ";"QA","QB","QC","QD","QE","QF","QG","QH","QI","QJ","QK","QL","QM","QN","QO","QP","QR","QS","QT","QU","QV","QW","QX","QY","QZ";"RA","RB","RC","RD","RE","RF","RG","RH","RI","RJ","RK","RL","RM","RN","RO","RP","RQ","RS","RT","RU","RV","RW","RX","RY","RZ";"SA","SB","SC","SD","SE","SF","SG","SH","SI","SJ","SK","SL","SM","SN","SO","SP","SQ","SR","ST","SU","SV","SW","SX","SY","SZ";"TA","TB","TC","TD","TE","TF","TG","TH","TI","TJ","TK","TL","TM","TN","TO","TP","TQ","TR","TS","TU","TV","TW","TX","TY","TZ";"UA","UB","UC","UD","UE","UF","UG","UH","UI","UJ","UK","UL","UM","UN","UO","UP","UQ","UR","US","UT","UV","UW","UX","UY","UZ";"VA","VB","VC","VD","VE","VF","VG","VH","VI","VJ","VK","VL","VM","VN","VO","VP","VQ","VR","VS","VT","VU","VW","VX","VY","VZ";"WA","WB","WC","WD","WE","WF","WG","WH","WI","WJ","WK","WL","WM","WN","WO","WP","WQ","WR","WS","WT","WU","WV","WX","WY","WZ";"XA","XB","XC","XD","XE","XF","XG","XH","XI","XJ","XK","XL","XM","XN","XO","XP","XQ","XR","XS","XT","XU","XV","XW","XY","XZ";"YA","YB","YC","YD","YE","YF","YG","YH","YI","YJ","YK","YL","YM","YN","YO","YP","YQ","YR","YS","YT","YU","YV","YW","YX","YZ";"ZA","ZB","ZC","ZD","ZE","ZF","ZG","ZH","ZI","ZJ","ZK","ZL","ZM","ZN","ZO","ZP","ZQ","ZR","ZS","ZT","ZU","ZV","ZW","ZX","ZY"}, RANDBETWEEN(1,26),RANDBETWEEN(1,25)) -> ZV | C31: QU | D31: =CHAR(INT((NOW()*10^8-INT(NOW()*10^8))*26+65))&CHAR(LARGE(IF(ROW($A$65:$A$90)<>INT((NOW()*10^8-INT(NOW()*10^8))*26+65),ROW($A$65:$A$90),""),RANDBETWEEN(1,25))) -> SJ | E31: ZJ | F31: GC | K31: R | L31: 131 | M31: 94 | N31: 142 | O31: 119 | P31: 111 | Q31: 105 | R31: 117 | S31: 0 | T31: 114 | U31: 131 | V31: 114 | W31: 131
A32: =SUBSTITUTE(ADDRESS(1,SMALL(IF(MOD(COLUMN($AA:$ZZ),27)>0,COLUMN($AA:$ZZ)),RANDBETWEEN(1,650)),4),1,"") -> ZJ | B32: =INDEX( {"AB","AC","AD","AE","AF","AG","AH","AI","AJ","AK","AL","AM","AN","AO","AP","AQ","AR","AS","AT","AU","AV","AW","AX","AY","AZ";"BA","BC","BD","BE","BF","BG","BH","BI","BJ","BK","BL","BM","BN","BO","BP","BQ","BR","BS","BT","BU","BV","BW","BX","BY","BZ";"CA","CB","CD","CE","CF","CG","CH","CI","CJ","CK","CL","CM","CN","CO","CP","CQ","CR","CS","CT","CU","CV","CW","CX","CY","CZ";"DA","DB","DC","DE","DF","DG","DH","DI","DJ","DK","DL","DM","DN","DO","DP","DQ","DR","DS","DT","DU","DV","DW","DX","DY","DZ";"EA","EB","EC","ED","EF","EG","EH","EI","EJ","EK","EL","EM","EN","EO","EP","EQ","ER","ES","ET","EU","EV","EW","EX","EY","EZ";"FA","FB","FC","FD","FE","FG","FH","FI","FJ","FK","FL","FM","FN","FO","FP","FQ","FR","FS","FT","FU","FV","FW","FX","FY","FZ";"GA","GB","GC","GD","GE","GF","GH","GI","GJ","GK","GL","GM","GN","GO","GP","GQ","GR","GS","GT","GU","GV","GW","GX","GY","GZ";"HA","HB","HC","HD","HE","HF","HG","HI","HJ","HK","HL","HM","HN","HO","HP","HQ","HR","HS","HT","HU","HV","HW","HX","HY","HZ";"IA","IB","IC","ID","IE","IF","IG","IH","IJ","IK","IL","IM","IN","IO","IP","IQ","IR","IS","IT","IU","IV","IW","IX","IY","IZ";"JA","JB","JC","JD","JE","JF","JG","JH","JI","JK","JL","JM","JN","JO","JP","JQ","JR","JS","JT","JU","JV","JW","JX","JY","JZ";"KA","KB","KC","KD","KE","KF","KG","KH","KI","KJ","KL","KM","KN","KO","KP","KQ","KR","KS","KT","KU","KV","KW","KX","KY","KZ";"LA","LB","LC","LD","LE","LF","LG","LH","LI","LJ","LK","LM","LN","LO","LP","LQ","LR","LS","LT","LU","LV","LW","LX","LY","LZ";"MA","MB","MC","MD","ME","MF","MG","MH","MI","MJ","MK","ML","MN","MO","MP","MQ","MR","MS","MT","MU","MV","MW","MX","MY","MZ";"NA","NB","NC","ND","NE","NF","NG","NH","NI","NJ","NK","NL","NM","NO","NP","NQ","NR","NS","NT","NU","NV","NW","NX","NY","NZ";"OA","OB","OC","OD","OE","OF","OG","OH","OI","OJ","OK","OL","OM","ON","OP","OQ","OR","OS","OT","OU","OV","OW","OX","OY","OZ";"PA","PB","PC","PD","PE","PF","PG","PH","PI","PJ","PK","PL","PM","PN","PO","PQ","PR","PS","PT","PU","PV","PW","PX","PY","PZ";"QA","QB","QC","QD","QE","QF","QG","QH","QI","QJ","QK","QL","QM","QN","QO","QP","QR","QS","QT","QU","QV","QW","QX","QY","QZ";"RA","RB","RC","RD","RE","RF","RG","RH","RI","RJ","RK","RL","RM","RN","RO","RP","RQ","RS","RT","RU","RV","RW","RX","RY","RZ";"SA","SB","SC","SD","SE","SF","SG","SH","SI","SJ","SK","SL","SM","SN","SO","SP","SQ","SR","ST","SU","SV","SW","SX","SY","SZ";"TA","TB","TC","TD","TE","TF","TG","TH","TI","TJ","TK","TL","TM","TN","TO","TP","TQ","TR","TS","TU","TV","TW","TX","TY","TZ";"UA","UB","UC","UD","UE","UF","UG","UH","UI","UJ","UK","UL","UM","UN","UO","UP","UQ","UR","US","UT","UV","UW","UX","UY","UZ";"VA","VB","VC","VD","VE","VF","VG","VH","VI","VJ","VK","VL","VM","VN","VO","VP","VQ","VR","VS","VT","VU","VW","VX","VY","VZ";"WA","WB","WC","WD","WE","WF","WG","WH","WI","WJ","WK","WL","WM","WN","WO","WP","WQ","WR","WS","WT","WU","WV","WX","WY","WZ";"XA","XB","XC","XD","XE","XF","XG","XH","XI","XJ","XK","XL","XM","XN","XO","XP","XQ","XR","XS","XT","XU","XV","XW","XY","XZ";"YA","YB","YC","YD","YE","YF","YG","YH","YI","YJ","YK","YL","YM","YN","YO","YP","YQ","YR","YS","YT","YU","YV","YW","YX","YZ";"ZA","ZB","ZC","ZD","ZE","ZF","ZG","ZH","ZI","ZJ","ZK","ZL","ZM","ZN","ZO","ZP","ZQ","ZR","ZS","ZT","ZU","ZV","ZW","ZX","ZY"}, RANDBETWEEN(1,26),RANDBETWEEN(1,25)) -> AN | C32: ZC | D32: =CHAR(INT((NOW()*10^8-INT(NOW()*10^8))*26+65))&CHAR(LARGE(IF(ROW($A$65:$A$90)<>INT((NOW()*10^8-INT(NOW()*10^8))*26+65),ROW($A$65:$A$90),""),RANDBETWEEN(1,25))) -> SA | E32: FV | F32: JR | K32: S | L32: 120 | M32: 119 | N32: 116 | O32: 101 | P32: 119 | Q32: 110 | R32: 103 | S32: 518 | T32: 105 | U32: 116 | V32: 105 | W32: 116
A33: =SUBSTITUTE(ADDRESS(1,SMALL(IF(MOD(COLUMN($AA:$ZZ),27)>0,COLUMN($AA:$ZZ)),RANDBETWEEN(1,650)),4),1,"") -> SC | B33: =INDEX( {"AB","AC","AD","AE","AF","AG","AH","AI","AJ","AK","AL","AM","AN","AO","AP","AQ","AR","AS","AT","AU","AV","AW","AX","AY","AZ";"BA","BC","BD","BE","BF","BG","BH","BI","BJ","BK","BL","BM","BN","BO","BP","BQ","BR","BS","BT","BU","BV","BW","BX","BY","BZ";"CA","CB","CD","CE","CF","CG","CH","CI","CJ","CK","CL","CM","CN","CO","CP","CQ","CR","CS","CT","CU","CV","CW","CX","CY","CZ";"DA","DB","DC","DE","DF","DG","DH","DI","DJ","DK","DL","DM","DN","DO","DP","DQ","DR","DS","DT","DU","DV","DW","DX","DY","DZ";"EA","EB","EC","ED","EF","EG","EH","EI","EJ","EK","EL","EM","EN","EO","EP","EQ","ER","ES","ET","EU","EV","EW","EX","EY","EZ";"FA","FB","FC","FD","FE","FG","FH","FI","FJ","FK","FL","FM","FN","FO","FP","FQ","FR","FS","FT","FU","FV","FW","FX","FY","FZ";"GA","GB","GC","GD","GE","GF","GH","GI","GJ","GK","GL","GM","GN","GO","GP","GQ","GR","GS","GT","GU","GV","GW","GX","GY","GZ";"HA","HB","HC","HD","HE","HF","HG","HI","HJ","HK","HL","HM","HN","HO","HP","HQ","HR","HS","HT","HU","HV","HW","HX","HY","HZ";"IA","IB","IC","ID","IE","IF","IG","IH","IJ","IK","IL","IM","IN","IO","IP","IQ","IR","IS","IT","IU","IV","IW","IX","IY","IZ";"JA","JB","JC","JD","JE","JF","JG","JH","JI","JK","JL","JM","JN","JO","JP","JQ","JR","JS","JT","JU","JV","JW","JX","JY","JZ";"KA","KB","KC","KD","KE","KF","KG","KH","KI","KJ","KL","KM","KN","KO","KP","KQ","KR","KS","KT","KU","KV","KW","KX","KY","KZ";"LA","LB","LC","LD","LE","LF","LG","LH","LI","LJ","LK","LM","LN","LO","LP","LQ","LR","LS","LT","LU","LV","LW","LX","LY","LZ";"MA","MB","MC","MD","ME","MF","MG","MH","MI","MJ","MK","ML","MN","MO","MP","MQ","MR","MS","MT","MU","MV","MW","MX","MY","MZ";"NA","NB","NC","ND","NE","NF","NG","NH","NI","NJ","NK","NL","NM","NO","NP","NQ","NR","NS","NT","NU","NV","NW","NX","NY","NZ";"OA","OB","OC","OD","OE","OF","OG","OH","OI","OJ","OK","OL","OM","ON","OP","OQ","OR","OS","OT","OU","OV","OW","OX","OY","OZ";"PA","PB","PC","PD","PE","PF","PG","PH","PI","PJ","PK","PL","PM","PN","PO","PQ","PR","PS","PT","PU","PV","PW","PX","PY","PZ";"QA","QB","QC","QD","QE","QF","QG","QH","QI","QJ","QK","QL","QM","QN","QO","QP","QR","QS","QT","QU","QV","QW","QX","QY","QZ";"RA","RB","RC","RD","RE","RF","RG","RH","RI","RJ","RK","RL","RM","RN","RO","RP","RQ","RS","RT","RU","RV","RW","RX","RY","RZ";"SA","SB","SC","SD","SE","SF","SG","SH","SI","SJ","SK","SL","SM","SN","SO","SP","SQ","SR","ST","SU","SV","SW","SX","SY","SZ";"TA","TB","TC","TD","TE","TF","TG","TH","TI","TJ","TK","TL","TM","TN","TO","TP","TQ","TR","TS","TU","TV","TW","TX","TY","TZ";"UA","UB","UC","UD","UE","UF","UG","UH","UI","UJ","UK","UL","UM","UN","UO","UP","UQ","UR","US","UT","UV","UW","UX","UY","UZ";"VA","VB","VC","VD","VE","VF","VG","VH","VI","VJ","VK","VL","VM","VN","VO","VP","VQ","VR","VS","VT","VU","VW","VX","VY","VZ";"WA","WB","WC","WD","WE","WF","WG","WH","WI","WJ","WK","WL","WM","WN","WO","WP","WQ","WR","WS","WT","WU","WV","WX","WY","WZ";"XA","XB","XC","XD","XE","XF","XG","XH","XI","XJ","XK","XL","XM","XN","XO","XP","XQ","XR","XS","XT","XU","XV","XW","XY","XZ";"YA","YB","YC","YD","YE","YF","YG","YH","YI","YJ","YK","YL","YM","YN","YO","YP","YQ","YR","YS","YT","YU","YV","YW","YX","YZ";"ZA","ZB","ZC","ZD","ZE","ZF","ZG","ZH","ZI","ZJ","ZK","ZL","ZM","ZN","ZO","ZP","ZQ","ZR","ZS","ZT","ZU","ZV","ZW","ZX","ZY"}, RANDBETWEEN(1,26),RANDBETWEEN(1,25)) -> ZK | C33: VM | D33: =CHAR(INT((NOW()*10^8-INT(NOW()*10^8))*26+65))&CHAR(LARGE(IF(ROW($A$65:$A$90)<>INT((NOW()*10^8-INT(NOW()*10^8))*26+65),ROW($A$65:$A$90),""),RANDBETWEEN(1,25))) -> SZ | E33: NG | F33: RA | K33: T | L33: 101 | M33: 122 | N33: 113 | O33: 103 | P33: 104 | Q33: 109 | R33: 127 | S33: 0 | T33: 106 | U33: 135 | V33: 106 | W33: 135
A34: =SUBSTITUTE(ADDRESS(1,SMALL(IF(MOD(COLUMN($AA:$ZZ),27)>0,COLUMN($AA:$ZZ)),RANDBETWEEN(1,650)),4),1,"") -> GO | B34: =INDEX( {"AB","AC","AD","AE","AF","AG","AH","AI","AJ","AK","AL","AM","AN","AO","AP","AQ","AR","AS","AT","AU","AV","AW","AX","AY","AZ";"BA","BC","BD","BE","BF","BG","BH","BI","BJ","BK","BL","BM","BN","BO","BP","BQ","BR","BS","BT","BU","BV","BW","BX","BY","BZ";"CA","CB","CD","CE","CF","CG","CH","CI","CJ","CK","CL","CM","CN","CO","CP","CQ","CR","CS","CT","CU","CV","CW","CX","CY","CZ";"DA","DB","DC","DE","DF","DG","DH","DI","DJ","DK","DL","DM","DN","DO","DP","DQ","DR","DS","DT","DU","DV","DW","DX","DY","DZ";"EA","EB","EC","ED","EF","EG","EH","EI","EJ","EK","EL","EM","EN","EO","EP","EQ","ER","ES","ET","EU","EV","EW","EX","EY","EZ";"FA","FB","FC","FD","FE","FG","FH","FI","FJ","FK","FL","FM","FN","FO","FP","FQ","FR","FS","FT","FU","FV","FW","FX","FY","FZ";"GA","GB","GC","GD","GE","GF","GH","GI","GJ","GK","GL","GM","GN","GO","GP","GQ","GR","GS","GT","GU","GV","GW","GX","GY","GZ";"HA","HB","HC","HD","HE","HF","HG","HI","HJ","HK","HL","HM","HN","HO","HP","HQ","HR","HS","HT","HU","HV","HW","HX","HY","HZ";"IA","IB","IC","ID","IE","IF","IG","IH","IJ","IK","IL","IM","IN","IO","IP","IQ","IR","IS","IT","IU","IV","IW","IX","IY","IZ";"JA","JB","JC","JD","JE","JF","JG","JH","JI","JK","JL","JM","JN","JO","JP","JQ","JR","JS","JT","JU","JV","JW","JX","JY","JZ";"KA","KB","KC","KD","KE","KF","KG","KH","KI","KJ","KL","KM","KN","KO","KP","KQ","KR","KS","KT","KU","KV","KW","KX","KY","KZ";"LA","LB","LC","LD","LE","LF","LG","LH","LI","LJ","LK","LM","LN","LO","LP","LQ","LR","LS","LT","LU","LV","LW","LX","LY","LZ";"MA","MB","MC","MD","ME","MF","MG","MH","MI","MJ","MK","ML","MN","MO","MP","MQ","MR","MS","MT","MU","MV","MW","MX","MY","MZ";"NA","NB","NC","ND","NE","NF","NG","NH","NI","NJ","NK","NL","NM","NO","NP","NQ","NR","NS","NT","NU","NV","NW","NX","NY","NZ";"OA","OB","OC","OD","OE","OF","OG","OH","OI","OJ","OK","OL","OM","ON","OP","OQ","OR","OS","OT","OU","OV","OW","OX","OY","OZ";"PA","PB","PC","PD","PE","PF","PG","PH","PI","PJ","PK","PL","PM","PN","PO","PQ","PR","PS","PT","PU","PV","PW","PX","PY","PZ";"QA","QB","QC","QD","QE","QF","QG","QH","QI","QJ","QK","QL","QM","QN","QO","QP","QR","QS","QT","QU","QV","QW","QX","QY","QZ";"RA","RB","RC","RD","RE","RF","RG","RH","RI","RJ","RK","RL","RM","RN","RO","RP","RQ","RS","RT","RU","RV","RW","RX","RY","RZ";"SA","SB","SC","SD","SE","SF","SG","SH","SI","SJ","SK","SL","SM","SN","SO","SP","SQ","SR","ST","SU","SV","SW","SX","SY","SZ";"TA","TB","TC","TD","TE","TF","TG","TH","TI","TJ","TK","TL","TM","TN","TO","TP","TQ","TR","TS","TU","TV","TW","TX","TY","TZ";"UA","UB","UC","UD","UE","UF","UG","UH","UI","UJ","UK","UL","UM","UN","UO","UP","UQ","UR","US","UT","UV","UW","UX","UY","UZ";"VA","VB","VC","VD","VE","VF","VG","VH","VI","VJ","VK","VL","VM","VN","VO","VP","VQ","VR","VS","VT","VU","VW","VX","VY","VZ";"WA","WB","WC","WD","WE","WF","WG","WH","WI","WJ","WK","WL","WM","WN","WO","WP","WQ","WR","WS","WT","WU","WV","WX","WY","WZ";"XA","XB","XC","XD","XE","XF","XG","XH","XI","XJ","XK","XL","XM","XN","XO","XP","XQ","XR","XS","XT","XU","XV","XW","XY","XZ";"YA","YB","YC","YD","YE","YF","YG","YH","YI","YJ","YK","YL","YM","YN","YO","YP","YQ","YR","YS","YT","YU","YV","YW","YX","YZ";"ZA","ZB","ZC","ZD","ZE","ZF","ZG","ZH","ZI","ZJ","ZK","ZL","ZM","ZN","ZO","ZP","ZQ","ZR","ZS","ZT","ZU","ZV","ZW","ZX","ZY"}, RANDBETWEEN(1,26),RANDBETWEEN(1,25)) -> UZ | C34: LB | D34: =CHAR(INT((NOW()*10^8-INT(NOW()*10^8))*26+65))&CHAR(LARGE(IF(ROW($A$65:$A$90)<>INT((NOW()*10^8-INT(NOW()*10^8))*26+65),ROW($A$65:$A$90),""),RANDBETWEEN(1,25))) -> SU | E34: OW | F34: JM | K34: U | L34: 111 | M34: 103 | N34: 92 | O34: 121 | P34: 125 | Q34: 106 | R34: 116 | S34: 0 | T34: 123 | U34: 115 | V34: 123 | W34: 115
A35: =SUBSTITUTE(ADDRESS(1,SMALL(IF(MOD(COLUMN($AA:$ZZ),27)>0,COLUMN($AA:$ZZ)),RANDBETWEEN(1,650)),4),1,"") -> QU | B35: =INDEX( {"AB","AC","AD","AE","AF","AG","AH","AI","AJ","AK","AL","AM","AN","AO","AP","AQ","AR","AS","AT","AU","AV","AW","AX","AY","AZ";"BA","BC","BD","BE","BF","BG","BH","BI","BJ","BK","BL","BM","BN","BO","BP","BQ","BR","BS","BT","BU","BV","BW","BX","BY","BZ";"CA","CB","CD","CE","CF","CG","CH","CI","CJ","CK","CL","CM","CN","CO","CP","CQ","CR","CS","CT","CU","CV","CW","CX","CY","CZ";"DA","DB","DC","DE","DF","DG","DH","DI","DJ","DK","DL","DM","DN","DO","DP","DQ","DR","DS","DT","DU","DV","DW","DX","DY","DZ";"EA","EB","EC","ED","EF","EG","EH","EI","EJ","EK","EL","EM","EN","EO","EP","EQ","ER","ES","ET","EU","EV","EW","EX","EY","EZ";"FA","FB","FC","FD","FE","FG","FH","FI","FJ","FK","FL","FM","FN","FO","FP","FQ","FR","FS","FT","FU","FV","FW","FX","FY","FZ";"GA","GB","GC","GD","GE","GF","GH","GI","GJ","GK","GL","GM","GN","GO","GP","GQ","GR","GS","GT","GU","GV","GW","GX","GY","GZ";"HA","HB","HC","HD","HE","HF","HG","HI","HJ","HK","HL","HM","HN","HO","HP","HQ","HR","HS","HT","HU","HV","HW","HX","HY","HZ";"IA","IB","IC","ID","IE","IF","IG","IH","IJ","IK","IL","IM","IN","IO","IP","IQ","IR","IS","IT","IU","IV","IW","IX","IY","IZ";"JA","JB","JC","JD","JE","JF","JG","JH","JI","JK","JL","JM","JN","JO","JP","JQ","JR","JS","JT","JU","JV","JW","JX","JY","JZ";"KA","KB","KC","KD","KE","KF","KG","KH","KI","KJ","KL","KM","KN","KO","KP","KQ","KR","KS","KT","KU","KV","KW","KX","KY","KZ";"LA","LB","LC","LD","LE","LF","LG","LH","LI","LJ","LK","LM","LN","LO","LP","LQ","LR","LS","LT","LU","LV","LW","LX","LY","LZ";"MA","MB","MC","MD","ME","MF","MG","MH","MI","MJ","MK","ML","MN","MO","MP","MQ","MR","MS","MT","MU","MV","MW","MX","MY","MZ";"NA","NB","NC","ND","NE","NF","NG","NH","NI","NJ","NK","NL","NM","NO","NP","NQ","NR","NS","NT","NU","NV","NW","NX","NY","NZ";"OA","OB","OC","OD","OE","OF","OG","OH","OI","OJ","OK","OL","OM","ON","OP","OQ","OR","OS","OT","OU","OV","OW","OX","OY","OZ";"PA","PB","PC","PD","PE","PF","PG","PH","PI","PJ","PK","PL","PM","PN","PO","PQ","PR","PS","PT","PU","PV","PW","PX","PY","PZ";"QA","QB","QC","QD","QE","QF","QG","QH","QI","QJ","QK","QL","QM","QN","QO","QP","QR","QS","QT","QU","QV","QW","QX","QY","QZ";"RA","RB","RC","RD","RE","RF","RG","RH","RI","RJ","RK","RL","RM","RN","RO","RP","RQ","RS","RT","RU","RV","RW","RX","RY","RZ";"SA","SB","SC","SD","SE","SF","SG","SH","SI","SJ","SK","SL","SM","SN","SO","SP","SQ","SR","ST","SU","SV","SW","SX","SY","SZ";"TA","TB","TC","TD","TE","TF","TG","TH","TI","TJ","TK","TL","TM","TN","TO","TP","TQ","TR","TS","TU","TV","TW","TX","TY","TZ";"UA","UB","UC","UD","UE","UF","UG","UH","UI","UJ","UK","UL","UM","UN","UO","UP","UQ","UR","US","UT","UV","UW","UX","UY","UZ";"VA","VB","VC","VD","VE","VF","VG","VH","VI","VJ","VK","VL","VM","VN","VO","VP","VQ","VR","VS","VT","VU","VW","VX","VY","VZ";"WA","WB","WC","WD","WE","WF","WG","WH","WI","WJ","WK","WL","WM","WN","WO","WP","WQ","WR","WS","WT","WU","WV","WX","WY","WZ";"XA","XB","XC","XD","XE","XF","XG","XH","XI","XJ","XK","XL","XM","XN","XO","XP","XQ","XR","XS","XT","XU","XV","XW","XY","XZ";"YA","YB","YC","YD","YE","YF","YG","YH","YI","YJ","YK","YL","YM","YN","YO","YP","YQ","YR","YS","YT","YU","YV","YW","YX","YZ";"ZA","ZB","ZC","ZD","ZE","ZF","ZG","ZH","ZI","ZJ","ZK","ZL","ZM","ZN","ZO","ZP","ZQ","ZR","ZS","ZT","ZU","ZV","ZW","ZX","ZY"}, RANDBETWEEN(1,26),RANDBETWEEN(1,25)) -> GW | C35: BD | D35: =CHAR(INT((NOW()*10^8-INT(NOW()*10^8))*26+65))&CHAR(LARGE(IF(ROW($A$65:$A$90)<>INT((NOW()*10^8-INT(NOW()*10^8))*26+65),ROW($A$65:$A$90),""),RANDBETWEEN(1,25))) -> SP | E35: KM | F35: BF | K35: V | L35: 100 | M35: 137 | N35: 113 | O35: 106 | P35: 122 | Q35: 116 | R35: 110 | S35: 0 | T35: 134 | U35: 126 | V35: 134 | W35: 126
A36: =SUBSTITUTE(ADDRESS(1,SMALL(IF(MOD(COLUMN($AA:$ZZ),27)>0,COLUMN($AA:$ZZ)),RANDBETWEEN(1,650)),4),1,"") -> OD | B36: =INDEX( {"AB","AC","AD","AE","AF","AG","AH","AI","AJ","AK","AL","AM","AN","AO","AP","AQ","AR","AS","AT","AU","AV","AW","AX","AY","AZ";"BA","BC","BD","BE","BF","BG","BH","BI","BJ","BK","BL","BM","BN","BO","BP","BQ","BR","BS","BT","BU","BV","BW","BX","BY","BZ";"CA","CB","CD","CE","CF","CG","CH","CI","CJ","CK","CL","CM","CN","CO","CP","CQ","CR","CS","CT","CU","CV","CW","CX","CY","CZ";"DA","DB","DC","DE","DF","DG","DH","DI","DJ","DK","DL","DM","DN","DO","DP","DQ","DR","DS","DT","DU","DV","DW","DX","DY","DZ";"EA","EB","EC","ED","EF","EG","EH","EI","EJ","EK","EL","EM","EN","EO","EP","EQ","ER","ES","ET","EU","EV","EW","EX","EY","EZ";"FA","FB","FC","FD","FE","FG","FH","FI","FJ","FK","FL","FM","FN","FO","FP","FQ","FR","FS","FT","FU","FV","FW","FX","FY","FZ";"GA","GB","GC","GD","GE","GF","GH","GI","GJ","GK","GL","GM","GN","GO","GP","GQ","GR","GS","GT","GU","GV","GW","GX","GY","GZ";"HA","HB","HC","HD","HE","HF","HG","HI","HJ","HK","HL","HM","HN","HO","HP","HQ","HR","HS","HT","HU","HV","HW","HX","HY","HZ";"IA","IB","IC","ID","IE","IF","IG","IH","IJ","IK","IL","IM","IN","IO","IP","IQ","IR","IS","IT","IU","IV","IW","IX","IY","IZ";"JA","JB","JC","JD","JE","JF","JG","JH","JI","JK","JL","JM","JN","JO","JP","JQ","JR","JS","JT","JU","JV","JW","JX","JY","JZ";"KA","KB","KC","KD","KE","KF","KG","KH","KI","KJ","KL","KM","KN","KO","KP","KQ","KR","KS","KT","KU","KV","KW","KX","KY","KZ";"LA","LB","LC","LD","LE","LF","LG","LH","LI","LJ","LK","LM","LN","LO","LP","LQ","LR","LS","LT","LU","LV","LW","LX","LY","LZ";"MA","MB","MC","MD","ME","MF","MG","MH","MI","MJ","MK","ML","MN","MO","MP","MQ","MR","MS","MT","MU","MV","MW","MX","MY","MZ";"NA","NB","NC","ND","NE","NF","NG","NH","NI","NJ","NK","NL","NM","NO","NP","NQ","NR","NS","NT","NU","NV","NW","NX","NY","NZ";"OA","OB","OC","OD","OE","OF","OG","OH","OI","OJ","OK","OL","OM","ON","OP","OQ","OR","OS","OT","OU","OV","OW","OX","OY","OZ";"PA","PB","PC","PD","PE","PF","PG","PH","PI","PJ","PK","PL","PM","PN","PO","PQ","PR","PS","PT","PU","PV","PW","PX","PY","PZ";"QA","QB","QC","QD","QE","QF","QG","QH","QI","QJ","QK","QL","QM","QN","QO","QP","QR","QS","QT","QU","QV","QW","QX","QY","QZ";"RA","RB","RC","RD","RE","RF","RG","RH","RI","RJ","RK","RL","RM","RN","RO","RP","RQ","RS","RT","RU","RV","RW","RX","RY","RZ";"SA","SB","SC","SD","SE","SF","SG","SH","SI","SJ","SK","SL","SM","SN","SO","SP","SQ","SR","ST","SU","SV","SW","SX","SY","SZ";"TA","TB","TC","TD","TE","TF","TG","TH","TI","TJ","TK","TL","TM","TN","TO","TP","TQ","TR","TS","TU","TV","TW","TX","TY","TZ";"UA","UB","UC","UD","UE","UF","UG","UH","UI","UJ","UK","UL","UM","UN","UO","UP","UQ","UR","US","UT","UV","UW","UX","UY","UZ";"VA","VB","VC","VD","VE","VF","VG","VH","VI","VJ","VK","VL","VM","VN","VO","VP","VQ","VR","VS","VT","VU","VW","VX","VY","VZ";"WA","WB","WC","WD","WE","WF","WG","WH","WI","WJ","WK","WL","WM","WN","WO","WP","WQ","WR","WS","WT","WU","WV","WX","WY","WZ";"XA","XB","XC","XD","XE","XF","XG","XH","XI","XJ","XK","XL","XM","XN","XO","XP","XQ","XR","XS","XT","XU","XV","XW","XY","XZ";"YA","YB","YC","YD","YE","YF","YG","YH","YI","YJ","YK","YL","YM","YN","YO","YP","YQ","YR","YS","YT","YU","YV","YW","YX","YZ";"ZA","ZB","ZC","ZD","ZE","ZF","ZG","ZH","ZI","ZJ","ZK","ZL","ZM","ZN","ZO","ZP","ZQ","ZR","ZS","ZT","ZU","ZV","ZW","ZX","ZY"}, RANDBETWEEN(1,26),RANDBETWEEN(1,25)) -> DV | C36: TJ | D36: =CHAR(INT((NOW()*10^8-INT(NOW()*10^8))*26+65))&CHAR(LARGE(IF(ROW($A$65:$A$90)<>INT((NOW()*10^8-INT(NOW()*10^8))*26+65),ROW($A$65:$A$90),""),RANDBETWEEN(1,25))) -> SX | E36: VF | F36: QA | K36: W | L36: 108 | M36: 125 | N36: 127 | O36: 122 | P36: 117 | Q36: 124 | R36: 49 | S36: 1752 | T36: 120 | U36: 102 | V36: 120 | W36: 102
A37: =SUBSTITUTE(ADDRESS(1,SMALL(IF(MOD(COLUMN($AA:$ZZ),27)>0,COLUMN($AA:$ZZ)),RANDBETWEEN(1,650)),4),1,"") -> DA | B37: =INDEX( {"AB","AC","AD","AE","AF","AG","AH","AI","AJ","AK","AL","AM","AN","AO","AP","AQ","AR","AS","AT","AU","AV","AW","AX","AY","AZ";"BA","BC","BD","BE","BF","BG","BH","BI","BJ","BK","BL","BM","BN","BO","BP","BQ","BR","BS","BT","BU","BV","BW","BX","BY","BZ";"CA","CB","CD","CE","CF","CG","CH","CI","CJ","CK","CL","CM","CN","CO","CP","CQ","CR","CS","CT","CU","CV","CW","CX","CY","CZ";"DA","DB","DC","DE","DF","DG","DH","DI","DJ","DK","DL","DM","DN","DO","DP","DQ","DR","DS","DT","DU","DV","DW","DX","DY","DZ";"EA","EB","EC","ED","EF","EG","EH","EI","EJ","EK","EL","EM","EN","EO","EP","EQ","ER","ES","ET","EU","EV","EW","EX","EY","EZ";"FA","FB","FC","FD","FE","FG","FH","FI","FJ","FK","FL","FM","FN","FO","FP","FQ","FR","FS","FT","FU","FV","FW","FX","FY","FZ";"GA","GB","GC","GD","GE","GF","GH","GI","GJ","GK","GL","GM","GN","GO","GP","GQ","GR","GS","GT","GU","GV","GW","GX","GY","GZ";"HA","HB","HC","HD","HE","HF","HG","HI","HJ","HK","HL","HM","HN","HO","HP","HQ","HR","HS","HT","HU","HV","HW","HX","HY","HZ";"IA","IB","IC","ID","IE","IF","IG","IH","IJ","IK","IL","IM","IN","IO","IP","IQ","IR","IS","IT","IU","IV","IW","IX","IY","IZ";"JA","JB","JC","JD","JE","JF","JG","JH","JI","JK","JL","JM","JN","JO","JP","JQ","JR","JS","JT","JU","JV","JW","JX","JY","JZ";"KA","KB","KC","KD","KE","KF","KG","KH","KI","KJ","KL","KM","KN","KO","KP","KQ","KR","KS","KT","KU","KV","KW","KX","KY","KZ";"LA","LB","LC","LD","LE","LF","LG","LH","LI","LJ","LK","LM","LN","LO","LP","LQ","LR","LS","LT","LU","LV","LW","LX","LY","LZ";"MA","MB","MC","MD","ME","MF","MG","MH","MI","MJ","MK","ML","MN","MO","MP","MQ","MR","MS","MT","MU","MV","MW","MX","MY","MZ";"NA","NB","NC","ND","NE","NF","NG","NH","NI","NJ","NK","NL","NM","NO","NP","NQ","NR","NS","NT","NU","NV","NW","NX","NY","NZ";"OA","OB","OC","OD","OE","OF","OG","OH","OI","OJ","OK","OL","OM","ON","OP","OQ","OR","OS","OT","OU","OV","OW","OX","OY","OZ";"PA","PB","PC","PD","PE","PF","PG","PH","PI","PJ","PK","PL","PM","PN","PO","PQ","PR","PS","PT","PU","PV","PW","PX","PY","PZ";"QA","QB","QC","QD","QE","QF","QG","QH","QI","QJ","QK","QL","QM","QN","QO","QP","QR","QS","QT","QU","QV","QW","QX","QY","QZ";"RA","RB","RC","RD","RE","RF","RG","RH","RI","RJ","RK","RL","RM","RN","RO","RP","RQ","RS","RT","RU","RV","RW","RX","RY","RZ";"SA","SB","SC","SD","SE","SF","SG","SH","SI","SJ","SK","SL","SM","SN","SO","SP","SQ","SR","ST","SU","SV","SW","SX","SY","SZ";"TA","TB","TC","TD","TE","TF","TG","TH","TI","TJ","TK","TL","TM","TN","TO","TP","TQ","TR","TS","TU","TV","TW","TX","TY","TZ";"UA","UB","UC","UD","UE","UF","UG","UH","UI","UJ","UK","UL","UM","UN","UO","UP","UQ","UR","US","UT","UV","UW","UX","UY","UZ";"VA","VB","VC","VD","VE","VF","VG","VH","VI","VJ","VK","VL","VM","VN","VO","VP","VQ","VR","VS","VT","VU","VW","VX","VY","VZ";"WA","WB","WC","WD","WE","WF","WG","WH","WI","WJ","WK","WL","WM","WN","WO","WP","WQ","WR","WS","WT","WU","WV","WX","WY","WZ";"XA","XB","XC","XD","XE","XF","XG","XH","XI","XJ","XK","XL","XM","XN","XO","XP","XQ","XR","XS","XT","XU","XV","XW","XY","XZ";"YA","YB","YC","YD","YE","YF","YG","YH","YI","YJ","YK","YL","YM","YN","YO","YP","YQ","YR","YS","YT","YU","YV","YW","YX","YZ";"ZA","ZB","ZC","ZD","ZE","ZF","ZG","ZH","ZI","ZJ","ZK","ZL","ZM","ZN","ZO","ZP","ZQ","ZR","ZS","ZT","ZU","ZV","ZW","ZX","ZY"}, RANDBETWEEN(1,26),RANDBETWEEN(1,25)) -> JB | C37: AQ | D37: =CHAR(INT((NOW()*10^8-INT(NOW()*10^8))*26+65))&CHAR(LARGE(IF(ROW($A$65:$A$90)<>INT((NOW()*10^8-INT(NOW()*10^8))*26+65),ROW($A$65:$A$90),""),RANDBETWEEN(1,25))) -> SM | E37: ZN | F37: FU | K37: X | L37: 121 | M37: 118 | N37: 106 | O37: 106 | P37: 113 | Q37: 126 | R37: 121 | S37: 0 | T37: 129 | U37: 93 | V37: 129 | W37: 93
A38: =SUBSTITUTE(ADDRESS(1,SMALL(IF(MOD(COLUMN($AA:$ZZ),27)>0,COLUMN($AA:$ZZ)),RANDBETWEEN(1,650)),4),1,"") -> JN | B38: =INDEX( {"AB","AC","AD","AE","AF","AG","AH","AI","AJ","AK","AL","AM","AN","AO","AP","AQ","AR","AS","AT","AU","AV","AW","AX","AY","AZ";"BA","BC","BD","BE","BF","BG","BH","BI","BJ","BK","BL","BM","BN","BO","BP","BQ","BR","BS","BT","BU","BV","BW","BX","BY","BZ";"CA","CB","CD","CE","CF","CG","CH","CI","CJ","CK","CL","CM","CN","CO","CP","CQ","CR","CS","CT","CU","CV","CW","CX","CY","CZ";"DA","DB","DC","DE","DF","DG","DH","DI","DJ","DK","DL","DM","DN","DO","DP","DQ","DR","DS","DT","DU","DV","DW","DX","DY","DZ";"EA","EB","EC","ED","EF","EG","EH","EI","EJ","EK","EL","EM","EN","EO","EP","EQ","ER","ES","ET","EU","EV","EW","EX","EY","EZ";"FA","FB","FC","FD","FE","FG","FH","FI","FJ","FK","FL","FM","FN","FO","FP","FQ","FR","FS","FT","FU","FV","FW","FX","FY","FZ";"GA","GB","GC","GD","GE","GF","GH","GI","GJ","GK","GL","GM","GN","GO","GP","GQ","GR","GS","GT","GU","GV","GW","GX","GY","GZ";"HA","HB","HC","HD","HE","HF","HG","HI","HJ","HK","HL","HM","HN","HO","HP","HQ","HR","HS","HT","HU","HV","HW","HX","HY","HZ";"IA","IB","IC","ID","IE","IF","IG","IH","IJ","IK","IL","IM","IN","IO","IP","IQ","IR","IS","IT","IU","IV","IW","IX","IY","IZ";"JA","JB","JC","JD","JE","JF","JG","JH","JI","JK","JL","JM","JN","JO","JP","JQ","JR","JS","JT","JU","JV","JW","JX","JY","JZ";"KA","KB","KC","KD","KE","KF","KG","KH","KI","KJ","KL","KM","KN","KO","KP","KQ","KR","KS","KT","KU","KV","KW","KX","KY","KZ";"LA","LB","LC","LD","LE","LF","LG","LH","LI","LJ","LK","LM","LN","LO","LP","LQ","LR","LS","LT","LU","LV","LW","LX","LY","LZ";"MA","MB","MC","MD","ME","MF","MG","MH","MI","MJ","MK","ML","MN","MO","MP","MQ","MR","MS","MT","MU","MV","MW","MX","MY","MZ";"NA","NB","NC","ND","NE","NF","NG","NH","NI","NJ","NK","NL","NM","NO","NP","NQ","NR","NS","NT","NU","NV","NW","NX","NY","NZ";"OA","OB","OC","OD","OE","OF","OG","OH","OI","OJ","OK","OL","OM","ON","OP","OQ","OR","OS","OT","OU","OV","OW","OX","OY","OZ";"PA","PB","PC","PD","PE","PF","PG","PH","PI","PJ","PK","PL","PM","PN","PO","PQ","PR","PS","PT","PU","PV","PW","PX","PY","PZ";"QA","QB","QC","QD","QE","QF","QG","QH","QI","QJ","QK","QL","QM","QN","QO","QP","QR","QS","QT","QU","QV","QW","QX","QY","QZ";"RA","RB","RC","RD","RE","RF","RG","RH","RI","RJ","RK","RL","RM","RN","RO","RP","RQ","RS","RT","RU","RV","RW","RX","RY","RZ";"SA","SB","SC","SD","SE","SF","SG","SH","SI","SJ","SK","SL","SM","SN","SO","SP","SQ","SR","ST","SU","SV","SW","SX","SY","SZ";"TA","TB","TC","TD","TE","TF","TG","TH","TI","TJ","TK","TL","TM","TN","TO","TP","TQ","TR","TS","TU","TV","TW","TX","TY","TZ";"UA","UB","UC","UD","UE","UF","UG","UH","UI","UJ","UK","UL","UM","UN","UO","UP","UQ","UR","US","UT","UV","UW","UX","UY","UZ";"VA","VB","VC","VD","VE","VF","VG","VH","VI","VJ","VK","VL","VM","VN","VO","VP","VQ","VR","VS","VT","VU","VW","VX","VY","VZ";"WA","WB","WC","WD","WE","WF","WG","WH","WI","WJ","WK","WL","WM","WN","WO","WP","WQ","WR","WS","WT","WU","WV","WX","WY","WZ";"XA","XB","XC","XD","XE","XF","XG","XH","XI","XJ","XK","XL","XM","XN","XO","XP","XQ","XR","XS","XT","XU","XV","XW","XY","XZ";"YA","YB","YC","YD","YE","YF","YG","YH","YI","YJ","YK","YL","YM","YN","YO","YP","YQ","YR","YS","YT","YU","YV","YW","YX","YZ";"ZA","ZB","ZC","ZD","ZE","ZF","ZG","ZH","ZI","ZJ","ZK","ZL","ZM","ZN","ZO","ZP","ZQ","ZR","ZS","ZT","ZU","ZV","ZW","ZX","ZY"}, RANDBETWEEN(1,26),RANDBETWEEN(1,25)) -> MF | C38: FH | D38: =CHAR(INT((NOW()*10^8-INT(NOW()*10^8))*26+65))&CHAR(LARGE(IF(ROW($A$65:$A$90)<>INT((NOW()*10^8-INT(NOW()*10^8))*26+65),ROW($A$65:$A$90),""),RANDBETWEEN(1,25))) -> SE | E38: UC | F38: GF | K38: Y | L38: 122 | M38: 93 | N38: 112 | O38: 112 | P38: 138 | Q38: 103 | R38: 123 | S38: 0 | T38: 83 | U38: 102 | V38: 83 | W38: 102
A39: =SUBSTITUTE(ADDRESS(1,SMALL(IF(MOD(COLUMN($AA:$ZZ),27)>0,COLUMN($AA:$ZZ)),RANDBETWEEN(1,650)),4),1,"") -> HY | B39: =INDEX( {"AB","AC","AD","AE","AF","AG","AH","AI","AJ","AK","AL","AM","AN","AO","AP","AQ","AR","AS","AT","AU","AV","AW","AX","AY","AZ";"BA","BC","BD","BE","BF","BG","BH","BI","BJ","BK","BL","BM","BN","BO","BP","BQ","BR","BS","BT","BU","BV","BW","BX","BY","BZ";"CA","CB","CD","CE","CF","CG","CH","CI","CJ","CK","CL","CM","CN","CO","CP","CQ","CR","CS","CT","CU","CV","CW","CX","CY","CZ";"DA","DB","DC","DE","DF","DG","DH","DI","DJ","DK","DL","DM","DN","DO","DP","DQ","DR","DS","DT","DU","DV","DW","DX","DY","DZ";"EA","EB","EC","ED","EF","EG","EH","EI","EJ","EK","EL","EM","EN","EO","EP","EQ","ER","ES","ET","EU","EV","EW","EX","EY","EZ";"FA","FB","FC","FD","FE","FG","FH","FI","FJ","FK","FL","FM","FN","FO","FP","FQ","FR","FS","FT","FU","FV","FW","FX","FY","FZ";"GA","GB","GC","GD","GE","GF","GH","GI","GJ","GK","GL","GM","GN","GO","GP","GQ","GR","GS","GT","GU","GV","GW","GX","GY","GZ";"HA","HB","HC","HD","HE","HF","HG","HI","HJ","HK","HL","HM","HN","HO","HP","HQ","HR","HS","HT","HU","HV","HW","HX","HY","HZ";"IA","IB","IC","ID","IE","IF","IG","IH","IJ","IK","IL","IM","IN","IO","IP","IQ","IR","IS","IT","IU","IV","IW","IX","IY","IZ";"JA","JB","JC","JD","JE","JF","JG","JH","JI","JK","JL","JM","JN","JO","JP","JQ","JR","JS","JT","JU","JV","JW","JX","JY","JZ";"KA","KB","KC","KD","KE","KF","KG","KH","KI","KJ","KL","KM","KN","KO","KP","KQ","KR","KS","KT","KU","KV","KW","KX","KY","KZ";"LA","LB","LC","LD","LE","LF","LG","LH","LI","LJ","LK","LM","LN","LO","LP","LQ","LR","LS","LT","LU","LV","LW","LX","LY","LZ";"MA","MB","MC","MD","ME","MF","MG","MH","MI","MJ","MK","ML","MN","MO","MP","MQ","MR","MS","MT","MU","MV","MW","MX","MY","MZ";"NA","NB","NC","ND","NE","NF","NG","NH","NI","NJ","NK","NL","NM","NO","NP","NQ","NR","NS","NT","NU","NV","NW","NX","NY","NZ";"OA","OB","OC","OD","OE","OF","OG","OH","OI","OJ","OK","OL","OM","ON","OP","OQ","OR","OS","OT","OU","OV","OW","OX","OY","OZ";"PA","PB","PC","PD","PE","PF","PG","PH","PI","PJ","PK","PL","PM","PN","PO","PQ","PR","PS","PT","PU","PV","PW","PX","PY","PZ";"QA","QB","QC","QD","QE","QF","QG","QH","QI","QJ","QK","QL","QM","QN","QO","QP","QR","QS","QT","QU","QV","QW","QX","QY","QZ";"RA","RB","RC","RD","RE","RF","RG","RH","RI","RJ","RK","RL","RM","RN","RO","RP","RQ","RS","RT","RU","RV","RW","RX","RY","RZ";"SA","SB","SC","SD","SE","SF","SG","SH","SI","SJ","SK","SL","SM","SN","SO","SP","SQ","SR","ST","SU","SV","SW","SX","SY","SZ";"TA","TB","TC","TD","TE","TF","TG","TH","TI","TJ","TK","TL","TM","TN","TO","TP","TQ","TR","TS","TU","TV","TW","TX","TY","TZ";"UA","UB","UC","UD","UE","UF","UG","UH","UI","UJ","UK","UL","UM","UN","UO","UP","UQ","UR","US","UT","UV","UW","UX","UY","UZ";"VA","VB","VC","VD","VE","VF","VG","VH","VI","VJ","VK","VL","VM","VN","VO","VP","VQ","VR","VS","VT","VU","VW","VX","VY","VZ";"WA","WB","WC","WD","WE","WF","WG","WH","WI","WJ","WK","WL","WM","WN","WO","WP","WQ","WR","WS","WT","WU","WV","WX","WY","WZ";"XA","XB","XC","XD","XE","XF","XG","XH","XI","XJ","XK","XL","XM","XN","XO","XP","XQ","XR","XS","XT","XU","XV","XW","XY","XZ";"YA","YB","YC","YD","YE","YF","YG","YH","YI","YJ","YK","YL","YM","YN","YO","YP","YQ","YR","YS","YT","YU","YV","YW","YX","YZ";"ZA","ZB","ZC","ZD","ZE","ZF","ZG","ZH","ZI","ZJ","ZK","ZL","ZM","ZN","ZO","ZP","ZQ","ZR","ZS","ZT","ZU","ZV","ZW","ZX","ZY"}, RANDBETWEEN(1,26),RANDBETWEEN(1,25)) -> WR | C39: KP | D39: =CHAR(INT((NOW()*10^8-INT(NOW()*10^8))*26+65))&CHAR(LARGE(IF(ROW($A$65:$A$90)<>INT((NOW()*10^8-INT(NOW()*10^8))*26+65),ROW($A$65:$A$90),""),RANDBETWEEN(1,25))) -> SI | E39: BH | F39: MS | K39: Z | L39: 127 | M39: 126 | N39: 115 | O39: 118 | P39: 105 | Q39: 112 | R39: 112 | S39: 0 | T39: 124 | U39: 118 | V39: 124 | W39: 118
A40: =SUBSTITUTE(ADDRESS(1,SMALL(IF(MOD(COLUMN($AA:$ZZ),27)>0,COLUMN($AA:$ZZ)),RANDBETWEEN(1,650)),4),1,"") -> JS | B40: =INDEX( {"AB","AC","AD","AE","AF","AG","AH","AI","AJ","AK","AL","AM","AN","AO","AP","AQ","AR","AS","AT","AU","AV","AW","AX","AY","AZ";"BA","BC","BD","BE","BF","BG","BH","BI","BJ","BK","BL","BM","BN","BO","BP","BQ","BR","BS","BT","BU","BV","BW","BX","BY","BZ";"CA","CB","CD","CE","CF","CG","CH","CI","CJ","CK","CL","CM","CN","CO","CP","CQ","CR","CS","CT","CU","CV","CW","CX","CY","CZ";"DA","DB","DC","DE","DF","DG","DH","DI","DJ","DK","DL","DM","DN","DO","DP","DQ","DR","DS","DT","DU","DV","DW","DX","DY","DZ";"EA","EB","EC","ED","EF","EG","EH","EI","EJ","EK","EL","EM","EN","EO","EP","EQ","ER","ES","ET","EU","EV","EW","EX","EY","EZ";"FA","FB","FC","FD","FE","FG","FH","FI","FJ","FK","FL","FM","FN","FO","FP","FQ","FR","FS","FT","FU","FV","FW","FX","FY","FZ";"GA","GB","GC","GD","GE","GF","GH","GI","GJ","GK","GL","GM","GN","GO","GP","GQ","GR","GS","GT","GU","GV","GW","GX","GY","GZ";"HA","HB","HC","HD","HE","HF","HG","HI","HJ","HK","HL","HM","HN","HO","HP","HQ","HR","HS","HT","HU","HV","HW","HX","HY","HZ";"IA","IB","IC","ID","IE","IF","IG","IH","IJ","IK","IL","IM","IN","IO","IP","IQ","IR","IS","IT","IU","IV","IW","IX","IY","IZ";"JA","JB","JC","JD","JE","JF","JG","JH","JI","JK","JL","JM","JN","JO","JP","JQ","JR","JS","JT","JU","JV","JW","JX","JY","JZ";"KA","KB","KC","KD","KE","KF","KG","KH","KI","KJ","KL","KM","KN","KO","KP","KQ","KR","KS","KT","KU","KV","KW","KX","KY","KZ";"LA","LB","LC","LD","LE","LF","LG","LH","LI","LJ","LK","LM","LN","LO","LP","LQ","LR","LS","LT","LU","LV","LW","LX","LY","LZ";"MA","MB","MC","MD","ME","MF","MG","MH","MI","MJ","MK","ML","MN","MO","MP","MQ","MR","MS","MT","MU","MV","MW","MX","MY","MZ";"NA","NB","NC","ND","NE","NF","NG","NH","NI","NJ","NK","NL","NM","NO","NP","NQ","NR","NS","NT","NU","NV","NW","NX","NY","NZ";"OA","OB","OC","OD","OE","OF","OG","OH","OI","OJ","OK","OL","OM","ON","OP","OQ","OR","OS","OT","OU","OV","OW","OX","OY","OZ";"PA","PB","PC","PD","PE","PF","PG","PH","PI","PJ","PK","PL","PM","PN","PO","PQ","PR","PS","PT","PU","PV","PW","PX","PY","PZ";"QA","QB","QC","QD","QE","QF","QG","QH","QI","QJ","QK","QL","QM","QN","QO","QP","QR","QS","QT","QU","QV","QW","QX","QY","QZ";"RA","RB","RC","RD","RE","RF","RG","RH","RI","RJ","RK","RL","RM","RN","RO","RP","RQ","RS","RT","RU","RV","RW","RX","RY","RZ";"SA","SB","SC","SD","SE","SF","SG","SH","SI","SJ","SK","SL","SM","SN","SO","SP","SQ","SR","ST","SU","SV","SW","SX","SY","SZ";"TA","TB","TC","TD","TE","TF","TG","TH","TI","TJ","TK","TL","TM","TN","TO","TP","TQ","TR","TS","TU","TV","TW","TX","TY","TZ";"UA","UB","UC","UD","UE","UF","UG","UH","UI","UJ","UK","UL","UM","UN","UO","UP","UQ","UR","US","UT","UV","UW","UX","UY","UZ";"VA","VB","VC","VD","VE","VF","VG","VH","VI","VJ","VK","VL","VM","VN","VO","VP","VQ","VR","VS","VT","VU","VW","VX","VY","VZ";"WA","WB","WC","WD","WE","WF","WG","WH","WI","WJ","WK","WL","WM","WN","WO","WP","WQ","WR","WS","WT","WU","WV","WX","WY","WZ";"XA","XB","XC","XD","XE","XF","XG","XH","XI","XJ","XK","XL","XM","XN","XO","XP","XQ","XR","XS","XT","XU","XV","XW","XY","XZ";"YA","YB","YC","YD","YE","YF","YG","YH","YI","YJ","YK","YL","YM","YN","YO","YP","YQ","YR","YS","YT","YU","YV","YW","YX","YZ";"ZA","ZB","ZC","ZD","ZE","ZF","ZG","ZH","ZI","ZJ","ZK","ZL","ZM","ZN","ZO","ZP","ZQ","ZR","ZS","ZT","ZU","ZV","ZW","ZX","ZY"}, RANDBETWEEN(1,26),RANDBETWEEN(1,25)) -> GM | C40: IP | D40: =CHAR(INT((NOW()*10^8-INT(NOW()*10^8))*26+65))&CHAR(LARGE(IF(ROW($A$65:$A$90)<>INT((NOW()*10^8-INT(NOW()*10^8))*26+65),ROW($A$65:$A$90),""),RANDBETWEEN(1,25))) -> SQ | E40: NP | F40: HU
A41: =SUBSTITUTE(ADDRESS(1,SMALL(IF(MOD(COLUMN($AA:$ZZ),27)>0,COLUMN($AA:$ZZ)),RANDBETWEEN(1,650)),4),1,"") -> AS | B41: =INDEX( {"AB","AC","AD","AE","AF","AG","AH","AI","AJ","AK","AL","AM","AN","AO","AP","AQ","AR","AS","AT","AU","AV","AW","AX","AY","AZ";"BA","BC","BD","BE","BF","BG","BH","BI","BJ","BK","BL","BM","BN","BO","BP","BQ","BR","BS","BT","BU","BV","BW","BX","BY","BZ";"CA","CB","CD","CE","CF","CG","CH","CI","CJ","CK","CL","CM","CN","CO","CP","CQ","CR","CS","CT","CU","CV","CW","CX","CY","CZ";"DA","DB","DC","DE","DF","DG","DH","DI","DJ","DK","DL","DM","DN","DO","DP","DQ","DR","DS","DT","DU","DV","DW","DX","DY","DZ";"EA","EB","EC","ED","EF","EG","EH","EI","EJ","EK","EL","EM","EN","EO","EP","EQ","ER","ES","ET","EU","EV","EW","EX","EY","EZ";"FA","FB","FC","FD","FE","FG","FH","FI","FJ","FK","FL","FM","FN","FO","FP","FQ","FR","FS","FT","FU","FV","FW","FX","FY","FZ";"GA","GB","GC","GD","GE","GF","GH","GI","GJ","GK","GL","GM","GN","GO","GP","GQ","GR","GS","GT","GU","GV","GW","GX","GY","GZ";"HA","HB","HC","HD","HE","HF","HG","HI","HJ","HK","HL","HM","HN","HO","HP","HQ","HR","HS","HT","HU","HV","HW","HX","HY","HZ";"IA","IB","IC","ID","IE","IF","IG","IH","IJ","IK","IL","IM","IN","IO","IP","IQ","IR","IS","IT","IU","IV","IW","IX","IY","IZ";"JA","JB","JC","JD","JE","JF","JG","JH","JI","JK","JL","JM","JN","JO","JP","JQ","JR","JS","JT","JU","JV","JW","JX","JY","JZ";"KA","KB","KC","KD","KE","KF","KG","KH","KI","KJ","KL","KM","KN","KO","KP","KQ","KR","KS","KT","KU","KV","KW","KX","KY","KZ";"LA","LB","LC","LD","LE","LF","LG","LH","LI","LJ","LK","LM","LN","LO","LP","LQ","LR","LS","LT","LU","LV","LW","LX","LY","LZ";"MA","MB","MC","MD","ME","MF","MG","MH","MI","MJ","MK","ML","MN","MO","MP","MQ","MR","MS","MT","MU","MV","MW","MX","MY","MZ";"NA","NB","NC","ND","NE","NF","NG","NH","NI","NJ","NK","NL","NM","NO","NP","NQ","NR","NS","NT","NU","NV","NW","NX","NY","NZ";"OA","OB","OC","OD","OE","OF","OG","OH","OI","OJ","OK","OL","OM","ON","OP","OQ","OR","OS","OT","OU","OV","OW","OX","OY","OZ";"PA","PB","PC","PD","PE","PF","PG","PH","PI","PJ","PK","PL","PM","PN","PO","PQ","PR","PS","PT","PU","PV","PW","PX","PY","PZ";"QA","QB","QC","QD","QE","QF","QG","QH","QI","QJ","QK","QL","QM","QN","QO","QP","QR","QS","QT","QU","QV","QW","QX","QY","QZ";"RA","RB","RC","RD","RE","RF","RG","RH","RI","RJ","RK","RL","RM","RN","RO","RP","RQ","RS","RT","RU","RV","RW","RX","RY","RZ";"SA","SB","SC","SD","SE","SF","SG","SH","SI","SJ","SK","SL","SM","SN","SO","SP","SQ","SR","ST","SU","SV","SW","SX","SY","SZ";"TA","TB","TC","TD","TE","TF","TG","TH","TI","TJ","TK","TL","TM","TN","TO","TP","TQ","TR","TS","TU","TV","TW","TX","TY","TZ";"UA","UB","UC","UD","UE","UF","UG","UH","UI","UJ","UK","UL","UM","UN","UO","UP","UQ","UR","US","UT","UV","UW","UX","UY","UZ";"VA","VB","VC","VD","VE","VF","VG","VH","VI","VJ","VK","VL","VM","VN","VO","VP","VQ","VR","VS","VT","VU","VW","VX","VY","VZ";"WA","WB","WC","WD","WE","WF","WG","WH","WI","WJ","WK","WL","WM","WN","WO","WP","WQ","WR","WS","WT","WU","WV","WX","WY","WZ";"XA","XB","XC","XD","XE","XF","XG","XH","XI","XJ","XK","XL","XM","XN","XO","XP","XQ","XR","XS","XT","XU","XV","XW","XY","XZ";"YA","YB","YC","YD","YE","YF","YG","YH","YI","YJ","YK","YL","YM","YN","YO","YP","YQ","YR","YS","YT","YU","YV","YW","YX","YZ";"ZA","ZB","ZC","ZD","ZE","ZF","ZG","ZH","ZI","ZJ","ZK","ZL","ZM","ZN","ZO","ZP","ZQ","ZR","ZS","ZT","ZU","ZV","ZW","ZX","ZY"}, RANDBETWEEN(1,26),RANDBETWEEN(1,25)) -> DC | C41: BY | D41: =CHAR(INT((NOW()*10^8-INT(NOW()*10^8))*26+65))&CHAR(LARGE(IF(ROW($A$65:$A$90)<>INT((NOW()*10^8-INT(NOW()*10^8))*26+65),ROW($A$65:$A$90),""),RANDBETWEEN(1,25))) -> SH | E41: RF | F41: YX
A42: =SUBSTITUTE(ADDRESS(1,SMALL(IF(MOD(COLUMN($AA:$ZZ),27)>0,COLUMN($AA:$ZZ)),RANDBETWEEN(1,650)),4),1,"") -> ZA | B42: =INDEX( {"AB","AC","AD","AE","AF","AG","AH","AI","AJ","AK","AL","AM","AN","AO","AP","AQ","AR","AS","AT","AU","AV","AW","AX","AY","AZ";"BA","BC","BD","BE","BF","BG","BH","BI","BJ","BK","BL","BM","BN","BO","BP","BQ","BR","BS","BT","BU","BV","BW","BX","BY","BZ";"CA","CB","CD","CE","CF","CG","CH","CI","CJ","CK","CL","CM","CN","CO","CP","CQ","CR","CS","CT","CU","CV","CW","CX","CY","CZ";"DA","DB","DC","DE","DF","DG","DH","DI","DJ","DK","DL","DM","DN","DO","DP","DQ","DR","DS","DT","DU","DV","DW","DX","DY","DZ";"EA","EB","EC","ED","EF","EG","EH","EI","EJ","EK","EL","EM","EN","EO","EP","EQ","ER","ES","ET","EU","EV","EW","EX","EY","EZ";"FA","FB","FC","FD","FE","FG","FH","FI","FJ","FK","FL","FM","FN","FO","FP","FQ","FR","FS","FT","FU","FV","FW","FX","FY","FZ";"GA","GB","GC","GD","GE","GF","GH","GI","GJ","GK","GL","GM","GN","GO","GP","GQ","GR","GS","GT","GU","GV","GW","GX","GY","GZ";"HA","HB","HC","HD","HE","HF","HG","HI","HJ","HK","HL","HM","HN","HO","HP","HQ","HR","HS","HT","HU","HV","HW","HX","HY","HZ";"IA","IB","IC","ID","IE","IF","IG","IH","IJ","IK","IL","IM","IN","IO","IP","IQ","IR","IS","IT","IU","IV","IW","IX","IY","IZ";"JA","JB","JC","JD","JE","JF","JG","JH","JI","JK","JL","JM","JN","JO","JP","JQ","JR","JS","JT","JU","JV","JW","JX","JY","JZ";"KA","KB","KC","KD","KE","KF","KG","KH","KI","KJ","KL","KM","KN","KO","KP","KQ","KR","KS","KT","KU","KV","KW","KX","KY","KZ";"LA","LB","LC","LD","LE","LF","LG","LH","LI","LJ","LK","LM","LN","LO","LP","LQ","LR","LS","LT","LU","LV","LW","LX","LY","LZ";"MA","MB","MC","MD","ME","MF","MG","MH","MI","MJ","MK","ML","MN","MO","MP","MQ","MR","MS","MT","MU","MV","MW","MX","MY","MZ";"NA","NB","NC","ND","NE","NF","NG","NH","NI","NJ","NK","NL","NM","NO","NP","NQ","NR","NS","NT","NU","NV","NW","NX","NY","NZ";"OA","OB","OC","OD","OE","OF","OG","OH","OI","OJ","OK","OL","OM","ON","OP","OQ","OR","OS","OT","OU","OV","OW","OX","OY","OZ";"PA","PB","PC","PD","PE","PF","PG","PH","PI","PJ","PK","PL","PM","PN","PO","PQ","PR","PS","PT","PU","PV","PW","PX","PY","PZ";"QA","QB","QC","QD","QE","QF","QG","QH","QI","QJ","QK","QL","QM","QN","QO","QP","QR","QS","QT","QU","QV","QW","QX","QY","QZ";"RA","RB","RC","RD","RE","RF","RG","RH","RI","RJ","RK","RL","RM","RN","RO","RP","RQ","RS","RT","RU","RV","RW","RX","RY","RZ";"SA","SB","SC","SD","SE","SF","SG","SH","SI","SJ","SK","SL","SM","SN","SO","SP","SQ","SR","ST","SU","SV","SW","SX","SY","SZ";"TA","TB","TC","TD","TE","TF","TG","TH","TI","TJ","TK","TL","TM","TN","TO","TP","TQ","TR","TS","TU","TV","TW","TX","TY","TZ";"UA","UB","UC","UD","UE","UF","UG","UH","UI","UJ","UK","UL","UM","UN","UO","UP","UQ","UR","US","UT","UV","UW","UX","UY","UZ";"VA","VB","VC","VD","VE","VF","VG","VH","VI","VJ","VK","VL","VM","VN","VO","VP","VQ","VR","VS","VT","VU","VW","VX","VY","VZ";"WA","WB","WC","WD","WE","WF","WG","WH","WI","WJ","WK","WL","WM","WN","WO","WP","WQ","WR","WS","WT","WU","WV","WX","WY","WZ";"XA","XB","XC","XD","XE","XF","XG","XH","XI","XJ","XK","XL","XM","XN","XO","XP","XQ","XR","XS","XT","XU","XV","XW","XY","XZ";"YA","YB","YC","YD","YE","YF","YG","YH","YI","YJ","YK","YL","YM","YN","YO","YP","YQ","YR","YS","YT","YU","YV","YW","YX","YZ";"ZA","ZB","ZC","ZD","ZE","ZF","ZG","ZH","ZI","ZJ","ZK","ZL","ZM","ZN","ZO","ZP","ZQ","ZR","ZS","ZT","ZU","ZV","ZW","ZX","ZY"}, RANDBETWEEN(1,26),RANDBETWEEN(1,25)) -> DF | C42: XO | D42: =CHAR(INT((NOW()*10^8-INT(NOW()*10^8))*26+65))&CHAR(LARGE(IF(ROW($A$65:$A$90)<>INT((NOW()*10^8-INT(NOW()*10^8))*26+65),ROW($A$65:$A$90),""),RANDBETWEEN(1,25))) -> SQ | E42: WG | F42: BF
A43: =SUBSTITUTE(ADDRESS(1,SMALL(IF(MOD(COLUMN($AA:$ZZ),27)>0,COLUMN($AA:$ZZ)),RANDBETWEEN(1,650)),4),1,"") -> JG | B43: =INDEX( {"AB","AC","AD","AE","AF","AG","AH","AI","AJ","AK","AL","AM","AN","AO","AP","AQ","AR","AS","AT","AU","AV","AW","AX","AY","AZ";"BA","BC","BD","BE","BF","BG","BH","BI","BJ","BK","BL","BM","BN","BO","BP","BQ","BR","BS","BT","BU","BV","BW","BX","BY","BZ";"CA","CB","CD","CE","CF","CG","CH","CI","CJ","CK","CL","CM","CN","CO","CP","CQ","CR","CS","CT","CU","CV","CW","CX","CY","CZ";"DA","DB","DC","DE","DF","DG","DH","DI","DJ","DK","DL","DM","DN","DO","DP","DQ","DR","DS","DT","DU","DV","DW","DX","DY","DZ";"EA","EB","EC","ED","EF","EG","EH","EI","EJ","EK","EL","EM","EN","EO","EP","EQ","ER","ES","ET","EU","EV","EW","EX","EY","EZ";"FA","FB","FC","FD","FE","FG","FH","FI","FJ","FK","FL","FM","FN","FO","FP","FQ","FR","FS","FT","FU","FV","FW","FX","FY","FZ";"GA","GB","GC","GD","GE","GF","GH","GI","GJ","GK","GL","GM","GN","GO","GP","GQ","GR","GS","GT","GU","GV","GW","GX","GY","GZ";"HA","HB","HC","HD","HE","HF","HG","HI","HJ","HK","HL","HM","HN","HO","HP","HQ","HR","HS","HT","HU","HV","HW","HX","HY","HZ";"IA","IB","IC","ID","IE","IF","IG","IH","IJ","IK","IL","IM","IN","IO","IP","IQ","IR","IS","IT","IU","IV","IW","IX","IY","IZ";"JA","JB","JC","JD","JE","JF","JG","JH","JI","JK","JL","JM","JN","JO","JP","JQ","JR","JS","JT","JU","JV","JW","JX","JY","JZ";"KA","KB","KC","KD","KE","KF","KG","KH","KI","KJ","KL","KM","KN","KO","KP","KQ","KR","KS","KT","KU","KV","KW","KX","KY","KZ";"LA","LB","LC","LD","LE","LF","LG","LH","LI","LJ","LK","LM","LN","LO","LP","LQ","LR","LS","LT","LU","LV","LW","LX","LY","LZ";"MA","MB","MC","MD","ME","MF","MG","MH","MI","MJ","MK","ML","MN","MO","MP","MQ","MR","MS","MT","MU","MV","MW","MX","MY","MZ";"NA","NB","NC","ND","NE","NF","NG","NH","NI","NJ","NK","NL","NM","NO","NP","NQ","NR","NS","NT","NU","NV","NW","NX","NY","NZ";"OA","OB","OC","OD","OE","OF","OG","OH","OI","OJ","OK","OL","OM","ON","OP","OQ","OR","OS","OT","OU","OV","OW","OX","OY","OZ";"PA","PB","PC","PD","PE","PF","PG","PH","PI","PJ","PK","PL","PM","PN","PO","PQ","PR","PS","PT","PU","PV","PW","PX","PY","PZ";"QA","QB","QC","QD","QE","QF","QG","QH","QI","QJ","QK","QL","QM","QN","QO","QP","QR","QS","QT","QU","QV","QW","QX","QY","QZ";"RA","RB","RC","RD","RE","RF","RG","RH","RI","RJ","RK","RL","RM","RN","RO","RP","RQ","RS","RT","RU","RV","RW","RX","RY","RZ";"SA","SB","SC","SD","SE","SF","SG","SH","SI","SJ","SK","SL","SM","SN","SO","SP","SQ","SR","ST","SU","SV","SW","SX","SY","SZ";"TA","TB","TC","TD","TE","TF","TG","TH","TI","TJ","TK","TL","TM","TN","TO","TP","TQ","TR","TS","TU","TV","TW","TX","TY","TZ";"UA","UB","UC","UD","UE","UF","UG","UH","UI","UJ","UK","UL","UM","UN","UO","UP","UQ","UR","US","UT","UV","UW","UX","UY","UZ";"VA","VB","VC","VD","VE","VF","VG","VH","VI","VJ","VK","VL","VM","VN","VO","VP","VQ","VR","VS","VT","VU","VW","VX","VY","VZ";"WA","WB","WC","WD","WE","WF","WG","WH","WI","WJ","WK","WL","WM","WN","WO","WP","WQ","WR","WS","WT","WU","WV","WX","WY","WZ";"XA","XB","XC","XD","XE","XF","XG","XH","XI","XJ","XK","XL","XM","XN","XO","XP","XQ","XR","XS","XT","XU","XV","XW","XY","XZ";"YA","YB","YC","YD","YE","YF","YG","YH","YI","YJ","YK","YL","YM","YN","YO","YP","YQ","YR","YS","YT","YU","YV","YW","YX","YZ";"ZA","ZB","ZC","ZD","ZE","ZF","ZG","ZH","ZI","ZJ","ZK","ZL","ZM","ZN","ZO","ZP","ZQ","ZR","ZS","ZT","ZU","ZV","ZW","ZX","ZY"}, RANDBETWEEN(1,26),RANDBETWEEN(1,25)) -> RT | C43: RV | D43: =CHAR(INT((NOW()*10^8-INT(NOW()*10^8))*26+65))&CHAR(LARGE(IF(ROW($A$65:$A$90)<>INT((NOW()*10^8-INT(NOW()*10^8))*26+65),ROW($A$65:$A$90),""),RANDBETWEEN(1,25))) -> SU | E43: TO | F43: OJ
A44: =SUBSTITUTE(ADDRESS(1,SMALL(IF(MOD(COLUMN($AA:$ZZ),27)>0,COLUMN($AA:$ZZ)),RANDBETWEEN(1,650)),4),1,"") -> ED | B44: =INDEX( {"AB","AC","AD","AE","AF","AG","AH","AI","AJ","AK","AL","AM","AN","AO","AP","AQ","AR","AS","AT","AU","AV","AW","AX","AY","AZ";"BA","BC","BD","BE","BF","BG","BH","BI","BJ","BK","BL","BM","BN","BO","BP","BQ","BR","BS","BT","BU","BV","BW","BX","BY","BZ";"CA","CB","CD","CE","CF","CG","CH","CI","CJ","CK","CL","CM","CN","CO","CP","CQ","CR","CS","CT","CU","CV","CW","CX","CY","CZ";"DA","DB","DC","DE","DF","DG","DH","DI","DJ","DK","DL","DM","DN","DO","DP","DQ","DR","DS","DT","DU","DV","DW","DX","DY","DZ";"EA","EB","EC","ED","EF","EG","EH","EI","EJ","EK","EL","EM","EN","EO","EP","EQ","ER","ES","ET","EU","EV","EW","EX","EY","EZ";"FA","FB","FC","FD","FE","FG","FH","FI","FJ","FK","FL","FM","FN","FO","FP","FQ","FR","FS","FT","FU","FV","FW","FX","FY","FZ";"GA","GB","GC","GD","GE","GF","GH","GI","GJ","GK","GL","GM","GN","GO","GP","GQ","GR","GS","GT","GU","GV","GW","GX","GY","GZ";"HA","HB","HC","HD","HE","HF","HG","HI","HJ","HK","HL","HM","HN","HO","HP","HQ","HR","HS","HT","HU","HV","HW","HX","HY","HZ";"IA","IB","IC","ID","IE","IF","IG","IH","IJ","IK","IL","IM","IN","IO","IP","IQ","IR","IS","IT","IU","IV","IW","IX","IY","IZ";"JA","JB","JC","JD","JE","JF","JG","JH","JI","JK","JL","JM","JN","JO","JP","JQ","JR","JS","JT","JU","JV","JW","JX","JY","JZ";"KA","KB","KC","KD","KE","KF","KG","KH","KI","KJ","KL","KM","KN","KO","KP","KQ","KR","KS","KT","KU","KV","KW","KX","KY","KZ";"LA","LB","LC","LD","LE","LF","LG","LH","LI","LJ","LK","LM","LN","LO","LP","LQ","LR","LS","LT","LU","LV","LW","LX","LY","LZ";"MA","MB","MC","MD","ME","MF","MG","MH","MI","MJ","MK","ML","MN","MO","MP","MQ","MR","MS","MT","MU","MV","MW","MX","MY","MZ";"NA","NB","NC","ND","NE","NF","NG","NH","NI","NJ","NK","NL","NM","NO","NP","NQ","NR","NS","NT","NU","NV","NW","NX","NY","NZ";"OA","OB","OC","OD","OE","OF","OG","OH","OI","OJ","OK","OL","OM","ON","OP","OQ","OR","OS","OT","OU","OV","OW","OX","OY","OZ";"PA","PB","PC","PD","PE","PF","PG","PH","PI","PJ","PK","PL","PM","PN","PO","PQ","PR","PS","PT","PU","PV","PW","PX","PY","PZ";"QA","QB","QC","QD","QE","QF","QG","QH","QI","QJ","QK","QL","QM","QN","QO","QP","QR","QS","QT","QU","QV","QW","QX","QY","QZ";"RA","RB","RC","RD","RE","RF","RG","RH","RI","RJ","RK","RL","RM","RN","RO","RP","RQ","RS","RT","RU","RV","RW","RX","RY","RZ";"SA","SB","SC","SD","SE","SF","SG","SH","SI","SJ","SK","SL","SM","SN","SO","SP","SQ","SR","ST","SU","SV","SW","SX","SY","SZ";"TA","TB","TC","TD","TE","TF","TG","TH","TI","TJ","TK","TL","TM","TN","TO","TP","TQ","TR","TS","TU","TV","TW","TX","TY","TZ";"UA","UB","UC","UD","UE","UF","UG","UH","UI","UJ","UK","UL","UM","UN","UO","UP","UQ","UR","US","UT","UV","UW","UX","UY","UZ";"VA","VB","VC","VD","VE","VF","VG","VH","VI","VJ","VK","VL","VM","VN","VO","VP","VQ","VR","VS","VT","VU","VW","VX","VY","VZ";"WA","WB","WC","WD","WE","WF","WG","WH","WI","WJ","WK","WL","WM","WN","WO","WP","WQ","WR","WS","WT","WU","WV","WX","WY","WZ";"XA","XB","XC","XD","XE","XF","XG","XH","XI","XJ","XK","XL","XM","XN","XO","XP","XQ","XR","XS","XT","XU","XV","XW","XY","XZ";"YA","YB","YC","YD","YE","YF","YG","YH","YI","YJ","YK","YL","YM","YN","YO","YP","YQ","YR","YS","YT","YU","YV","YW","YX","YZ";"ZA","ZB","ZC","ZD","ZE","ZF","ZG","ZH","ZI","ZJ","ZK","ZL","ZM","ZN","ZO","ZP","ZQ","ZR","ZS","ZT","ZU","ZV","ZW","ZX","ZY"}, RANDBETWEEN(1,26),RANDBETWEEN(1,25)) -> QJ | C44: XJ | D44: =CHAR(INT((NOW()*10^8-INT(NOW()*10^8))*26+65))&CHAR(LARGE(IF(ROW($A$65:$A$90)<>INT((NOW()*10^8-INT(NOW()*10^8))*26+65),ROW($A$65:$A$90),""),RANDBETWEEN(1,25))) -> SY | E44: BW | F44: MO
A45: =SUBSTITUTE(ADDRESS(1,SMALL(IF(MOD(COLUMN($AA:$ZZ),27)>0,COLUMN($AA:$ZZ)),RANDBETWEEN(1,650)),4),1,"") -> ES | B45: =INDEX( {"AB","AC","AD","AE","AF","AG","AH","AI","AJ","AK","AL","AM","AN","AO","AP","AQ","AR","AS","AT","AU","AV","AW","AX","AY","AZ";"BA","BC","BD","BE","BF","BG","BH","BI","BJ","BK","BL","BM","BN","BO","BP","BQ","BR","BS","BT","BU","BV","BW","BX","BY","BZ";"CA","CB","CD","CE","CF","CG","CH","CI","CJ","CK","CL","CM","CN","CO","CP","CQ","CR","CS","CT","CU","CV","CW","CX","CY","CZ";"DA","DB","DC","DE","DF","DG","DH","DI","DJ","DK","DL","DM","DN","DO","DP","DQ","DR","DS","DT","DU","DV","DW","DX","DY","DZ";"EA","EB","EC","ED","EF","EG","EH","EI","EJ","EK","EL","EM","EN","EO","EP","EQ","ER","ES","ET","EU","EV","EW","EX","EY","EZ";"FA","FB","FC","FD","FE","FG","FH","FI","FJ","FK","FL","FM","FN","FO","FP","FQ","FR","FS","FT","FU","FV","FW","FX","FY","FZ";"GA","GB","GC","GD","GE","GF","GH","GI","GJ","GK","GL","GM","GN","GO","GP","GQ","GR","GS","GT","GU","GV","GW","GX","GY","GZ";"HA","HB","HC","HD","HE","HF","HG","HI","HJ","HK","HL","HM","HN","HO","HP","HQ","HR","HS","HT","HU","HV","HW","HX","HY","HZ";"IA","IB","IC","ID","IE","IF","IG","IH","IJ","IK","IL","IM","IN","IO","IP","IQ","IR","IS","IT","IU","IV","IW","IX","IY","IZ";"JA","JB","JC","JD","JE","JF","JG","JH","JI","JK","JL","JM","JN","JO","JP","JQ","JR","JS","JT","JU","JV","JW","JX","JY","JZ";"KA","KB","KC","KD","KE","KF","KG","KH","KI","KJ","KL","KM","KN","KO","KP","KQ","KR","KS","KT","KU","KV","KW","KX","KY","KZ";"LA","LB","LC","LD","LE","LF","LG","LH","LI","LJ","LK","LM","LN","LO","LP","LQ","LR","LS","LT","LU","LV","LW","LX","LY","LZ";"MA","MB","MC","MD","ME","MF","MG","MH","MI","MJ","MK","ML","MN","MO","MP","MQ","MR","MS","MT","MU","MV","MW","MX","MY","MZ";"NA","NB","NC","ND","NE","NF","NG","NH","NI","NJ","NK","NL","NM","NO","NP","NQ","NR","NS","NT","NU","NV","NW","NX","NY","NZ";"OA","OB","OC","OD","OE","OF","OG","OH","OI","OJ","OK","OL","OM","ON","OP","OQ","OR","OS","OT","OU","OV","OW","OX","OY","OZ";"PA","PB","PC","PD","PE","PF","PG","PH","PI","PJ","PK","PL","PM","PN","PO","PQ","PR","PS","PT","PU","PV","PW","PX","PY","PZ";"QA","QB","QC","QD","QE","QF","QG","QH","QI","QJ","QK","QL","QM","QN","QO","QP","QR","QS","QT","QU","QV","QW","QX","QY","QZ";"RA","RB","RC","RD","RE","RF","RG","RH","RI","RJ","RK","RL","RM","RN","RO","RP","RQ","RS","RT","RU","RV","RW","RX","RY","RZ";"SA","SB","SC","SD","SE","SF","SG","SH","SI","SJ","SK","SL","SM","SN","SO","SP","SQ","SR","ST","SU","SV","SW","SX","SY","SZ";"TA","TB","TC","TD","TE","TF","TG","TH","TI","TJ","TK","TL","TM","TN","TO","TP","TQ","TR","TS","TU","TV","TW","TX","TY","TZ";"UA","UB","UC","UD","UE","UF","UG","UH","UI","UJ","UK","UL","UM","UN","UO","UP","UQ","UR","US","UT","UV","UW","UX","UY","UZ";"VA","VB","VC","VD","VE","VF","VG","VH","VI","VJ","VK","VL","VM","VN","VO","VP","VQ","VR","VS","VT","VU","VW","VX","VY","VZ";"WA","WB","WC","WD","WE","WF","WG","WH","WI","WJ","WK","WL","WM","WN","WO","WP","WQ","WR","WS","WT","WU","WV","WX","WY","WZ";"XA","XB","XC","XD","XE","XF","XG","XH","XI","XJ","XK","XL","XM","XN","XO","XP","XQ","XR","XS","XT","XU","XV","XW","XY","XZ";"YA","YB","YC","YD","YE","YF","YG","YH","YI","YJ","YK","YL","YM","YN","YO","YP","YQ","YR","YS","YT","YU","YV","YW","YX","YZ";"ZA","ZB","ZC","ZD","ZE","ZF","ZG","ZH","ZI","ZJ","ZK","ZL","ZM","ZN","ZO","ZP","ZQ","ZR","ZS","ZT","ZU","ZV","ZW","ZX","ZY"}, RANDBETWEEN(1,26),RANDBETWEEN(1,25)) -> MC | C45: CB | D45: =CHAR(INT((NOW()*10^8-INT(NOW()*10^8))*26+65))&CHAR(LARGE(IF(ROW($A$65:$A$90)<>INT((NOW()*10^8-INT(NOW()*10^8))*26+65),ROW($A$65:$A$90),""),RANDBETWEEN(1,25))) -> SU | E45: YZ | F45: KM
A46: =SUBSTITUTE(ADDRESS(1,SMALL(IF(MOD(COLUMN($AA:$ZZ),27)>0,COLUMN($AA:$ZZ)),RANDBETWEEN(1,650)),4),1,"") -> LP | B46: =INDEX( {"AB","AC","AD","AE","AF","AG","AH","AI","AJ","AK","AL","AM","AN","AO","AP","AQ","AR","AS","AT","AU","AV","AW","AX","AY","AZ";"BA","BC","BD","BE","BF","BG","BH","BI","BJ","BK","BL","BM","BN","BO","BP","BQ","BR","BS","BT","BU","BV","BW","BX","BY","BZ";"CA","CB","CD","CE","CF","CG","CH","CI","CJ","CK","CL","CM","CN","CO","CP","CQ","CR","CS","CT","CU","CV","CW","CX","CY","CZ";"DA","DB","DC","DE","DF","DG","DH","DI","DJ","DK","DL","DM","DN","DO","DP","DQ","DR","DS","DT","DU","DV","DW","DX","DY","DZ";"EA","EB","EC","ED","EF","EG","EH","EI","EJ","EK","EL","EM","EN","EO","EP","EQ","ER","ES","ET","EU","EV","EW","EX","EY","EZ";"FA","FB","FC","FD","FE","FG","FH","FI","FJ","FK","FL","FM","FN","FO","FP","FQ","FR","FS","FT","FU","FV","FW","FX","FY","FZ";"GA","GB","GC","GD","GE","GF","GH","GI","GJ","GK","GL","GM","GN","GO","GP","GQ","GR","GS","GT","GU","GV","GW","GX","GY","GZ";"HA","HB","HC","HD","HE","HF","HG","HI","HJ","HK","HL","HM","HN","HO","HP","HQ","HR","HS","HT","HU","HV","HW","HX","HY","HZ";"IA","IB","IC","ID","IE","IF","IG","IH","IJ","IK","IL","IM","IN","IO","IP","IQ","IR","IS","IT","IU","IV","IW","IX","IY","IZ";"JA","JB","JC","JD","JE","JF","JG","JH","JI","JK","JL","JM","JN","JO","JP","JQ","JR","JS","JT","JU","JV","JW","JX","JY","JZ";"KA","KB","KC","KD","KE","KF","KG","KH","KI","KJ","KL","KM","KN","KO","KP","KQ","KR","KS","KT","KU","KV","KW","KX","KY","KZ";"LA","LB","LC","LD","LE","LF","LG","LH","LI","LJ","LK","LM","LN","LO","LP","LQ","LR","LS","LT","LU","LV","LW","LX","LY","LZ";"MA","MB","MC","MD","ME","MF","MG","MH","MI","MJ","MK","ML","MN","MO","MP","MQ","MR","MS","MT","MU","MV","MW","MX","MY","MZ";"NA","NB","NC","ND","NE","NF","NG","NH","NI","NJ","NK","NL","NM","NO","NP","NQ","NR","NS","NT","NU","NV","NW","NX","NY","NZ";"OA","OB","OC","OD","OE","OF","OG","OH","OI","OJ","OK","OL","OM","ON","OP","OQ","OR","OS","OT","OU","OV","OW","OX","OY","OZ";"PA","PB","PC","PD","PE","PF","PG","PH","PI","PJ","PK","PL","PM","PN","PO","PQ","PR","PS","PT","PU","PV","PW","PX","PY","PZ";"QA","QB","QC","QD","QE","QF","QG","QH","QI","QJ","QK","QL","QM","QN","QO","QP","QR","QS","QT","QU","QV","QW","QX","QY","QZ";"RA","RB","RC","RD","RE","RF","RG","RH","RI","RJ","RK","RL","RM","RN","RO","RP","RQ","RS","RT","RU","RV","RW","RX","RY","RZ";"SA","SB","SC","SD","SE","SF","SG","SH","SI","SJ","SK","SL","SM","SN","SO","SP","SQ","SR","ST","SU","SV","SW","SX","SY","SZ";"TA","TB","TC","TD","TE","TF","TG","TH","TI","TJ","TK","TL","TM","TN","TO","TP","TQ","TR","TS","TU","TV","TW","TX","TY","TZ";"UA","UB","UC","UD","UE","UF","UG","UH","UI","UJ","UK","UL","UM","UN","UO","UP","UQ","UR","US","UT","UV","UW","UX","UY","UZ";"VA","VB","VC","VD","VE","VF","VG","VH","VI","VJ","VK","VL","VM","VN","VO","VP","VQ","VR","VS","VT","VU","VW","VX","VY","VZ";"WA","WB","WC","WD","WE","WF","WG","WH","WI","WJ","WK","WL","WM","WN","WO","WP","WQ","WR","WS","WT","WU","WV","WX","WY","WZ";"XA","XB","XC","XD","XE","XF","XG","XH","XI","XJ","XK","XL","XM","XN","XO","XP","XQ","XR","XS","XT","XU","XV","XW","XY","XZ";"YA","YB","YC","YD","YE","YF","YG","YH","YI","YJ","YK","YL","YM","YN","YO","YP","YQ","YR","YS","YT","YU","YV","YW","YX","YZ";"ZA","ZB","ZC","ZD","ZE","ZF","ZG","ZH","ZI","ZJ","ZK","ZL","ZM","ZN","ZO","ZP","ZQ","ZR","ZS","ZT","ZU","ZV","ZW","ZX","ZY"}, RANDBETWEEN(1,26),RANDBETWEEN(1,25)) -> BV | C46: LD | D46: =CHAR(INT((NOW()*10^8-INT(NOW()*10^8))*26+65))&CHAR(LARGE(IF(ROW($A$65:$A$90)<>INT((NOW()*10^8-INT(NOW()*10^8))*26+65),ROW($A$65:$A$90),""),RANDBETWEEN(1,25))) -> SD | E46: XS | F46: AF
A47: =SUBSTITUTE(ADDRESS(1,SMALL(IF(MOD(COLUMN($AA:$ZZ),27)>0,COLUMN($AA:$ZZ)),RANDBETWEEN(1,650)),4),1,"") -> JC | B47: =INDEX( {"AB","AC","AD","AE","AF","AG","AH","AI","AJ","AK","AL","AM","AN","AO","AP","AQ","AR","AS","AT","AU","AV","AW","AX","AY","AZ";"BA","BC","BD","BE","BF","BG","BH","BI","BJ","BK","BL","BM","BN","BO","BP","BQ","BR","BS","BT","BU","BV","BW","BX","BY","BZ";"CA","CB","CD","CE","CF","CG","CH","CI","CJ","CK","CL","CM","CN","CO","CP","CQ","CR","CS","CT","CU","CV","CW","CX","CY","CZ";"DA","DB","DC","DE","DF","DG","DH","DI","DJ","DK","DL","DM","DN","DO","DP","DQ","DR","DS","DT","DU","DV","DW","DX","DY","DZ";"EA","EB","EC","ED","EF","EG","EH","EI","EJ","EK","EL","EM","EN","EO","EP","EQ","ER","ES","ET","EU","EV","EW","EX","EY","EZ";"FA","FB","FC","FD","FE","FG","FH","FI","FJ","FK","FL","FM","FN","FO","FP","FQ","FR","FS","FT","FU","FV","FW","FX","FY","FZ";"GA","GB","GC","GD","GE","GF","GH","GI","GJ","GK","GL","GM","GN","GO","GP","GQ","GR","GS","GT","GU","GV","GW","GX","GY","GZ";"HA","HB","HC","HD","HE","HF","HG","HI","HJ","HK","HL","HM","HN","HO","HP","HQ","HR","HS","HT","HU","HV","HW","HX","HY","HZ";"IA","IB","IC","ID","IE","IF","IG","IH","IJ","IK","IL","IM","IN","IO","IP","IQ","IR","IS","IT","IU","IV","IW","IX","IY","IZ";"JA","JB","JC","JD","JE","JF","JG","JH","JI","JK","JL","JM","JN","JO","JP","JQ","JR","JS","JT","JU","JV","JW","JX","JY","JZ";"KA","KB","KC","KD","KE","KF","KG","KH","KI","KJ","KL","KM","KN","KO","KP","KQ","KR","KS","KT","KU","KV","KW","KX","KY","KZ";"LA","LB","LC","LD","LE","LF","LG","LH","LI","LJ","LK","LM","LN","LO","LP","LQ","LR","LS","LT","LU","LV","LW","LX","LY","LZ";"MA","MB","MC","MD","ME","MF","MG","MH","MI","MJ","MK","ML","MN","MO","MP","MQ","MR","MS","MT","MU","MV","MW","MX","MY","MZ";"NA","NB","NC","ND","NE","NF","NG","NH","NI","NJ","NK","NL","NM","NO","NP","NQ","NR","NS","NT","NU","NV","NW","NX","NY","NZ";"OA","OB","OC","OD","OE","OF","OG","OH","OI","OJ","OK","OL","OM","ON","OP","OQ","OR","OS","OT","OU","OV","OW","OX","OY","OZ";"PA","PB","PC","PD","PE","PF","PG","PH","PI","PJ","PK","PL","PM","PN","PO","PQ","PR","PS","PT","PU","PV","PW","PX","PY","PZ";"QA","QB","QC","QD","QE","QF","QG","QH","QI","QJ","QK","QL","QM","QN","QO","QP","QR","QS","QT","QU","QV","QW","QX","QY","QZ";"RA","RB","RC","RD","RE","RF","RG","RH","RI","RJ","RK","RL","RM","RN","RO","RP","RQ","RS","RT","RU","RV","RW","RX","RY","RZ";"SA","SB","SC","SD","SE","SF","SG","SH","SI","SJ","SK","SL","SM","SN","SO","SP","SQ","SR","ST","SU","SV","SW","SX","SY","SZ";"TA","TB","TC","TD","TE","TF","TG","TH","TI","TJ","TK","TL","TM","TN","TO","TP","TQ","TR","TS","TU","TV","TW","TX","TY","TZ";"UA","UB","UC","UD","UE","UF","UG","UH","UI","UJ","UK","UL","UM","UN","UO","UP","UQ","UR","US","UT","UV","UW","UX","UY","UZ";"VA","VB","VC","VD","VE","VF","VG","VH","VI","VJ","VK","VL","VM","VN","VO","VP","VQ","VR","VS","VT","VU","VW","VX","VY","VZ";"WA","WB","WC","WD","WE","WF","WG","WH","WI","WJ","WK","WL","WM","WN","WO","WP","WQ","WR","WS","WT","WU","WV","WX","WY","WZ";"XA","XB","XC","XD","XE","XF","XG","XH","XI","XJ","XK","XL","XM","XN","XO","XP","XQ","XR","XS","XT","XU","XV","XW","XY","XZ";"YA","YB","YC","YD","YE","YF","YG","YH","YI","YJ","YK","YL","YM","YN","YO","YP","YQ","YR","YS","YT","YU","YV","YW","YX","YZ";"ZA","ZB","ZC","ZD","ZE","ZF","ZG","ZH","ZI","ZJ","ZK","ZL","ZM","ZN","ZO","ZP","ZQ","ZR","ZS","ZT","ZU","ZV","ZW","ZX","ZY"}, RANDBETWEEN(1,26),RANDBETWEEN(1,25)) -> GR | C47: ET | D47: =CHAR(INT((NOW()*10^8-INT(NOW()*10^8))*26+65))&CHAR(LARGE(IF(ROW($A$65:$A$90)<>INT((NOW()*10^8-INT(NOW()*10^8))*26+65),ROW($A$65:$A$90),""),RANDBETWEEN(1,25))) -> SW | E47: IK | F47: KN
A48: =SUBSTITUTE(ADDRESS(1,SMALL(IF(MOD(COLUMN($AA:$ZZ),27)>0,COLUMN($AA:$ZZ)),RANDBETWEEN(1,650)),4),1,"") -> CD | B48: =INDEX( {"AB","AC","AD","AE","AF","AG","AH","AI","AJ","AK","AL","AM","AN","AO","AP","AQ","AR","AS","AT","AU","AV","AW","AX","AY","AZ";"BA","BC","BD","BE","BF","BG","BH","BI","BJ","BK","BL","BM","BN","BO","BP","BQ","BR","BS","BT","BU","BV","BW","BX","BY","BZ";"CA","CB","CD","CE","CF","CG","CH","CI","CJ","CK","CL","CM","CN","CO","CP","CQ","CR","CS","CT","CU","CV","CW","CX","CY","CZ";"DA","DB","DC","DE","DF","DG","DH","DI","DJ","DK","DL","DM","DN","DO","DP","DQ","DR","DS","DT","DU","DV","DW","DX","DY","DZ";"EA","EB","EC","ED","EF","EG","EH","EI","EJ","EK","EL","EM","EN","EO","EP","EQ","ER","ES","ET","EU","EV","EW","EX","EY","EZ";"FA","FB","FC","FD","FE","FG","FH","FI","FJ","FK","FL","FM","FN","FO","FP","FQ","FR","FS","FT","FU","FV","FW","FX","FY","FZ";"GA","GB","GC","GD","GE","GF","GH","GI","GJ","GK","GL","GM","GN","GO","GP","GQ","GR","GS","GT","GU","GV","GW","GX","GY","GZ";"HA","HB","HC","HD","HE","HF","HG","HI","HJ","HK","HL","HM","HN","HO","HP","HQ","HR","HS","HT","HU","HV","HW","HX","HY","HZ";"IA","IB","IC","ID","IE","IF","IG","IH","IJ","IK","IL","IM","IN","IO","IP","IQ","IR","IS","IT","IU","IV","IW","IX","IY","IZ";"JA","JB","JC","JD","JE","JF","JG","JH","JI","JK","JL","JM","JN","JO","JP","JQ","JR","JS","JT","JU","JV","JW","JX","JY","JZ";"KA","KB","KC","KD","KE","KF","KG","KH","KI","KJ","KL","KM","KN","KO","KP","KQ","KR","KS","KT","KU","KV","KW","KX","KY","KZ";"LA","LB","LC","LD","LE","LF","LG","LH","LI","LJ","LK","LM","LN","LO","LP","LQ","LR","LS","LT","LU","LV","LW","LX","LY","LZ";"MA","MB","MC","MD","ME","MF","MG","MH","MI","MJ","MK","ML","MN","MO","MP","MQ","MR","MS","MT","MU","MV","MW","MX","MY","MZ";"NA","NB","NC","ND","NE","NF","NG","NH","NI","NJ","NK","NL","NM","NO","NP","NQ","NR","NS","NT","NU","NV","NW","NX","NY","NZ";"OA","OB","OC","OD","OE","OF","OG","OH","OI","OJ","OK","OL","OM","ON","OP","OQ","OR","OS","OT","OU","OV","OW","OX","OY","OZ";"PA","PB","PC","PD","PE","PF","PG","PH","PI","PJ","PK","PL","PM","PN","PO","PQ","PR","PS","PT","PU","PV","PW","PX","PY","PZ";"QA","QB","QC","QD","QE","QF","QG","QH","QI","QJ","QK","QL","QM","QN","QO","QP","QR","QS","QT","QU","QV","QW","QX","QY","QZ";"RA","RB","RC","RD","RE","RF","RG","RH","RI","RJ","RK","RL","RM","RN","RO","RP","RQ","RS","RT","RU","RV","RW","RX","RY","RZ";"SA","SB","SC","SD","SE","SF","SG","SH","SI","SJ","SK","SL","SM","SN","SO","SP","SQ","SR","ST","SU","SV","SW","SX","SY","SZ";"TA","TB","TC","TD","TE","TF","TG","TH","TI","TJ","TK","TL","TM","TN","TO","TP","TQ","TR","TS","TU","TV","TW","TX","TY","TZ";"UA","UB","UC","UD","UE","UF","UG","UH","UI","UJ","UK","UL","UM","UN","UO","UP","UQ","UR","US","UT","UV","UW","UX","UY","UZ";"VA","VB","VC","VD","VE","VF","VG","VH","VI","VJ","VK","VL","VM","VN","VO","VP","VQ","VR","VS","VT","VU","VW","VX","VY","VZ";"WA","WB","WC","WD","WE","WF","WG","WH","WI","WJ","WK","WL","WM","WN","WO","WP","WQ","WR","WS","WT","WU","WV","WX","WY","WZ";"XA","XB","XC","XD","XE","XF","XG","XH","XI","XJ","XK","XL","XM","XN","XO","XP","XQ","XR","XS","XT","XU","XV","XW","XY","XZ";"YA","YB","YC","YD","YE","YF","YG","YH","YI","YJ","YK","YL","YM","YN","YO","YP","YQ","YR","YS","YT","YU","YV","YW","YX","YZ";"ZA","ZB","ZC","ZD","ZE","ZF","ZG","ZH","ZI","ZJ","ZK","ZL","ZM","ZN","ZO","ZP","ZQ","ZR","ZS","ZT","ZU","ZV","ZW","ZX","ZY"}, RANDBETWEEN(1,26),RANDBETWEEN(1,25)) -> YV | C48: UX | D48: =CHAR(INT((NOW()*10^8-INT(NOW()*10^8))*26+65))&CHAR(LARGE(IF(ROW($A$65:$A$90)<>INT((NOW()*10^8-INT(NOW()*10^8))*26+65),ROW($A$65:$A$90),""),RANDBETWEEN(1,25))) -> SQ | E48: WD | F48: VZ
A49: =SUBSTITUTE(ADDRESS(1,SMALL(IF(MOD(COLUMN($AA:$ZZ),27)>0,COLUMN($AA:$ZZ)),RANDBETWEEN(1,650)),4),1,"") -> DC | B49: =INDEX( {"AB","AC","AD","AE","AF","AG","AH","AI","AJ","AK","AL","AM","AN","AO","AP","AQ","AR","AS","AT","AU","AV","AW","AX","AY","AZ";"BA","BC","BD","BE","BF","BG","BH","BI","BJ","BK","BL","BM","BN","BO","BP","BQ","BR","BS","BT","BU","BV","BW","BX","BY","BZ";"CA","CB","CD","CE","CF","CG","CH","CI","CJ","CK","CL","CM","CN","CO","CP","CQ","CR","CS","CT","CU","CV","CW","CX","CY","CZ";"DA","DB","DC","DE","DF","DG","DH","DI","DJ","DK","DL","DM","DN","DO","DP","DQ","DR","DS","DT","DU","DV","DW","DX","DY","DZ";"EA","EB","EC","ED","EF","EG","EH","EI","EJ","EK","EL","EM","EN","EO","EP","EQ","ER","ES","ET","EU","EV","EW","EX","EY","EZ";"FA","FB","FC","FD","FE","FG","FH","FI","FJ","FK","FL","FM","FN","FO","FP","FQ","FR","FS","FT","FU","FV","FW","FX","FY","FZ";"GA","GB","GC","GD","GE","GF","GH","GI","GJ","GK","GL","GM","GN","GO","GP","GQ","GR","GS","GT","GU","GV","GW","GX","GY","GZ";"HA","HB","HC","HD","HE","HF","HG","HI","HJ","HK","HL","HM","HN","HO","HP","HQ","HR","HS","HT","HU","HV","HW","HX","HY","HZ";"IA","IB","IC","ID","IE","IF","IG","IH","IJ","IK","IL","IM","IN","IO","IP","IQ","IR","IS","IT","IU","IV","IW","IX","IY","IZ";"JA","JB","JC","JD","JE","JF","JG","JH","JI","JK","JL","JM","JN","JO","JP","JQ","JR","JS","JT","JU","JV","JW","JX","JY","JZ";"KA","KB","KC","KD","KE","KF","KG","KH","KI","KJ","KL","KM","KN","KO","KP","KQ","KR","KS","KT","KU","KV","KW","KX","KY","KZ";"LA","LB","LC","LD","LE","LF","LG","LH","LI","LJ","LK","LM","LN","LO","LP","LQ","LR","LS","LT","LU","LV","LW","LX","LY","LZ";"MA","MB","MC","MD","ME","MF","MG","MH","MI","MJ","MK","ML","MN","MO","MP","MQ","MR","MS","MT","MU","MV","MW","MX","MY","MZ";"NA","NB","NC","ND","NE","NF","NG","NH","NI","NJ","NK","NL","NM","NO","NP","NQ","NR","NS","NT","NU","NV","NW","NX","NY","NZ";"OA","OB","OC","OD","OE","OF","OG","OH","OI","OJ","OK","OL","OM","ON","OP","OQ","OR","OS","OT","OU","OV","OW","OX","OY","OZ";"PA","PB","PC","PD","PE","PF","PG","PH","PI","PJ","PK","PL","PM","PN","PO","PQ","PR","PS","PT","PU","PV","PW","PX","PY","PZ";"QA","QB","QC","QD","QE","QF","QG","QH","QI","QJ","QK","QL","QM","QN","QO","QP","QR","QS","QT","QU","QV","QW","QX","QY","QZ";"RA","RB","RC","RD","RE","RF","RG","RH","RI","RJ","RK","RL","RM","RN","RO","RP","RQ","RS","RT","RU","RV","RW","RX","RY","RZ";"SA","SB","SC","SD","SE","SF","SG","SH","SI","SJ","SK","SL","SM","SN","SO","SP","SQ","SR","ST","SU","SV","SW","SX","SY","SZ";"TA","TB","TC","TD","TE","TF","TG","TH","TI","TJ","TK","TL","TM","TN","TO","TP","TQ","TR","TS","TU","TV","TW","TX","TY","TZ";"UA","UB","UC","UD","UE","UF","UG","UH","UI","UJ","UK","UL","UM","UN","UO","UP","UQ","UR","US","UT","UV","UW","UX","UY","UZ";"VA","VB","VC","VD","VE","VF","VG","VH","VI","VJ","VK","VL","VM","VN","VO","VP","VQ","VR","VS","VT","VU","VW","VX","VY","VZ";"WA","WB","WC","WD","WE","WF","WG","WH","WI","WJ","WK","WL","WM","WN","WO","WP","WQ","WR","WS","WT","WU","WV","WX","WY","WZ";"XA","XB","XC","XD","XE","XF","XG","XH","XI","XJ","XK","XL","XM","XN","XO","XP","XQ","XR","XS","XT","XU","XV","XW","XY","XZ";"YA","YB","YC","YD","YE","YF","YG","YH","YI","YJ","YK","YL","YM","YN","YO","YP","YQ","YR","YS","YT","YU","YV","YW","YX","YZ";"ZA","ZB","ZC","ZD","ZE","ZF","ZG","ZH","ZI","ZJ","ZK","ZL","ZM","ZN","ZO","ZP","ZQ","ZR","ZS","ZT","ZU","ZV","ZW","ZX","ZY"}, RANDBETWEEN(1,26),RANDBETWEEN(1,25)) -> NR | C49: YX | D49: =CHAR(INT((NOW()*10^8-INT(NOW()*10^8))*26+65))&CHAR(LARGE(IF(ROW($A$65:$A$90)<>INT((NOW()*10^8-INT(NOW()*10^8))*26+65),ROW($A$65:$A$90),""),RANDBETWEEN(1,25))) -> SL | E49: OI | F49: GY
A50: =SUBSTITUTE(ADDRESS(1,SMALL(IF(MOD(COLUMN($AA:$ZZ),27)>0,COLUMN($AA:$ZZ)),RANDBETWEEN(1,650)),4),1,"") -> DF | B50: =INDEX( {"AB","AC","AD","AE","AF","AG","AH","AI","AJ","AK","AL","AM","AN","AO","AP","AQ","AR","AS","AT","AU","AV","AW","AX","AY","AZ";"BA","BC","BD","BE","BF","BG","BH","BI","BJ","BK","BL","BM","BN","BO","BP","BQ","BR","BS","BT","BU","BV","BW","BX","BY","BZ";"CA","CB","CD","CE","CF","CG","CH","CI","CJ","CK","CL","CM","CN","CO","CP","CQ","CR","CS","CT","CU","CV","CW","CX","CY","CZ";"DA","DB","DC","DE","DF","DG","DH","DI","DJ","DK","DL","DM","DN","DO","DP","DQ","DR","DS","DT","DU","DV","DW","DX","DY","DZ";"EA","EB","EC","ED","EF","EG","EH","EI","EJ","EK","EL","EM","EN","EO","EP","EQ","ER","ES","ET","EU","EV","EW","EX","EY","EZ";"FA","FB","FC","FD","FE","FG","FH","FI","FJ","FK","FL","FM","FN","FO","FP","FQ","FR","FS","FT","FU","FV","FW","FX","FY","FZ";"GA","GB","GC","GD","GE","GF","GH","GI","GJ","GK","GL","GM","GN","GO","GP","GQ","GR","GS","GT","GU","GV","GW","GX","GY","GZ";"HA","HB","HC","HD","HE","HF","HG","HI","HJ","HK","HL","HM","HN","HO","HP","HQ","HR","HS","HT","HU","HV","HW","HX","HY","HZ";"IA","IB","IC","ID","IE","IF","IG","IH","IJ","IK","IL","IM","IN","IO","IP","IQ","IR","IS","IT","IU","IV","IW","IX","IY","IZ";"JA","JB","JC","JD","JE","JF","JG","JH","JI","JK","JL","JM","JN","JO","JP","JQ","JR","JS","JT","JU","JV","JW","JX","JY","JZ";"KA","KB","KC","KD","KE","KF","KG","KH","KI","KJ","KL","KM","KN","KO","KP","KQ","KR","KS","KT","KU","KV","KW","KX","KY","KZ";"LA","LB","LC","LD","LE","LF","LG","LH","LI","LJ","LK","LM","LN","LO","LP","LQ","LR","LS","LT","LU","LV","LW","LX","LY","LZ";"MA","MB","MC","MD","ME","MF","MG","MH","MI","MJ","MK","ML","MN","MO","MP","MQ","MR","MS","MT","MU","MV","MW","MX","MY","MZ";"NA","NB","NC","ND","NE","NF","NG","NH","NI","NJ","NK","NL","NM","NO","NP","NQ","NR","NS","NT","NU","NV","NW","NX","NY","NZ";"OA","OB","OC","OD","OE","OF","OG","OH","OI","OJ","OK","OL","OM","ON","OP","OQ","OR","OS","OT","OU","OV","OW","OX","OY","OZ";"PA","PB","PC","PD","PE","PF","PG","PH","PI","PJ","PK","PL","PM","PN","PO","PQ","PR","PS","PT","PU","PV","PW","PX","PY","PZ";"QA","QB","QC","QD","QE","QF","QG","QH","QI","QJ","QK","QL","QM","QN","QO","QP","QR","QS","QT","QU","QV","QW","QX","QY","QZ";"RA","RB","RC","RD","RE","RF","RG","RH","RI","RJ","RK","RL","RM","RN","RO","RP","RQ","RS","RT","RU","RV","RW","RX","RY","RZ";"SA","SB","SC","SD","SE","SF","SG","SH","SI","SJ","SK","SL","SM","SN","SO","SP","SQ","SR","ST","SU","SV","SW","SX","SY","SZ";"TA","TB","TC","TD","TE","TF","TG","TH","TI","TJ","TK","TL","TM","TN","TO","TP","TQ","TR","TS","TU","TV","TW","TX","TY","TZ";"UA","UB","UC","UD","UE","UF","UG","UH","UI","UJ","UK","UL","UM","UN","UO","UP","UQ","UR","US","UT","UV","UW","UX","UY","UZ";"VA","VB","VC","VD","VE","VF","VG","VH","VI","VJ","VK","VL","VM","VN","VO","VP","VQ","VR","VS","VT","VU","VW","VX","VY","VZ";"WA","WB","WC","WD","WE","WF","WG","WH","WI","WJ","WK","WL","WM","WN","WO","WP","WQ","WR","WS","WT","WU","WV","WX","WY","WZ";"XA","XB","XC","XD","XE","XF","XG","XH","XI","XJ","XK","XL","XM","XN","XO","XP","XQ","XR","XS","XT","XU","XV","XW","XY","XZ";"YA","YB","YC","YD","YE","YF","YG","YH","YI","YJ","YK","YL","YM","YN","YO","YP","YQ","YR","YS","YT","YU","YV","YW","YX","YZ";"ZA","ZB","ZC","ZD","ZE","ZF","ZG","ZH","ZI","ZJ","ZK","ZL","ZM","ZN","ZO","ZP","ZQ","ZR","ZS","ZT","ZU","ZV","ZW","ZX","ZY"}, RANDBETWEEN(1,26),RANDBETWEEN(1,25)) -> VL | C50: VP | D50: =CHAR(INT((NOW()*10^8-INT(NOW()*10^8))*26+65))&CHAR(LARGE(IF(ROW($A$65:$A$90)<>INT((NOW()*10^8-INT(NOW()*10^8))*26+65),ROW($A$65:$A$90),""),RANDBETWEEN(1,25))) -> SU | E50: DR | F50: SD
A51: =SUBSTITUTE(ADDRESS(1,SMALL(IF(MOD(COLUMN($AA:$ZZ),27)>0,COLUMN($AA:$ZZ)),RANDBETWEEN(1,650)),4),1,"") -> NY | B51: =INDEX( {"AB","AC","AD","AE","AF","AG","AH","AI","AJ","AK","AL","AM","AN","AO","AP","AQ","AR","AS","AT","AU","AV","AW","AX","AY","AZ";"BA","BC","BD","BE","BF","BG","BH","BI","BJ","BK","BL","BM","BN","BO","BP","BQ","BR","BS","BT","BU","BV","BW","BX","BY","BZ";"CA","CB","CD","CE","CF","CG","CH","CI","CJ","CK","CL","CM","CN","CO","CP","CQ","CR","CS","CT","CU","CV","CW","CX","CY","CZ";"DA","DB","DC","DE","DF","DG","DH","DI","DJ","DK","DL","DM","DN","DO","DP","DQ","DR","DS","DT","DU","DV","DW","DX","DY","DZ";"EA","EB","EC","ED","EF","EG","EH","EI","EJ","EK","EL","EM","EN","EO","EP","EQ","ER","ES","ET","EU","EV","EW","EX","EY","EZ";"FA","FB","FC","FD","FE","FG","FH","FI","FJ","FK","FL","FM","FN","FO","FP","FQ","FR","FS","FT","FU","FV","FW","FX","FY","FZ";"GA","GB","GC","GD","GE","GF","GH","GI","GJ","GK","GL","GM","GN","GO","GP","GQ","GR","GS","GT","GU","GV","GW","GX","GY","GZ";"HA","HB","HC","HD","HE","HF","HG","HI","HJ","HK","HL","HM","HN","HO","HP","HQ","HR","HS","HT","HU","HV","HW","HX","HY","HZ";"IA","IB","IC","ID","IE","IF","IG","IH","IJ","IK","IL","IM","IN","IO","IP","IQ","IR","IS","IT","IU","IV","IW","IX","IY","IZ";"JA","JB","JC","JD","JE","JF","JG","JH","JI","JK","JL","JM","JN","JO","JP","JQ","JR","JS","JT","JU","JV","JW","JX","JY","JZ";"KA","KB","KC","KD","KE","KF","KG","KH","KI","KJ","KL","KM","KN","KO","KP","KQ","KR","KS","KT","KU","KV","KW","KX","KY","KZ";"LA","LB","LC","LD","LE","LF","LG","LH","LI","LJ","LK","LM","LN","LO","LP","LQ","LR","LS","LT","LU","LV","LW","LX","LY","LZ";"MA","MB","MC","MD","ME","MF","MG","MH","MI","MJ","MK","ML","MN","MO","MP","MQ","MR","MS","MT","MU","MV","MW","MX","MY","MZ";"NA","NB","NC","ND","NE","NF","NG","NH","NI","NJ","NK","NL","NM","NO","NP","NQ","NR","NS","NT","NU","NV","NW","NX","NY","NZ";"OA","OB","OC","OD","OE","OF","OG","OH","OI","OJ","OK","OL","OM","ON","OP","OQ","OR","OS","OT","OU","OV","OW","OX","OY","OZ";"PA","PB","PC","PD","PE","PF","PG","PH","PI","PJ","PK","PL","PM","PN","PO","PQ","PR","PS","PT","PU","PV","PW","PX","PY","PZ";"QA","QB","QC","QD","QE","QF","QG","QH","QI","QJ","QK","QL","QM","QN","QO","QP","QR","QS","QT","QU","QV","QW","QX","QY","QZ";"RA","RB","RC","RD","RE","RF","RG","RH","RI","RJ","RK","RL","RM","RN","RO","RP","RQ","RS","RT","RU","RV","RW","RX","RY","RZ";"SA","SB","SC","SD","SE","SF","SG","SH","SI","SJ","SK","SL","SM","SN","SO","SP","SQ","SR","ST","SU","SV","SW","SX","SY","SZ";"TA","TB","TC","TD","TE","TF","TG","TH","TI","TJ","TK","TL","TM","TN","TO","TP","TQ","TR","TS","TU","TV","TW","TX","TY","TZ";"UA","UB","UC","UD","UE","UF","UG","UH","UI","UJ","UK","UL","UM","UN","UO","UP","UQ","UR","US","UT","UV","UW","UX","UY","UZ";"VA","VB","VC","VD","VE","VF","VG","VH","VI","VJ","VK","VL","VM","VN","VO","VP","VQ","VR","VS","VT","VU","VW","VX","VY","VZ";"WA","WB","WC","WD","WE","WF","WG","WH","WI","WJ","WK","WL","WM","WN","WO","WP","WQ","WR","WS","WT","WU","WV","WX","WY","WZ";"XA","XB","XC","XD","XE","XF","XG","XH","XI","XJ","XK","XL","XM","XN","XO","XP","XQ","XR","XS","XT","XU","XV","XW","XY","XZ";"YA","YB","YC","YD","YE","YF","YG","YH","YI","YJ","YK","YL","YM","YN","YO","YP","YQ","YR","YS","YT","YU","YV","YW","YX","YZ";"ZA","ZB","ZC","ZD","ZE","ZF","ZG","ZH","ZI","ZJ","ZK","ZL","ZM","ZN","ZO","ZP","ZQ","ZR","ZS","ZT","ZU","ZV","ZW","ZX","ZY"}, RANDBETWEEN(1,26),RANDBETWEEN(1,25)) -> WQ | C51: VM | D51: =CHAR(INT((NOW()*10^8-INT(NOW()*10^8))*26+65))&CHAR(LARGE(IF(ROW($A$65:$A$90)<>INT((NOW()*10^8-INT(NOW()*10^8))*26+65),ROW($A$65:$A$90),""),RANDBETWEEN(1,25))) -> SG | E51: NI | F51: EA
A52: =SUBSTITUTE(ADDRESS(1,SMALL(IF(MOD(COLUMN($AA:$ZZ),27)>0,COLUMN($AA:$ZZ)),RANDBETWEEN(1,650)),4),1,"") -> KP | B52: =INDEX( {"AB","AC","AD","AE","AF","AG","AH","AI","AJ","AK","AL","AM","AN","AO","AP","AQ","AR","AS","AT","AU","AV","AW","AX","AY","AZ";"BA","BC","BD","BE","BF","BG","BH","BI","BJ","BK","BL","BM","BN","BO","BP","BQ","BR","BS","BT","BU","BV","BW","BX","BY","BZ";"CA","CB","CD","CE","CF","CG","CH","CI","CJ","CK","CL","CM","CN","CO","CP","CQ","CR","CS","CT","CU","CV","CW","CX","CY","CZ";"DA","DB","DC","DE","DF","DG","DH","DI","DJ","DK","DL","DM","DN","DO","DP","DQ","DR","DS","DT","DU","DV","DW","DX","DY","DZ";"EA","EB","EC","ED","EF","EG","EH","EI","EJ","EK","EL","EM","EN","EO","EP","EQ","ER","ES","ET","EU","EV","EW","EX","EY","EZ";"FA","FB","FC","FD","FE","FG","FH","FI","FJ","FK","FL","FM","FN","FO","FP","FQ","FR","FS","FT","FU","FV","FW","FX","FY","FZ";"GA","GB","GC","GD","GE","GF","GH","GI","GJ","GK","GL","GM","GN","GO","GP","GQ","GR","GS","GT","GU","GV","GW","GX","GY","GZ";"HA","HB","HC","HD","HE","HF","HG","HI","HJ","HK","HL","HM","HN","HO","HP","HQ","HR","HS","HT","HU","HV","HW","HX","HY","HZ";"IA","IB","IC","ID","IE","IF","IG","IH","IJ","IK","IL","IM","IN","IO","IP","IQ","IR","IS","IT","IU","IV","IW","IX","IY","IZ";"JA","JB","JC","JD","JE","JF","JG","JH","JI","JK","JL","JM","JN","JO","JP","JQ","JR","JS","JT","JU","JV","JW","JX","JY","JZ";"KA","KB","KC","KD","KE","KF","KG","KH","KI","KJ","KL","KM","KN","KO","KP","KQ","KR","KS","KT","KU","KV","KW","KX","KY","KZ";"LA","LB","LC","LD","LE","LF","LG","LH","LI","LJ","LK","LM","LN","LO","LP","LQ","LR","LS","LT","LU","LV","LW","LX","LY","LZ";"MA","MB","MC","MD","ME","MF","MG","MH","MI","MJ","MK","ML","MN","MO","MP","MQ","MR","MS","MT","MU","MV","MW","MX","MY","MZ";"NA","NB","NC","ND","NE","NF","NG","NH","NI","NJ","NK","NL","NM","NO","NP","NQ","NR","NS","NT","NU","NV","NW","NX","NY","NZ";"OA","OB","OC","OD","OE","OF","OG","OH","OI","OJ","OK","OL","OM","ON","OP","OQ","OR","OS","OT","OU","OV","OW","OX","OY","OZ";"PA","PB","PC","PD","PE","PF","PG","PH","PI","PJ","PK","PL","PM","PN","PO","PQ","PR","PS","PT","PU","PV","PW","PX","PY","PZ";"QA","QB","QC","QD","QE","QF","QG","QH","QI","QJ","QK","QL","QM","QN","QO","QP","QR","QS","QT","QU","QV","QW","QX","QY","QZ";"RA","RB","RC","RD","RE","RF","RG","RH","RI","RJ","RK","RL","RM","RN","RO","RP","RQ","RS","RT","RU","RV","RW","RX","RY","RZ";"SA","SB","SC","SD","SE","SF","SG","SH","SI","SJ","SK","SL","SM","SN","SO","SP","SQ","SR","ST","SU","SV","SW","SX","SY","SZ";"TA","TB","TC","TD","TE","TF","TG","TH","TI","TJ","TK","TL","TM","TN","TO","TP","TQ","TR","TS","TU","TV","TW","TX","TY","TZ";"UA","UB","UC","UD","UE","UF","UG","UH","UI","UJ","UK","UL","UM","UN","UO","UP","UQ","UR","US","UT","UV","UW","UX","UY","UZ";"VA","VB","VC","VD","VE","VF","VG","VH","VI","VJ","VK","VL","VM","VN","VO","VP","VQ","VR","VS","VT","VU","VW","VX","VY","VZ";"WA","WB","WC","WD","WE","WF","WG","WH","WI","WJ","WK","WL","WM","WN","WO","WP","WQ","WR","WS","WT","WU","WV","WX","WY","WZ";"XA","XB","XC","XD","XE","XF","XG","XH","XI","XJ","XK","XL","XM","XN","XO","XP","XQ","XR","XS","XT","XU","XV","XW","XY","XZ";"YA","YB","YC","YD","YE","YF","YG","YH","YI","YJ","YK","YL","YM","YN","YO","YP","YQ","YR","YS","YT","YU","YV","YW","YX","YZ";"ZA","ZB","ZC","ZD","ZE","ZF","ZG","ZH","ZI","ZJ","ZK","ZL","ZM","ZN","ZO","ZP","ZQ","ZR","ZS","ZT","ZU","ZV","ZW","ZX","ZY"}, RANDBETWEEN(1,26),RANDBETWEEN(1,25)) -> BJ | C52: AD | D52: =CHAR(INT((NOW()*10^8-INT(NOW()*10^8))*26+65))&CHAR(LARGE(IF(ROW($A$65:$A$90)<>INT((NOW()*10^8-INT(NOW()*10^8))*26+65),ROW($A$65:$A$90),""),RANDBETWEEN(1,25))) -> SU | E52: SI | F52: CG
A53: =SUBSTITUTE(ADDRESS(1,SMALL(IF(MOD(COLUMN($AA:$ZZ),27)>0,COLUMN($AA:$ZZ)),RANDBETWEEN(1,650)),4),1,"") -> FG | B53: =INDEX( {"AB","AC","AD","AE","AF","AG","AH","AI","AJ","AK","AL","AM","AN","AO","AP","AQ","AR","AS","AT","AU","AV","AW","AX","AY","AZ";"BA","BC","BD","BE","BF","BG","BH","BI","BJ","BK","BL","BM","BN","BO","BP","BQ","BR","BS","BT","BU","BV","BW","BX","BY","BZ";"CA","CB","CD","CE","CF","CG","CH","CI","CJ","CK","CL","CM","CN","CO","CP","CQ","CR","CS","CT","CU","CV","CW","CX","CY","CZ";"DA","DB","DC","DE","DF","DG","DH","DI","DJ","DK","DL","DM","DN","DO","DP","DQ","DR","DS","DT","DU","DV","DW","DX","DY","DZ";"EA","EB","EC","ED","EF","EG","EH","EI","EJ","EK","EL","EM","EN","EO","EP","EQ","ER","ES","ET","EU","EV","EW","EX","EY","EZ";"FA","FB","FC","FD","FE","FG","FH","FI","FJ","FK","FL","FM","FN","FO","FP","FQ","FR","FS","FT","FU","FV","FW","FX","FY","FZ";"GA","GB","GC","GD","GE","GF","GH","GI","GJ","GK","GL","GM","GN","GO","GP","GQ","GR","GS","GT","GU","GV","GW","GX","GY","GZ";"HA","HB","HC","HD","HE","HF","HG","HI","HJ","HK","HL","HM","HN","HO","HP","HQ","HR","HS","HT","HU","HV","HW","HX","HY","HZ";"IA","IB","IC","ID","IE","IF","IG","IH","IJ","IK","IL","IM","IN","IO","IP","IQ","IR","IS","IT","IU","IV","IW","IX","IY","IZ";"JA","JB","JC","JD","JE","JF","JG","JH","JI","JK","JL","JM","JN","JO","JP","JQ","JR","JS","JT","JU","JV","JW","JX","JY","JZ";"KA","KB","KC","KD","KE","KF","KG","KH","KI","KJ","KL","KM","KN","KO","KP","KQ","KR","KS","KT","KU","KV","KW","KX","KY","KZ";"LA","LB","LC","LD","LE","LF","LG","LH","LI","LJ","LK","LM","LN","LO","LP","LQ","LR","LS","LT","LU","LV","LW","LX","LY","LZ";"MA","MB","MC","MD","ME","MF","MG","MH","MI","MJ","MK","ML","MN","MO","MP","MQ","MR","MS","MT","MU","MV","MW","MX","MY","MZ";"NA","NB","NC","ND","NE","NF","NG","NH","NI","NJ","NK","NL","NM","NO","NP","NQ","NR","NS","NT","NU","NV","NW","NX","NY","NZ";"OA","OB","OC","OD","OE","OF","OG","OH","OI","OJ","OK","OL","OM","ON","OP","OQ","OR","OS","OT","OU","OV","OW","OX","OY","OZ";"PA","PB","PC","PD","PE","PF","PG","PH","PI","PJ","PK","PL","PM","PN","PO","PQ","PR","PS","PT","PU","PV","PW","PX","PY","PZ";"QA","QB","QC","QD","QE","QF","QG","QH","QI","QJ","QK","QL","QM","QN","QO","QP","QR","QS","QT","QU","QV","QW","QX","QY","QZ";"RA","RB","RC","RD","RE","RF","RG","RH","RI","RJ","RK","RL","RM","RN","RO","RP","RQ","RS","RT","RU","RV","RW","RX","RY","RZ";"SA","SB","SC","SD","SE","SF","SG","SH","SI","SJ","SK","SL","SM","SN","SO","SP","SQ","SR","ST","SU","SV","SW","SX","SY","SZ";"TA","TB","TC","TD","TE","TF","TG","TH","TI","TJ","TK","TL","TM","TN","TO","TP","TQ","TR","TS","TU","TV","TW","TX","TY","TZ";"UA","UB","UC","UD","UE","UF","UG","UH","UI","UJ","UK","UL","UM","UN","UO","UP","UQ","UR","US","UT","UV","UW","UX","UY","UZ";"VA","VB","VC","VD","VE","VF","VG","VH","VI","VJ","VK","VL","VM","VN","VO","VP","VQ","VR","VS","VT","VU","VW","VX","VY","VZ";"WA","WB","WC","WD","WE","WF","WG","WH","WI","WJ","WK","WL","WM","WN","WO","WP","WQ","WR","WS","WT","WU","WV","WX","WY","WZ";"XA","XB","XC","XD","XE","XF","XG","XH","XI","XJ","XK","XL","XM","XN","XO","XP","XQ","XR","XS","XT","XU","XV","XW","XY","XZ";"YA","YB","YC","YD","YE","YF","YG","YH","YI","YJ","YK","YL","YM","YN","YO","YP","YQ","YR","YS","YT","YU","YV","YW","YX","YZ";"ZA","ZB","ZC","ZD","ZE","ZF","ZG","ZH","ZI","ZJ","ZK","ZL","ZM","ZN","ZO","ZP","ZQ","ZR","ZS","ZT","ZU","ZV","ZW","ZX","ZY"}, RANDBETWEEN(1,26),RANDBETWEEN(1,25)) -> RF | C53: GP | D53: =CHAR(INT((NOW()*10^8-INT(NOW()*10^8))*26+65))&CHAR(LARGE(IF(ROW($A$65:$A$90)<>INT((NOW()*10^8-INT(NOW()*10^8))*26+65),ROW($A$65:$A$90),""),RANDBETWEEN(1,25))) -> SM | E53: AH | F53: SI
A54: =SUBSTITUTE(ADDRESS(1,SMALL(IF(MOD(COLUMN($AA:$ZZ),27)>0,COLUMN($AA:$ZZ)),RANDBETWEEN(1,650)),4),1,"") -> VX | B54: =INDEX( {"AB","AC","AD","AE","AF","AG","AH","AI","AJ","AK","AL","AM","AN","AO","AP","AQ","AR","AS","AT","AU","AV","AW","AX","AY","AZ";"BA","BC","BD","BE","BF","BG","BH","BI","BJ","BK","BL","BM","BN","BO","BP","BQ","BR","BS","BT","BU","BV","BW","BX","BY","BZ";"CA","CB","CD","CE","CF","CG","CH","CI","CJ","CK","CL","CM","CN","CO","CP","CQ","CR","CS","CT","CU","CV","CW","CX","CY","CZ";"DA","DB","DC","DE","DF","DG","DH","DI","DJ","DK","DL","DM","DN","DO","DP","DQ","DR","DS","DT","DU","DV","DW","DX","DY","DZ";"EA","EB","EC","ED","EF","EG","EH","EI","EJ","EK","EL","EM","EN","EO","EP","EQ","ER","ES","ET","EU","EV","EW","EX","EY","EZ";"FA","FB","FC","FD","FE","FG","FH","FI","FJ","FK","FL","FM","FN","FO","FP","FQ","FR","FS","FT","FU","FV","FW","FX","FY","FZ";"GA","GB","GC","GD","GE","GF","GH","GI","GJ","GK","GL","GM","GN","GO","GP","GQ","GR","GS","GT","GU","GV","GW","GX","GY","GZ";"HA","HB","HC","HD","HE","HF","HG","HI","HJ","HK","HL","HM","HN","HO","HP","HQ","HR","HS","HT","HU","HV","HW","HX","HY","HZ";"IA","IB","IC","ID","IE","IF","IG","IH","IJ","IK","IL","IM","IN","IO","IP","IQ","IR","IS","IT","IU","IV","IW","IX","IY","IZ";"JA","JB","JC","JD","JE","JF","JG","JH","JI","JK","JL","JM","JN","JO","JP","JQ","JR","JS","JT","JU","JV","JW","JX","JY","JZ";"KA","KB","KC","KD","KE","KF","KG","KH","KI","KJ","KL","KM","KN","KO","KP","KQ","KR","KS","KT","KU","KV","KW","KX","KY","KZ";"LA","LB","LC","LD","LE","LF","LG","LH","LI","LJ","LK","LM","LN","LO","LP","LQ","LR","LS","LT","LU","LV","LW","LX","LY","LZ";"MA","MB","MC","MD","ME","MF","MG","MH","MI","MJ","MK","ML","MN","MO","MP","MQ","MR","MS","MT","MU","MV","MW","MX","MY","MZ";"NA","NB","NC","ND","NE","NF","NG","NH","NI","NJ","NK","NL","NM","NO","NP","NQ","NR","NS","NT","NU","NV","NW","NX","NY","NZ";"OA","OB","OC","OD","OE","OF","OG","OH","OI","OJ","OK","OL","OM","ON","OP","OQ","OR","OS","OT","OU","OV","OW","OX","OY","OZ";"PA","PB","PC","PD","PE","PF","PG","PH","PI","PJ","PK","PL","PM","PN","PO","PQ","PR","PS","PT","PU","PV","PW","PX","PY","PZ";"QA","QB","QC","QD","QE","QF","QG","QH","QI","QJ","QK","QL","QM","QN","QO","QP","QR","QS","QT","QU","QV","QW","QX","QY","QZ";"RA","RB","RC","RD","RE","RF","RG","RH","RI","RJ","RK","RL","RM","RN","RO","RP","RQ","RS","RT","RU","RV","RW","RX","RY","RZ";"SA","SB","SC","SD","SE","SF","SG","SH","SI","SJ","SK","SL","SM","SN","SO","SP","SQ","SR","ST","SU","SV","SW","SX","SY","SZ";"TA","TB","TC","TD","TE","TF","TG","TH","TI","TJ","TK","TL","TM","TN","TO","TP","TQ","TR","TS","TU","TV","TW","TX","TY","TZ";"UA","UB","UC","UD","UE","UF","UG","UH","UI","UJ","UK","UL","UM","UN","UO","UP","UQ","UR","US","UT","UV","UW","UX","UY","UZ";"VA","VB","VC","VD","VE","VF","VG","VH","VI","VJ","VK","VL","VM","VN","VO","VP","VQ","VR","VS","VT","VU","VW","VX","VY","VZ";"WA","WB","WC","WD","WE","WF","WG","WH","WI","WJ","WK","WL","WM","WN","WO","WP","WQ","WR","WS","WT","WU","WV","WX","WY","WZ";"XA","XB","XC","XD","XE","XF","XG","XH","XI","XJ","XK","XL","XM","XN","XO","XP","XQ","XR","XS","XT","XU","XV","XW","XY","XZ";"YA","YB","YC","YD","YE","YF","YG","YH","YI","YJ","YK","YL","YM","YN","YO","YP","YQ","YR","YS","YT","YU","YV","YW","YX","YZ";"ZA","ZB","ZC","ZD","ZE","ZF","ZG","ZH","ZI","ZJ","ZK","ZL","ZM","ZN","ZO","ZP","ZQ","ZR","ZS","ZT","ZU","ZV","ZW","ZX","ZY"}, RANDBETWEEN(1,26),RANDBETWEEN(1,25)) -> CK | C54: IX | D54: =CHAR(INT((NOW()*10^8-INT(NOW()*10^8))*26+65))&CHAR(LARGE(IF(ROW($A$65:$A$90)<>INT((NOW()*10^8-INT(NOW()*10^8))*26+65),ROW($A$65:$A$90),""),RANDBETWEEN(1,25))) -> SU | E54: PK | F54: TH
A55: =SUBSTITUTE(ADDRESS(1,SMALL(IF(MOD(COLUMN($AA:$ZZ),27)>0,COLUMN($AA:$ZZ)),RANDBETWEEN(1,650)),4),1,"") -> AW | B55: =INDEX( {"AB","AC","AD","AE","AF","AG","AH","AI","AJ","AK","AL","AM","AN","AO","AP","AQ","AR","AS","AT","AU","AV","AW","AX","AY","AZ";"BA","BC","BD","BE","BF","BG","BH","BI","BJ","BK","BL","BM","BN","BO","BP","BQ","BR","BS","BT","BU","BV","BW","BX","BY","BZ";"CA","CB","CD","CE","CF","CG","CH","CI","CJ","CK","CL","CM","CN","CO","CP","CQ","CR","CS","CT","CU","CV","CW","CX","CY","CZ";"DA","DB","DC","DE","DF","DG","DH","DI","DJ","DK","DL","DM","DN","DO","DP","DQ","DR","DS","DT","DU","DV","DW","DX","DY","DZ";"EA","EB","EC","ED","EF","EG","EH","EI","EJ","EK","EL","EM","EN","EO","EP","EQ","ER","ES","ET","EU","EV","EW","EX","EY","EZ";"FA","FB","FC","FD","FE","FG","FH","FI","FJ","FK","FL","FM","FN","FO","FP","FQ","FR","FS","FT","FU","FV","FW","FX","FY","FZ";"GA","GB","GC","GD","GE","GF","GH","GI","GJ","GK","GL","GM","GN","GO","GP","GQ","GR","GS","GT","GU","GV","GW","GX","GY","GZ";"HA","HB","HC","HD","HE","HF","HG","HI","HJ","HK","HL","HM","HN","HO","HP","HQ","HR","HS","HT","HU","HV","HW","HX","HY","HZ";"IA","IB","IC","ID","IE","IF","IG","IH","IJ","IK","IL","IM","IN","IO","IP","IQ","IR","IS","IT","IU","IV","IW","IX","IY","IZ";"JA","JB","JC","JD","JE","JF","JG","JH","JI","JK","JL","JM","JN","JO","JP","JQ","JR","JS","JT","JU","JV","JW","JX","JY","JZ";"KA","KB","KC","KD","KE","KF","KG","KH","KI","KJ","KL","KM","KN","KO","KP","KQ","KR","KS","KT","KU","KV","KW","KX","KY","KZ";"LA","LB","LC","LD","LE","LF","LG","LH","LI","LJ","LK","LM","LN","LO","LP","LQ","LR","LS","LT","LU","LV","LW","LX","LY","LZ";"MA","MB","MC","MD","ME","MF","MG","MH","MI","MJ","MK","ML","MN","MO","MP","MQ","MR","MS","MT","MU","MV","MW","MX","MY","MZ";"NA","NB","NC","ND","NE","NF","NG","NH","NI","NJ","NK","NL","NM","NO","NP","NQ","NR","NS","NT","NU","NV","NW","NX","NY","NZ";"OA","OB","OC","OD","OE","OF","OG","OH","OI","OJ","OK","OL","OM","ON","OP","OQ","OR","OS","OT","OU","OV","OW","OX","OY","OZ";"PA","PB","PC","PD","PE","PF","PG","PH","PI","PJ","PK","PL","PM","PN","PO","PQ","PR","PS","PT","PU","PV","PW","PX","PY","PZ";"QA","QB","QC","QD","QE","QF","QG","QH","QI","QJ","QK","QL","QM","QN","QO","QP","QR","QS","QT","QU","QV","QW","QX","QY","QZ";"RA","RB","RC","RD","RE","RF","RG","RH","RI","RJ","RK","RL","RM","RN","RO","RP","RQ","RS","RT","RU","RV","RW","RX","RY","RZ";"SA","SB","SC","SD","SE","SF","SG","SH","SI","SJ","SK","SL","SM","SN","SO","SP","SQ","SR","ST","SU","SV","SW","SX","SY","SZ";"TA","TB","TC","TD","TE","TF","TG","TH","TI","TJ","TK","TL","TM","TN","TO","TP","TQ","TR","TS","TU","TV","TW","TX","TY","TZ";"UA","UB","UC","UD","UE","UF","UG","UH","UI","UJ","UK","UL","UM","UN","UO","UP","UQ","UR","US","UT","UV","UW","UX","UY","UZ";"VA","VB","VC","VD","VE","VF","VG","VH","VI","VJ","VK","VL","VM","VN","VO","VP","VQ","VR","VS","VT","VU","VW","VX","VY","VZ";"WA","WB","WC","WD","WE","WF","WG","WH","WI","WJ","WK","WL","WM","WN","WO","WP","WQ","WR","WS","WT","WU","WV","WX","WY","WZ";"XA","XB","XC","XD","XE","XF","XG","XH","XI","XJ","XK","XL","XM","XN","XO","XP","XQ","XR","XS","XT","XU","XV","XW","XY","XZ";"YA","YB","YC","YD","YE","YF","YG","YH","YI","YJ","YK","YL","YM","YN","YO","YP","YQ","YR","YS","YT","YU","YV","YW","YX","YZ";"ZA","ZB","ZC","ZD","ZE","ZF","ZG","ZH","ZI","ZJ","ZK","ZL","ZM","ZN","ZO","ZP","ZQ","ZR","ZS","ZT","ZU","ZV","ZW","ZX","ZY"}, RANDBETWEEN(1,26),RANDBETWEEN(1,25)) -> VA | C55: CT | D55: =CHAR(INT((NOW()*10^8-INT(NOW()*10^8))*26+65))&CHAR(LARGE(IF(ROW($A$65:$A$90)<>INT((NOW()*10^8-INT(NOW()*10^8))*26+65),ROW($A$65:$A$90),""),RANDBETWEEN(1,25))) -> SU | E55: PV | F55: FI
A56: =SUBSTITUTE(ADDRESS(1,SMALL(IF(MOD(COLUMN($AA:$ZZ),27)>0,COLUMN($AA:$ZZ)),RANDBETWEEN(1,650)),4),1,"") -> IK | B56: =INDEX( {"AB","AC","AD","AE","AF","AG","AH","AI","AJ","AK","AL","AM","AN","AO","AP","AQ","AR","AS","AT","AU","AV","AW","AX","AY","AZ";"BA","BC","BD","BE","BF","BG","BH","BI","BJ","BK","BL","BM","BN","BO","BP","BQ","BR","BS","BT","BU","BV","BW","BX","BY","BZ";"CA","CB","CD","CE","CF","CG","CH","CI","CJ","CK","CL","CM","CN","CO","CP","CQ","CR","CS","CT","CU","CV","CW","CX","CY","CZ";"DA","DB","DC","DE","DF","DG","DH","DI","DJ","DK","DL","DM","DN","DO","DP","DQ","DR","DS","DT","DU","DV","DW","DX","DY","DZ";"EA","EB","EC","ED","EF","EG","EH","EI","EJ","EK","EL","EM","EN","EO","EP","EQ","ER","ES","ET","EU","EV","EW","EX","EY","EZ";"FA","FB","FC","FD","FE","FG","FH","FI","FJ","FK","FL","FM","FN","FO","FP","FQ","FR","FS","FT","FU","FV","FW","FX","FY","FZ";"GA","GB","GC","GD","GE","GF","GH","GI","GJ","GK","GL","GM","GN","GO","GP","GQ","GR","GS","GT","GU","GV","GW","GX","GY","GZ";"HA","HB","HC","HD","HE","HF","HG","HI","HJ","HK","HL","HM","HN","HO","HP","HQ","HR","HS","HT","HU","HV","HW","HX","HY","HZ";"IA","IB","IC","ID","IE","IF","IG","IH","IJ","IK","IL","IM","IN","IO","IP","IQ","IR","IS","IT","IU","IV","IW","IX","IY","IZ";"JA","JB","JC","JD","JE","JF","JG","JH","JI","JK","JL","JM","JN","JO","JP","JQ","JR","JS","JT","JU","JV","JW","JX","JY","JZ";"KA","KB","KC","KD","KE","KF","KG","KH","KI","KJ","KL","KM","KN","KO","KP","KQ","KR","KS","KT","KU","KV","KW","KX","KY","KZ";"LA","LB","LC","LD","LE","LF","LG","LH","LI","LJ","LK","LM","LN","LO","LP","LQ","LR","LS","LT","LU","LV","LW","LX","LY","LZ";"MA","MB","MC","MD","ME","MF","MG","MH","MI","MJ","MK","ML","MN","MO","MP","MQ","MR","MS","MT","MU","MV","MW","MX","MY","MZ";"NA","NB","NC","ND","NE","NF","NG","NH","NI","NJ","NK","NL","NM","NO","NP","NQ","NR","NS","NT","NU","NV","NW","NX","NY","NZ";"OA","OB","OC","OD","OE","OF","OG","OH","OI","OJ","OK","OL","OM","ON","OP","OQ","OR","OS","OT","OU","OV","OW","OX","OY","OZ";"PA","PB","PC","PD","PE","PF","PG","PH","PI","PJ","PK","PL","PM","PN","PO","PQ","PR","PS","PT","PU","PV","PW","PX","PY","PZ";"QA","QB","QC","QD","QE","QF","QG","QH","QI","QJ","QK","QL","QM","QN","QO","QP","QR","QS","QT","QU","QV","QW","QX","QY","QZ";"RA","RB","RC","RD","RE","RF","RG","RH","RI","RJ","RK","RL","RM","RN","RO","RP","RQ","RS","RT","RU","RV","RW","RX","RY","RZ";"SA","SB","SC","SD","SE","SF","SG","SH","SI","SJ","SK","SL","SM","SN","SO","SP","SQ","SR","ST","SU","SV","SW","SX","SY","SZ";"TA","TB","TC","TD","TE","TF","TG","TH","TI","TJ","TK","TL","TM","TN","TO","TP","TQ","TR","TS","TU","TV","TW","TX","TY","TZ";"UA","UB","UC","UD","UE","UF","UG","UH","UI","UJ","UK","UL","UM","UN","UO","UP","UQ","UR","US","UT","UV","UW","UX","UY","UZ";"VA","VB","VC","VD","VE","VF","VG","VH","VI","VJ","VK","VL","VM","VN","VO","VP","VQ","VR","VS","VT","VU","VW","VX","VY","VZ";"WA","WB","WC","WD","WE","WF","WG","WH","WI","WJ","WK","WL","WM","WN","WO","WP","WQ","WR","WS","WT","WU","WV","WX","WY","WZ";"XA","XB","XC","XD","XE","XF","XG","XH","XI","XJ","XK","XL","XM","XN","XO","XP","XQ","XR","XS","XT","XU","XV","XW","XY","XZ";"YA","YB","YC","YD","YE","YF","YG","YH","YI","YJ","YK","YL","YM","YN","YO","YP","YQ","YR","YS","YT","YU","YV","YW","YX","YZ";"ZA","ZB","ZC","ZD","ZE","ZF","ZG","ZH","ZI","ZJ","ZK","ZL","ZM","ZN","ZO","ZP","ZQ","ZR","ZS","ZT","ZU","ZV","ZW","ZX","ZY"}, RANDBETWEEN(1,26),RANDBETWEEN(1,25)) -> CR | C56: CX | D56: =CHAR(INT((NOW()*10^8-INT(NOW()*10^8))*26+65))&CHAR(LARGE(IF(ROW($A$65:$A$90)<>INT((NOW()*10^8-INT(NOW()*10^8))*26+65),ROW($A$65:$A$90),""),RANDBETWEEN(1,25))) -> SY | E56: IY | F56: ZB
A57: =SUBSTITUTE(ADDRESS(1,SMALL(IF(MOD(COLUMN($AA:$ZZ),27)>0,COLUMN($AA:$ZZ)),RANDBETWEEN(1,650)),4),1,"") -> JN | B57: =INDEX( {"AB","AC","AD","AE","AF","AG","AH","AI","AJ","AK","AL","AM","AN","AO","AP","AQ","AR","AS","AT","AU","AV","AW","AX","AY","AZ";"BA","BC","BD","BE","BF","BG","BH","BI","BJ","BK","BL","BM","BN","BO","BP","BQ","BR","BS","BT","BU","BV","BW","BX","BY","BZ";"CA","CB","CD","CE","CF","CG","CH","CI","CJ","CK","CL","CM","CN","CO","CP","CQ","CR","CS","CT","CU","CV","CW","CX","CY","CZ";"DA","DB","DC","DE","DF","DG","DH","DI","DJ","DK","DL","DM","DN","DO","DP","DQ","DR","DS","DT","DU","DV","DW","DX","DY","DZ";"EA","EB","EC","ED","EF","EG","EH","EI","EJ","EK","EL","EM","EN","EO","EP","EQ","ER","ES","ET","EU","EV","EW","EX","EY","EZ";"FA","FB","FC","FD","FE","FG","FH","FI","FJ","FK","FL","FM","FN","FO","FP","FQ","FR","FS","FT","FU","FV","FW","FX","FY","FZ";"GA","GB","GC","GD","GE","GF","GH","GI","GJ","GK","GL","GM","GN","GO","GP","GQ","GR","GS","GT","GU","GV","GW","GX","GY","GZ";"HA","HB","HC","HD","HE","HF","HG","HI","HJ","HK","HL","HM","HN","HO","HP","HQ","HR","HS","HT","HU","HV","HW","HX","HY","HZ";"IA","IB","IC","ID","IE","IF","IG","IH","IJ","IK","IL","IM","IN","IO","IP","IQ","IR","IS","IT","IU","IV","IW","IX","IY","IZ";"JA","JB","JC","JD","JE","JF","JG","JH","JI","JK","JL","JM","JN","JO","JP","JQ","JR","JS","JT","JU","JV","JW","JX","JY","JZ";"KA","KB","KC","KD","KE","KF","KG","KH","KI","KJ","KL","KM","KN","KO","KP","KQ","KR","KS","KT","KU","KV","KW","KX","KY","KZ";"LA","LB","LC","LD","LE","LF","LG","LH","LI","LJ","LK","LM","LN","LO","LP","LQ","LR","LS","LT","LU","LV","LW","LX","LY","LZ";"MA","MB","MC","MD","ME","MF","MG","MH","MI","MJ","MK","ML","MN","MO","MP","MQ","MR","MS","MT","MU","MV","MW","MX","MY","MZ";"NA","NB","NC","ND","NE","NF","NG","NH","NI","NJ","NK","NL","NM","NO","NP","NQ","NR","NS","NT","NU","NV","NW","NX","NY","NZ";"OA","OB","OC","OD","OE","OF","OG","OH","OI","OJ","OK","OL","OM","ON","OP","OQ","OR","OS","OT","OU","OV","OW","OX","OY","OZ";"PA","PB","PC","PD","PE","PF","PG","PH","PI","PJ","PK","PL","PM","PN","PO","PQ","PR","PS","PT","PU","PV","PW","PX","PY","PZ";"QA","QB","QC","QD","QE","QF","QG","QH","QI","QJ","QK","QL","QM","QN","QO","QP","QR","QS","QT","QU","QV","QW","QX","QY","QZ";"RA","RB","RC","RD","RE","RF","RG","RH","RI","RJ","RK","RL","RM","RN","RO","RP","RQ","RS","RT","RU","RV","RW","RX","RY","RZ";"SA","SB","SC","SD","SE","SF","SG","SH","SI","SJ","SK","SL","SM","SN","SO","SP","SQ","SR","ST","SU","SV","SW","SX","SY","SZ";"TA","TB","TC","TD","TE","TF","TG","TH","TI","TJ","TK","TL","TM","TN","TO","TP","TQ","TR","TS","TU","TV","TW","TX","TY","TZ";"UA","UB","UC","UD","UE","UF","UG","UH","UI","UJ","UK","UL","UM","UN","UO","UP","UQ","UR","US","UT","UV","UW","UX","UY","UZ";"VA","VB","VC","VD","VE","VF","VG","VH","VI","VJ","VK","VL","VM","VN","VO","VP","VQ","VR","VS","VT","VU","VW","VX","VY","VZ";"WA","WB","WC","WD","WE","WF","WG","WH","WI","WJ","WK","WL","WM","WN","WO","WP","WQ","WR","WS","WT","WU","WV","WX","WY","WZ";"XA","XB","XC","XD","XE","XF","XG","XH","XI","XJ","XK","XL","XM","XN","XO","XP","XQ","XR","XS","XT","XU","XV","XW","XY","XZ";"YA","YB","YC","YD","YE","YF","YG","YH","YI","YJ","YK","YL","YM","YN","YO","YP","YQ","YR","YS","YT","YU","YV","YW","YX","YZ";"ZA","ZB","ZC","ZD","ZE","ZF","ZG","ZH","ZI","ZJ","ZK","ZL","ZM","ZN","ZO","ZP","ZQ","ZR","ZS","ZT","ZU","ZV","ZW","ZX","ZY"}, RANDBETWEEN(1,26),RANDBETWEEN(1,25)) -> OH | C57: LS | D57: =CHAR(INT((NOW()*10^8-INT(NOW()*10^8))*26+65))&CHAR(LARGE(IF(ROW($A$65:$A$90)<>INT((NOW()*10^8-INT(NOW()*10^8))*26+65),ROW($A$65:$A$90),""),RANDBETWEEN(1,25))) -> SZ | E57: MC | F57: EB
A58: =SUBSTITUTE(ADDRESS(1,SMALL(IF(MOD(COLUMN($AA:$ZZ),27)>0,COLUMN($AA:$ZZ)),RANDBETWEEN(1,650)),4),1,"") -> XD | B58: =INDEX( {"AB","AC","AD","AE","AF","AG","AH","AI","AJ","AK","AL","AM","AN","AO","AP","AQ","AR","AS","AT","AU","AV","AW","AX","AY","AZ";"BA","BC","BD","BE","BF","BG","BH","BI","BJ","BK","BL","BM","BN","BO","BP","BQ","BR","BS","BT","BU","BV","BW","BX","BY","BZ";"CA","CB","CD","CE","CF","CG","CH","CI","CJ","CK","CL","CM","CN","CO","CP","CQ","CR","CS","CT","CU","CV","CW","CX","CY","CZ";"DA","DB","DC","DE","DF","DG","DH","DI","DJ","DK","DL","DM","DN","DO","DP","DQ","DR","DS","DT","DU","DV","DW","DX","DY","DZ";"EA","EB","EC","ED","EF","EG","EH","EI","EJ","EK","EL","EM","EN","EO","EP","EQ","ER","ES","ET","EU","EV","EW","EX","EY","EZ";"FA","FB","FC","FD","FE","FG","FH","FI","FJ","FK","FL","FM","FN","FO","FP","FQ","FR","FS","FT","FU","FV","FW","FX","FY","FZ";"GA","GB","GC","GD","GE","GF","GH","GI","GJ","GK","GL","GM","GN","GO","GP","GQ","GR","GS","GT","GU","GV","GW","GX","GY","GZ";"HA","HB","HC","HD","HE","HF","HG","HI","HJ","HK","HL","HM","HN","HO","HP","HQ","HR","HS","HT","HU","HV","HW","HX","HY","HZ";"IA","IB","IC","ID","IE","IF","IG","IH","IJ","IK","IL","IM","IN","IO","IP","IQ","IR","IS","IT","IU","IV","IW","IX","IY","IZ";"JA","JB","JC","JD","JE","JF","JG","JH","JI","JK","JL","JM","JN","JO","JP","JQ","JR","JS","JT","JU","JV","JW","JX","JY","JZ";"KA","KB","KC","KD","KE","KF","KG","KH","KI","KJ","KL","KM","KN","KO","KP","KQ","KR","KS","KT","KU","KV","KW","KX","KY","KZ";"LA","LB","LC","LD","LE","LF","LG","LH","LI","LJ","LK","LM","LN","LO","LP","LQ","LR","LS","LT","LU","LV","LW","LX","LY","LZ";"MA","MB","MC","MD","ME","MF","MG","MH","MI","MJ","MK","ML","MN","MO","MP","MQ","MR","MS","MT","MU","MV","MW","MX","MY","MZ";"NA","NB","NC","ND","NE","NF","NG","NH","NI","NJ","NK","NL","NM","NO","NP","NQ","NR","NS","NT","NU","NV","NW","NX","NY","NZ";"OA","OB","OC","OD","OE","OF","OG","OH","OI","OJ","OK","OL","OM","ON","OP","OQ","OR","OS","OT","OU","OV","OW","OX","OY","OZ";"PA","PB","PC","PD","PE","PF","PG","PH","PI","PJ","PK","PL","PM","PN","PO","PQ","PR","PS","PT","PU","PV","PW","PX","PY","PZ";"QA","QB","QC","QD","QE","QF","QG","QH","QI","QJ","QK","QL","QM","QN","QO","QP","QR","QS","QT","QU","QV","QW","QX","QY","QZ";"RA","RB","RC","RD","RE","RF","RG","RH","RI","RJ","RK","RL","RM","RN","RO","RP","RQ","RS","RT","RU","RV","RW","RX","RY","RZ";"SA","SB","SC","SD","SE","SF","SG","SH","SI","SJ","SK","SL","SM","SN","SO","SP","SQ","SR","ST","SU","SV","SW","SX","SY","SZ";"TA","TB","TC","TD","TE","TF","TG","TH","TI","TJ","TK","TL","TM","TN","TO","TP","TQ","TR","TS","TU","TV","TW","TX","TY","TZ";"UA","UB","UC","UD","UE","UF","UG","UH","UI","UJ","UK","UL","UM","UN","UO","UP","UQ","UR","US","UT","UV","UW","UX","UY","UZ";"VA","VB","VC","VD","VE","VF","VG","VH","VI","VJ","VK","VL","VM","VN","VO","VP","VQ","VR","VS","VT","VU","VW","VX","VY","VZ";"WA","WB","WC","WD","WE","WF","WG","WH","WI","WJ","WK","WL","WM","WN","WO","WP","WQ","WR","WS","WT","WU","WV","WX","WY","WZ";"XA","XB","XC","XD","XE","XF","XG","XH","XI","XJ","XK","XL","XM","XN","XO","XP","XQ","XR","XS","XT","XU","XV","XW","XY","XZ";"YA","YB","YC","YD","YE","YF","YG","YH","YI","YJ","YK","YL","YM","YN","YO","YP","YQ","YR","YS","YT","YU","YV","YW","YX","YZ";"ZA","ZB","ZC","ZD","ZE","ZF","ZG","ZH","ZI","ZJ","ZK","ZL","ZM","ZN","ZO","ZP","ZQ","ZR","ZS","ZT","ZU","ZV","ZW","ZX","ZY"}, RANDBETWEEN(1,26),RANDBETWEEN(1,25)) -> XL | C58: ES | D58: =CHAR(INT((NOW()*10^8-INT(NOW()*10^8))*26+65))&CHAR(LARGE(IF(ROW($A$65:$A$90)<>INT((NOW()*10^8-INT(NOW()*10^8))*26+65),ROW($A$65:$A$90),""),RANDBETWEEN(1,25))) -> SK | E58: QP | F58: DZ
A59: =SUBSTITUTE(ADDRESS(1,SMALL(IF(MOD(COLUMN($AA:$ZZ),27)>0,COLUMN($AA:$ZZ)),RANDBETWEEN(1,650)),4),1,"") -> WR | B59: =INDEX( {"AB","AC","AD","AE","AF","AG","AH","AI","AJ","AK","AL","AM","AN","AO","AP","AQ","AR","AS","AT","AU","AV","AW","AX","AY","AZ";"BA","BC","BD","BE","BF","BG","BH","BI","BJ","BK","BL","BM","BN","BO","BP","BQ","BR","BS","BT","BU","BV","BW","BX","BY","BZ";"CA","CB","CD","CE","CF","CG","CH","CI","CJ","CK","CL","CM","CN","CO","CP","CQ","CR","CS","CT","CU","CV","CW","CX","CY","CZ";"DA","DB","DC","DE","DF","DG","DH","DI","DJ","DK","DL","DM","DN","DO","DP","DQ","DR","DS","DT","DU","DV","DW","DX","DY","DZ";"EA","EB","EC","ED","EF","EG","EH","EI","EJ","EK","EL","EM","EN","EO","EP","EQ","ER","ES","ET","EU","EV","EW","EX","EY","EZ";"FA","FB","FC","FD","FE","FG","FH","FI","FJ","FK","FL","FM","FN","FO","FP","FQ","FR","FS","FT","FU","FV","FW","FX","FY","FZ";"GA","GB","GC","GD","GE","GF","GH","GI","GJ","GK","GL","GM","GN","GO","GP","GQ","GR","GS","GT","GU","GV","GW","GX","GY","GZ";"HA","HB","HC","HD","HE","HF","HG","HI","HJ","HK","HL","HM","HN","HO","HP","HQ","HR","HS","HT","HU","HV","HW","HX","HY","HZ";"IA","IB","IC","ID","IE","IF","IG","IH","IJ","IK","IL","IM","IN","IO","IP","IQ","IR","IS","IT","IU","IV","IW","IX","IY","IZ";"JA","JB","JC","JD","JE","JF","JG","JH","JI","JK","JL","JM","JN","JO","JP","JQ","JR","JS","JT","JU","JV","JW","JX","JY","JZ";"KA","KB","KC","KD","KE","KF","KG","KH","KI","KJ","KL","KM","KN","KO","KP","KQ","KR","KS","KT","KU","KV","KW","KX","KY","KZ";"LA","LB","LC","LD","LE","LF","LG","LH","LI","LJ","LK","LM","LN","LO","LP","LQ","LR","LS","LT","LU","LV","LW","LX","LY","LZ";"MA","MB","MC","MD","ME","MF","MG","MH","MI","MJ","MK","ML","MN","MO","MP","MQ","MR","MS","MT","MU","MV","MW","MX","MY","MZ";"NA","NB","NC","ND","NE","NF","NG","NH","NI","NJ","NK","NL","NM","NO","NP","NQ","NR","NS","NT","NU","NV","NW","NX","NY","NZ";"OA","OB","OC","OD","OE","OF","OG","OH","OI","OJ","OK","OL","OM","ON","OP","OQ","OR","OS","OT","OU","OV","OW","OX","OY","OZ";"PA","PB","PC","PD","PE","PF","PG","PH","PI","PJ","PK","PL","PM","PN","PO","PQ","PR","PS","PT","PU","PV","PW","PX","PY","PZ";"QA","QB","QC","QD","QE","QF","QG","QH","QI","QJ","QK","QL","QM","QN","QO","QP","QR","QS","QT","QU","QV","QW","QX","QY","QZ";"RA","RB","RC","RD","RE","RF","RG","RH","RI","RJ","RK","RL","RM","RN","RO","RP","RQ","RS","RT","RU","RV","RW","RX","RY","RZ";"SA","SB","SC","SD","SE","SF","SG","SH","SI","SJ","SK","SL","SM","SN","SO","SP","SQ","SR","ST","SU","SV","SW","SX","SY","SZ";"TA","TB","TC","TD","TE","TF","TG","TH","TI","TJ","TK","TL","TM","TN","TO","TP","TQ","TR","TS","TU","TV","TW","TX","TY","TZ";"UA","UB","UC","UD","UE","UF","UG","UH","UI","UJ","UK","UL","UM","UN","UO","UP","UQ","UR","US","UT","UV","UW","UX","UY","UZ";"VA","VB","VC","VD","VE","VF","VG","VH","VI","VJ","VK","VL","VM","VN","VO","VP","VQ","VR","VS","VT","VU","VW","VX","VY","VZ";"WA","WB","WC","WD","WE","WF","WG","WH","WI","WJ","WK","WL","WM","WN","WO","WP","WQ","WR","WS","WT","WU","WV","WX","WY","WZ";"XA","XB","XC","XD","XE","XF","XG","XH","XI","XJ","XK","XL","XM","XN","XO","XP","XQ","XR","XS","XT","XU","XV","XW","XY","XZ";"YA","YB","YC","YD","YE","YF","YG","YH","YI","YJ","YK","YL","YM","YN","YO","YP","YQ","YR","YS","YT","YU","YV","YW","YX","YZ";"ZA","ZB","ZC","ZD","ZE","ZF","ZG","ZH","ZI","ZJ","ZK","ZL","ZM","ZN","ZO","ZP","ZQ","ZR","ZS","ZT","ZU","ZV","ZW","ZX","ZY"}, RANDBETWEEN(1,26),RANDBETWEEN(1,25)) -> ON | C59: GA | D59: =CHAR(INT((NOW()*10^8-INT(NOW()*10^8))*26+65))&CHAR(LARGE(IF(ROW($A$65:$A$90)<>INT((NOW()*10^8-INT(NOW()*10^8))*26+65),ROW($A$65:$A$90),""),RANDBETWEEN(1,25))) -> SZ | E59: MQ | F59: QW
A60: =SUBSTITUTE(ADDRESS(1,SMALL(IF(MOD(COLUMN($AA:$ZZ),27)>0,COLUMN($AA:$ZZ)),RANDBETWEEN(1,650)),4),1,"") -> VR | B60: =INDEX( {"AB","AC","AD","AE","AF","AG","AH","AI","AJ","AK","AL","AM","AN","AO","AP","AQ","AR","AS","AT","AU","AV","AW","AX","AY","AZ";"BA","BC","BD","BE","BF","BG","BH","BI","BJ","BK","BL","BM","BN","BO","BP","BQ","BR","BS","BT","BU","BV","BW","BX","BY","BZ";"CA","CB","CD","CE","CF","CG","CH","CI","CJ","CK","CL","CM","CN","CO","CP","CQ","CR","CS","CT","CU","CV","CW","CX","CY","CZ";"DA","DB","DC","DE","DF","DG","DH","DI","DJ","DK","DL","DM","DN","DO","DP","DQ","DR","DS","DT","DU","DV","DW","DX","DY","DZ";"EA","EB","EC","ED","EF","EG","EH","EI","EJ","EK","EL","EM","EN","EO","EP","EQ","ER","ES","ET","EU","EV","EW","EX","EY","EZ";"FA","FB","FC","FD","FE","FG","FH","FI","FJ","FK","FL","FM","FN","FO","FP","FQ","FR","FS","FT","FU","FV","FW","FX","FY","FZ";"GA","GB","GC","GD","GE","GF","GH","GI","GJ","GK","GL","GM","GN","GO","GP","GQ","GR","GS","GT","GU","GV","GW","GX","GY","GZ";"HA","HB","HC","HD","HE","HF","HG","HI","HJ","HK","HL","HM","HN","HO","HP","HQ","HR","HS","HT","HU","HV","HW","HX","HY","HZ";"IA","IB","IC","ID","IE","IF","IG","IH","IJ","IK","IL","IM","IN","IO","IP","IQ","IR","IS","IT","IU","IV","IW","IX","IY","IZ";"JA","JB","JC","JD","JE","JF","JG","JH","JI","JK","JL","JM","JN","JO","JP","JQ","JR","JS","JT","JU","JV","JW","JX","JY","JZ";"KA","KB","KC","KD","KE","KF","KG","KH","KI","KJ","KL","KM","KN","KO","KP","KQ","KR","KS","KT","KU","KV","KW","KX","KY","KZ";"LA","LB","LC","LD","LE","LF","LG","LH","LI","LJ","LK","LM","LN","LO","LP","LQ","LR","LS","LT","LU","LV","LW","LX","LY","LZ";"MA","MB","MC","MD","ME","MF","MG","MH","MI","MJ","MK","ML","MN","MO","MP","MQ","MR","MS","MT","MU","MV","MW","MX","MY","MZ";"NA","NB","NC","ND","NE","NF","NG","NH","NI","NJ","NK","NL","NM","NO","NP","NQ","NR","NS","NT","NU","NV","NW","NX","NY","NZ";"OA","OB","OC","OD","OE","OF","OG","OH","OI","OJ","OK","OL","OM","ON","OP","OQ","OR","OS","OT","OU","OV","OW","OX","OY","OZ";"PA","PB","PC","PD","PE","PF","PG","PH","PI","PJ","PK","PL","PM","PN","PO","PQ","PR","PS","PT","PU","PV","PW","PX","PY","PZ";"QA","QB","QC","QD","QE","QF","QG","QH","QI","QJ","QK","QL","QM","QN","QO","QP","QR","QS","QT","QU","QV","QW","QX","QY","QZ";"RA","RB","RC","RD","RE","RF","RG","RH","RI","RJ","RK","RL","RM","RN","RO","RP","RQ","RS","RT","RU","RV","RW","RX","RY","RZ";"SA","SB","SC","SD","SE","SF","SG","SH","SI","SJ","SK","SL","SM","SN","SO","SP","SQ","SR","ST","SU","SV","SW","SX","SY","SZ";"TA","TB","TC","TD","TE","TF","TG","TH","TI","TJ","TK","TL","TM","TN","TO","TP","TQ","TR","TS","TU","TV","TW","TX","TY","TZ";"UA","UB","UC","UD","UE","UF","UG","UH","UI","UJ","UK","UL","UM","UN","UO","UP","UQ","UR","US","UT","UV","UW","UX","UY","UZ";"VA","VB","VC","VD","VE","VF","VG","VH","VI","VJ","VK","VL","VM","VN","VO","VP","VQ","VR","VS","VT","VU","VW","VX","VY","VZ";"WA","WB","WC","WD","WE","WF","WG","WH","WI","WJ","WK","WL","WM","WN","WO","WP","WQ","WR","WS","WT","WU","WV","WX","WY","WZ";"XA","XB","XC","XD","XE","XF","XG","XH","XI","XJ","XK","XL","XM","XN","XO","XP","XQ","XR","XS","XT","XU","XV","XW","XY","XZ";"YA","YB","YC","YD","YE","YF","YG","YH","YI","YJ","YK","YL","YM","YN","YO","YP","YQ","YR","YS","YT","YU","YV","YW","YX","YZ";"ZA","ZB","ZC","ZD","ZE","ZF","ZG","ZH","ZI","ZJ","ZK","ZL","ZM","ZN","ZO","ZP","ZQ","ZR","ZS","ZT","ZU","ZV","ZW","ZX","ZY"}, RANDBETWEEN(1,26),RANDBETWEEN(1,25)) -> FU | C60: OA | D60: =CHAR(INT((NOW()*10^8-INT(NOW()*10^8))*26+65))&CHAR(LARGE(IF(ROW($A$65:$A$90)<>INT((NOW()*10^8-INT(NOW()*10^8))*26+65),ROW($A$65:$A$90),""),RANDBETWEEN(1,25))) -> SZ | E60: HT | F60: BH
A61: =SUBSTITUTE(ADDRESS(1,SMALL(IF(MOD(COLUMN($AA:$ZZ),27)>0,COLUMN($AA:$ZZ)),RANDBETWEEN(1,650)),4),1,"") -> KJ | B61: =INDEX( {"AB","AC","AD","AE","AF","AG","AH","AI","AJ","AK","AL","AM","AN","AO","AP","AQ","AR","AS","AT","AU","AV","AW","AX","AY","AZ";"BA","BC","BD","BE","BF","BG","BH","BI","BJ","BK","BL","BM","BN","BO","BP","BQ","BR","BS","BT","BU","BV","BW","BX","BY","BZ";"CA","CB","CD","CE","CF","CG","CH","CI","CJ","CK","CL","CM","CN","CO","CP","CQ","CR","CS","CT","CU","CV","CW","CX","CY","CZ";"DA","DB","DC","DE","DF","DG","DH","DI","DJ","DK","DL","DM","DN","DO","DP","DQ","DR","DS","DT","DU","DV","DW","DX","DY","DZ";"EA","EB","EC","ED","EF","EG","EH","EI","EJ","EK","EL","EM","EN","EO","EP","EQ","ER","ES","ET","EU","EV","EW","EX","EY","EZ";"FA","FB","FC","FD","FE","FG","FH","FI","FJ","FK","FL","FM","FN","FO","FP","FQ","FR","FS","FT","FU","FV","FW","FX","FY","FZ";"GA","GB","GC","GD","GE","GF","GH","GI","GJ","GK","GL","GM","GN","GO","GP","GQ","GR","GS","GT","GU","GV","GW","GX","GY","GZ";"HA","HB","HC","HD","HE","HF","HG","HI","HJ","HK","HL","HM","HN","HO","HP","HQ","HR","HS","HT","HU","HV","HW","HX","HY","HZ";"IA","IB","IC","ID","IE","IF","IG","IH","IJ","IK","IL","IM","IN","IO","IP","IQ","IR","IS","IT","IU","IV","IW","IX","IY","IZ";"JA","JB","JC","JD","JE","JF","JG","JH","JI","JK","JL","JM","JN","JO","JP","JQ","JR","JS","JT","JU","JV","JW","JX","JY","JZ";"KA","KB","KC","KD","KE","KF","KG","KH","KI","KJ","KL","KM","KN","KO","KP","KQ","KR","KS","KT","KU","KV","KW","KX","KY","KZ";"LA","LB","LC","LD","LE","LF","LG","LH","LI","LJ","LK","LM","LN","LO","LP","LQ","LR","LS","LT","LU","LV","LW","LX","LY","LZ";"MA","MB","MC","MD","ME","MF","MG","MH","MI","MJ","MK","ML","MN","MO","MP","MQ","MR","MS","MT","MU","MV","MW","MX","MY","MZ";"NA","NB","NC","ND","NE","NF","NG","NH","NI","NJ","NK","NL","NM","NO","NP","NQ","NR","NS","NT","NU","NV","NW","NX","NY","NZ";"OA","OB","OC","OD","OE","OF","OG","OH","OI","OJ","OK","OL","OM","ON","OP","OQ","OR","OS","OT","OU","OV","OW","OX","OY","OZ";"PA","PB","PC","PD","PE","PF","PG","PH","PI","PJ","PK","PL","PM","PN","PO","PQ","PR","PS","PT","PU","PV","PW","PX","PY","PZ";"QA","QB","QC","QD","QE","QF","QG","QH","QI","QJ","QK","QL","QM","QN","QO","QP","QR","QS","QT","QU","QV","QW","QX","QY","QZ";"RA","RB","RC","RD","RE","RF","RG","RH","RI","RJ","RK","RL","RM","RN","RO","RP","RQ","RS","RT","RU","RV","RW","RX","RY","RZ";"SA","SB","SC","SD","SE","SF","SG","SH","SI","SJ","SK","SL","SM","SN","SO","SP","SQ","SR","ST","SU","SV","SW","SX","SY","SZ";"TA","TB","TC","TD","TE","TF","TG","TH","TI","TJ","TK","TL","TM","TN","TO","TP","TQ","TR","TS","TU","TV","TW","TX","TY","TZ";"UA","UB","UC","UD","UE","UF","UG","UH","UI","UJ","UK","UL","UM","UN","UO","UP","UQ","UR","US","UT","UV","UW","UX","UY","UZ";"VA","VB","VC","VD","VE","VF","VG","VH","VI","VJ","VK","VL","VM","VN","VO","VP","VQ","VR","VS","VT","VU","VW","VX","VY","VZ";"WA","WB","WC","WD","WE","WF","WG","WH","WI","WJ","WK","WL","WM","WN","WO","WP","WQ","WR","WS","WT","WU","WV","WX","WY","WZ";"XA","XB","XC","XD","XE","XF","XG","XH","XI","XJ","XK","XL","XM","XN","XO","XP","XQ","XR","XS","XT","XU","XV","XW","XY","XZ";"YA","YB","YC","YD","YE","YF","YG","YH","YI","YJ","YK","YL","YM","YN","YO","YP","YQ","YR","YS","YT","YU","YV","YW","YX","YZ";"ZA","ZB","ZC","ZD","ZE","ZF","ZG","ZH","ZI","ZJ","ZK","ZL","ZM","ZN","ZO","ZP","ZQ","ZR","ZS","ZT","ZU","ZV","ZW","ZX","ZY"}, RANDBETWEEN(1,26),RANDBETWEEN(1,25)) -> AM | C61: UX | D61: =CHAR(INT((NOW()*10^8-INT(NOW()*10^8))*26+65))&CHAR(LARGE(IF(ROW($A$65:$A$90)<>INT((NOW()*10^8-INT(NOW()*10^8))*26+65),ROW($A$65:$A$90),""),RANDBETWEEN(1,25))) -> SV | E61: AO | F61: JM
A62: =SUBSTITUTE(ADDRESS(1,SMALL(IF(MOD(COLUMN($AA:$ZZ),27)>0,COLUMN($AA:$ZZ)),RANDBETWEEN(1,650)),4),1,"") -> IZ | B62: =INDEX( {"AB","AC","AD","AE","AF","AG","AH","AI","AJ","AK","AL","AM","AN","AO","AP","AQ","AR","AS","AT","AU","AV","AW","AX","AY","AZ";"BA","BC","BD","BE","BF","BG","BH","BI","BJ","BK","BL","BM","BN","BO","BP","BQ","BR","BS","BT","BU","BV","BW","BX","BY","BZ";"CA","CB","CD","CE","CF","CG","CH","CI","CJ","CK","CL","CM","CN","CO","CP","CQ","CR","CS","CT","CU","CV","CW","CX","CY","CZ";"DA","DB","DC","DE","DF","DG","DH","DI","DJ","DK","DL","DM","DN","DO","DP","DQ","DR","DS","DT","DU","DV","DW","DX","DY","DZ";"EA","EB","EC","ED","EF","EG","EH","EI","EJ","EK","EL","EM","EN","EO","EP","EQ","ER","ES","ET","EU","EV","EW","EX","EY","EZ";"FA","FB","FC","FD","FE","FG","FH","FI","FJ","FK","FL","FM","FN","FO","FP","FQ","FR","FS","FT","FU","FV","FW","FX","FY","FZ";"GA","GB","GC","GD","GE","GF","GH","GI","GJ","GK","GL","GM","GN","GO","GP","GQ","GR","GS","GT","GU","GV","GW","GX","GY","GZ";"HA","HB","HC","HD","HE","HF","HG","HI","HJ","HK","HL","HM","HN","HO","HP","HQ","HR","HS","HT","HU","HV","HW","HX","HY","HZ";"IA","IB","IC","ID","IE","IF","IG","IH","IJ","IK","IL","IM","IN","IO","IP","IQ","IR","IS","IT","IU","IV","IW","IX","IY","IZ";"JA","JB","JC","JD","JE","JF","JG","JH","JI","JK","JL","JM","JN","JO","JP","JQ","JR","JS","JT","JU","JV","JW","JX","JY","JZ";"KA","KB","KC","KD","KE","KF","KG","KH","KI","KJ","KL","KM","KN","KO","KP","KQ","KR","KS","KT","KU","KV","KW","KX","KY","KZ";"LA","LB","LC","LD","LE","LF","LG","LH","LI","LJ","LK","LM","LN","LO","LP","LQ","LR","LS","LT","LU","LV","LW","LX","LY","LZ";"MA","MB","MC","MD","ME","MF","MG","MH","MI","MJ","MK","ML","MN","MO","MP","MQ","MR","MS","MT","MU","MV","MW","MX","MY","MZ";"NA","NB","NC","ND","NE","NF","NG","NH","NI","NJ","NK","NL","NM","NO","NP","NQ","NR","NS","NT","NU","NV","NW","NX","NY","NZ";"OA","OB","OC","OD","OE","OF","OG","OH","OI","OJ","OK","OL","OM","ON","OP","OQ","OR","OS","OT","OU","OV","OW","OX","OY","OZ";"PA","PB","PC","PD","PE","PF","PG","PH","PI","PJ","PK","PL","PM","PN","PO","PQ","PR","PS","PT","PU","PV","PW","PX","PY","PZ";"QA","QB","QC","QD","QE","QF","QG","QH","QI","QJ","QK","QL","QM","QN","QO","QP","QR","QS","QT","QU","QV","QW","QX","QY","QZ";"RA","RB","RC","RD","RE","RF","RG","RH","RI","RJ","RK","RL","RM","RN","RO","RP","RQ","RS","RT","RU","RV","RW","RX","RY","RZ";"SA","SB","SC","SD","SE","SF","SG","SH","SI","SJ","SK","SL","SM","SN","SO","SP","SQ","SR","ST","SU","SV","SW","SX","SY","SZ";"TA","TB","TC","TD","TE","TF","TG","TH","TI","TJ","TK","TL","TM","TN","TO","TP","TQ","TR","TS","TU","TV","TW","TX","TY","TZ";"UA","UB","UC","UD","UE","UF","UG","UH","UI","UJ","UK","UL","UM","UN","UO","UP","UQ","UR","US","UT","UV","UW","UX","UY","UZ";"VA","VB","VC","VD","VE","VF","VG","VH","VI","VJ","VK","VL","VM","VN","VO","VP","VQ","VR","VS","VT","VU","VW","VX","VY","VZ";"WA","WB","WC","WD","WE","WF","WG","WH","WI","WJ","WK","WL","WM","WN","WO","WP","WQ","WR","WS","WT","WU","WV","WX","WY","WZ";"XA","XB","XC","XD","XE","XF","XG","XH","XI","XJ","XK","XL","XM","XN","XO","XP","XQ","XR","XS","XT","XU","XV","XW","XY","XZ";"YA","YB","YC","YD","YE","YF","YG","YH","YI","YJ","YK","YL","YM","YN","YO","YP","YQ","YR","YS","YT","YU","YV","YW","YX","YZ";"ZA","ZB","ZC","ZD","ZE","ZF","ZG","ZH","ZI","ZJ","ZK","ZL","ZM","ZN","ZO","ZP","ZQ","ZR","ZS","ZT","ZU","ZV","ZW","ZX","ZY"}, RANDBETWEEN(1,26),RANDBETWEEN(1,25)) -> VY | C62: DT | D62: =CHAR(INT((NOW()*10^8-INT(NOW()*10^8))*26+65))&CHAR(LARGE(IF(ROW($A$65:$A$90)<>INT((NOW()*10^8-INT(NOW()*10^8))*26+65),ROW($A$65:$A$90),""),RANDBETWEEN(1,25))) -> SN | E62: DX | F62: EL
A63: =SUBSTITUTE(ADDRESS(1,SMALL(IF(MOD(COLUMN($AA:$ZZ),27)>0,COLUMN($AA:$ZZ)),RANDBETWEEN(1,650)),4),1,"") -> HG | B63: =INDEX( {"AB","AC","AD","AE","AF","AG","AH","AI","AJ","AK","AL","AM","AN","AO","AP","AQ","AR","AS","AT","AU","AV","AW","AX","AY","AZ";"BA","BC","BD","BE","BF","BG","BH","BI","BJ","BK","BL","BM","BN","BO","BP","BQ","BR","BS","BT","BU","BV","BW","BX","BY","BZ";"CA","CB","CD","CE","CF","CG","CH","CI","CJ","CK","CL","CM","CN","CO","CP","CQ","CR","CS","CT","CU","CV","CW","CX","CY","CZ";"DA","DB","DC","DE","DF","DG","DH","DI","DJ","DK","DL","DM","DN","DO","DP","DQ","DR","DS","DT","DU","DV","DW","DX","DY","DZ";"EA","EB","EC","ED","EF","EG","EH","EI","EJ","EK","EL","EM","EN","EO","EP","EQ","ER","ES","ET","EU","EV","EW","EX","EY","EZ";"FA","FB","FC","FD","FE","FG","FH","FI","FJ","FK","FL","FM","FN","FO","FP","FQ","FR","FS","FT","FU","FV","FW","FX","FY","FZ";"GA","GB","GC","GD","GE","GF","GH","GI","GJ","GK","GL","GM","GN","GO","GP","GQ","GR","GS","GT","GU","GV","GW","GX","GY","GZ";"HA","HB","HC","HD","HE","HF","HG","HI","HJ","HK","HL","HM","HN","HO","HP","HQ","HR","HS","HT","HU","HV","HW","HX","HY","HZ";"IA","IB","IC","ID","IE","IF","IG","IH","IJ","IK","IL","IM","IN","IO","IP","IQ","IR","IS","IT","IU","IV","IW","IX","IY","IZ";"JA","JB","JC","JD","JE","JF","JG","JH","JI","JK","JL","JM","JN","JO","JP","JQ","JR","JS","JT","JU","JV","JW","JX","JY","JZ";"KA","KB","KC","KD","KE","KF","KG","KH","KI","KJ","KL","KM","KN","KO","KP","KQ","KR","KS","KT","KU","KV","KW","KX","KY","KZ";"LA","LB","LC","LD","LE","LF","LG","LH","LI","LJ","LK","LM","LN","LO","LP","LQ","LR","LS","LT","LU","LV","LW","LX","LY","LZ";"MA","MB","MC","MD","ME","MF","MG","MH","MI","MJ","MK","ML","MN","MO","MP","MQ","MR","MS","MT","MU","MV","MW","MX","MY","MZ";"NA","NB","NC","ND","NE","NF","NG","NH","NI","NJ","NK","NL","NM","NO","NP","NQ","NR","NS","NT","NU","NV","NW","NX","NY","NZ";"OA","OB","OC","OD","OE","OF","OG","OH","OI","OJ","OK","OL","OM","ON","OP","OQ","OR","OS","OT","OU","OV","OW","OX","OY","OZ";"PA","PB","PC","PD","PE","PF","PG","PH","PI","PJ","PK","PL","PM","PN","PO","PQ","PR","PS","PT","PU","PV","PW","PX","PY","PZ";"QA","QB","QC","QD","QE","QF","QG","QH","QI","QJ","QK","QL","QM","QN","QO","QP","QR","QS","QT","QU","QV","QW","QX","QY","QZ";"RA","RB","RC","RD","RE","RF","RG","RH","RI","RJ","RK","RL","RM","RN","RO","RP","RQ","RS","RT","RU","RV","RW","RX","RY","RZ";"SA","SB","SC","SD","SE","SF","SG","SH","SI","SJ","SK","SL","SM","SN","SO","SP","SQ","SR","ST","SU","SV","SW","SX","SY","SZ";"TA","TB","TC","TD","TE","TF","TG","TH","TI","TJ","TK","TL","TM","TN","TO","TP","TQ","TR","TS","TU","TV","TW","TX","TY","TZ";"UA","UB","UC","UD","UE","UF","UG","UH","UI","UJ","UK","UL","UM","UN","UO","UP","UQ","UR","US","UT","UV","UW","UX","UY","UZ";"VA","VB","VC","VD","VE","VF","VG","VH","VI","VJ","VK","VL","VM","VN","VO","VP","VQ","VR","VS","VT","VU","VW","VX","VY","VZ";"WA","WB","WC","WD","WE","WF","WG","WH","WI","WJ","WK","WL","WM","WN","WO","WP","WQ","WR","WS","WT","WU","WV","WX","WY","WZ";"XA","XB","XC","XD","XE","XF","XG","XH","XI","XJ","XK","XL","XM","XN","XO","XP","XQ","XR","XS","XT","XU","XV","XW","XY","XZ";"YA","YB","YC","YD","YE","YF","YG","YH","YI","YJ","YK","YL","YM","YN","YO","YP","YQ","YR","YS","YT","YU","YV","YW","YX","YZ";"ZA","ZB","ZC","ZD","ZE","ZF","ZG","ZH","ZI","ZJ","ZK","ZL","ZM","ZN","ZO","ZP","ZQ","ZR","ZS","ZT","ZU","ZV","ZW","ZX","ZY"}, RANDBETWEEN(1,26),RANDBETWEEN(1,25)) -> KP | C63: AW | D63: =CHAR(INT((NOW()*10^8-INT(NOW()*10^8))*26+65))&CHAR(LARGE(IF(ROW($A$65:$A$90)<>INT((NOW()*10^8-INT(NOW()*10^8))*26+65),ROW($A$65:$A$90),""),RANDBETWEEN(1,25))) -> ST | E63: TK | F63: UD
A64: =SUBSTITUTE(ADDRESS(1,SMALL(IF(MOD(COLUMN($AA:$ZZ),27)>0,COLUMN($AA:$ZZ)),RANDBETWEEN(1,650)),4),1,"") -> JL | B64: =INDEX( {"AB","AC","AD","AE","AF","AG","AH","AI","AJ","AK","AL","AM","AN","AO","AP","AQ","AR","AS","AT","AU","AV","AW","AX","AY","AZ";"BA","BC","BD","BE","BF","BG","BH","BI","BJ","BK","BL","BM","BN","BO","BP","BQ","BR","BS","BT","BU","BV","BW","BX","BY","BZ";"CA","CB","CD","CE","CF","CG","CH","CI","CJ","CK","CL","CM","CN","CO","CP","CQ","CR","CS","CT","CU","CV","CW","CX","CY","CZ";"DA","DB","DC","DE","DF","DG","DH","DI","DJ","DK","DL","DM","DN","DO","DP","DQ","DR","DS","DT","DU","DV","DW","DX","DY","DZ";"EA","EB","EC","ED","EF","EG","EH","EI","EJ","EK","EL","EM","EN","EO","EP","EQ","ER","ES","ET","EU","EV","EW","EX","EY","EZ";"FA","FB","FC","FD","FE","FG","FH","FI","FJ","FK","FL","FM","FN","FO","FP","FQ","FR","FS","FT","FU","FV","FW","FX","FY","FZ";"GA","GB","GC","GD","GE","GF","GH","GI","GJ","GK","GL","GM","GN","GO","GP","GQ","GR","GS","GT","GU","GV","GW","GX","GY","GZ";"HA","HB","HC","HD","HE","HF","HG","HI","HJ","HK","HL","HM","HN","HO","HP","HQ","HR","HS","HT","HU","HV","HW","HX","HY","HZ";"IA","IB","IC","ID","IE","IF","IG","IH","IJ","IK","IL","IM","IN","IO","IP","IQ","IR","IS","IT","IU","IV","IW","IX","IY","IZ";"JA","JB","JC","JD","JE","JF","JG","JH","JI","JK","JL","JM","JN","JO","JP","JQ","JR","JS","JT","JU","JV","JW","JX","JY","JZ";"KA","KB","KC","KD","KE","KF","KG","KH","KI","KJ","KL","KM","KN","KO","KP","KQ","KR","KS","KT","KU","KV","KW","KX","KY","KZ";"LA","LB","LC","LD","LE","LF","LG","LH","LI","LJ","LK","LM","LN","LO","LP","LQ","LR","LS","LT","LU","LV","LW","LX","LY","LZ";"MA","MB","MC","MD","ME","MF","MG","MH","MI","MJ","MK","ML","MN","MO","MP","MQ","MR","MS","MT","MU","MV","MW","MX","MY","MZ";"NA","NB","NC","ND","NE","NF","NG","NH","NI","NJ","NK","NL","NM","NO","NP","NQ","NR","NS","NT","NU","NV","NW","NX","NY","NZ";"OA","OB","OC","OD","OE","OF","OG","OH","OI","OJ","OK","OL","OM","ON","OP","OQ","OR","OS","OT","OU","OV","OW","OX","OY","OZ";"PA","PB","PC","PD","PE","PF","PG","PH","PI","PJ","PK","PL","PM","PN","PO","PQ","PR","PS","PT","PU","PV","PW","PX","PY","PZ";"QA","QB","QC","QD","QE","QF","QG","QH","QI","QJ","QK","QL","QM","QN","QO","QP","QR","QS","QT","QU","QV","QW","QX","QY","QZ";"RA","RB","RC","RD","RE","RF","RG","RH","RI","RJ","RK","RL","RM","RN","RO","RP","RQ","RS","RT","RU","RV","RW","RX","RY","RZ";"SA","SB","SC","SD","SE","SF","SG","SH","SI","SJ","SK","SL","SM","SN","SO","SP","SQ","SR","ST","SU","SV","SW","SX","SY","SZ";"TA","TB","TC","TD","TE","TF","TG","TH","TI","TJ","TK","TL","TM","TN","TO","TP","TQ","TR","TS","TU","TV","TW","TX","TY","TZ";"UA","UB","UC","UD","UE","UF","UG","UH","UI","UJ","UK","UL","UM","UN","UO","UP","UQ","UR","US","UT","UV","UW","UX","UY","UZ";"VA","VB","VC","VD","VE","VF","VG","VH","VI","VJ","VK","VL","VM","VN","VO","VP","VQ","VR","VS","VT","VU","VW","VX","VY","VZ";"WA","WB","WC","WD","WE","WF","WG","WH","WI","WJ","WK","WL","WM","WN","WO","WP","WQ","WR","WS","WT","WU","WV","WX","WY","WZ";"XA","XB","XC","XD","XE","XF","XG","XH","XI","XJ","XK","XL","XM","XN","XO","XP","XQ","XR","XS","XT","XU","XV","XW","XY","XZ";"YA","YB","YC","YD","YE","YF","YG","YH","YI","YJ","YK","YL","YM","YN","YO","YP","YQ","YR","YS","YT","YU","YV","YW","YX","YZ";"ZA","ZB","ZC","ZD","ZE","ZF","ZG","ZH","ZI","ZJ","ZK","ZL","ZM","ZN","ZO","ZP","ZQ","ZR","ZS","ZT","ZU","ZV","ZW","ZX","ZY"}, RANDBETWEEN(1,26),RANDBETWEEN(1,25)) -> YX | C64: DH | D64: =CHAR(INT((NOW()*10^8-INT(NOW()*10^8))*26+65))&CHAR(LARGE(IF(ROW($A$65:$A$90)<>INT((NOW()*10^8-INT(NOW()*10^8))*26+65),ROW($A$65:$A$90),""),RANDBETWEEN(1,25))) -> SV | E64: LC | F64: WE
A65: =SUBSTITUTE(ADDRESS(1,SMALL(IF(MOD(COLUMN($AA:$ZZ),27)>0,COLUMN($AA:$ZZ)),RANDBETWEEN(1,650)),4),1,"") -> IF | B65: =INDEX( {"AB","AC","AD","AE","AF","AG","AH","AI","AJ","AK","AL","AM","AN","AO","AP","AQ","AR","AS","AT","AU","AV","AW","AX","AY","AZ";"BA","BC","BD","BE","BF","BG","BH","BI","BJ","BK","BL","BM","BN","BO","BP","BQ","BR","BS","BT","BU","BV","BW","BX","BY","BZ";"CA","CB","CD","CE","CF","CG","CH","CI","CJ","CK","CL","CM","CN","CO","CP","CQ","CR","CS","CT","CU","CV","CW","CX","CY","CZ";"DA","DB","DC","DE","DF","DG","DH","DI","DJ","DK","DL","DM","DN","DO","DP","DQ","DR","DS","DT","DU","DV","DW","DX","DY","DZ";"EA","EB","EC","ED","EF","EG","EH","EI","EJ","EK","EL","EM","EN","EO","EP","EQ","ER","ES","ET","EU","EV","EW","EX","EY","EZ";"FA","FB","FC","FD","FE","FG","FH","FI","FJ","FK","FL","FM","FN","FO","FP","FQ","FR","FS","FT","FU","FV","FW","FX","FY","FZ";"GA","GB","GC","GD","GE","GF","GH","GI","GJ","GK","GL","GM","GN","GO","GP","GQ","GR","GS","GT","GU","GV","GW","GX","GY","GZ";"HA","HB","HC","HD","HE","HF","HG","HI","HJ","HK","HL","HM","HN","HO","HP","HQ","HR","HS","HT","HU","HV","HW","HX","HY","HZ";"IA","IB","IC","ID","IE","IF","IG","IH","IJ","IK","IL","IM","IN","IO","IP","IQ","IR","IS","IT","IU","IV","IW","IX","IY","IZ";"JA","JB","JC","JD","JE","JF","JG","JH","JI","JK","JL","JM","JN","JO","JP","JQ","JR","JS","JT","JU","JV","JW","JX","JY","JZ";"KA","KB","KC","KD","KE","KF","KG","KH","KI","KJ","KL","KM","KN","KO","KP","KQ","KR","KS","KT","KU","KV","KW","KX","KY","KZ";"LA","LB","LC","LD","LE","LF","LG","LH","LI","LJ","LK","LM","LN","LO","LP","LQ","LR","LS","LT","LU","LV","LW","LX","LY","LZ";"MA","MB","MC","MD","ME","MF","MG","MH","MI","MJ","MK","ML","MN","MO","MP","MQ","MR","MS","MT","MU","MV","MW","MX","MY","MZ";"NA","NB","NC","ND","NE","NF","NG","NH","NI","NJ","NK","NL","NM","NO","NP","NQ","NR","NS","NT","NU","NV","NW","NX","NY","NZ";"OA","OB","OC","OD","OE","OF","OG","OH","OI","OJ","OK","OL","OM","ON","OP","OQ","OR","OS","OT","OU","OV","OW","OX","OY","OZ";"PA","PB","PC","PD","PE","PF","PG","PH","PI","PJ","PK","PL","PM","PN","PO","PQ","PR","PS","PT","PU","PV","PW","PX","PY","PZ";"QA","QB","QC","QD","QE","QF","QG","QH","QI","QJ","QK","QL","QM","QN","QO","QP","QR","QS","QT","QU","QV","QW","QX","QY","QZ";"RA","RB","RC","RD","RE","RF","RG","RH","RI","RJ","RK","RL","RM","RN","RO","RP","RQ","RS","RT","RU","RV","RW","RX","RY","RZ";"SA","SB","SC","SD","SE","SF","SG","SH","SI","SJ","SK","SL","SM","SN","SO","SP","SQ","SR","ST","SU","SV","SW","SX","SY","SZ";"TA","TB","TC","TD","TE","TF","TG","TH","TI","TJ","TK","TL","TM","TN","TO","TP","TQ","TR","TS","TU","TV","TW","TX","TY","TZ";"UA","UB","UC","UD","UE","UF","UG","UH","UI","UJ","UK","UL","UM","UN","UO","UP","UQ","UR","US","UT","UV","UW","UX","UY","UZ";"VA","VB","VC","VD","VE","VF","VG","VH","VI","VJ","VK","VL","VM","VN","VO","VP","VQ","VR","VS","VT","VU","VW","VX","VY","VZ";"WA","WB","WC","WD","WE","WF","WG","WH","WI","WJ","WK","WL","WM","WN","WO","WP","WQ","WR","WS","WT","WU","WV","WX","WY","WZ";"XA","XB","XC","XD","XE","XF","XG","XH","XI","XJ","XK","XL","XM","XN","XO","XP","XQ","XR","XS","XT","XU","XV","XW","XY","XZ";"YA","YB","YC","YD","YE","YF","YG","YH","YI","YJ","YK","YL","YM","YN","YO","YP","YQ","YR","YS","YT","YU","YV","YW","YX","YZ";"ZA","ZB","ZC","ZD","ZE","ZF","ZG","ZH","ZI","ZJ","ZK","ZL","ZM","ZN","ZO","ZP","ZQ","ZR","ZS","ZT","ZU","ZV","ZW","ZX","ZY"}, RANDBETWEEN(1,26),RANDBETWEEN(1,25)) -> GB | C65: VF | D65: =CHAR(INT((NOW()*10^8-INT(NOW()*10^8))*26+65))&CHAR(LARGE(IF(ROW($A$65:$A$90)<>INT((NOW()*10^8-INT(NOW()*10^8))*26+65),ROW($A$65:$A$90),""),RANDBETWEEN(1,25))) -> SA | E65: HP | F65: KS
A66: =SUBSTITUTE(ADDRESS(1,SMALL(IF(MOD(COLUMN($AA:$ZZ),27)>0,COLUMN($AA:$ZZ)),RANDBETWEEN(1,650)),4),1,"") -> AN | B66: =INDEX( {"AB","AC","AD","AE","AF","AG","AH","AI","AJ","AK","AL","AM","AN","AO","AP","AQ","AR","AS","AT","AU","AV","AW","AX","AY","AZ";"BA","BC","BD","BE","BF","BG","BH","BI","BJ","BK","BL","BM","BN","BO","BP","BQ","BR","BS","BT","BU","BV","BW","BX","BY","BZ";"CA","CB","CD","CE","CF","CG","CH","CI","CJ","CK","CL","CM","CN","CO","CP","CQ","CR","CS","CT","CU","CV","CW","CX","CY","CZ";"DA","DB","DC","DE","DF","DG","DH","DI","DJ","DK","DL","DM","DN","DO","DP","DQ","DR","DS","DT","DU","DV","DW","DX","DY","DZ";"EA","EB","EC","ED","EF","EG","EH","EI","EJ","EK","EL","EM","EN","EO","EP","EQ","ER","ES","ET","EU","EV","EW","EX","EY","EZ";"FA","FB","FC","FD","FE","FG","FH","FI","FJ","FK","FL","FM","FN","FO","FP","FQ","FR","FS","FT","FU","FV","FW","FX","FY","FZ";"GA","GB","GC","GD","GE","GF","GH","GI","GJ","GK","GL","GM","GN","GO","GP","GQ","GR","GS","GT","GU","GV","GW","GX","GY","GZ";"HA","HB","HC","HD","HE","HF","HG","HI","HJ","HK","HL","HM","HN","HO","HP","HQ","HR","HS","HT","HU","HV","HW","HX","HY","HZ";"IA","IB","IC","ID","IE","IF","IG","IH","IJ","IK","IL","IM","IN","IO","IP","IQ","IR","IS","IT","IU","IV","IW","IX","IY","IZ";"JA","JB","JC","JD","JE","JF","JG","JH","JI","JK","JL","JM","JN","JO","JP","JQ","JR","JS","JT","JU","JV","JW","JX","JY","JZ";"KA","KB","KC","KD","KE","KF","KG","KH","KI","KJ","KL","KM","KN","KO","KP","KQ","KR","KS","KT","KU","KV","KW","KX","KY","KZ";"LA","LB","LC","LD","LE","LF","LG","LH","LI","LJ","LK","LM","LN","LO","LP","LQ","LR","LS","LT","LU","LV","LW","LX","LY","LZ";"MA","MB","MC","MD","ME","MF","MG","MH","MI","MJ","MK","ML","MN","MO","MP","MQ","MR","MS","MT","MU","MV","MW","MX","MY","MZ";"NA","NB","NC","ND","NE","NF","NG","NH","NI","NJ","NK","NL","NM","NO","NP","NQ","NR","NS","NT","NU","NV","NW","NX","NY","NZ";"OA","OB","OC","OD","OE","OF","OG","OH","OI","OJ","OK","OL","OM","ON","OP","OQ","OR","OS","OT","OU","OV","OW","OX","OY","OZ";"PA","PB","PC","PD","PE","PF","PG","PH","PI","PJ","PK","PL","PM","PN","PO","PQ","PR","PS","PT","PU","PV","PW","PX","PY","PZ";"QA","QB","QC","QD","QE","QF","QG","QH","QI","QJ","QK","QL","QM","QN","QO","QP","QR","QS","QT","QU","QV","QW","QX","QY","QZ";"RA","RB","RC","RD","RE","RF","RG","RH","RI","RJ","RK","RL","RM","RN","RO","RP","RQ","RS","RT","RU","RV","RW","RX","RY","RZ";"SA","SB","SC","SD","SE","SF","SG","SH","SI","SJ","SK","SL","SM","SN","SO","SP","SQ","SR","ST","SU","SV","SW","SX","SY","SZ";"TA","TB","TC","TD","TE","TF","TG","TH","TI","TJ","TK","TL","TM","TN","TO","TP","TQ","TR","TS","TU","TV","TW","TX","TY","TZ";"UA","UB","UC","UD","UE","UF","UG","UH","UI","UJ","UK","UL","UM","UN","UO","UP","UQ","UR","US","UT","UV","UW","UX","UY","UZ";"VA","VB","VC","VD","VE","VF","VG","VH","VI","VJ","VK","VL","VM","VN","VO","VP","VQ","VR","VS","VT","VU","VW","VX","VY","VZ";"WA","WB","WC","WD","WE","WF","WG","WH","WI","WJ","WK","WL","WM","WN","WO","WP","WQ","WR","WS","WT","WU","WV","WX","WY","WZ";"XA","XB","XC","XD","XE","XF","XG","XH","XI","XJ","XK","XL","XM","XN","XO","XP","XQ","XR","XS","XT","XU","XV","XW","XY","XZ";"YA","YB","YC","YD","YE","YF","YG","YH","YI","YJ","YK","YL","YM","YN","YO","YP","YQ","YR","YS","YT","YU","YV","YW","YX","YZ";"ZA","ZB","ZC","ZD","ZE","ZF","ZG","ZH","ZI","ZJ","ZK","ZL","ZM","ZN","ZO","ZP","ZQ","ZR","ZS","ZT","ZU","ZV","ZW","ZX","ZY"}, RANDBETWEEN(1,26),RANDBETWEEN(1,25)) -> DK | C66: TM | D66: =CHAR(INT((NOW()*10^8-INT(NOW()*10^8))*26+65))&CHAR(LARGE(IF(ROW($A$65:$A$90)<>INT((NOW()*10^8-INT(NOW()*10^8))*26+65),ROW($A$65:$A$90),""),RANDBETWEEN(1,25))) -> SK | E66: GC | F66: HQ
A67: =SUBSTITUTE(ADDRESS(1,SMALL(IF(MOD(COLUMN($AA:$ZZ),27)>0,COLUMN($AA:$ZZ)),RANDBETWEEN(1,650)),4),1,"") -> CJ | B67: =INDEX( {"AB","AC","AD","AE","AF","AG","AH","AI","AJ","AK","AL","AM","AN","AO","AP","AQ","AR","AS","AT","AU","AV","AW","AX","AY","AZ";"BA","BC","BD","BE","BF","BG","BH","BI","BJ","BK","BL","BM","BN","BO","BP","BQ","BR","BS","BT","BU","BV","BW","BX","BY","BZ";"CA","CB","CD","CE","CF","CG","CH","CI","CJ","CK","CL","CM","CN","CO","CP","CQ","CR","CS","CT","CU","CV","CW","CX","CY","CZ";"DA","DB","DC","DE","DF","DG","DH","DI","DJ","DK","DL","DM","DN","DO","DP","DQ","DR","DS","DT","DU","DV","DW","DX","DY","DZ";"EA","EB","EC","ED","EF","EG","EH","EI","EJ","EK","EL","EM","EN","EO","EP","EQ","ER","ES","ET","EU","EV","EW","EX","EY","EZ";"FA","FB","FC","FD","FE","FG","FH","FI","FJ","FK","FL","FM","FN","FO","FP","FQ","FR","FS","FT","FU","FV","FW","FX","FY","FZ";"GA","GB","GC","GD","GE","GF","GH","GI","GJ","GK","GL","GM","GN","GO","GP","GQ","GR","GS","GT","GU","GV","GW","GX","GY","GZ";"HA","HB","HC","HD","HE","HF","HG","HI","HJ","HK","HL","HM","HN","HO","HP","HQ","HR","HS","HT","HU","HV","HW","HX","HY","HZ";"IA","IB","IC","ID","IE","IF","IG","IH","IJ","IK","IL","IM","IN","IO","IP","IQ","IR","IS","IT","IU","IV","IW","IX","IY","IZ";"JA","JB","JC","JD","JE","JF","JG","JH","JI","JK","JL","JM","JN","JO","JP","JQ","JR","JS","JT","JU","JV","JW","JX","JY","JZ";"KA","KB","KC","KD","KE","KF","KG","KH","KI","KJ","KL","KM","KN","KO","KP","KQ","KR","KS","KT","KU","KV","KW","KX","KY","KZ";"LA","LB","LC","LD","LE","LF","LG","LH","LI","LJ","LK","LM","LN","LO","LP","LQ","LR","LS","LT","LU","LV","LW","LX","LY","LZ";"MA","MB","MC","MD","ME","MF","MG","MH","MI","MJ","MK","ML","MN","MO","MP","MQ","MR","MS","MT","MU","MV","MW","MX","MY","MZ";"NA","NB","NC","ND","NE","NF","NG","NH","NI","NJ","NK","NL","NM","NO","NP","NQ","NR","NS","NT","NU","NV","NW","NX","NY","NZ";"OA","OB","OC","OD","OE","OF","OG","OH","OI","OJ","OK","OL","OM","ON","OP","OQ","OR","OS","OT","OU","OV","OW","OX","OY","OZ";"PA","PB","PC","PD","PE","PF","PG","PH","PI","PJ","PK","PL","PM","PN","PO","PQ","PR","PS","PT","PU","PV","PW","PX","PY","PZ";"QA","QB","QC","QD","QE","QF","QG","QH","QI","QJ","QK","QL","QM","QN","QO","QP","QR","QS","QT","QU","QV","QW","QX","QY","QZ";"RA","RB","RC","RD","RE","RF","RG","RH","RI","RJ","RK","RL","RM","RN","RO","RP","RQ","RS","RT","RU","RV","RW","RX","RY","RZ";"SA","SB","SC","SD","SE","SF","SG","SH","SI","SJ","SK","SL","SM","SN","SO","SP","SQ","SR","ST","SU","SV","SW","SX","SY","SZ";"TA","TB","TC","TD","TE","TF","TG","TH","TI","TJ","TK","TL","TM","TN","TO","TP","TQ","TR","TS","TU","TV","TW","TX","TY","TZ";"UA","UB","UC","UD","UE","UF","UG","UH","UI","UJ","UK","UL","UM","UN","UO","UP","UQ","UR","US","UT","UV","UW","UX","UY","UZ";"VA","VB","VC","VD","VE","VF","VG","VH","VI","VJ","VK","VL","VM","VN","VO","VP","VQ","VR","VS","VT","VU","VW","VX","VY","VZ";"WA","WB","WC","WD","WE","WF","WG","WH","WI","WJ","WK","WL","WM","WN","WO","WP","WQ","WR","WS","WT","WU","WV","WX","WY","WZ";"XA","XB","XC","XD","XE","XF","XG","XH","XI","XJ","XK","XL","XM","XN","XO","XP","XQ","XR","XS","XT","XU","XV","XW","XY","XZ";"YA","YB","YC","YD","YE","YF","YG","YH","YI","YJ","YK","YL","YM","YN","YO","YP","YQ","YR","YS","YT","YU","YV","YW","YX","YZ";"ZA","ZB","ZC","ZD","ZE","ZF","ZG","ZH","ZI","ZJ","ZK","ZL","ZM","ZN","ZO","ZP","ZQ","ZR","ZS","ZT","ZU","ZV","ZW","ZX","ZY"}, RANDBETWEEN(1,26),RANDBETWEEN(1,25)) -> PE | C67: ML | D67: =CHAR(INT((NOW()*10^8-INT(NOW()*10^8))*26+65))&CHAR(LARGE(IF(ROW($A$65:$A$90)<>INT((NOW()*10^8-INT(NOW()*10^8))*26+65),ROW($A$65:$A$90),""),RANDBETWEEN(1,25))) -> SP | E67: FA | F67: LM
A68: =SUBSTITUTE(ADDRESS(1,SMALL(IF(MOD(COLUMN($AA:$ZZ),27)>0,COLUMN($AA:$ZZ)),RANDBETWEEN(1,650)),4),1,"") -> QN | B68: =INDEX( {"AB","AC","AD","AE","AF","AG","AH","AI","AJ","AK","AL","AM","AN","AO","AP","AQ","AR","AS","AT","AU","AV","AW","AX","AY","AZ";"BA","BC","BD","BE","BF","BG","BH","BI","BJ","BK","BL","BM","BN","BO","BP","BQ","BR","BS","BT","BU","BV","BW","BX","BY","BZ";"CA","CB","CD","CE","CF","CG","CH","CI","CJ","CK","CL","CM","CN","CO","CP","CQ","CR","CS","CT","CU","CV","CW","CX","CY","CZ";"DA","DB","DC","DE","DF","DG","DH","DI","DJ","DK","DL","DM","DN","DO","DP","DQ","DR","DS","DT","DU","DV","DW","DX","DY","DZ";"EA","EB","EC","ED","EF","EG","EH","EI","EJ","EK","EL","EM","EN","EO","EP","EQ","ER","ES","ET","EU","EV","EW","EX","EY","EZ";"FA","FB","FC","FD","FE","FG","FH","FI","FJ","FK","FL","FM","FN","FO","FP","FQ","FR","FS","FT","FU","FV","FW","FX","FY","FZ";"GA","GB","GC","GD","GE","GF","GH","GI","GJ","GK","GL","GM","GN","GO","GP","GQ","GR","GS","GT","GU","GV","GW","GX","GY","GZ";"HA","HB","HC","HD","HE","HF","HG","HI","HJ","HK","HL","HM","HN","HO","HP","HQ","HR","HS","HT","HU","HV","HW","HX","HY","HZ";"IA","IB","IC","ID","IE","IF","IG","IH","IJ","IK","IL","IM","IN","IO","IP","IQ","IR","IS","IT","IU","IV","IW","IX","IY","IZ";"JA","JB","JC","JD","JE","JF","JG","JH","JI","JK","JL","JM","JN","JO","JP","JQ","JR","JS","JT","JU","JV","JW","JX","JY","JZ";"KA","KB","KC","KD","KE","KF","KG","KH","KI","KJ","KL","KM","KN","KO","KP","KQ","KR","KS","KT","KU","KV","KW","KX","KY","KZ";"LA","LB","LC","LD","LE","LF","LG","LH","LI","LJ","LK","LM","LN","LO","LP","LQ","LR","LS","LT","LU","LV","LW","LX","LY","LZ";"MA","MB","MC","MD","ME","MF","MG","MH","MI","MJ","MK","ML","MN","MO","MP","MQ","MR","MS","MT","MU","MV","MW","MX","MY","MZ";"NA","NB","NC","ND","NE","NF","NG","NH","NI","NJ","NK","NL","NM","NO","NP","NQ","NR","NS","NT","NU","NV","NW","NX","NY","NZ";"OA","OB","OC","OD","OE","OF","OG","OH","OI","OJ","OK","OL","OM","ON","OP","OQ","OR","OS","OT","OU","OV","OW","OX","OY","OZ";"PA","PB","PC","PD","PE","PF","PG","PH","PI","PJ","PK","PL","PM","PN","PO","PQ","PR","PS","PT","PU","PV","PW","PX","PY","PZ";"QA","QB","QC","QD","QE","QF","QG","QH","QI","QJ","QK","QL","QM","QN","QO","QP","QR","QS","QT","QU","QV","QW","QX","QY","QZ";"RA","RB","RC","RD","RE","RF","RG","RH","RI","RJ","RK","RL","RM","RN","RO","RP","RQ","RS","RT","RU","RV","RW","RX","RY","RZ";"SA","SB","SC","SD","SE","SF","SG","SH","SI","SJ","SK","SL","SM","SN","SO","SP","SQ","SR","ST","SU","SV","SW","SX","SY","SZ";"TA","TB","TC","TD","TE","TF","TG","TH","TI","TJ","TK","TL","TM","TN","TO","TP","TQ","TR","TS","TU","TV","TW","TX","TY","TZ";"UA","UB","UC","UD","UE","UF","UG","UH","UI","UJ","UK","UL","UM","UN","UO","UP","UQ","UR","US","UT","UV","UW","UX","UY","UZ";"VA","VB","VC","VD","VE","VF","VG","VH","VI","VJ","VK","VL","VM","VN","VO","VP","VQ","VR","VS","VT","VU","VW","VX","VY","VZ";"WA","WB","WC","WD","WE","WF","WG","WH","WI","WJ","WK","WL","WM","WN","WO","WP","WQ","WR","WS","WT","WU","WV","WX","WY","WZ";"XA","XB","XC","XD","XE","XF","XG","XH","XI","XJ","XK","XL","XM","XN","XO","XP","XQ","XR","XS","XT","XU","XV","XW","XY","XZ";"YA","YB","YC","YD","YE","YF","YG","YH","YI","YJ","YK","YL","YM","YN","YO","YP","YQ","YR","YS","YT","YU","YV","YW","YX","YZ";"ZA","ZB","ZC","ZD","ZE","ZF","ZG","ZH","ZI","ZJ","ZK","ZL","ZM","ZN","ZO","ZP","ZQ","ZR","ZS","ZT","ZU","ZV","ZW","ZX","ZY"}, RANDBETWEEN(1,26),RANDBETWEEN(1,25)) -> XZ | C68: =MID("ABACADAEAFAGAHAIAJAKALAMANAOAPAQARASATAUAVAWAXAYAZBABCBDBEBFBGBHBIBJBKBLBMBNBOBPBQBRBSBTBUBVBWBXBYBZCACBCDCECFCGCHCICJCKCLCMCNCOCPCQCRCSCTCUCVCWCXCYCZDADBDCDEDFDGDHDIDJDKDLDMDNDODPDQDRDSDTDUDVDWDXDYDZEAEBECEDEFEGEHEIEJEKELEMENEOEPEQERESETEUEVEWEXEYEZFAFB"& "FCFDFEFGFHFIFJFKFLFMFNFOFPFQFRFSFTFUFVFWFXFYFZGAGBGCGDGEGFGHGIGJGKGLGMGNGOGPGQGRGSGTGUGVGWGXGYGZHAHBHCHDHEHFHGHIHJHKHLHMHNHOHPHQHRHSHTHUHVHWHXHYHZIAIBICIDIEIFIGIHIJIKILIMINIOIPIQIRISITIUIVIWIXIYIZJAJBJCJDJEJFJGJHJIJKJLJMJNJOJPJQJRJSJTJUJVJWJXJYJZKAKBK"& "CKDKEKFKGKHKIKJKLKMKNKOKPKQKRKSKTKUKVKWKXKYKZLALBLCLDLELFLGLHLILJLKLMLNLOLPLQLRLSLTLULVLWLXLYLZMAMBMCMDMEMFMGMHMIMJMKMLMNMOMPMQMRMSMTMUMVMWMXMYMZNANBNCNDNENFNGNHNINJNKNLNMNONPNQNRNSNTNUNVNWNXNYNZOAOBOCODOEOFOGOHOIOJOKOLOMONOPOQOROSOTOUOVOWOXOYOZPAPBPC"& "PDPEPFPGPHPIPJPKPLPMPNPOPQPRPSPTPUPVPWPXPYPZQAQBQCQDQEQFQGQHQIQJQKQLQMQNQOQPQRQSQTQUQVQWQXQYQZRARBRCRDRERFRGRHRIRJRKRLRMRNRORPRQRSRTRURVRWRXRYRZSASBSCSDSESFSGSHSISJSKSLSMSNSOSPSQSRSTSUSVSWSXSYSZTATBTCTDTETFTGTHTITJTKTLTMTNTOTPTQTRTSTUTVTWTXTYTZUAUBUCU"& "DUEUFUGUHUIUJUKULUMUNUOUPUQURUSUTUVUWUXUYUZVAVBVCVDVEVFVGVHVIVJVKVLVMVNVOVPVQVRVSVTVUVWVXVYVZWAWBWCWD"&"WEWFWGWHWIWJWKWLWMWNWOWPWQWRWSWTWUWVWXWYWZXAXBXCXDXEXFXGXHXIXJXKXLXMXNXOXPXQXRXSXTXUXVXWXYXZYAYBYCYDYEYFYGYHYIYJYKYLYMYNYOYPYQYRYSYTYUYVYWYXYZZAZBZCZDZEZFZGZHZIZJZKZLZMZNZOZPZQZRZSZTZUZVZWZXZY",ODD(RANDBETWEEN(1,1299)),2) -> EG | D68: =CHAR(INT((NOW()*10^8-INT(NOW()*10^8))*26+65))&CHAR(LARGE(IF(ROW($A$65:$A$90)<>INT((NOW()*10^8-INT(NOW()*10^8))*26+65),ROW($A$65:$A$90),""),RANDBETWEEN(1,25))) -> SE | E68: =MID(ADDRESS(1,RANDBETWEEN(1,25)*27+(RANDBETWEEN(0,25)+1)),2,2) -> XB | F68: =LEFT(ADDRESS(1,RANDBETWEEN(1,25)*27+(RANDBETWEEN(0,25)+1),4),2) -> HB
A69: =SUBSTITUTE(ADDRESS(1,SMALL(IF(MOD(COLUMN($AA:$ZZ),27)>0,COLUMN($AA:$ZZ)),RANDBETWEEN(1,650)),4),1,"") -> VH | B69: =INDEX( {"AB","AC","AD","AE","AF","AG","AH","AI","AJ","AK","AL","AM","AN","AO","AP","AQ","AR","AS","AT","AU","AV","AW","AX","AY","AZ";"BA","BC","BD","BE","BF","BG","BH","BI","BJ","BK","BL","BM","BN","BO","BP","BQ","BR","BS","BT","BU","BV","BW","BX","BY","BZ";"CA","CB","CD","CE","CF","CG","CH","CI","CJ","CK","CL","CM","CN","CO","CP","CQ","CR","CS","CT","CU","CV","CW","CX","CY","CZ";"DA","DB","DC","DE","DF","DG","DH","DI","DJ","DK","DL","DM","DN","DO","DP","DQ","DR","DS","DT","DU","DV","DW","DX","DY","DZ";"EA","EB","EC","ED","EF","EG","EH","EI","EJ","EK","EL","EM","EN","EO","EP","EQ","ER","ES","ET","EU","EV","EW","EX","EY","EZ";"FA","FB","FC","FD","FE","FG","FH","FI","FJ","FK","FL","FM","FN","FO","FP","FQ","FR","FS","FT","FU","FV","FW","FX","FY","FZ";"GA","GB","GC","GD","GE","GF","GH","GI","GJ","GK","GL","GM","GN","GO","GP","GQ","GR","GS","GT","GU","GV","GW","GX","GY","GZ";"HA","HB","HC","HD","HE","HF","HG","HI","HJ","HK","HL","HM","HN","HO","HP","HQ","HR","HS","HT","HU","HV","HW","HX","HY","HZ";"IA","IB","IC","ID","IE","IF","IG","IH","IJ","IK","IL","IM","IN","IO","IP","IQ","IR","IS","IT","IU","IV","IW","IX","IY","IZ";"JA","JB","JC","JD","JE","JF","JG","JH","JI","JK","JL","JM","JN","JO","JP","JQ","JR","JS","JT","JU","JV","JW","JX","JY","JZ";"KA","KB","KC","KD","KE","KF","KG","KH","KI","KJ","KL","KM","KN","KO","KP","KQ","KR","KS","KT","KU","KV","KW","KX","KY","KZ";"LA","LB","LC","LD","LE","LF","LG","LH","LI","LJ","LK","LM","LN","LO","LP","LQ","LR","LS","LT","LU","LV","LW","LX","LY","LZ";"MA","MB","MC","MD","ME","MF","MG","MH","MI","MJ","MK","ML","MN","MO","MP","MQ","MR","MS","MT","MU","MV","MW","MX","MY","MZ";"NA","NB","NC","ND","NE","NF","NG","NH","NI","NJ","NK","NL","NM","NO","NP","NQ","NR","NS","NT","NU","NV","NW","NX","NY","NZ";"OA","OB","OC","OD","OE","OF","OG","OH","OI","OJ","OK","OL","OM","ON","OP","OQ","OR","OS","OT","OU","OV","OW","OX","OY","OZ";"PA","PB","PC","PD","PE","PF","PG","PH","PI","PJ","PK","PL","PM","PN","PO","PQ","PR","PS","PT","PU","PV","PW","PX","PY","PZ";"QA","QB","QC","QD","QE","QF","QG","QH","QI","QJ","QK","QL","QM","QN","QO","QP","QR","QS","QT","QU","QV","QW","QX","QY","QZ";"RA","RB","RC","RD","RE","RF","RG","RH","RI","RJ","RK","RL","RM","RN","RO","RP","RQ","RS","RT","RU","RV","RW","RX","RY","RZ";"SA","SB","SC","SD","SE","SF","SG","SH","SI","SJ","SK","SL","SM","SN","SO","SP","SQ","SR","ST","SU","SV","SW","SX","SY","SZ";"TA","TB","TC","TD","TE","TF","TG","TH","TI","TJ","TK","TL","TM","TN","TO","TP","TQ","TR","TS","TU","TV","TW","TX","TY","TZ";"UA","UB","UC","UD","UE","UF","UG","UH","UI","UJ","UK","UL","UM","UN","UO","UP","UQ","UR","US","UT","UV","UW","UX","UY","UZ";"VA","VB","VC","VD","VE","VF","VG","VH","VI","VJ","VK","VL","VM","VN","VO","VP","VQ","VR","VS","VT","VU","VW","VX","VY","VZ";"WA","WB","WC","WD","WE","WF","WG","WH","WI","WJ","WK","WL","WM","WN","WO","WP","WQ","WR","WS","WT","WU","WV","WX","WY","WZ";"XA","XB","XC","XD","XE","XF","XG","XH","XI","XJ","XK","XL","XM","XN","XO","XP","XQ","XR","XS","XT","XU","XV","XW","XY","XZ";"YA","YB","YC","YD","YE","YF","YG","YH","YI","YJ","YK","YL","YM","YN","YO","YP","YQ","YR","YS","YT","YU","YV","YW","YX","YZ";"ZA","ZB","ZC","ZD","ZE","ZF","ZG","ZH","ZI","ZJ","ZK","ZL","ZM","ZN","ZO","ZP","ZQ","ZR","ZS","ZT","ZU","ZV","ZW","ZX","ZY"}, RANDBETWEEN(1,26),RANDBETWEEN(1,25)) -> QE | C69: TM | D69: =CHAR(INT((NOW()*10^8-INT(NOW()*10^8))*26+65))&CHAR(LARGE(IF(ROW($A$65:$A$90)<>INT((NOW()*10^8-INT(NOW()*10^8))*26+65),ROW($A$65:$A$90),""),RANDBETWEEN(1,25))) -> SN | E69: EF | F69: WO
A70: =SUBSTITUTE(ADDRESS(1,SMALL(IF(MOD(COLUMN($AA:$ZZ),27)>0,COLUMN($AA:$ZZ)),RANDBETWEEN(1,650)),4),1,"") -> EP | B70: =INDEX( {"AB","AC","AD","AE","AF","AG","AH","AI","AJ","AK","AL","AM","AN","AO","AP","AQ","AR","AS","AT","AU","AV","AW","AX","AY","AZ";"BA","BC","BD","BE","BF","BG","BH","BI","BJ","BK","BL","BM","BN","BO","BP","BQ","BR","BS","BT","BU","BV","BW","BX","BY","BZ";"CA","CB","CD","CE","CF","CG","CH","CI","CJ","CK","CL","CM","CN","CO","CP","CQ","CR","CS","CT","CU","CV","CW","CX","CY","CZ";"DA","DB","DC","DE","DF","DG","DH","DI","DJ","DK","DL","DM","DN","DO","DP","DQ","DR","DS","DT","DU","DV","DW","DX","DY","DZ";"EA","EB","EC","ED","EF","EG","EH","EI","EJ","EK","EL","EM","EN","EO","EP","EQ","ER","ES","ET","EU","EV","EW","EX","EY","EZ";"FA","FB","FC","FD","FE","FG","FH","FI","FJ","FK","FL","FM","FN","FO","FP","FQ","FR","FS","FT","FU","FV","FW","FX","FY","FZ";"GA","GB","GC","GD","GE","GF","GH","GI","GJ","GK","GL","GM","GN","GO","GP","GQ","GR","GS","GT","GU","GV","GW","GX","GY","GZ";"HA","HB","HC","HD","HE","HF","HG","HI","HJ","HK","HL","HM","HN","HO","HP","HQ","HR","HS","HT","HU","HV","HW","HX","HY","HZ";"IA","IB","IC","ID","IE","IF","IG","IH","IJ","IK","IL","IM","IN","IO","IP","IQ","IR","IS","IT","IU","IV","IW","IX","IY","IZ";"JA","JB","JC","JD","JE","JF","JG","JH","JI","JK","JL","JM","JN","JO","JP","JQ","JR","JS","JT","JU","JV","JW","JX","JY","JZ";"KA","KB","KC","KD","KE","KF","KG","KH","KI","KJ","KL","KM","KN","KO","KP","KQ","KR","KS","KT","KU","KV","KW","KX","KY","KZ";"LA","LB","LC","LD","LE","LF","LG","LH","LI","LJ","LK","LM","LN","LO","LP","LQ","LR","LS","LT","LU","LV","LW","LX","LY","LZ";"MA","MB","MC","MD","ME","MF","MG","MH","MI","MJ","MK","ML","MN","MO","MP","MQ","MR","MS","MT","MU","MV","MW","MX","MY","MZ";"NA","NB","NC","ND","NE","NF","NG","NH","NI","NJ","NK","NL","NM","NO","NP","NQ","NR","NS","NT","NU","NV","NW","NX","NY","NZ";"OA","OB","OC","OD","OE","OF","OG","OH","OI","OJ","OK","OL","OM","ON","OP","OQ","OR","OS","OT","OU","OV","OW","OX","OY","OZ";"PA","PB","PC","PD","PE","PF","PG","PH","PI","PJ","PK","PL","PM","PN","PO","PQ","PR","PS","PT","PU","PV","PW","PX","PY","PZ";"QA","QB","QC","QD","QE","QF","QG","QH","QI","QJ","QK","QL","QM","QN","QO","QP","QR","QS","QT","QU","QV","QW","QX","QY","QZ";"RA","RB","RC","RD","RE","RF","RG","RH","RI","RJ","RK","RL","RM","RN","RO","RP","RQ","RS","RT","RU","RV","RW","RX","RY","RZ";"SA","SB","SC","SD","SE","SF","SG","SH","SI","SJ","SK","SL","SM","SN","SO","SP","SQ","SR","ST","SU","SV","SW","SX","SY","SZ";"TA","TB","TC","TD","TE","TF","TG","TH","TI","TJ","TK","TL","TM","TN","TO","TP","TQ","TR","TS","TU","TV","TW","TX","TY","TZ";"UA","UB","UC","UD","UE","UF","UG","UH","UI","UJ","UK","UL","UM","UN","UO","UP","UQ","UR","US","UT","UV","UW","UX","UY","UZ";"VA","VB","VC","VD","VE","VF","VG","VH","VI","VJ","VK","VL","VM","VN","VO","VP","VQ","VR","VS","VT","VU","VW","VX","VY","VZ";"WA","WB","WC","WD","WE","WF","WG","WH","WI","WJ","WK","WL","WM","WN","WO","WP","WQ","WR","WS","WT","WU","WV","WX","WY","WZ";"XA","XB","XC","XD","XE","XF","XG","XH","XI","XJ","XK","XL","XM","XN","XO","XP","XQ","XR","XS","XT","XU","XV","XW","XY","XZ";"YA","YB","YC","YD","YE","YF","YG","YH","YI","YJ","YK","YL","YM","YN","YO","YP","YQ","YR","YS","YT","YU","YV","YW","YX","YZ";"ZA","ZB","ZC","ZD","ZE","ZF","ZG","ZH","ZI","ZJ","ZK","ZL","ZM","ZN","ZO","ZP","ZQ","ZR","ZS","ZT","ZU","ZV","ZW","ZX","ZY"}, RANDBETWEEN(1,26),RANDBETWEEN(1,25)) -> JT | C70: QC | D70: =CHAR(INT((NOW()*10^8-INT(NOW()*10^8))*26+65))&CHAR(LARGE(IF(ROW($A$65:$A$90)<>INT((NOW()*10^8-INT(NOW()*10^8))*26+65),ROW($A$65:$A$90),""),RANDBETWEEN(1,25))) -> SV | E70: UX | F70: OV
A71: =SUBSTITUTE(ADDRESS(1,SMALL(IF(MOD(COLUMN($AA:$ZZ),27)>0,COLUMN($AA:$ZZ)),RANDBETWEEN(1,650)),4),1,"") -> DH | B71: =INDEX( {"AB","AC","AD","AE","AF","AG","AH","AI","AJ","AK","AL","AM","AN","AO","AP","AQ","AR","AS","AT","AU","AV","AW","AX","AY","AZ";"BA","BC","BD","BE","BF","BG","BH","BI","BJ","BK","BL","BM","BN","BO","BP","BQ","BR","BS","BT","BU","BV","BW","BX","BY","BZ";"CA","CB","CD","CE","CF","CG","CH","CI","CJ","CK","CL","CM","CN","CO","CP","CQ","CR","CS","CT","CU","CV","CW","CX","CY","CZ";"DA","DB","DC","DE","DF","DG","DH","DI","DJ","DK","DL","DM","DN","DO","DP","DQ","DR","DS","DT","DU","DV","DW","DX","DY","DZ";"EA","EB","EC","ED","EF","EG","EH","EI","EJ","EK","EL","EM","EN","EO","EP","EQ","ER","ES","ET","EU","EV","EW","EX","EY","EZ";"FA","FB","FC","FD","FE","FG","FH","FI","FJ","FK","FL","FM","FN","FO","FP","FQ","FR","FS","FT","FU","FV","FW","FX","FY","FZ";"GA","GB","GC","GD","GE","GF","GH","GI","GJ","GK","GL","GM","GN","GO","GP","GQ","GR","GS","GT","GU","GV","GW","GX","GY","GZ";"HA","HB","HC","HD","HE","HF","HG","HI","HJ","HK","HL","HM","HN","HO","HP","HQ","HR","HS","HT","HU","HV","HW","HX","HY","HZ";"IA","IB","IC","ID","IE","IF","IG","IH","IJ","IK","IL","IM","IN","IO","IP","IQ","IR","IS","IT","IU","IV","IW","IX","IY","IZ";"JA","JB","JC","JD","JE","JF","JG","JH","JI","JK","JL","JM","JN","JO","JP","JQ","JR","JS","JT","JU","JV","JW","JX","JY","JZ";"KA","KB","KC","KD","KE","KF","KG","KH","KI","KJ","KL","KM","KN","KO","KP","KQ","KR","KS","KT","KU","KV","KW","KX","KY","KZ";"LA","LB","LC","LD","LE","LF","LG","LH","LI","LJ","LK","LM","LN","LO","LP","LQ","LR","LS","LT","LU","LV","LW","LX","LY","LZ";"MA","MB","MC","MD","ME","MF","MG","MH","MI","MJ","MK","ML","MN","MO","MP","MQ","MR","MS","MT","MU","MV","MW","MX","MY","MZ";"NA","NB","NC","ND","NE","NF","NG","NH","NI","NJ","NK","NL","NM","NO","NP","NQ","NR","NS","NT","NU","NV","NW","NX","NY","NZ";"OA","OB","OC","OD","OE","OF","OG","OH","OI","OJ","OK","OL","OM","ON","OP","OQ","OR","OS","OT","OU","OV","OW","OX","OY","OZ";"PA","PB","PC","PD","PE","PF","PG","PH","PI","PJ","PK","PL","PM","PN","PO","PQ","PR","PS","PT","PU","PV","PW","PX","PY","PZ";"QA","QB","QC","QD","QE","QF","QG","QH","QI","QJ","QK","QL","QM","QN","QO","QP","QR","QS","QT","QU","QV","QW","QX","QY","QZ";"RA","RB","RC","RD","RE","RF","RG","RH","RI","RJ","RK","RL","RM","RN","RO","RP","RQ","RS","RT","RU","RV","RW","RX","RY","RZ";"SA","SB","SC","SD","SE","SF","SG","SH","SI","SJ","SK","SL","SM","SN","SO","SP","SQ","SR","ST","SU","SV","SW","SX","SY","SZ";"TA","TB","TC","TD","TE","TF","TG","TH","TI","TJ","TK","TL","TM","TN","TO","TP","TQ","TR","TS","TU","TV","TW","TX","TY","TZ";"UA","UB","UC","UD","UE","UF","UG","UH","UI","UJ","UK","UL","UM","UN","UO","UP","UQ","UR","US","UT","UV","UW","UX","UY","UZ";"VA","VB","VC","VD","VE","VF","VG","VH","VI","VJ","VK","VL","VM","VN","VO","VP","VQ","VR","VS","VT","VU","VW","VX","VY","VZ";"WA","WB","WC","WD","WE","WF","WG","WH","WI","WJ","WK","WL","WM","WN","WO","WP","WQ","WR","WS","WT","WU","WV","WX","WY","WZ";"XA","XB","XC","XD","XE","XF","XG","XH","XI","XJ","XK","XL","XM","XN","XO","XP","XQ","XR","XS","XT","XU","XV","XW","XY","XZ";"YA","YB","YC","YD","YE","YF","YG","YH","YI","YJ","YK","YL","YM","YN","YO","YP","YQ","YR","YS","YT","YU","YV","YW","YX","YZ";"ZA","ZB","ZC","ZD","ZE","ZF","ZG","ZH","ZI","ZJ","ZK","ZL","ZM","ZN","ZO","ZP","ZQ","ZR","ZS","ZT","ZU","ZV","ZW","ZX","ZY"}, RANDBETWEEN(1,26),RANDBETWEEN(1,25)) -> AC | C71: LV | D71: =CHAR(INT((NOW()*10^8-INT(NOW()*10^8))*26+65))&CHAR(LARGE(IF(ROW($A$65:$A$90)<>INT((NOW()*10^8-INT(NOW()*10^8))*26+65),ROW($A$65:$A$90),""),RANDBETWEEN(1,25))) -> SO | E71: ZF | F71: OV
A72: =SUBSTITUTE(ADDRESS(1,SMALL(IF(MOD(COLUMN($AA:$ZZ),27)>0,COLUMN($AA:$ZZ)),RANDBETWEEN(1,650)),4),1,"") -> XW | B72: =INDEX( {"AB","AC","AD","AE","AF","AG","AH","AI","AJ","AK","AL","AM","AN","AO","AP","AQ","AR","AS","AT","AU","AV","AW","AX","AY","AZ";"BA","BC","BD","BE","BF","BG","BH","BI","BJ","BK","BL","BM","BN","BO","BP","BQ","BR","BS","BT","BU","BV","BW","BX","BY","BZ";"CA","CB","CD","CE","CF","CG","CH","CI","CJ","CK","CL","CM","CN","CO","CP","CQ","CR","CS","CT","CU","CV","CW","CX","CY","CZ";"DA","DB","DC","DE","DF","DG","DH","DI","DJ","DK","DL","DM","DN","DO","DP","DQ","DR","DS","DT","DU","DV","DW","DX","DY","DZ";"EA","EB","EC","ED","EF","EG","EH","EI","EJ","EK","EL","EM","EN","EO","EP","EQ","ER","ES","ET","EU","EV","EW","EX","EY","EZ";"FA","FB","FC","FD","FE","FG","FH","FI","FJ","FK","FL","FM","FN","FO","FP","FQ","FR","FS","FT","FU","FV","FW","FX","FY","FZ";"GA","GB","GC","GD","GE","GF","GH","GI","GJ","GK","GL","GM","GN","GO","GP","GQ","GR","GS","GT","GU","GV","GW","GX","GY","GZ";"HA","HB","HC","HD","HE","HF","HG","HI","HJ","HK","HL","HM","HN","HO","HP","HQ","HR","HS","HT","HU","HV","HW","HX","HY","HZ";"IA","IB","IC","ID","IE","IF","IG","IH","IJ","IK","IL","IM","IN","IO","IP","IQ","IR","IS","IT","IU","IV","IW","IX","IY","IZ";"JA","JB","JC","JD","JE","JF","JG","JH","JI","JK","JL","JM","JN","JO","JP","JQ","JR","JS","JT","JU","JV","JW","JX","JY","JZ";"KA","KB","KC","KD","KE","KF","KG","KH","KI","KJ","KL","KM","KN","KO","KP","KQ","KR","KS","KT","KU","KV","KW","KX","KY","KZ";"LA","LB","LC","LD","LE","LF","LG","LH","LI","LJ","LK","LM","LN","LO","LP","LQ","LR","LS","LT","LU","LV","LW","LX","LY","LZ";"MA","MB","MC","MD","ME","MF","MG","MH","MI","MJ","MK","ML","MN","MO","MP","MQ","MR","MS","MT","MU","MV","MW","MX","MY","MZ";"NA","NB","NC","ND","NE","NF","NG","NH","NI","NJ","NK","NL","NM","NO","NP","NQ","NR","NS","NT","NU","NV","NW","NX","NY","NZ";"OA","OB","OC","OD","OE","OF","OG","OH","OI","OJ","OK","OL","OM","ON","OP","OQ","OR","OS","OT","OU","OV","OW","OX","OY","OZ";"PA","PB","PC","PD","PE","PF","PG","PH","PI","PJ","PK","PL","PM","PN","PO","PQ","PR","PS","PT","PU","PV","PW","PX","PY","PZ";"QA","QB","QC","QD","QE","QF","QG","QH","QI","QJ","QK","QL","QM","QN","QO","QP","QR","QS","QT","QU","QV","QW","QX","QY","QZ";"RA","RB","RC","RD","RE","RF","RG","RH","RI","RJ","RK","RL","RM","RN","RO","RP","RQ","RS","RT","RU","RV","RW","RX","RY","RZ";"SA","SB","SC","SD","SE","SF","SG","SH","SI","SJ","SK","SL","SM","SN","SO","SP","SQ","SR","ST","SU","SV","SW","SX","SY","SZ";"TA","TB","TC","TD","TE","TF","TG","TH","TI","TJ","TK","TL","TM","TN","TO","TP","TQ","TR","TS","TU","TV","TW","TX","TY","TZ";"UA","UB","UC","UD","UE","UF","UG","UH","UI","UJ","UK","UL","UM","UN","UO","UP","UQ","UR","US","UT","UV","UW","UX","UY","UZ";"VA","VB","VC","VD","VE","VF","VG","VH","VI","VJ","VK","VL","VM","VN","VO","VP","VQ","VR","VS","VT","VU","VW","VX","VY","VZ";"WA","WB","WC","WD","WE","WF","WG","WH","WI","WJ","WK","WL","WM","WN","WO","WP","WQ","WR","WS","WT","WU","WV","WX","WY","WZ";"XA","XB","XC","XD","XE","XF","XG","XH","XI","XJ","XK","XL","XM","XN","XO","XP","XQ","XR","XS","XT","XU","XV","XW","XY","XZ";"YA","YB","YC","YD","YE","YF","YG","YH","YI","YJ","YK","YL","YM","YN","YO","YP","YQ","YR","YS","YT","YU","YV","YW","YX","YZ";"ZA","ZB","ZC","ZD","ZE","ZF","ZG","ZH","ZI","ZJ","ZK","ZL","ZM","ZN","ZO","ZP","ZQ","ZR","ZS","ZT","ZU","ZV","ZW","ZX","ZY"}, RANDBETWEEN(1,26),RANDBETWEEN(1,25)) -> KX | C72: MY | D72: =CHAR(INT((NOW()*10^8-INT(NOW()*10^8))*26+65))&CHAR(LARGE(IF(ROW($A$65:$A$90)<>INT((NOW()*10^8-INT(NOW()*10^8))*26+65),ROW($A$65:$A$90),""),RANDBETWEEN(1,25))) -> SU | E72: NL | F72: PZ
A73: =SUBSTITUTE(ADDRESS(1,SMALL(IF(MOD(COLUMN($AA:$ZZ),27)>0,COLUMN($AA:$ZZ)),RANDBETWEEN(1,650)),4),1,"") -> KH | B73: =INDEX( {"AB","AC","AD","AE","AF","AG","AH","AI","AJ","AK","AL","AM","AN","AO","AP","AQ","AR","AS","AT","AU","AV","AW","AX","AY","AZ";"BA","BC","BD","BE","BF","BG","BH","BI","BJ","BK","BL","BM","BN","BO","BP","BQ","BR","BS","BT","BU","BV","BW","BX","BY","BZ";"CA","CB","CD","CE","CF","CG","CH","CI","CJ","CK","CL","CM","CN","CO","CP","CQ","CR","CS","CT","CU","CV","CW","CX","CY","CZ";"DA","DB","DC","DE","DF","DG","DH","DI","DJ","DK","DL","DM","DN","DO","DP","DQ","DR","DS","DT","DU","DV","DW","DX","DY","DZ";"EA","EB","EC","ED","EF","EG","EH","EI","EJ","EK","EL","EM","EN","EO","EP","EQ","ER","ES","ET","EU","EV","EW","EX","EY","EZ";"FA","FB","FC","FD","FE","FG","FH","FI","FJ","FK","FL","FM","FN","FO","FP","FQ","FR","FS","FT","FU","FV","FW","FX","FY","FZ";"GA","GB","GC","GD","GE","GF","GH","GI","GJ","GK","GL","GM","GN","GO","GP","GQ","GR","GS","GT","GU","GV","GW","GX","GY","GZ";"HA","HB","HC","HD","HE","HF","HG","HI","HJ","HK","HL","HM","HN","HO","HP","HQ","HR","HS","HT","HU","HV","HW","HX","HY","HZ";"IA","IB","IC","ID","IE","IF","IG","IH","IJ","IK","IL","IM","IN","IO","IP","IQ","IR","IS","IT","IU","IV","IW","IX","IY","IZ";"JA","JB","JC","JD","JE","JF","JG","JH","JI","JK","JL","JM","JN","JO","JP","JQ","JR","JS","JT","JU","JV","JW","JX","JY","JZ";"KA","KB","KC","KD","KE","KF","KG","KH","KI","KJ","KL","KM","KN","KO","KP","KQ","KR","KS","KT","KU","KV","KW","KX","KY","KZ";"LA","LB","LC","LD","LE","LF","LG","LH","LI","LJ","LK","LM","LN","LO","LP","LQ","LR","LS","LT","LU","LV","LW","LX","LY","LZ";"MA","MB","MC","MD","ME","MF","MG","MH","MI","MJ","MK","ML","MN","MO","MP","MQ","MR","MS","MT","MU","MV","MW","MX","MY","MZ";"NA","NB","NC","ND","NE","NF","NG","NH","NI","NJ","NK","NL","NM","NO","NP","NQ","NR","NS","NT","NU","NV","NW","NX","NY","NZ";"OA","OB","OC","OD","OE","OF","OG","OH","OI","OJ","OK","OL","OM","ON","OP","OQ","OR","OS","OT","OU","OV","OW","OX","OY","OZ";"PA","PB","PC","PD","PE","PF","PG","PH","PI","PJ","PK","PL","PM","PN","PO","PQ","PR","PS","PT","PU","PV","PW","PX","PY","PZ";"QA","QB","QC","QD","QE","QF","QG","QH","QI","QJ","QK","QL","QM","QN","QO","QP","QR","QS","QT","QU","QV","QW","QX","QY","QZ";"RA","RB","RC","RD","RE","RF","RG","RH","RI","RJ","RK","RL","RM","RN","RO","RP","RQ","RS","RT","RU","RV","RW","RX","RY","RZ";"SA","SB","SC","SD","SE","SF","SG","SH","SI","SJ","SK","SL","SM","SN","SO","SP","SQ","SR","ST","SU","SV","SW","SX","SY","SZ";"TA","TB","TC","TD","TE","TF","TG","TH","TI","TJ","TK","TL","TM","TN","TO","TP","TQ","TR","TS","TU","TV","TW","TX","TY","TZ";"UA","UB","UC","UD","UE","UF","UG","UH","UI","UJ","UK","UL","UM","UN","UO","UP","UQ","UR","US","UT","UV","UW","UX","UY","UZ";"VA","VB","VC","VD","VE","VF","VG","VH","VI","VJ","VK","VL","VM","VN","VO","VP","VQ","VR","VS","VT","VU","VW","VX","VY","VZ";"WA","WB","WC","WD","WE","WF","WG","WH","WI","WJ","WK","WL","WM","WN","WO","WP","WQ","WR","WS","WT","WU","WV","WX","WY","WZ";"XA","XB","XC","XD","XE","XF","XG","XH","XI","XJ","XK","XL","XM","XN","XO","XP","XQ","XR","XS","XT","XU","XV","XW","XY","XZ";"YA","YB","YC","YD","YE","YF","YG","YH","YI","YJ","YK","YL","YM","YN","YO","YP","YQ","YR","YS","YT","YU","YV","YW","YX","YZ";"ZA","ZB","ZC","ZD","ZE","ZF","ZG","ZH","ZI","ZJ","ZK","ZL","ZM","ZN","ZO","ZP","ZQ","ZR","ZS","ZT","ZU","ZV","ZW","ZX","ZY"}, RANDBETWEEN(1,26),RANDBETWEEN(1,25)) -> TR | C73: QC | D73: =CHAR(INT((NOW()*10^8-INT(NOW()*10^8))*26+65))&CHAR(LARGE(IF(ROW($A$65:$A$90)<>INT((NOW()*10^8-INT(NOW()*10^8))*26+65),ROW($A$65:$A$90),""),RANDBETWEEN(1,25))) -> SF | E73: EO | F73: JW
A74: =SUBSTITUTE(ADDRESS(1,SMALL(IF(MOD(COLUMN($AA:$ZZ),27)>0,COLUMN($AA:$ZZ)),RANDBETWEEN(1,650)),4),1,"") -> QY | B74: =INDEX( {"AB","AC","AD","AE","AF","AG","AH","AI","AJ","AK","AL","AM","AN","AO","AP","AQ","AR","AS","AT","AU","AV","AW","AX","AY","AZ";"BA","BC","BD","BE","BF","BG","BH","BI","BJ","BK","BL","BM","BN","BO","BP","BQ","BR","BS","BT","BU","BV","BW","BX","BY","BZ";"CA","CB","CD","CE","CF","CG","CH","CI","CJ","CK","CL","CM","CN","CO","CP","CQ","CR","CS","CT","CU","CV","CW","CX","CY","CZ";"DA","DB","DC","DE","DF","DG","DH","DI","DJ","DK","DL","DM","DN","DO","DP","DQ","DR","DS","DT","DU","DV","DW","DX","DY","DZ";"EA","EB","EC","ED","EF","EG","EH","EI","EJ","EK","EL","EM","EN","EO","EP","EQ","ER","ES","ET","EU","EV","EW","EX","EY","EZ";"FA","FB","FC","FD","FE","FG","FH","FI","FJ","FK","FL","FM","FN","FO","FP","FQ","FR","FS","FT","FU","FV","FW","FX","FY","FZ";"GA","GB","GC","GD","GE","GF","GH","GI","GJ","GK","GL","GM","GN","GO","GP","GQ","GR","GS","GT","GU","GV","GW","GX","GY","GZ";"HA","HB","HC","HD","HE","HF","HG","HI","HJ","HK","HL","HM","HN","HO","HP","HQ","HR","HS","HT","HU","HV","HW","HX","HY","HZ";"IA","IB","IC","ID","IE","IF","IG","IH","IJ","IK","IL","IM","IN","IO","IP","IQ","IR","IS","IT","IU","IV","IW","IX","IY","IZ";"JA","JB","JC","JD","JE","JF","JG","JH","JI","JK","JL","JM","JN","JO","JP","JQ","JR","JS","JT","JU","JV","JW","JX","JY","JZ";"KA","KB","KC","KD","KE","KF","KG","KH","KI","KJ","KL","KM","KN","KO","KP","KQ","KR","KS","KT","KU","KV","KW","KX","KY","KZ";"LA","LB","LC","LD","LE","LF","LG","LH","LI","LJ","LK","LM","LN","LO","LP","LQ","LR","LS","LT","LU","LV","LW","LX","LY","LZ";"MA","MB","MC","MD","ME","MF","MG","MH","MI","MJ","MK","ML","MN","MO","MP","MQ","MR","MS","MT","MU","MV","MW","MX","MY","MZ";"NA","NB","NC","ND","NE","NF","NG","NH","NI","NJ","NK","NL","NM","NO","NP","NQ","NR","NS","NT","NU","NV","NW","NX","NY","NZ";"OA","OB","OC","OD","OE","OF","OG","OH","OI","OJ","OK","OL","OM","ON","OP","OQ","OR","OS","OT","OU","OV","OW","OX","OY","OZ";"PA","PB","PC","PD","PE","PF","PG","PH","PI","PJ","PK","PL","PM","PN","PO","PQ","PR","PS","PT","PU","PV","PW","PX","PY","PZ";"QA","QB","QC","QD","QE","QF","QG","QH","QI","QJ","QK","QL","QM","QN","QO","QP","QR","QS","QT","QU","QV","QW","QX","QY","QZ";"RA","RB","RC","RD","RE","RF","RG","RH","RI","RJ","RK","RL","RM","RN","RO","RP","RQ","RS","RT","RU","RV","RW","RX","RY","RZ";"SA","SB","SC","SD","SE","SF","SG","SH","SI","SJ","SK","SL","SM","SN","SO","SP","SQ","SR","ST","SU","SV","SW","SX","SY","SZ";"TA","TB","TC","TD","TE","TF","TG","TH","TI","TJ","TK","TL","TM","TN","TO","TP","TQ","TR","TS","TU","TV","TW","TX","TY","TZ";"UA","UB","UC","UD","UE","UF","UG","UH","UI","UJ","UK","UL","UM","UN","UO","UP","UQ","UR","US","UT","UV","UW","UX","UY","UZ";"VA","VB","VC","VD","VE","VF","VG","VH","VI","VJ","VK","VL","VM","VN","VO","VP","VQ","VR","VS","VT","VU","VW","VX","VY","VZ";"WA","WB","WC","WD","WE","WF","WG","WH","WI","WJ","WK","WL","WM","WN","WO","WP","WQ","WR","WS","WT","WU","WV","WX","WY","WZ";"XA","XB","XC","XD","XE","XF","XG","XH","XI","XJ","XK","XL","XM","XN","XO","XP","XQ","XR","XS","XT","XU","XV","XW","XY","XZ";"YA","YB","YC","YD","YE","YF","YG","YH","YI","YJ","YK","YL","YM","YN","YO","YP","YQ","YR","YS","YT","YU","YV","YW","YX","YZ";"ZA","ZB","ZC","ZD","ZE","ZF","ZG","ZH","ZI","ZJ","ZK","ZL","ZM","ZN","ZO","ZP","ZQ","ZR","ZS","ZT","ZU","ZV","ZW","ZX","ZY"}, RANDBETWEEN(1,26),RANDBETWEEN(1,25)) -> WL | C74: AQ | D74: =CHAR(INT((NOW()*10^8-INT(NOW()*10^8))*26+65))&CHAR(LARGE(IF(ROW($A$65:$A$90)<>INT((NOW()*10^8-INT(NOW()*10^8))*26+65),ROW($A$65:$A$90),""),RANDBETWEEN(1,25))) -> SX | E74: WH | F74: JG
A75: =SUBSTITUTE(ADDRESS(1,SMALL(IF(MOD(COLUMN($AA:$ZZ),27)>0,COLUMN($AA:$ZZ)),RANDBETWEEN(1,650)),4),1,"") -> LP | B75: =INDEX( {"AB","AC","AD","AE","AF","AG","AH","AI","AJ","AK","AL","AM","AN","AO","AP","AQ","AR","AS","AT","AU","AV","AW","AX","AY","AZ";"BA","BC","BD","BE","BF","BG","BH","BI","BJ","BK","BL","BM","BN","BO","BP","BQ","BR","BS","BT","BU","BV","BW","BX","BY","BZ";"CA","CB","CD","CE","CF","CG","CH","CI","CJ","CK","CL","CM","CN","CO","CP","CQ","CR","CS","CT","CU","CV","CW","CX","CY","CZ";"DA","DB","DC","DE","DF","DG","DH","DI","DJ","DK","DL","DM","DN","DO","DP","DQ","DR","DS","DT","DU","DV","DW","DX","DY","DZ";"EA","EB","EC","ED","EF","EG","EH","EI","EJ","EK","EL","EM","EN","EO","EP","EQ","ER","ES","ET","EU","EV","EW","EX","EY","EZ";"FA","FB","FC","FD","FE","FG","FH","FI","FJ","FK","FL","FM","FN","FO","FP","FQ","FR","FS","FT","FU","FV","FW","FX","FY","FZ";"GA","GB","GC","GD","GE","GF","GH","GI","GJ","GK","GL","GM","GN","GO","GP","GQ","GR","GS","GT","GU","GV","GW","GX","GY","GZ";"HA","HB","HC","HD","HE","HF","HG","HI","HJ","HK","HL","HM","HN","HO","HP","HQ","HR","HS","HT","HU","HV","HW","HX","HY","HZ";"IA","IB","IC","ID","IE","IF","IG","IH","IJ","IK","IL","IM","IN","IO","IP","IQ","IR","IS","IT","IU","IV","IW","IX","IY","IZ";"JA","JB","JC","JD","JE","JF","JG","JH","JI","JK","JL","JM","JN","JO","JP","JQ","JR","JS","JT","JU","JV","JW","JX","JY","JZ";"KA","KB","KC","KD","KE","KF","KG","KH","KI","KJ","KL","KM","KN","KO","KP","KQ","KR","KS","KT","KU","KV","KW","KX","KY","KZ";"LA","LB","LC","LD","LE","LF","LG","LH","LI","LJ","LK","LM","LN","LO","LP","LQ","LR","LS","LT","LU","LV","LW","LX","LY","LZ";"MA","MB","MC","MD","ME","MF","MG","MH","MI","MJ","MK","ML","MN","MO","MP","MQ","MR","MS","MT","MU","MV","MW","MX","MY","MZ";"NA","NB","NC","ND","NE","NF","NG","NH","NI","NJ","NK","NL","NM","NO","NP","NQ","NR","NS","NT","NU","NV","NW","NX","NY","NZ";"OA","OB","OC","OD","OE","OF","OG","OH","OI","OJ","OK","OL","OM","ON","OP","OQ","OR","OS","OT","OU","OV","OW","OX","OY","OZ";"PA","PB","PC","PD","PE","PF","PG","PH","PI","PJ","PK","PL","PM","PN","PO","PQ","PR","PS","PT","PU","PV","PW","PX","PY","PZ";"QA","QB","QC","QD","QE","QF","QG","QH","QI","QJ","QK","QL","QM","QN","QO","QP","QR","QS","QT","QU","QV","QW","QX","QY","QZ";"RA","RB","RC","RD","RE","RF","RG","RH","RI","RJ","RK","RL","RM","RN","RO","RP","RQ","RS","RT","RU","RV","RW","RX","RY","RZ";"SA","SB","SC","SD","SE","SF","SG","SH","SI","SJ","SK","SL","SM","SN","SO","SP","SQ","SR","ST","SU","SV","SW","SX","SY","SZ";"TA","TB","TC","TD","TE","TF","TG","TH","TI","TJ","TK","TL","TM","TN","TO","TP","TQ","TR","TS","TU","TV","TW","TX","TY","TZ";"UA","UB","UC","UD","UE","UF","UG","UH","UI","UJ","UK","UL","UM","UN","UO","UP","UQ","UR","US","UT","UV","UW","UX","UY","UZ";"VA","VB","VC","VD","VE","VF","VG","VH","VI","VJ","VK","VL","VM","VN","VO","VP","VQ","VR","VS","VT","VU","VW","VX","VY","VZ";"WA","WB","WC","WD","WE","WF","WG","WH","WI","WJ","WK","WL","WM","WN","WO","WP","WQ","WR","WS","WT","WU","WV","WX","WY","WZ";"XA","XB","XC","XD","XE","XF","XG","XH","XI","XJ","XK","XL","XM","XN","XO","XP","XQ","XR","XS","XT","XU","XV","XW","XY","XZ";"YA","YB","YC","YD","YE","YF","YG","YH","YI","YJ","YK","YL","YM","YN","YO","YP","YQ","YR","YS","YT","YU","YV","YW","YX","YZ";"ZA","ZB","ZC","ZD","ZE","ZF","ZG","ZH","ZI","ZJ","ZK","ZL","ZM","ZN","ZO","ZP","ZQ","ZR","ZS","ZT","ZU","ZV","ZW","ZX","ZY"}, RANDBETWEEN(1,26),RANDBETWEEN(1,25)) -> GS | C75: AV | D75: =CHAR(INT((NOW()*10^8-INT(NOW()*10^8))*26+65))&CHAR(LARGE(IF(ROW($A$65:$A$90)<>INT((NOW()*10^8-INT(NOW()*10^8))*26+65),ROW($A$65:$A$90),""),RANDBETWEEN(1,25))) -> SR | E75: FP | F75: SA
A76: =SUBSTITUTE(ADDRESS(1,SMALL(IF(MOD(COLUMN($AA:$ZZ),27)>0,COLUMN($AA:$ZZ)),RANDBETWEEN(1,650)),4),1,"") -> WV | B76: =INDEX( {"AB","AC","AD","AE","AF","AG","AH","AI","AJ","AK","AL","AM","AN","AO","AP","AQ","AR","AS","AT","AU","AV","AW","AX","AY","AZ";"BA","BC","BD","BE","BF","BG","BH","BI","BJ","BK","BL","BM","BN","BO","BP","BQ","BR","BS","BT","BU","BV","BW","BX","BY","BZ";"CA","CB","CD","CE","CF","CG","CH","CI","CJ","CK","CL","CM","CN","CO","CP","CQ","CR","CS","CT","CU","CV","CW","CX","CY","CZ";"DA","DB","DC","DE","DF","DG","DH","DI","DJ","DK","DL","DM","DN","DO","DP","DQ","DR","DS","DT","DU","DV","DW","DX","DY","DZ";"EA","EB","EC","ED","EF","EG","EH","EI","EJ","EK","EL","EM","EN","EO","EP","EQ","ER","ES","ET","EU","EV","EW","EX","EY","EZ";"FA","FB","FC","FD","FE","FG","FH","FI","FJ","FK","FL","FM","FN","FO","FP","FQ","FR","FS","FT","FU","FV","FW","FX","FY","FZ";"GA","GB","GC","GD","GE","GF","GH","GI","GJ","GK","GL","GM","GN","GO","GP","GQ","GR","GS","GT","GU","GV","GW","GX","GY","GZ";"HA","HB","HC","HD","HE","HF","HG","HI","HJ","HK","HL","HM","HN","HO","HP","HQ","HR","HS","HT","HU","HV","HW","HX","HY","HZ";"IA","IB","IC","ID","IE","IF","IG","IH","IJ","IK","IL","IM","IN","IO","IP","IQ","IR","IS","IT","IU","IV","IW","IX","IY","IZ";"JA","JB","JC","JD","JE","JF","JG","JH","JI","JK","JL","JM","JN","JO","JP","JQ","JR","JS","JT","JU","JV","JW","JX","JY","JZ";"KA","KB","KC","KD","KE","KF","KG","KH","KI","KJ","KL","KM","KN","KO","KP","KQ","KR","KS","KT","KU","KV","KW","KX","KY","KZ";"LA","LB","LC","LD","LE","LF","LG","LH","LI","LJ","LK","LM","LN","LO","LP","LQ","LR","LS","LT","LU","LV","LW","LX","LY","LZ";"MA","MB","MC","MD","ME","MF","MG","MH","MI","MJ","MK","ML","MN","MO","MP","MQ","MR","MS","MT","MU","MV","MW","MX","MY","MZ";"NA","NB","NC","ND","NE","NF","NG","NH","NI","NJ","NK","NL","NM","NO","NP","NQ","NR","NS","NT","NU","NV","NW","NX","NY","NZ";"OA","OB","OC","OD","OE","OF","OG","OH","OI","OJ","OK","OL","OM","ON","OP","OQ","OR","OS","OT","OU","OV","OW","OX","OY","OZ";"PA","PB","PC","PD","PE","PF","PG","PH","PI","PJ","PK","PL","PM","PN","PO","PQ","PR","PS","PT","PU","PV","PW","PX","PY","PZ";"QA","QB","QC","QD","QE","QF","QG","QH","QI","QJ","QK","QL","QM","QN","QO","QP","QR","QS","QT","QU","QV","QW","QX","QY","QZ";"RA","RB","RC","RD","RE","RF","RG","RH","RI","RJ","RK","RL","RM","RN","RO","RP","RQ","RS","RT","RU","RV","RW","RX","RY","RZ";"SA","SB","SC","SD","SE","SF","SG","SH","SI","SJ","SK","SL","SM","SN","SO","SP","SQ","SR","ST","SU","SV","SW","SX","SY","SZ";"TA","TB","TC","TD","TE","TF","TG","TH","TI","TJ","TK","TL","TM","TN","TO","TP","TQ","TR","TS","TU","TV","TW","TX","TY","TZ";"UA","UB","UC","UD","UE","UF","UG","UH","UI","UJ","UK","UL","UM","UN","UO","UP","UQ","UR","US","UT","UV","UW","UX","UY","UZ";"VA","VB","VC","VD","VE","VF","VG","VH","VI","VJ","VK","VL","VM","VN","VO","VP","VQ","VR","VS","VT","VU","VW","VX","VY","VZ";"WA","WB","WC","WD","WE","WF","WG","WH","WI","WJ","WK","WL","WM","WN","WO","WP","WQ","WR","WS","WT","WU","WV","WX","WY","WZ";"XA","XB","XC","XD","XE","XF","XG","XH","XI","XJ","XK","XL","XM","XN","XO","XP","XQ","XR","XS","XT","XU","XV","XW","XY","XZ";"YA","YB","YC","YD","YE","YF","YG","YH","YI","YJ","YK","YL","YM","YN","YO","YP","YQ","YR","YS","YT","YU","YV","YW","YX","YZ";"ZA","ZB","ZC","ZD","ZE","ZF","ZG","ZH","ZI","ZJ","ZK","ZL","ZM","ZN","ZO","ZP","ZQ","ZR","ZS","ZT","ZU","ZV","ZW","ZX","ZY"}, RANDBETWEEN(1,26),RANDBETWEEN(1,25)) -> GD | C76: HY | D76: =CHAR(INT((NOW()*10^8-INT(NOW()*10^8))*26+65))&CHAR(LARGE(IF(ROW($A$65:$A$90)<>INT((NOW()*10^8-INT(NOW()*10^8))*26+65),ROW($A$65:$A$90),""),RANDBETWEEN(1,25))) -> SA | E76: DB | F76: CA
A77: =SUBSTITUTE(ADDRESS(1,SMALL(IF(MOD(COLUMN($AA:$ZZ),27)>0,COLUMN($AA:$ZZ)),RANDBETWEEN(1,650)),4),1,"") -> FY | B77: =INDEX( {"AB","AC","AD","AE","AF","AG","AH","AI","AJ","AK","AL","AM","AN","AO","AP","AQ","AR","AS","AT","AU","AV","AW","AX","AY","AZ";"BA","BC","BD","BE","BF","BG","BH","BI","BJ","BK","BL","BM","BN","BO","BP","BQ","BR","BS","BT","BU","BV","BW","BX","BY","BZ";"CA","CB","CD","CE","CF","CG","CH","CI","CJ","CK","CL","CM","CN","CO","CP","CQ","CR","CS","CT","CU","CV","CW","CX","CY","CZ";"DA","DB","DC","DE","DF","DG","DH","DI","DJ","DK","DL","DM","DN","DO","DP","DQ","DR","DS","DT","DU","DV","DW","DX","DY","DZ";"EA","EB","EC","ED","EF","EG","EH","EI","EJ","EK","EL","EM","EN","EO","EP","EQ","ER","ES","ET","EU","EV","EW","EX","EY","EZ";"FA","FB","FC","FD","FE","FG","FH","FI","FJ","FK","FL","FM","FN","FO","FP","FQ","FR","FS","FT","FU","FV","FW","FX","FY","FZ";"GA","GB","GC","GD","GE","GF","GH","GI","GJ","GK","GL","GM","GN","GO","GP","GQ","GR","GS","GT","GU","GV","GW","GX","GY","GZ";"HA","HB","HC","HD","HE","HF","HG","HI","HJ","HK","HL","HM","HN","HO","HP","HQ","HR","HS","HT","HU","HV","HW","HX","HY","HZ";"IA","IB","IC","ID","IE","IF","IG","IH","IJ","IK","IL","IM","IN","IO","IP","IQ","IR","IS","IT","IU","IV","IW","IX","IY","IZ";"JA","JB","JC","JD","JE","JF","JG","JH","JI","JK","JL","JM","JN","JO","JP","JQ","JR","JS","JT","JU","JV","JW","JX","JY","JZ";"KA","KB","KC","KD","KE","KF","KG","KH","KI","KJ","KL","KM","KN","KO","KP","KQ","KR","KS","KT","KU","KV","KW","KX","KY","KZ";"LA","LB","LC","LD","LE","LF","LG","LH","LI","LJ","LK","LM","LN","LO","LP","LQ","LR","LS","LT","LU","LV","LW","LX","LY","LZ";"MA","MB","MC","MD","ME","MF","MG","MH","MI","MJ","MK","ML","MN","MO","MP","MQ","MR","MS","MT","MU","MV","MW","MX","MY","MZ";"NA","NB","NC","ND","NE","NF","NG","NH","NI","NJ","NK","NL","NM","NO","NP","NQ","NR","NS","NT","NU","NV","NW","NX","NY","NZ";"OA","OB","OC","OD","OE","OF","OG","OH","OI","OJ","OK","OL","OM","ON","OP","OQ","OR","OS","OT","OU","OV","OW","OX","OY","OZ";"PA","PB","PC","PD","PE","PF","PG","PH","PI","PJ","PK","PL","PM","PN","PO","PQ","PR","PS","PT","PU","PV","PW","PX","PY","PZ";"QA","QB","QC","QD","QE","QF","QG","QH","QI","QJ","QK","QL","QM","QN","QO","QP","QR","QS","QT","QU","QV","QW","QX","QY","QZ";"RA","RB","RC","RD","RE","RF","RG","RH","RI","RJ","RK","RL","RM","RN","RO","RP","RQ","RS","RT","RU","RV","RW","RX","RY","RZ";"SA","SB","SC","SD","SE","SF","SG","SH","SI","SJ","SK","SL","SM","SN","SO","SP","SQ","SR","ST","SU","SV","SW","SX","SY","SZ";"TA","TB","TC","TD","TE","TF","TG","TH","TI","TJ","TK","TL","TM","TN","TO","TP","TQ","TR","TS","TU","TV","TW","TX","TY","TZ";"UA","UB","UC","UD","UE","UF","UG","UH","UI","UJ","UK","UL","UM","UN","UO","UP","UQ","UR","US","UT","UV","UW","UX","UY","UZ";"VA","VB","VC","VD","VE","VF","VG","VH","VI","VJ","VK","VL","VM","VN","VO","VP","VQ","VR","VS","VT","VU","VW","VX","VY","VZ";"WA","WB","WC","WD","WE","WF","WG","WH","WI","WJ","WK","WL","WM","WN","WO","WP","WQ","WR","WS","WT","WU","WV","WX","WY","WZ";"XA","XB","XC","XD","XE","XF","XG","XH","XI","XJ","XK","XL","XM","XN","XO","XP","XQ","XR","XS","XT","XU","XV","XW","XY","XZ";"YA","YB","YC","YD","YE","YF","YG","YH","YI","YJ","YK","YL","YM","YN","YO","YP","YQ","YR","YS","YT","YU","YV","YW","YX","YZ";"ZA","ZB","ZC","ZD","ZE","ZF","ZG","ZH","ZI","ZJ","ZK","ZL","ZM","ZN","ZO","ZP","ZQ","ZR","ZS","ZT","ZU","ZV","ZW","ZX","ZY"}, RANDBETWEEN(1,26),RANDBETWEEN(1,25)) -> US | C77: TL | D77: =CHAR(INT((NOW()*10^8-INT(NOW()*10^8))*26+65))&CHAR(LARGE(IF(ROW($A$65:$A$90)<>INT((NOW()*10^8-INT(NOW()*10^8))*26+65),ROW($A$65:$A$90),""),RANDBETWEEN(1,25))) -> SF | E77: TP | F77: VB
A78: =SUBSTITUTE(ADDRESS(1,SMALL(IF(MOD(COLUMN($AA:$ZZ),27)>0,COLUMN($AA:$ZZ)),RANDBETWEEN(1,650)),4),1,"") -> DM | B78: =INDEX( {"AB","AC","AD","AE","AF","AG","AH","AI","AJ","AK","AL","AM","AN","AO","AP","AQ","AR","AS","AT","AU","AV","AW","AX","AY","AZ";"BA","BC","BD","BE","BF","BG","BH","BI","BJ","BK","BL","BM","BN","BO","BP","BQ","BR","BS","BT","BU","BV","BW","BX","BY","BZ";"CA","CB","CD","CE","CF","CG","CH","CI","CJ","CK","CL","CM","CN","CO","CP","CQ","CR","CS","CT","CU","CV","CW","CX","CY","CZ";"DA","DB","DC","DE","DF","DG","DH","DI","DJ","DK","DL","DM","DN","DO","DP","DQ","DR","DS","DT","DU","DV","DW","DX","DY","DZ";"EA","EB","EC","ED","EF","EG","EH","EI","EJ","EK","EL","EM","EN","EO","EP","EQ","ER","ES","ET","EU","EV","EW","EX","EY","EZ";"FA","FB","FC","FD","FE","FG","FH","FI","FJ","FK","FL","FM","FN","FO","FP","FQ","FR","FS","FT","FU","FV","FW","FX","FY","FZ";"GA","GB","GC","GD","GE","GF","GH","GI","GJ","GK","GL","GM","GN","GO","GP","GQ","GR","GS","GT","GU","GV","GW","GX","GY","GZ";"HA","HB","HC","HD","HE","HF","HG","HI","HJ","HK","HL","HM","HN","HO","HP","HQ","HR","HS","HT","HU","HV","HW","HX","HY","HZ";"IA","IB","IC","ID","IE","IF","IG","IH","IJ","IK","IL","IM","IN","IO","IP","IQ","IR","IS","IT","IU","IV","IW","IX","IY","IZ";"JA","JB","JC","JD","JE","JF","JG","JH","JI","JK","JL","JM","JN","JO","JP","JQ","JR","JS","JT","JU","JV","JW","JX","JY","JZ";"KA","KB","KC","KD","KE","KF","KG","KH","KI","KJ","KL","KM","KN","KO","KP","KQ","KR","KS","KT","KU","KV","KW","KX","KY","KZ";"LA","LB","LC","LD","LE","LF","LG","LH","LI","LJ","LK","LM","LN","LO","LP","LQ","LR","LS","LT","LU","LV","LW","LX","LY","LZ";"MA","MB","MC","MD","ME","MF","MG","MH","MI","MJ","MK","ML","MN","MO","MP","MQ","MR","MS","MT","MU","MV","MW","MX","MY","MZ";"NA","NB","NC","ND","NE","NF","NG","NH","NI","NJ","NK","NL","NM","NO","NP","NQ","NR","NS","NT","NU","NV","NW","NX","NY","NZ";"OA","OB","OC","OD","OE","OF","OG","OH","OI","OJ","OK","OL","OM","ON","OP","OQ","OR","OS","OT","OU","OV","OW","OX","OY","OZ";"PA","PB","PC","PD","PE","PF","PG","PH","PI","PJ","PK","PL","PM","PN","PO","PQ","PR","PS","PT","PU","PV","PW","PX","PY","PZ";"QA","QB","QC","QD","QE","QF","QG","QH","QI","QJ","QK","QL","QM","QN","QO","QP","QR","QS","QT","QU","QV","QW","QX","QY","QZ";"RA","RB","RC","RD","RE","RF","RG","RH","RI","RJ","RK","RL","RM","RN","RO","RP","RQ","RS","RT","RU","RV","RW","RX","RY","RZ";"SA","SB","SC","SD","SE","SF","SG","SH","SI","SJ","SK","SL","SM","SN","SO","SP","SQ","SR","ST","SU","SV","SW","SX","SY","SZ";"TA","TB","TC","TD","TE","TF","TG","TH","TI","TJ","TK","TL","TM","TN","TO","TP","TQ","TR","TS","TU","TV","TW","TX","TY","TZ";"UA","UB","UC","UD","UE","UF","UG","UH","UI","UJ","UK","UL","UM","UN","UO","UP","UQ","UR","US","UT","UV","UW","UX","UY","UZ";"VA","VB","VC","VD","VE","VF","VG","VH","VI","VJ","VK","VL","VM","VN","VO","VP","VQ","VR","VS","VT","VU","VW","VX","VY","VZ";"WA","WB","WC","WD","WE","WF","WG","WH","WI","WJ","WK","WL","WM","WN","WO","WP","WQ","WR","WS","WT","WU","WV","WX","WY","WZ";"XA","XB","XC","XD","XE","XF","XG","XH","XI","XJ","XK","XL","XM","XN","XO","XP","XQ","XR","XS","XT","XU","XV","XW","XY","XZ";"YA","YB","YC","YD","YE","YF","YG","YH","YI","YJ","YK","YL","YM","YN","YO","YP","YQ","YR","YS","YT","YU","YV","YW","YX","YZ";"ZA","ZB","ZC","ZD","ZE","ZF","ZG","ZH","ZI","ZJ","ZK","ZL","ZM","ZN","ZO","ZP","ZQ","ZR","ZS","ZT","ZU","ZV","ZW","ZX","ZY"}, RANDBETWEEN(1,26),RANDBETWEEN(1,25)) -> GD | C78: HI | D78: =CHAR(INT((NOW()*10^8-INT(NOW()*10^8))*26+65))&CHAR(LARGE(IF(ROW($A$65:$A$90)<>INT((NOW()*10^8-INT(NOW()*10^8))*26+65),ROW($A$65:$A$90),""),RANDBETWEEN(1,25))) -> SJ | E78: YS | F78: RW
A79: =SUBSTITUTE(ADDRESS(1,SMALL(IF(MOD(COLUMN($AA:$ZZ),27)>0,COLUMN($AA:$ZZ)),RANDBETWEEN(1,650)),4),1,"") -> VF | B79: =INDEX( {"AB","AC","AD","AE","AF","AG","AH","AI","AJ","AK","AL","AM","AN","AO","AP","AQ","AR","AS","AT","AU","AV","AW","AX","AY","AZ";"BA","BC","BD","BE","BF","BG","BH","BI","BJ","BK","BL","BM","BN","BO","BP","BQ","BR","BS","BT","BU","BV","BW","BX","BY","BZ";"CA","CB","CD","CE","CF","CG","CH","CI","CJ","CK","CL","CM","CN","CO","CP","CQ","CR","CS","CT","CU","CV","CW","CX","CY","CZ";"DA","DB","DC","DE","DF","DG","DH","DI","DJ","DK","DL","DM","DN","DO","DP","DQ","DR","DS","DT","DU","DV","DW","DX","DY","DZ";"EA","EB","EC","ED","EF","EG","EH","EI","EJ","EK","EL","EM","EN","EO","EP","EQ","ER","ES","ET","EU","EV","EW","EX","EY","EZ";"FA","FB","FC","FD","FE","FG","FH","FI","FJ","FK","FL","FM","FN","FO","FP","FQ","FR","FS","FT","FU","FV","FW","FX","FY","FZ";"GA","GB","GC","GD","GE","GF","GH","GI","GJ","GK","GL","GM","GN","GO","GP","GQ","GR","GS","GT","GU","GV","GW","GX","GY","GZ";"HA","HB","HC","HD","HE","HF","HG","HI","HJ","HK","HL","HM","HN","HO","HP","HQ","HR","HS","HT","HU","HV","HW","HX","HY","HZ";"IA","IB","IC","ID","IE","IF","IG","IH","IJ","IK","IL","IM","IN","IO","IP","IQ","IR","IS","IT","IU","IV","IW","IX","IY","IZ";"JA","JB","JC","JD","JE","JF","JG","JH","JI","JK","JL","JM","JN","JO","JP","JQ","JR","JS","JT","JU","JV","JW","JX","JY","JZ";"KA","KB","KC","KD","KE","KF","KG","KH","KI","KJ","KL","KM","KN","KO","KP","KQ","KR","KS","KT","KU","KV","KW","KX","KY","KZ";"LA","LB","LC","LD","LE","LF","LG","LH","LI","LJ","LK","LM","LN","LO","LP","LQ","LR","LS","LT","LU","LV","LW","LX","LY","LZ";"MA","MB","MC","MD","ME","MF","MG","MH","MI","MJ","MK","ML","MN","MO","MP","MQ","MR","MS","MT","MU","MV","MW","MX","MY","MZ";"NA","NB","NC","ND","NE","NF","NG","NH","NI","NJ","NK","NL","NM","NO","NP","NQ","NR","NS","NT","NU","NV","NW","NX","NY","NZ";"OA","OB","OC","OD","OE","OF","OG","OH","OI","OJ","OK","OL","OM","ON","OP","OQ","OR","OS","OT","OU","OV","OW","OX","OY","OZ";"PA","PB","PC","PD","PE","PF","PG","PH","PI","PJ","PK","PL","PM","PN","PO","PQ","PR","PS","PT","PU","PV","PW","PX","PY","PZ";"QA","QB","QC","QD","QE","QF","QG","QH","QI","QJ","QK","QL","QM","QN","QO","QP","QR","QS","QT","QU","QV","QW","QX","QY","QZ";"RA","RB","RC","RD","RE","RF","RG","RH","RI","RJ","RK","RL","RM","RN","RO","RP","RQ","RS","RT","RU","RV","RW","RX","RY","RZ";"SA","SB","SC","SD","SE","SF","SG","SH","SI","SJ","SK","SL","SM","SN","SO","SP","SQ","SR","ST","SU","SV","SW","SX","SY","SZ";"TA","TB","TC","TD","TE","TF","TG","TH","TI","TJ","TK","TL","TM","TN","TO","TP","TQ","TR","TS","TU","TV","TW","TX","TY","TZ";"UA","UB","UC","UD","UE","UF","UG","UH","UI","UJ","UK","UL","UM","UN","UO","UP","UQ","UR","US","UT","UV","UW","UX","UY","UZ";"VA","VB","VC","VD","VE","VF","VG","VH","VI","VJ","VK","VL","VM","VN","VO","VP","VQ","VR","VS","VT","VU","VW","VX","VY","VZ";"WA","WB","WC","WD","WE","WF","WG","WH","WI","WJ","WK","WL","WM","WN","WO","WP","WQ","WR","WS","WT","WU","WV","WX","WY","WZ";"XA","XB","XC","XD","XE","XF","XG","XH","XI","XJ","XK","XL","XM","XN","XO","XP","XQ","XR","XS","XT","XU","XV","XW","XY","XZ";"YA","YB","YC","YD","YE","YF","YG","YH","YI","YJ","YK","YL","YM","YN","YO","YP","YQ","YR","YS","YT","YU","YV","YW","YX","YZ";"ZA","ZB","ZC","ZD","ZE","ZF","ZG","ZH","ZI","ZJ","ZK","ZL","ZM","ZN","ZO","ZP","ZQ","ZR","ZS","ZT","ZU","ZV","ZW","ZX","ZY"}, RANDBETWEEN(1,26),RANDBETWEEN(1,25)) -> CD | C79: UQ | D79: =CHAR(INT((NOW()*10^8-INT(NOW()*10^8))*26+65))&CHAR(LARGE(IF(ROW($A$65:$A$90)<>INT((NOW()*10^8-INT(NOW()*10^8))*26+65),ROW($A$65:$A$90),""),RANDBETWEEN(1,25))) -> SK | E79: MV | F79: PO
A80: =SUBSTITUTE(ADDRESS(1,SMALL(IF(MOD(COLUMN($AA:$ZZ),27)>0,COLUMN($AA:$ZZ)),RANDBETWEEN(1,650)),4),1,"") -> RG | B80: =INDEX( {"AB","AC","AD","AE","AF","AG","AH","AI","AJ","AK","AL","AM","AN","AO","AP","AQ","AR","AS","AT","AU","AV","AW","AX","AY","AZ";"BA","BC","BD","BE","BF","BG","BH","BI","BJ","BK","BL","BM","BN","BO","BP","BQ","BR","BS","BT","BU","BV","BW","BX","BY","BZ";"CA","CB","CD","CE","CF","CG","CH","CI","CJ","CK","CL","CM","CN","CO","CP","CQ","CR","CS","CT","CU","CV","CW","CX","CY","CZ";"DA","DB","DC","DE","DF","DG","DH","DI","DJ","DK","DL","DM","DN","DO","DP","DQ","DR","DS","DT","DU","DV","DW","DX","DY","DZ";"EA","EB","EC","ED","EF","EG","EH","EI","EJ","EK","EL","EM","EN","EO","EP","EQ","ER","ES","ET","EU","EV","EW","EX","EY","EZ";"FA","FB","FC","FD","FE","FG","FH","FI","FJ","FK","FL","FM","FN","FO","FP","FQ","FR","FS","FT","FU","FV","FW","FX","FY","FZ";"GA","GB","GC","GD","GE","GF","GH","GI","GJ","GK","GL","GM","GN","GO","GP","GQ","GR","GS","GT","GU","GV","GW","GX","GY","GZ";"HA","HB","HC","HD","HE","HF","HG","HI","HJ","HK","HL","HM","HN","HO","HP","HQ","HR","HS","HT","HU","HV","HW","HX","HY","HZ";"IA","IB","IC","ID","IE","IF","IG","IH","IJ","IK","IL","IM","IN","IO","IP","IQ","IR","IS","IT","IU","IV","IW","IX","IY","IZ";"JA","JB","JC","JD","JE","JF","JG","JH","JI","JK","JL","JM","JN","JO","JP","JQ","JR","JS","JT","JU","JV","JW","JX","JY","JZ";"KA","KB","KC","KD","KE","KF","KG","KH","KI","KJ","KL","KM","KN","KO","KP","KQ","KR","KS","KT","KU","KV","KW","KX","KY","KZ";"LA","LB","LC","LD","LE","LF","LG","LH","LI","LJ","LK","LM","LN","LO","LP","LQ","LR","LS","LT","LU","LV","LW","LX","LY","LZ";"MA","MB","MC","MD","ME","MF","MG","MH","MI","MJ","MK","ML","MN","MO","MP","MQ","MR","MS","MT","MU","MV","MW","MX","MY","MZ";"NA","NB","NC","ND","NE","NF","NG","NH","NI","NJ","NK","NL","NM","NO","NP","NQ","NR","NS","NT","NU","NV","NW","NX","NY","NZ";"OA","OB","OC","OD","OE","OF","OG","OH","OI","OJ","OK","OL","OM","ON","OP","OQ","OR","OS","OT","OU","OV","OW","OX","OY","OZ";"PA","PB","PC","PD","PE","PF","PG","PH","PI","PJ","PK","PL","PM","PN","PO","PQ","PR","PS","PT","PU","PV","PW","PX","PY","PZ";"QA","QB","QC","QD","QE","QF","QG","QH","QI","QJ","QK","QL","QM","QN","QO","QP","QR","QS","QT","QU","QV","QW","QX","QY","QZ";"RA","RB","RC","RD","RE","RF","RG","RH","RI","RJ","RK","RL","RM","RN","RO","RP","RQ","RS","RT","RU","RV","RW","RX","RY","RZ";"SA","SB","SC","SD","SE","SF","SG","SH","SI","SJ","SK","SL","SM","SN","SO","SP","SQ","SR","ST","SU","SV","SW","SX","SY","SZ";"TA","TB","TC","TD","TE","TF","TG","TH","TI","TJ","TK","TL","TM","TN","TO","TP","TQ","TR","TS","TU","TV","TW","TX","TY","TZ";"UA","UB","UC","UD","UE","UF","UG","UH","UI","UJ","UK","UL","UM","UN","UO","UP","UQ","UR","US","UT","UV","UW","UX","UY","UZ";"VA","VB","VC","VD","VE","VF","VG","VH","VI","VJ","VK","VL","VM","VN","VO","VP","VQ","VR","VS","VT","VU","VW","VX","VY","VZ";"WA","WB","WC","WD","WE","WF","WG","WH","WI","WJ","WK","WL","WM","WN","WO","WP","WQ","WR","WS","WT","WU","WV","WX","WY","WZ";"XA","XB","XC","XD","XE","XF","XG","XH","XI","XJ","XK","XL","XM","XN","XO","XP","XQ","XR","XS","XT","XU","XV","XW","XY","XZ";"YA","YB","YC","YD","YE","YF","YG","YH","YI","YJ","YK","YL","YM","YN","YO","YP","YQ","YR","YS","YT","YU","YV","YW","YX","YZ";"ZA","ZB","ZC","ZD","ZE","ZF","ZG","ZH","ZI","ZJ","ZK","ZL","ZM","ZN","ZO","ZP","ZQ","ZR","ZS","ZT","ZU","ZV","ZW","ZX","ZY"}, RANDBETWEEN(1,26),RANDBETWEEN(1,25)) -> HJ | C80: JK | D80: =CHAR(INT((NOW()*10^8-INT(NOW()*10^8))*26+65))&CHAR(LARGE(IF(ROW($A$65:$A$90)<>INT((NOW()*10^8-INT(NOW()*10^8))*26+65),ROW($A$65:$A$90),""),RANDBETWEEN(1,25))) -> SO | E80: ZV | F80: TG
A81: =SUBSTITUTE(ADDRESS(1,SMALL(IF(MOD(COLUMN($AA:$ZZ),27)>0,COLUMN($AA:$ZZ)),RANDBETWEEN(1,650)),4),1,"") -> LX | B81: =INDEX( {"AB","AC","AD","AE","AF","AG","AH","AI","AJ","AK","AL","AM","AN","AO","AP","AQ","AR","AS","AT","AU","AV","AW","AX","AY","AZ";"BA","BC","BD","BE","BF","BG","BH","BI","BJ","BK","BL","BM","BN","BO","BP","BQ","BR","BS","BT","BU","BV","BW","BX","BY","BZ";"CA","CB","CD","CE","CF","CG","CH","CI","CJ","CK","CL","CM","CN","CO","CP","CQ","CR","CS","CT","CU","CV","CW","CX","CY","CZ";"DA","DB","DC","DE","DF","DG","DH","DI","DJ","DK","DL","DM","DN","DO","DP","DQ","DR","DS","DT","DU","DV","DW","DX","DY","DZ";"EA","EB","EC","ED","EF","EG","EH","EI","EJ","EK","EL","EM","EN","EO","EP","EQ","ER","ES","ET","EU","EV","EW","EX","EY","EZ";"FA","FB","FC","FD","FE","FG","FH","FI","FJ","FK","FL","FM","FN","FO","FP","FQ","FR","FS","FT","FU","FV","FW","FX","FY","FZ";"GA","GB","GC","GD","GE","GF","GH","GI","GJ","GK","GL","GM","GN","GO","GP","GQ","GR","GS","GT","GU","GV","GW","GX","GY","GZ";"HA","HB","HC","HD","HE","HF","HG","HI","HJ","HK","HL","HM","HN","HO","HP","HQ","HR","HS","HT","HU","HV","HW","HX","HY","HZ";"IA","IB","IC","ID","IE","IF","IG","IH","IJ","IK","IL","IM","IN","IO","IP","IQ","IR","IS","IT","IU","IV","IW","IX","IY","IZ";"JA","JB","JC","JD","JE","JF","JG","JH","JI","JK","JL","JM","JN","JO","JP","JQ","JR","JS","JT","JU","JV","JW","JX","JY","JZ";"KA","KB","KC","KD","KE","KF","KG","KH","KI","KJ","KL","KM","KN","KO","KP","KQ","KR","KS","KT","KU","KV","KW","KX","KY","KZ";"LA","LB","LC","LD","LE","LF","LG","LH","LI","LJ","LK","LM","LN","LO","LP","LQ","LR","LS","LT","LU","LV","LW","LX","LY","LZ";"MA","MB","MC","MD","ME","MF","MG","MH","MI","MJ","MK","ML","MN","MO","MP","MQ","MR","MS","MT","MU","MV","MW","MX","MY","MZ";"NA","NB","NC","ND","NE","NF","NG","NH","NI","NJ","NK","NL","NM","NO","NP","NQ","NR","NS","NT","NU","NV","NW","NX","NY","NZ";"OA","OB","OC","OD","OE","OF","OG","OH","OI","OJ","OK","OL","OM","ON","OP","OQ","OR","OS","OT","OU","OV","OW","OX","OY","OZ";"PA","PB","PC","PD","PE","PF","PG","PH","PI","PJ","PK","PL","PM","PN","PO","PQ","PR","PS","PT","PU","PV","PW","PX","PY","PZ";"QA","QB","QC","QD","QE","QF","QG","QH","QI","QJ","QK","QL","QM","QN","QO","QP","QR","QS","QT","QU","QV","QW","QX","QY","QZ";"RA","RB","RC","RD","RE","RF","RG","RH","RI","RJ","RK","RL","RM","RN","RO","RP","RQ","RS","RT","RU","RV","RW","RX","RY","RZ";"SA","SB","SC","SD","SE","SF","SG","SH","SI","SJ","SK","SL","SM","SN","SO","SP","SQ","SR","ST","SU","SV","SW","SX","SY","SZ";"TA","TB","TC","TD","TE","TF","TG","TH","TI","TJ","TK","TL","TM","TN","TO","TP","TQ","TR","TS","TU","TV","TW","TX","TY","TZ";"UA","UB","UC","UD","UE","UF","UG","UH","UI","UJ","UK","UL","UM","UN","UO","UP","UQ","UR","US","UT","UV","UW","UX","UY","UZ";"VA","VB","VC","VD","VE","VF","VG","VH","VI","VJ","VK","VL","VM","VN","VO","VP","VQ","VR","VS","VT","VU","VW","VX","VY","VZ";"WA","WB","WC","WD","WE","WF","WG","WH","WI","WJ","WK","WL","WM","WN","WO","WP","WQ","WR","WS","WT","WU","WV","WX","WY","WZ";"XA","XB","XC","XD","XE","XF","XG","XH","XI","XJ","XK","XL","XM","XN","XO","XP","XQ","XR","XS","XT","XU","XV","XW","XY","XZ";"YA","YB","YC","YD","YE","YF","YG","YH","YI","YJ","YK","YL","YM","YN","YO","YP","YQ","YR","YS","YT","YU","YV","YW","YX","YZ";"ZA","ZB","ZC","ZD","ZE","ZF","ZG","ZH","ZI","ZJ","ZK","ZL","ZM","ZN","ZO","ZP","ZQ","ZR","ZS","ZT","ZU","ZV","ZW","ZX","ZY"}, RANDBETWEEN(1,26),RANDBETWEEN(1,25)) -> WO | C81: SY | D81: =CHAR(INT((NOW()*10^8-INT(NOW()*10^8))*26+65))&CHAR(LARGE(IF(ROW($A$65:$A$90)<>INT((NOW()*10^8-INT(NOW()*10^8))*26+65),ROW($A$65:$A$90),""),RANDBETWEEN(1,25))) -> SL | E81: FE | F81: PT
A82: =SUBSTITUTE(ADDRESS(1,SMALL(IF(MOD(COLUMN($AA:$ZZ),27)>0,COLUMN($AA:$ZZ)),RANDBETWEEN(1,650)),4),1,"") -> VE | B82: =INDEX( {"AB","AC","AD","AE","AF","AG","AH","AI","AJ","AK","AL","AM","AN","AO","AP","AQ","AR","AS","AT","AU","AV","AW","AX","AY","AZ";"BA","BC","BD","BE","BF","BG","BH","BI","BJ","BK","BL","BM","BN","BO","BP","BQ","BR","BS","BT","BU","BV","BW","BX","BY","BZ";"CA","CB","CD","CE","CF","CG","CH","CI","CJ","CK","CL","CM","CN","CO","CP","CQ","CR","CS","CT","CU","CV","CW","CX","CY","CZ";"DA","DB","DC","DE","DF","DG","DH","DI","DJ","DK","DL","DM","DN","DO","DP","DQ","DR","DS","DT","DU","DV","DW","DX","DY","DZ";"EA","EB","EC","ED","EF","EG","EH","EI","EJ","EK","EL","EM","EN","EO","EP","EQ","ER","ES","ET","EU","EV","EW","EX","EY","EZ";"FA","FB","FC","FD","FE","FG","FH","FI","FJ","FK","FL","FM","FN","FO","FP","FQ","FR","FS","FT","FU","FV","FW","FX","FY","FZ";"GA","GB","GC","GD","GE","GF","GH","GI","GJ","GK","GL","GM","GN","GO","GP","GQ","GR","GS","GT","GU","GV","GW","GX","GY","GZ";"HA","HB","HC","HD","HE","HF","HG","HI","HJ","HK","HL","HM","HN","HO","HP","HQ","HR","HS","HT","HU","HV","HW","HX","HY","HZ";"IA","IB","IC","ID","IE","IF","IG","IH","IJ","IK","IL","IM","IN","IO","IP","IQ","IR","IS","IT","IU","IV","IW","IX","IY","IZ";"JA","JB","JC","JD","JE","JF","JG","JH","JI","JK","JL","JM","JN","JO","JP","JQ","JR","JS","JT","JU","JV","JW","JX","JY","JZ";"KA","KB","KC","KD","KE","KF","KG","KH","KI","KJ","KL","KM","KN","KO","KP","KQ","KR","KS","KT","KU","KV","KW","KX","KY","KZ";"LA","LB","LC","LD","LE","LF","LG","LH","LI","LJ","LK","LM","LN","LO","LP","LQ","LR","LS","LT","LU","LV","LW","LX","LY","LZ";"MA","MB","MC","MD","ME","MF","MG","MH","MI","MJ","MK","ML","MN","MO","MP","MQ","MR","MS","MT","MU","MV","MW","MX","MY","MZ";"NA","NB","NC","ND","NE","NF","NG","NH","NI","NJ","NK","NL","NM","NO","NP","NQ","NR","NS","NT","NU","NV","NW","NX","NY","NZ";"OA","OB","OC","OD","OE","OF","OG","OH","OI","OJ","OK","OL","OM","ON","OP","OQ","OR","OS","OT","OU","OV","OW","OX","OY","OZ";"PA","PB","PC","PD","PE","PF","PG","PH","PI","PJ","PK","PL","PM","PN","PO","PQ","PR","PS","PT","PU","PV","PW","PX","PY","PZ";"QA","QB","QC","QD","QE","QF","QG","QH","QI","QJ","QK","QL","QM","QN","QO","QP","QR","QS","QT","QU","QV","QW","QX","QY","QZ";"RA","RB","RC","RD","RE","RF","RG","RH","RI","RJ","RK","RL","RM","RN","RO","RP","RQ","RS","RT","RU","RV","RW","RX","RY","RZ";"SA","SB","SC","SD","SE","SF","SG","SH","SI","SJ","SK","SL","SM","SN","SO","SP","SQ","SR","ST","SU","SV","SW","SX","SY","SZ";"TA","TB","TC","TD","TE","TF","TG","TH","TI","TJ","TK","TL","TM","TN","TO","TP","TQ","TR","TS","TU","TV","TW","TX","TY","TZ";"UA","UB","UC","UD","UE","UF","UG","UH","UI","UJ","UK","UL","UM","UN","UO","UP","UQ","UR","US","UT","UV","UW","UX","UY","UZ";"VA","VB","VC","VD","VE","VF","VG","VH","VI","VJ","VK","VL","VM","VN","VO","VP","VQ","VR","VS","VT","VU","VW","VX","VY","VZ";"WA","WB","WC","WD","WE","WF","WG","WH","WI","WJ","WK","WL","WM","WN","WO","WP","WQ","WR","WS","WT","WU","WV","WX","WY","WZ";"XA","XB","XC","XD","XE","XF","XG","XH","XI","XJ","XK","XL","XM","XN","XO","XP","XQ","XR","XS","XT","XU","XV","XW","XY","XZ";"YA","YB","YC","YD","YE","YF","YG","YH","YI","YJ","YK","YL","YM","YN","YO","YP","YQ","YR","YS","YT","YU","YV","YW","YX","YZ";"ZA","ZB","ZC","ZD","ZE","ZF","ZG","ZH","ZI","ZJ","ZK","ZL","ZM","ZN","ZO","ZP","ZQ","ZR","ZS","ZT","ZU","ZV","ZW","ZX","ZY"}, RANDBETWEEN(1,26),RANDBETWEEN(1,25)) -> CX | C82: NC | D82: =CHAR(INT((NOW()*10^8-INT(NOW()*10^8))*26+65))&CHAR(LARGE(IF(ROW($A$65:$A$90)<>INT((NOW()*10^8-INT(NOW()*10^8))*26+65),ROW($A$65:$A$90),""),RANDBETWEEN(1,25))) -> ST | E82: NB | F82: EX
